Workbook

Sheet notes (hidden)
H2: =SUM(H3:H8) -> 0
C3: 600 | D3: 24 | E3: 600 | F3: 1000 | G3: =IF(Form!$D$4=D3,1,0) -> 0 | H3: =IF(G3=1,IF(OR(E3>Form!M$5,F3<Form!M$5),1,0),0) -> 0
C4: 800 | D4: 30 | E4: 800 | F4: 1200 | G4: =IF(Form!$D$4=D4,1,0) -> 0 | H4: =IF(G4=1,IF(OR(E4>Form!M$5,F4<Form!M$5),1,0),0) -> 0
C5: 1000 | D5: 36 | E5: 1000 | F5: 1400 | G5: =IF(Form!$D$4=D5,1,0) -> 0 | H5: =IF(G5=1,IF(OR(E5>Form!M$5,F5<Form!M$5),1,0),0) -> 0
C6: 1200 | D6: 42 | E6: 1200 | F6: 1600 | G6: =IF(Form!$D$4=D6,1,0) -> 0 | H6: =IF(G6=1,IF(OR(E6>Form!M$5,F6<Form!M$5),1,0),0) -> 0
C7: 1400 | D7: 48 | E7: 1400 | F7: 1800 | G7: =IF(Form!$D$4=D7,1,0) -> 0 | H7: =IF(G7=1,IF(OR(E7>Form!M$5,F7<Form!M$5),1,0),0) -> 0
C8: 1600 | D8: 60 | E8: 1600 | F8: 2000 | G8: =IF(Form!$D$4=D8,1,0) -> 0 | H8: =IF(G8=1,IF(OR(E8>Form!M$5,F8<Form!M$5),1,0),0) -> 0
C9: 1800
C10: 2000
D13: Total
B14: =Form!M5+Form!M6 -> 0 | E14: =E31 -> 0 | F14: =F31 -> 0 | G14: 0 | H14: 0 | I14: 0 | J14: 0 | K14: 0 | L14: =SUM(E14:K14) -> 0 | P14: 58
E15: =Form!C27 -> 85 | F15: =Form!E27 -> 90 | G15: =Form!G27 -> 95 | H15: =Form!I27 -> 100 | I15: =Form!K27 -> 105 | J15: =Form!M27 -> 110 | K15: =Form!O27 -> 115
A16: =C16+D16 -> 0 | B16: =P16 -> 0 | C16: =Form!A31 -> 0 | D16: =Form!B31 -> 0 | E16: =Form!C31 -> 0 | F16: =Form!E31 -> 0 | G16: =Form!G31 -> 0 | H16: =Form!I31 -> 0 | I16: =Form!K31 -> 0 | J16: =Form!M31 -> 0 | K16: =Form!O31 -> 0 | L16: =Form!$M$5+Form!M$6 -> 0 | M16: =IF(C16+D16=Form!M$5+Form!M$6,1,0) -> 1 | N16: =IF(A16<L16,1,0) -> 0 | O16: =IF(A16>L16,2,0) -> 0 | P16: =IF(AND(N16=1,N17=0),1,0)+IF(AND(O15=0,O16=2),2,0) -> 0
A17: =C17+D17 -> 0 | B17: =P17 -> 0 | C17: =C16 -> 0 | D17: =Form!B32 -> 0 | E17: =Form!C32 -> 0 | F17: =Form!E32 -> 0 | G17: =Form!G32 -> 0 | H17: =Form!I32 -> 0 | I17: =Form!K32 -> 0 | J17: =Form!M32 -> 0 | K17: =Form!O32 -> 0 | L17: =Form!$M$5+Form!M$6 -> 0 | M17: =IF(C17+D17=Form!M$5+Form!M$6,1,0) -> 1 | N17: =IF(A17<L17,1,0) -> 0 | O17: =IF(A17>L17,2,0) -> 0 | P17: =IF(AND(N17=1,N18=0),1,0)+IF(AND(O16=0,O17=2),2,0) -> 0
A18: 0 | B18: 0 | C18: =C17 -> 0 | D18: =Form!B33 -> 0 | E18: =Form!C33 -> 0 | F18: =Form!E33 -> 0 | G18: =Form!G33 -> 0 | H18: =Form!I33 -> 0 | I18: =Form!K33 -> 0 | J18: =Form!M33 -> 0 | K18: =Form!O33 -> 0 | L18: =Form!$M$5+Form!M$6 -> 0 | M18: =IF(C18+D18=Form!M$5+Form!M$6,1,0) -> 1 | N18: 0 | O18: =IF(A18>L18,2,0) -> 0 | P18: =IF(AND(N18=1,N19=0),1,0)+IF(AND(O17=0,O18=2),2,0) -> 0
A19: 0 | B19: 0 | C19: =C18 -> 0 | D19: =Form!B34 -> 0 | E19: =Form!C34 -> 0 | F19: =Form!E34 -> 0 | G19: =Form!G34 -> 0 | H19: =Form!I34 -> 0 | I19: =Form!K34 -> 0 | J19: =Form!M34 -> 0 | K19: =Form!O34 -> 0 | L19: =Form!$M$5+Form!M$6 -> 0 | M19: =IF(C19+D19=Form!M$5+Form!M$6,1,0) -> 1 | N19: 0 | O19: =IF(A19>L19,2,0) -> 0 | P19: =IF(AND(N19=1,N20=0),1,0)+IF(AND(O18=0,O19=2),2,0) -> 0
A20: 0 | B20: 0 | C20: =Form!A35 -> 0 | D20: =Form!B35 -> 0 | E20: =Form!C35 -> 0 | F20: =Form!E35 -> 0 | G20: =Form!G35 -> 0 | H20: =Form!I35 -> 0 | I20: =Form!K35 -> 0 | J20: =Form!M35 -> 0 | K20: =Form!O35 -> 0 | L20: =Form!$M$5+Form!M$6 -> 0 | M20: =IF(C20+D20=Form!M$5+Form!M$6,1,0) -> 1 | N20: 0 | O20: =IF(A20>L20,2,0) -> 0 | P20: =IF(AND(N20=1,N21=0),1,0)+IF(AND(O19=0,O20=2),2,0) -> 0
A21: 0 | B21: 0 | C21: =C20 -> 0 | D21: =Form!B36 -> 0 | E21: =Form!C36 -> 0 | F21: =Form!E36 -> 0 | G21: =Form!G36 -> 0 | H21: =Form!I36 -> 0 | I21: =Form!K36 -> 0 | J21: =Form!M36 -> 0 | K21: =Form!O36 -> 0 | L21: =Form!$M$5+Form!M$6 -> 0 | M21: =IF(C21+D21=Form!M$5+Form!M$6,1,0) -> 1 | N21: 0 | O21: =IF(A21>L21,2,0) -> 0 | P21: =IF(AND(N21=1,N22=0),1,0)+IF(AND(O20=0,O21=2),2,0) -> 0
A22: 0 | B22: 0 | C22: =C21 -> 0 | D22: =Form!B37 -> 0 | E22: =Form!C37 -> 0 | F22: =Form!E37 -> 0 | G22: =Form!G37 -> 0 | H22: =Form!I37 -> 0 | I22: =Form!K37 -> 0 | J22: =Form!M37 -> 0 | K22: =Form!O37 -> 0 | L22: =Form!$M$5+Form!M$6 -> 0 | M22: =IF(C22+D22=Form!M$5+Form!M$6,1,0) -> 1 | N22: 0 | O22: 0 | P22: 0
A23: 0 | B23: 0 | C23: =C22 -> 0 | D23: =Form!B38 -> 0 | E23: =Form!C38 -> 0 | F23: =Form!E38 -> 0 | G23: =Form!G38 -> 0 | H23: =Form!I38 -> 0 | I23: =Form!K38 -> 0 | J23: =Form!M38 -> 0 | K23: =Form!O38 -> 0 | L23: =Form!$M$5+Form!M$6 -> 0 | M23: =IF(C23+D23=Form!M$5+Form!M$6,1,0) -> 1 | N23: 0 | O23: 0 | P23: 0
A24: 0 | B24: 0 | C24: =Form!A39 -> 0 | D24: =Form!B39 -> 0 | E24: =Form!C39 -> 0 | F24: =Form!E39 -> 0 | G24: =Form!G39 -> 0 | H24: =Form!I39 -> 0 | I24: =Form!K39 -> 0 | J24: =Form!M39 -> 0 | K24: =Form!O39 -> 0 | L24: =Form!$M$5+Form!M$6 -> 0 | M24: =IF(C24+D24=Form!M$5+Form!M$6,1,0) -> 1 | N24: 0 | O24: 0 | P24: 0
A25: 0 | B25: 0 | C25: =C24 -> 0 | D25: =Form!B40 -> 0 | E25: =Form!C40 -> 0 | F25: =Form!E40 -> 0 | G25: =Form!G40 -> 0 | H25: =Form!I40 -> 0 | I25: =Form!K40 -> 0 | J25: =Form!M40 -> 0 | K25: =Form!O40 -> 0 | L25: =Form!$M$5+Form!M$6 -> 0 | M25: =IF(C25+D25=Form!M$5+Form!M$6,1,0) -> 1 | N25: 0 | O25: 0 | P25: 0
A26: 0 | B26: 0 | C26: =C25 -> 0 | D26: =Form!B41 -> 0 | E26: =Form!C41 -> 0 | F26: =Form!E41 -> 0 | G26: =Form!G41 -> 0 | H26: =Form!I41 -> 0 | I26: =Form!K41 -> 0 | J26: =Form!M41 -> 0 | K26: =Form!O41 -> 0 | L26: =Form!$M$5+Form!M$6 -> 0 | M26: =IF(C26+D26=Form!M$5+Form!M$6,1,0) -> 1 | N26: 0 | O26: 0 | P26: 0
A27: 0 | B27: 0 | C27: =C26 -> 0 | D27: =Form!B42 -> 0 | E27: =Form!C42 -> 0 | F27: =Form!E42 -> 0 | G27: =Form!G42 -> 0 | H27: =Form!I42 -> 0 | I27: =Form!K42 -> 0 | J27: =Form!M42 -> 0 | K27: =Form!O42 -> 0 | L27: =Form!$M$5+Form!M$6 -> 0 | M27: =IF(C27+D27=Form!M$5+Form!M$6,1,0) -> 1 | N27: 0 | O27: 0 | P27: 0
A28: 0 | B28: =SUM(B16:B27) -> 0
F29: =IF(AND(F15>Form!$M$4,E15<Form!$M$4),2,0) -> 0 | G29: =IF(AND(G15>Form!$M$4,F15<Form!$M$4),2,0) -> 0 | H29: =IF(AND(H15>Form!$M$4,G15<Form!$M$4),2,0) -> 0 | I29: =IF(AND(I15>Form!$M$4,H15<Form!$M$4),2,0) -> 0 | J29: =IF(AND(J15>Form!$M$4,I15<Form!$M$4),2,0) -> 0 | K29: =IF(AND(K15>Form!$M$4,J15<Form!$M$4),2,0) -> 0
C30: =HLOOKUP(1,E14:K15,2,FALSE) ->  | E30: =IF(F29=2,1,0) -> 0 | F30: =IF(G29=2,1,0) -> 0 | G30: 0 | H30: 0 | I30: 0 | J30: 0 | K30: 0
C31: =HLOOKUP(2,E14:K15,2,FALSE) ->  | E31: =SUM(E29:E30) -> 0 | F31: 0 | G31: 0 | H31: 0 | I31: 0 | J31: 0 | K31: 0
B32: =(VLOOKUP(1,B14:K27,3,FALSE)) ->  | C32: =IF(ISERROR(B32),0,B32) -> 0 | E32: =(C34-C35)/(C32-C33)*(Form!$M$6-C33)+C35 ->  | F32: =(C36-C37)/(C32-C33)*(Form!M6-C33)+C37 -> 
B33: =VLOOKUP(2,B14:K27,3,FALSE) ->  | C33: =IF(ISERROR(B33),0,B33) -> 0 | E33: =IF(AND(B28=0,L14=3),VLOOKUP(Form!$M$5+Form!$M$6,notes!A14:K27,MATCH(1,notes!A14:K14,FALSE),FALSE),0) -> 0 | F33: =IF(AND(B28=0,L14=3),VLOOKUP(Form!$M$5+Form!$M$6,notes!A14:K27,MATCH(2,notes!A14:K14,FALSE),FALSE),0) -> 0 | I33: exactly
B34: =VLOOKUP(1,B14:K27,MATCH(1,B14:K14,FALSE),FALSE) ->  | C34: =MIN(B34,B36) ->  | E34: =IF(ISERROR(E32),E33,E32) -> 0 | F34: =IF(ISERROR(F32),F33,F32) -> 0 | I34: x | J34: y | K34: err1 | L34: err2 | M34: err3 | N34: ans
B35: =VLOOKUP(2,B14:K27,MATCH(1,B14:K14,FALSE),FALSE) ->  | C35: =MAX(B35,B37) ->  | E35: =MIN(E34:F34) -> 0 | F35: =MAX(E34:F34) -> 0 | I35: y | J35: y | K35: =IF(ISERROR(VLOOKUP(Form!$M$5+Form!$M$6,notes!A15:K27,MATCH(Form!$M$4,notes!A15:K15,FALSE),FALSE)),0,VLOOKUP(Form!$M$5+Form!$M$6,notes!A15:K27,MATCH(Form!$M$4,notes!A15:K15,FALSE),FALSE)) -> 0 | N35: =SUM(K35:M35) -> 0
B36: =VLOOKUP(1,B14:K27,MATCH(2,B14:K14,FALSE),FALSE) ->  | C36: =MAX(B36,B34) ->  | E36: =(E35-F35)/(C31-C30)*(Form!$M$4-C30)+F35 ->  | I36: y | J36: n | N36: =SUM(K36:M36) -> 0
B37: =VLOOKUP(2,B14:K27,MATCH(2,B14:K14,FALSE),FALSE) ->  | C37: =MIN(B35,B37) ->  | I37: n | J37: n | K37: =IF(OR(E36>100000,E36<=0),0,E36) ->  | L37: =IF(K37<>0,0,MIN(E32:F32)) ->  | M37: =IF(AND(L37=0,K37=0),C34,0) ->  | N37: =SUM(K37:M37) -> 
N38: =IF(ISERROR(N37),N35,N37) -> 0
A41: sens | E41: =E58 -> 0 | F41: =F58 -> 0 | G41: 0 | H41: 0 | I41: 0 | J41: 0 | K41: 0 | L41: =SUM(E41:K41) -> 0
E42: =E15 -> 85 | F42: =F15 -> 90 | G42: 95 | H42: 100 | I42: 105 | J42: 110 | K42: 115
A43: =C43+D43 -> 0 | B43: =P43 -> 0 | C43: =C16 -> 0 | D43: =D16 -> 0 | E43: =Form!D31 -> 0 | F43: =Form!F31 -> 0 | G43: =Form!H31 -> 0 | H43: =Form!J31 -> 0 | I43: =Form!L31 -> 0 | J43: =Form!N31 -> 0 | K43: =Form!P31 -> 0 | L43: =Form!$M$5+Form!M$6 -> 0 | M43: =IF(C43+D43=Form!M$5+Form!M$6,1,0) -> 1 | N43: =IF(A43<L43,1,0) -> 0 | O43: =IF(A43>L43,2,0) -> 0 | P43: =IF(AND(N43=1,N44=0),1,0)+IF(AND(O42=0,O43=2),2,0) -> 0
A44: =C44+D44 -> 0 | B44: =P44 -> 0 | C44: =C17 -> 0 | D44: =D17 -> 0 | E44: =Form!D32 -> 0 | F44: =Form!F32 -> 0 | G44: =Form!H32 -> 0 | H44: =Form!J32 -> 0 | I44: =Form!L32 -> 0 | J44: =Form!N32 -> 0 | K44: =Form!P32 -> 0 | L44: =Form!$M$5+Form!M$6 -> 0 | M44: =IF(C44+D44=Form!M$5+Form!M$6,1,0) -> 1 | N44: =IF(A44<L44,1,0) -> 0 | O44: =IF(A44>L44,2,0) -> 0 | P44: =IF(AND(N44=1,N45=0),1,0)+IF(AND(O43=0,O44=2),2,0) -> 0
A45: =C45+D45 -> 0 | B45: 0 | C45: 0 | D45: 0 | E45: =Form!D33 -> 0 | F45: =Form!F33 -> 0 | G45: =Form!H33 -> 0 | H45: =Form!J33 -> 0 | I45: =Form!L33 -> 0 | J45: =Form!N33 -> 0 | K45: =Form!P33 -> 0 | L45: =Form!$M$5+Form!M$6 -> 0 | M45: =IF(C45+D45=Form!M$5+Form!M$6,1,0) -> 1 | N45: 0 | O45: =IF(A45>L45,2,0) -> 0 | P45: =IF(AND(N45=1,N46=0),1,0)+IF(AND(O44=0,O45=2),2,0) -> 0
A46: 0 | B46: 0 | C46: 0 | D46: 0 | E46: =Form!D34 -> 0 | F46: =Form!F34 -> 0 | G46: =Form!H34 -> 0 | H46: =Form!J34 -> 0 | I46: =Form!L34 -> 0 | J46: =Form!N34 -> 0 | K46: =Form!P34 -> 0 | L46: =Form!$M$5+Form!M$6 -> 0 | M46: =IF(C46+D46=Form!M$5+Form!M$6,1,0) -> 1 | N46: 0 | O46: =IF(A46>L46,2,0) -> 0 | P46: =IF(AND(N46=1,N47=0),1,0)+IF(AND(O45=0,O46=2),2,0) -> 0
A47: 0 | B47: 0 | C47: 0 | D47: 0 | E47: =Form!D35 -> 0 | F47: =Form!F35 -> 0 | G47: =Form!H35 -> 0 | H47: =Form!J35 -> 0 | I47: =Form!L35 -> 0 | J47: =Form!N35 -> 0 | K47: =Form!P35 -> 0 | L47: =Form!$M$5+Form!M$6 -> 0 | M47: =IF(C47+D47=Form!M$5+Form!M$6,1,0) -> 1 | N47: 0 | O47: =IF(A47>L47,2,0) -> 0 | P47: =IF(AND(N47=1,N48=0),1,0)+IF(AND(O46=0,O47=2),2,0) -> 0
A48: 0 | B48: 0 | C48: 0 | D48: 0 | E48: =Form!D36 -> 0 | F48: =Form!F36 -> 0 | G48: =Form!H36 -> 0 | H48: =Form!J36 -> 0 | I48: =Form!L36 -> 0 | J48: =Form!N36 -> 0 | K48: =Form!P36 -> 0 | L48: =Form!$M$5+Form!M$6 -> 0 | M48: =IF(C48+D48=Form!M$5+Form!M$6,1,0) -> 1 | N48: 0 | O48: =IF(A48>L48,2,0) -> 0 | P48: =IF(AND(N48=1,N49=0),1,0)+IF(AND(O47=0,O48=2),2,0) -> 0
A49: 0 | B49: 0 | C49: 0 | D49: 0 | E49: =Form!D37 -> 0 | F49: =Form!F37 -> 0 | G49: =Form!H37 -> 0 | H49: =Form!J37 -> 0 | I49: =Form!L37 -> 0 | J49: =Form!N37 -> 0 | K49: =Form!P37 -> 0 | L49: =Form!$M$5+Form!M$6 -> 0 | M49: =IF(C49+D49=Form!M$5+Form!M$6,1,0) -> 1 | N49: 0 | O49: 0 | P49: 0
A50: 0 | B50: 0 | C50: 0 | D50: 0 | E50: =Form!D38 -> 0 | F50: =Form!F38 -> 0 | G50: =Form!H38 -> 0 | H50: =Form!J38 -> 0 | I50: =Form!L38 -> 0 | J50: =Form!N38 -> 0 | K50: =Form!P38 -> 0 | L50: =Form!$M$5+Form!M$6 -> 0 | M50: =IF(C50+D50=Form!M$5+Form!M$6,1,0) -> 1 | N50: 0 | O50: 0 | P50: 0
A51: 0 | B51: 0 | C51: 0 | D51: 0 | E51: =Form!D39 -> 0 | F51: =Form!F39 -> 0 | G51: =Form!H39 -> 0 | H51: =Form!J39 -> 0 | I51: =Form!L39 -> 0 | J51: =Form!N39 -> 0 | K51: =Form!P39 -> 0 | L51: =Form!$M$5+Form!M$6 -> 0 | M51: =IF(C51+D51=Form!M$5+Form!M$6,1,0) -> 1 | N51: 0 | O51: 0 | P51: 0
A52: 0 | B52: 0 | C52: 0 | D52: 0 | E52: =Form!D40 -> 0 | F52: =Form!F40 -> 0 | G52: =Form!H40 -> 0 | H52: =Form!J40 -> 0 | I52: =Form!L40 -> 0 | J52: =Form!N40 -> 0 | K52: =Form!P40 -> 0 | L52: =Form!$M$5+Form!M$6 -> 0 | M52: =IF(C52+D52=Form!M$5+Form!M$6,1,0) -> 1 | N52: 0 | O52: 0 | P52: 0
A53: 0 | B53: 0 | C53: 0 | D53: 0 | E53: =Form!D41 -> 0 | F53: =Form!F41 -> 0 | G53: =Form!H41 -> 0 | H53: =Form!J41 -> 0 | I53: =Form!L41 -> 0 | J53: =Form!N41 -> 0 | K53: =Form!P41 -> 0 | L53: =Form!$M$5+Form!M$6 -> 0 | M53: =IF(C53+D53=Form!M$5+Form!M$6,1,0) -> 1 | N53: 0 | O53: 0 | P53: 0
A54: 0 | B54: 0 | C54: 0 | D54: 0 | E54: =Form!D42 -> 0 | F54: =Form!F42 -> 0 | G54: =Form!H42 -> 0 | H54: =Form!J42 -> 0 | I54: =Form!L42 -> 0 | J54: =Form!N42 -> 0 | K54: =Form!P42 -> 0 | L54: =Form!$M$5+Form!M$6 -> 0 | M54: =IF(C54+D54=Form!M$5+Form!M$6,1,0) -> 1 | N54: 0 | O54: 0 | P54: 0
A55: 0 | B55: =SUM(B43:B54) -> 0
F56: =IF(AND(F42>Form!$M$4,E42<Form!$M$4),2,0) -> 0 | G56: =IF(AND(G42>Form!$M$4,F42<Form!$M$4),2,0) -> 0 | H56: =IF(AND(H42>Form!$M$4,G42<Form!$M$4),2,0) -> 0 | I56: =IF(AND(I42>Form!$M$4,H42<Form!$M$4),2,0) -> 0 | J56: =IF(AND(J42>Form!$M$4,I42<Form!$M$4),2,0) -> 0 | K56: =IF(AND(K42>Form!$M$4,J42<Form!$M$4),2,0) -> 0
C57: =HLOOKUP(1,E41:K42,2,FALSE) ->  | E57: =IF(F56=2,1,0) -> 0 | F57: =IF(G56=2,1,0) -> 0 | G57: 0 | H57: 0 | I57: 0 | J57: 0 | K57: 0
C58: =HLOOKUP(2,E41:K42,2,FALSE) ->  | E58: =SUM(E56:E57) -> 0 | F58: 0 | G58: 0 | H58: 0 | I58: 0 | J58: 0 | K58: 0
B59: =(VLOOKUP(1,B41:K54,3,FALSE)) ->  | C59: =IF(ISERROR(B59),0,B59) -> 0 | E59: =(C61-C62)/(C59-C60)*(Form!$M$6-C60)+C62 ->  | F59: =(C63-C64)/(C59-C60)*(Form!M6-C60)+C64 -> 
B60: =VLOOKUP(2,B41:K54,3,FALSE) ->  | C60: =IF(ISERROR(B60),0,B60) -> 0 | E60: =IF(AND(B55=0,L41=3),VLOOKUP(Form!$M$5+Form!$M$6,notes!A41:K54,MATCH(1,notes!A41:K41,FALSE),FALSE),0) -> 0 | F60: =IF(AND(B55=0,L41=3),VLOOKUP(Form!$M$5+Form!$M$6,notes!A41:K54,MATCH(2,notes!A41:K41,FALSE),FALSE),0) -> 0 | I60: exactly
B61: =VLOOKUP(1,B41:K54,MATCH(1,B41:K41,FALSE),FALSE) ->  | C61: =MIN(B61,B63) ->  | E61: =IF(ISERROR(E59),E60,E59) -> 0 | F61: =IF(ISERROR(F59),F60,F59) -> 0 | I61: x | J61: y | K61: err1 | L61: err2 | M61: err3 | N61: ans
B62: =VLOOKUP(2,B41:K54,MATCH(1,B41:K41,FALSE),FALSE) ->  | C62: =MAX(B62,B64) ->  | E62: =MIN(E61:F61) -> 0 | F62: =MAX(E61:F61) -> 0 | I62: y | J62: y | K62: =IF(ISERROR(VLOOKUP(Form!$M$5+Form!$M$6,notes!A42:K54,MATCH(Form!$M$4,notes!A42:K42,FALSE),FALSE)),0,VLOOKUP(Form!$M$5+Form!$M$6,notes!A42:K54,MATCH(Form!$M$4,notes!A42:K42,FALSE),FALSE)) -> 0 | N62: =SUM(K62:M62) -> 0
B63: =VLOOKUP(1,B41:K54,MATCH(2,B41:K41,FALSE),FALSE) ->  | C63: =MAX(B63,B61) ->  | E63: =(E62-F62)/(C58-C57)*(Form!$M$4-C57)+F62 ->  | I63: y | J63: n | N63: =SUM(K63:M63) -> 0
B64: =VLOOKUP(2,B41:K54,MATCH(2,B41:K41,FALSE),FALSE) ->  | C64: =MIN(B62,B64) ->  | I64: n | J64: n | K64: =IF(OR(E63>100000,E63<=0),0,E63) ->  | L64: =IF(K64<>0,0,MIN(E59:F59)) ->  | M64: =IF(AND(L64=0,K64=0),C61,0) ->  | N64: =SUM(K64:M64) -> 
B65: =VLOOKUP(Form!M32+Form!M33,A41:K54,MATCH(2,A41:K41,FALSE),FALSE) ->  | N65: =IF(ISERROR(N64),N62,N64) -> 0

Sheet Options (hidden)
A1: 13AJN
A2: 14AJM
A3: 16AJL
A4: RA13
A5: RA14
A6: RA16
A7: RA17
A8: RANL
A9: RAPM
A10: RARL
A11: RASL

Sheet Calcs (hidden)
D1: Condenser :
D2: ADP Evaporator:
D3: Condenser Entering Air Temperature: | E3: 100 | F3: (°F) Dry Bulb, 85°F to 115°F
D4: Evaporator Air Flow: | E4: 1265 | F4: CFM
D5: Entering Evaporator Air (DB): | E5: 77.5 | F5: (°F) Dry Bulb
D6: Entering Evaporator Air (WB): | E6: 60.6 | F6: (°F) Wet Bulb, 63°F to 71°F
A9: Total
A10: 28.55 | B10: 1200 60.6
B12: Diff 200 | C12: =A10-A14 -> 0.308 | D12: Diff 1 cfm | E12: =C12/200 -> 0.00154 | F12: 1265 total | G12: =A10-(65*E12) -> 28.4499
A14: 28.242 | B14: 1400 60.6
A16: Sens
A17: 25.32 | B17: 1200 60.6
B19: Diff 200 | C19: =A17-A21 -> 0.5544 | D19: Diff 1 cfm | E19: =C19/200 -> 0.002772 | F19: 1265 Sens | G19: =A17-(65*E19) -> 25.13982
A21: 24.7656 | B21: 1400 60.6

Sheet RASL_24 (hidden)
A2: RASL_24
A3: Evaporator Air Flow | C3: Condenser Entering Air Temperature ˚F
A4: 775 | B4: CFM | C4: 85 | E4: 90 | G4: 95 | I4: 100 | K4: 105 | M4: 110 | O4: 115
A5: Evap. Air °F DB | B5: EWB† ˚F | C5: Capacity Mbtuh | E5: Capacity Mbtuh | G5: Capacity Mbtuh | I5: Capacity Mbtuh | K5: Capacity Mbtuh | M5: Capacity Mbtuh | O5: Capacity Mbtuh
C6: Total | D6: Sens. | E6: Total | F6: Sens. | G6: Total | H6: Sens. | I6: Total | J6: Sens. | K6: Total | L6: Sens. | M6: Total | N6: Sens. | O6: Total | P6: Sens.
R7: Total Factors | Y7: Sens. % | AF7: IDB Adj | AM7: Sens Calc
A8: 72 | B8: 71 | C8: =R8*$G$17 -> 23.67083333 | D8: =IF(AM8>C8,C8,AM8) -> 8.145833333 | E8: =S8*$G$17 -> 23.14375 | F8: =IF(AN8>E8,E8,AN8) -> 8.002083333 | G8: =T8*$G$17 -> 22.61666667 | H8: =IF(AO8>G8,G8,AO8) -> 7.858333333 | I8: =U8*$G$17 -> 22.1375 | J8: =IF(AP8>I8,I8,AP8) -> 7.7625 | K8: =V8*$G$17 -> 21.65833333 | L8: =IF(AQ8>K8,K8,AQ8) -> 7.666666667 | M8: =W8*$G$17 -> 21.17916667 | N8: =IF(AR8>M8,M8,AR8) -> 7.522916667 | O8: =X8*$G$17 -> 20.7 | P8: =IF(AS8>O8,O8,AS8) -> 7.379166667 | R8: 1.029166667 | S8: 1.00625 | T8: 0.9833333333 | U8: 0.9625 | V8: 0.9416666667 | W8: 0.9208333333 | X8: 0.9 | Y8: 0.3441295547 | Z8: 0.3457556936 | AA8: 0.3474576271 | AB8: 0.3506493506 | AC8: 0.3539823009 | AD8: 0.3552036199 | AE8: 0.3564814815 | AF8: 1 | AG8: 1 | AH8: 1 | AI8: 1 | AJ8: 1 | AK8: 1 | AL8: 1 | AM8: =Y8*C8*AF8 -> 8.145833333 | AN8: =Z8*E8*AG8 -> 8.002083333 | AO8: =AA8*G8*AH8 -> 7.858333333 | AP8: =AB8*I8*AI8 -> 7.7625 | AQ8: =AC8*K8*AJ8 -> 7.666666667 | AR8: =AD8*M8*AK8 -> 7.522916667 | AS8: =AE8*O8*AL8 -> 7.379166667
B9: 67 | C9: =R9*$G$17 -> 22.04166667 | D9: 11.11666667 | E9: =S9*$G$17 -> 21.51458333 | F9: =IF(AN9>E9,E9,AN9) -> 10.97291667 | G9: =T9*$G$17 -> 20.9875 | H9: =IF(AO9>G9,G9,AO9) -> 10.82916667 | I9: =U9*$G$17 -> 20.50833333 | J9: =IF(AP9>I9,I9,AP9) -> 10.68541667 | K9: =V9*$G$17 -> 20.02916667 | L9: =IF(AQ9>K9,K9,AQ9) -> 10.54166667 | M9: =W9*$G$17 -> 19.50208333 | N9: =IF(AR9>M9,M9,AR9) -> 10.39791667 | O9: =X9*$G$17 -> 18.975 | P9: =IF(AS9>O9,O9,AS9) -> 10.25416667 | R9: 0.9583333333 | S9: 0.9354166667 | T9: 0.9125 | U9: 0.8916666667 | V9: 0.8708333333 | W9: 0.8479166667 | X9: 0.825 | Y9: 0.5043478261 | Z9: 0.5100222717 | AA9: 0.5159817352 | AB9: 0.5210280374 | AC9: 0.5263157895 | AD9: 0.5331695332 | AE9: 0.5404040404 | AF9: 1 | AG9: 1 | AH9: 1 | AI9: 1 | AJ9: 1 | AK9: 1 | AL9: 1 | AM9: =Y9*C9*AF9 -> 11.11666667 | AN9: =Z9*E9*AG9 -> 10.97291667 | AO9: =AA9*G9*AH9 -> 10.82916667 | AP9: =AB9*I9*AI9 -> 10.68541667 | AQ9: =AC9*K9*AJ9 -> 10.54166667 | AR9: =AD9*M9*AK9 -> 10.39791667 | AS9: =AE9*O9*AL9 -> 10.25416667
B10: 63 | C10: 23 | D10: 14.95 | E10: 22.32916667 | F10: 14.75833333 | G10: 21.65833333 | H10: 14.56666667 | I10: 21.13125 | J10: 14.42291667 | K10: 20.60416667 | L10: 14.27916667 | M10: 19.98125 | N10: 14.03958333 | O10: 19.35833333 | P10: 13.8 | R10: 1 | S10: 0.9708333333 | T10: 0.9416666667 | U10: 0.91875 | V10: 0.8958333333 | W10: 0.86875 | X10: 0.8416666667 | Y10: 0.65 | Z10: 0.660944206 | AA10: 0.6725663717 | AB10: 0.6825396825 | AC10: 0.6930232558 | AD10: 0.7026378897 | AE10: 0.7128712871 | AF10: 1 | AG10: 1 | AH10: 1 | AI10: 1 | AJ10: 1 | AK10: 1 | AL10: 1 | AM10: 14.95 | AN10: 14.75833333 | AO10: 14.56666667 | AP10: 14.42291667 | AQ10: 14.27916667 | AR10: 14.03958333 | AS10: 13.8
B11: 59 | C11: 22.04166667 | D11: 18.6875 | E11: 21.41875 | F11: 18.44791667 | G11: 20.79583333 | H11: 18.20833333 | I11: 20.31666667 | J11: 17.87291667 | K11: 19.8375 | L11: 17.5375 | M11: 19.31041667 | N11: 17.05833333 | O11: 18.78333333 | P11: 16.57916667 | R11: 0.9583333333 | S11: 0.93125 | T11: 0.9041666667 | U11: 0.8833333333 | V11: 0.8625 | W11: 0.8395833333 | X11: 0.8166666667 | Y11: 0.847826087 | Z11: 0.8612975391 | AA11: 0.8755760369 | AB11: 0.8797169811 | AC11: 0.884057971 | AD11: 0.8833746898 | AE11: 0.8826530612 | AF11: 1 | AG11: 1 | AH11: 1 | AI11: 1 | AJ11: 1 | AK11: 1 | AL11: 1 | AM11: 18.6875 | AN11: 18.44791667 | AO11: 18.20833333 | AP11: 17.87291667 | AQ11: 17.5375 | AR11: 17.05833333 | AS11: 16.57916667
A12: 76 | B12: 71 | C12: 26.11458333 | D12: 10.78125 | E12: 25.5875 | F12: 10.58958333 | G12: 25.0125 | H12: 10.39791667 | I12: 24.4375 | J12: 10.20625 | K12: 23.8625 | L12: 10.01458333 | M12: 23.33541667 | N12: 9.775 | O12: 22.80833333 | P12: 9.583333333 | R12: 1.135416667 | S12: 1.1125 | T12: 1.0875 | U12: 1.0625 | V12: 1.0375 | W12: 1.014583333 | X12: 0.9916666667 | Y12: 0.4128440367 | Z12: 0.4138576779 | AA12: 0.4157088123 | AB12: 0.4176470588 | AC12: 0.4196787149 | AD12: 0.4188911704 | AE12: 0.4201680672 | AF12: 1 | AG12: 1 | AH12: 1 | AI12: 1 | AJ12: 1 | AK12: 1 | AL12: 1 | AM12: 10.78125 | AN12: 10.58958333 | AO12: 10.39791667 | AP12: 10.20625 | AQ12: 10.01458333 | AR12: 9.775 | AS12: 9.583333333
B13: 67 | C13: 24.34166667 | D13: 13.99166667 | E13: 23.71875 | F13: 13.8 | G13: =T13*$G$17 -> 23.09583333 | H13: 13.56041667 | I13: 22.56875 | J13: 13.41666667 | K13: 22.04166667 | L13: 13.27291667 | M13: 21.51458333 | N13: 13.03333333 | O13: 20.9875 | P13: 12.84166667 | R13: 1.058333333 | S13: 1.03125 | T13: 1.004166667 | U13: 0.98125 | V13: 0.9583333333 | W13: 0.9354166667 | X13: 0.9125 | Y13: 0.5748031496 | Z13: 0.5818181818 | AA13: 0.5871369295 | AB13: 0.5944798301 | AC13: 0.602173913 | AD13: 0.6057906459 | AE13: 0.6118721461 | AF13: 1 | AG13: 1 | AH13: 1 | AI13: 1 | AJ13: 1 | AK13: 1 | AL13: 1 | AM13: 13.99166667 | AN13: 13.8 | AO13: 13.56041667 | AP13: 13.41666667 | AQ13: 13.27291667 | AR13: 13.03333333 | AS13: 12.84166667
B14: 63 | C14: 22.95208333 | D14: 18.1125 | E14: 22.37708333 | F14: 17.92083333 | G14: 21.80208333 | H14: 17.68125 | I14: 21.22708333 | J14: 17.44166667 | K14: 20.65208333 | L14: 17.20208333 | M14: 20.125 | N14: 16.9625 | O14: 19.59791667 | P14: 16.72291667 | R14: 0.9979166667 | S14: 0.9729166667 | T14: 0.9479166667 | U14: 0.9229166667 | V14: 0.8979166667 | W14: 0.875 | X14: 0.8520833333 | Y14: 0.7891440501 | Z14: 0.800856531 | AA14: 0.810989011 | AB14: 0.8216704289 | AC14: 0.8329466357 | AD14: 0.8428571429 | AE14: 0.8533007335 | AF14: 1 | AG14: 1 | AH14: 1 | AI14: 1 | AJ14: 1 | AK14: 1 | AL14: 1 | AM14: 18.1125 | AN14: 17.92083333 | AO14: 17.68125 | AP14: 17.44166667 | AQ14: 17.20208333 | AR14: 16.9625 | AS14: 16.72291667
B15: 59 | C15: 21.99375 | D15: 20.93958333 | E15: 21.46666667 | F15: 20.65208333 | G15: 20.89166667 | H15: 20.36458333 | I15: 20.31666667 | J15: 19.88541667 | K15: 19.74166667 | L15: 19.40625 | M15: 19.21458333 | N15: 18.87916667 | O15: 18.6875 | P15: 18.35208333 | R15: 0.95625 | S15: 0.9333333333 | T15: 0.9083333333 | U15: 0.8833333333 | V15: 0.8583333333 | W15: 0.8354166667 | X15: 0.8125 | Y15: 0.9520697168 | Z15: 0.9620535714 | AA15: 0.9747706422 | AB15: 0.9787735849 | AC15: 0.9830097087 | AD15: 0.9825436409 | AE15: 0.9820512821 | AF15: 1 | AG15: 1 | AH15: 1 | AI15: 1 | AJ15: 1 | AK15: 1 | AL15: 1 | AM15: 20.93958333 | AN15: 20.65208333 | AO15: 20.36458333 | AP15: 19.88541667 | AQ15: 19.40625 | AR15: 18.87916667 | AS15: 18.35208333
A16: 80 | B16: 71 | C16: 26.06666667 | D16: 14.18333333 | E16: 25.49166667 | F16: 13.94375 | G16: 24.91666667 | H16: 13.70416667 | I16: 24.34166667 | J16: 13.41666667 | K16: 23.76666667 | L16: 13.12916667 | M16: 23.2875 | N16: 12.88958333 | O16: 22.80833333 | P16: 12.65 | R16: 1.133333333 | S16: 1.108333333 | T16: 1.083333333 | U16: 1.058333333 | V16: 1.033333333 | W16: 1.0125 | X16: 0.9916666667 | Y16: 0.5441176471 | Z16: 0.5469924812 | AA16: 0.55 | AB16: 0.5511811024 | AC16: 0.5524193548 | AD16: 0.5534979424 | AE16: 0.5546218487 | AF16: 1 | AG16: 1 | AH16: 1 | AI16: 1 | AJ16: 1 | AK16: 1 | AL16: 1 | AM16: 14.18333333 | AN16: 13.94375 | AO16: 13.70416667 | AP16: 13.41666667 | AQ16: 13.12916667 | AR16: 12.88958333 | AS16: 12.65
B17: 67 | C17: 24.24583333 | D17: 17.05833333 | E17: 23.62291667 | F17: 16.77083333 | G17: 23 | H17: 16.48333333 | I17: 22.52083333 | J17: 16.24375 | K17: 22.04166667 | L17: 16.00416667 | M17: 21.51458333 | N17: 15.76458333 | O17: 20.9875 | P17: 15.525 | R17: 1.054166667 | S17: 1.027083333 | T17: 1 | U17: 0.9791666667 | V17: 0.9583333333 | W17: 0.9354166667 | X17: 0.9125 | Y17: 0.7035573123 | Z17: 0.7099391481 | AA17: 0.7166666667 | AB17: 0.7212765957 | AC17: 0.7260869565 | AD17: 0.7327394209 | AE17: 0.7397260274 | AF17: 1 | AG17: 1 | AH17: 1 | AI17: 1 | AJ17: 1 | AK17: 1 | AL17: 1 | AM17: 17.05833333 | AN17: 16.77083333 | AO17: 16.48333333 | AP17: 16.24375 | AQ17: 16.00416667 | AR17: 15.76458333 | AS17: 15.525
B18: 63 | C18: 22.90416667 | D18: 19.45416667 | E18: 22.32916667 | F18: 19.21458333 | G18: =T18*$G$17 -> 21.75416667 | H18: 18.975 | I18: 21.17916667 | J18: 18.6875 | K18: 20.60416667 | L18: 18.4 | M18: 20.07708333 | N18: 18.16041667 | O18: 19.55 | P18: 17.92083333 | R18: 0.9958333333 | S18: 0.9708333333 | T18: 0.9458333333 | U18: 0.9208333333 | V18: 0.8958333333 | W18: 0.8729166667 | X18: 0.85 | Y18: 0.8493723849 | Z18: 0.8605150215 | AA18: 0.872246696 | AB18: 0.8823529412 | AC18: 0.8930232558 | AD18: 0.9045346062 | AE18: 0.9166666667 | AF18: 1 | AG18: 1 | AH18: 1 | AI18: 1 | AJ18: 1 | AK18: 1 | AL18: 1 | AM18: 19.45416667 | AN18: 19.21458333 | AO18: 18.975 | AP18: 18.6875 | AQ18: 18.4 | AR18: 18.16041667 | AS18: 17.92083333
B19: 59 | C19: 21.94583333 | D19: 20.9875 | E19: 21.41875 | F19: 20.74791667 | G19: =T19*$G$17 -> 20.89166667 | H19: 20.50833333 | I19: 20.26875 | J19: 20.02916667 | K19: 19.64583333 | L19: 19.55 | M19: 19.11875 | N19: 19.02291667 | O19: 18.59166667 | P19: 18.49583333 | R19: 0.9541666667 | S19: 0.93125 | T19: 0.9083333333 | U19: 0.88125 | V19: 0.8541666667 | W19: 0.83125 | X19: 0.8083333333 | Y19: 0.9563318777 | Z19: 0.9686800895 | AA19: 0.9816513761 | AB19: 0.988179669 | AC19: 0.9951219512 | AD19: 0.9949874687 | AE19: 0.9948453608 | AF19: 1 | AG19: 1 | AH19: 1 | AI19: 1 | AJ19: 1 | AK19: 1 | AL19: 1 | AM19: 20.9875 | AN19: 20.74791667 | AO19: 20.50833333 | AP19: 20.02916667 | AQ19: 19.55 | AR19: 19.02291667 | AS19: 18.49583333

Sheet RASL_25 (hidden)
A2: RASL_25
A3: Evaporator Air Flow | C3: Condenser Entering Air Temperature ˚F
A4: 800 | B4: CFM | C4: 85 | E4: 90 | G4: 95 | I4: 100 | K4: 105 | M4: 110 | O4: 115
A5: Evap. Air °F DB | B5: EWB† ˚F | C5: Capacity Mbtuh | E5: Capacity Mbtuh | G5: Capacity Mbtuh | I5: Capacity Mbtuh | K5: Capacity Mbtuh | M5: Capacity Mbtuh | O5: Capacity Mbtuh
C6: Total | D6: Sens. | E6: Total | F6: Sens. | G6: Total | H6: Sens. | I6: Total | J6: Sens. | K6: Total | L6: Sens. | M6: Total | N6: Sens. | O6: Total | P6: Sens.
R7: Total Factors | Y7: Sens. % | AF7: IDB Adj | AM7: Sens Calc
A8: 72 | B8: 71 | C8: =R8*$G$17 -> 24.29032258 | D8: =IF(AM8>C8,C8,AM8) -> 8.612903226 | E8: =S8*$G$17 -> 23.75806452 | F8: =IF(AN8>E8,E8,AN8) -> 8.516129032 | G8: =T8*$G$17 -> 23.22580645 | H8: =IF(AO8>G8,G8,AO8) -> 8.419354839 | I8: =U8*$G$17 -> 22.64516129 | J8: =IF(AP8>I8,I8,AP8) -> 8.274193548 | K8: =V8*$G$17 -> 22.06451613 | L8: =IF(AQ8>K8,K8,AQ8) -> 8.129032258 | M8: =W8*$G$17 -> 21.43548387 | N8: =IF(AR8>M8,M8,AR8) -> 7.935483871 | O8: =X8*$G$17 -> 20.80645161 | P8: =IF(AS8>O8,O8,AS8) -> 7.741935484 | R8: 1.012096774 | S8: 0.9899193548 | T8: 0.9677419355 | U8: 0.9435483871 | V8: 0.9193548387 | W8: 0.8931451613 | X8: 0.8669354839 | Y8: 0.3545816733 | Z8: 0.3584521385 | AA8: 0.3625 | AB8: 0.3653846154 | AC8: 0.3684210526 | AD8: 0.3702031603 | AE8: 0.3720930233 | AF8: 1 | AG8: 1 | AH8: 1 | AI8: 1 | AJ8: 1 | AK8: 1 | AL8: 1 | AM8: =Y8*C8*AF8 -> 8.612903226 | AN8: =Z8*E8*AG8 -> 8.516129032 | AO8: =AA8*G8*AH8 -> 8.419354839 | AP8: =AB8*I8*AI8 -> 8.274193548 | AQ8: =AC8*K8*AJ8 -> 8.129032258 | AR8: =AD8*M8*AK8 -> 7.935483871 | AS8: =AE8*O8*AL8 -> 7.741935484
B9: 67 | C9: =R9*$G$17 -> 22.83870968 | D9: 11.51612903 | E9: =S9*$G$17 -> 22.30645161 | F9: =IF(AN9>E9,E9,AN9) -> 11.37096774 | G9: =T9*$G$17 -> 21.77419355 | H9: =IF(AO9>G9,G9,AO9) -> 11.22580645 | I9: =U9*$G$17 -> 21.19354839 | J9: =IF(AP9>I9,I9,AP9) -> 11.08064516 | K9: =V9*$G$17 -> 20.61290323 | L9: =IF(AQ9>K9,K9,AQ9) -> 10.93548387 | M9: =W9*$G$17 -> 19.98387097 | N9: =IF(AR9>M9,M9,AR9) -> 10.79032258 | O9: =X9*$G$17 -> 19.35483871 | P9: =IF(AS9>O9,O9,AS9) -> 10.64516129 | R9: 0.9516129032 | S9: 0.9294354839 | T9: 0.9072580645 | U9: 0.8830645161 | V9: 0.8588709677 | W9: 0.8326612903 | X9: 0.8064516129 | Y9: 0.5042372881 | Z9: 0.5097613883 | AA9: 0.5155555556 | AB9: 0.5228310502 | AC9: 0.5305164319 | AD9: 0.5399515738 | AE9: 0.55 | AF9: 1 | AG9: 1 | AH9: 1 | AI9: 1 | AJ9: 1 | AK9: 1 | AL9: 1 | AM9: =Y9*C9*AF9 -> 11.51612903 | AN9: =Z9*E9*AG9 -> 11.37096774 | AO9: =AA9*G9*AH9 -> 11.22580645 | AP9: =AB9*I9*AI9 -> 11.08064516 | AQ9: =AC9*K9*AJ9 -> 10.93548387 | AR9: =AD9*M9*AK9 -> 10.79032258 | AS9: =AE9*O9*AL9 -> 10.64516129
B10: 63 | C10: 23.61290323 | D10: 15.38709677 | E10: 23.03225806 | F10: 15.24193548 | G10: 22.4516129 | H10: 15.09677419 | I10: 21.77419355 | J10: 14.90322581 | K10: 21.09677419 | L10: 14.70967742 | M10: 20.27419355 | N10: 14.41935484 | O10: 19.4516129 | P10: 14.12903226 | R10: 0.9838709677 | S10: 0.9596774194 | T10: 0.935483871 | U10: 0.9072580645 | V10: 0.8790322581 | W10: 0.8447580645 | X10: 0.810483871 | Y10: 0.6516393443 | Z10: 0.6617647059 | AA10: 0.6724137931 | AB10: 0.6844444444 | AC10: 0.6972477064 | AD10: 0.7112171838 | AE10: 0.7263681592 | AF10: 1 | AG10: 1 | AH10: 1 | AI10: 1 | AJ10: 1 | AK10: 1 | AL10: 1 | AM10: 15.38709677 | AN10: 15.24193548 | AO10: 15.09677419 | AP10: 14.90322581 | AQ10: 14.70967742 | AR10: 14.41935484 | AS10: 14.12903226
B11: 59 | C11: 22.06451613 | D11: 19.16129032 | E11: 21.58064516 | F11: 18.72580645 | G11: 21.09677419 | H11: 18.29032258 | I11: 20.41935484 | J11: 17.70967742 | K11: 19.74193548 | L11: 17.12903226 | M11: 19.06451613 | N11: 16.5483871 | O11: 18.38709677 | P11: 15.96774194 | R11: 0.9193548387 | S11: 0.8991935484 | T11: 0.8790322581 | U11: 0.8508064516 | V11: 0.8225806452 | W11: 0.7943548387 | X11: 0.7661290323 | Y11: 0.8684210526 | Z11: 0.8677130045 | AA11: 0.8669724771 | AB11: 0.8672985782 | AC11: 0.8676470588 | AD11: 0.8680203046 | AE11: 0.8684210526 | AF11: 1 | AG11: 1 | AH11: 1 | AI11: 1 | AJ11: 1 | AK11: 1 | AL11: 1 | AM11: 19.16129032 | AN11: 18.72580645 | AO11: 18.29032258 | AP11: 17.70967742 | AQ11: 17.12903226 | AR11: 16.5483871 | AS11: 15.96774194
A12: 76 | B12: 71 | C12: 26.75806452 | D12: 11.27419355 | E12: 26.12903226 | F12: 11.08064516 | G12: 25.5 | H12: 10.88709677 | I12: 24.91935484 | J12: 10.74193548 | K12: 24.29032258 | L12: 10.5483871 | M12: 23.56451613 | N12: 10.30645161 | O12: 22.88709677 | P12: 10.06451613 | R12: 1.114919355 | S12: 1.088709677 | T12: 1.0625 | U12: 1.038306452 | V12: 1.012096774 | W12: 0.9818548387 | X12: 0.9536290323 | Y12: 0.4213381555 | Z12: 0.4240740741 | AA12: 0.4269449715 | AB12: 0.4310679612 | AC12: 0.4342629482 | AD12: 0.4373716632 | AE12: 0.4397463002 | AF12: 1 | AG12: 1 | AH12: 1 | AI12: 1 | AJ12: 1 | AK12: 1 | AL12: 1 | AM12: 11.27419355 | AN12: 11.08064516 | AO12: 10.88709677 | AP12: 10.74193548 | AQ12: 10.5483871 | AR12: 10.30645161 | AS12: 10.06451613
B13: 67 | C13: 25.16129032 | D13: 14.51612903 | E13: 24.62903226 | F13: 14.37096774 | G13: =T13*$G$17 -> 24.0483871 | H13: 14.17741935 | I13: 23.41935484 | J13: 13.98387097 | K13: 22.74193548 | L13: 13.79032258 | M13: 22.06451613 | N13: 13.5483871 | O13: 21.38709677 | P13: 13.30645161 | R13: 1.048387097 | S13: 1.026209677 | T13: 1.002016129 | U13: 0.9758064516 | V13: 0.9475806452 | W13: 0.9193548387 | X13: 0.8911290323 | Y13: 0.5769230769 | Z13: 0.583497053 | AA13: 0.5895372233 | AB13: 0.597107438 | AC13: 0.6063829787 | AD13: 0.6140350877 | AE13: 0.6221719457 | AF13: 1 | AG13: 1 | AH13: 1 | AI13: 1 | AJ13: 1 | AK13: 1 | AL13: 1 | AM13: 14.51612903 | AN13: 14.37096774 | AO13: 14.17741935 | AP13: 13.98387097 | AQ13: 13.79032258 | AR13: 13.5483871 | AS13: 13.30645161
B14: 63 | C14: 23.61290323 | D14: 18.62903226 | E14: 23.03225806 | F14: 18.38709677 | G14: 22.4516129 | H14: 18.19354839 | I14: 21.82258065 | J14: 17.9516129 | K14: 21.19354839 | L14: 17.75806452 | M14: 20.46774194 | N14: 17.46774194 | O14: 19.79032258 | P14: 17.17741935 | R14: 0.9838709677 | S14: 0.9596774194 | T14: 0.935483871 | U14: 0.9092741935 | V14: 0.8830645161 | W14: 0.8528225806 | X14: 0.8245967742 | Y14: 0.7889344262 | Z14: 0.7983193277 | AA14: 0.8103448276 | AB14: 0.822616408 | AC14: 0.8378995434 | AD14: 0.853427896 | AE14: 0.8679706601 | AF14: 1 | AG14: 1 | AH14: 1 | AI14: 1 | AJ14: 1 | AK14: 1 | AL14: 1 | AM14: 18.62903226 | AN14: 18.38709677 | AO14: 18.19354839 | AP14: 17.9516129 | AQ14: 17.75806452 | AR14: 17.46774194 | AS14: 17.17741935
B15: 59 | C15: 22.16129032 | D15: 21.53225806 | E15: 21.62903226 | F15: 20.9516129 | G15: 21.0483871 | H15: 20.41935484 | I15: 20.41935484 | J15: 19.79032258 | K15: 19.74193548 | L15: 19.16129032 | M15: 19.06451613 | N15: 18.53225806 | O15: 18.38709677 | P15: 17.85483871 | R15: 0.9233870968 | S15: 0.9012096774 | T15: 0.877016129 | U15: 0.8508064516 | V15: 0.8225806452 | W15: 0.7943548387 | X15: 0.7661290323 | Y15: 0.9716157205 | Z15: 0.9686800895 | AA15: 0.9701149425 | AB15: 0.9691943128 | AC15: 0.9705882353 | AD15: 0.9720812183 | AE15: 0.9710526316 | AF15: 1 | AG15: 1 | AH15: 1 | AI15: 1 | AJ15: 1 | AK15: 1 | AL15: 1 | AM15: 21.53225806 | AN15: 20.9516129 | AO15: 20.41935484 | AP15: 19.79032258 | AQ15: 19.16129032 | AR15: 18.53225806 | AS15: 17.85483871
A16: 80 | B16: 71 | C16: 26.70967742 | D16: 14.80645161 | E16: 26.12903226 | F16: 14.56451613 | G16: 25.5483871 | H16: 14.32258065 | I16: 24.96774194 | J16: 14.08064516 | K16: 24.38709677 | L16: 13.83870968 | M16: 23.66129032 | N16: 13.5 | O16: 22.93548387 | P16: 13.16129032 | R16: 1.112903226 | S16: 1.088709677 | T16: 1.064516129 | U16: 1.040322581 | V16: 1.016129032 | W16: 0.9858870968 | X16: 0.9556451613 | Y16: 0.5543478261 | Z16: 0.5574074074 | AA16: 0.5606060606 | AB16: 0.5639534884 | AC16: 0.5674603175 | AD16: 0.5705521472 | AE16: 0.5738396624 | AF16: 1 | AG16: 1 | AH16: 1 | AI16: 1 | AJ16: 1 | AK16: 1 | AL16: 1 | AM16: 14.80645161 | AN16: 14.56451613 | AO16: 14.32258065 | AP16: 14.08064516 | AQ16: 13.83870968 | AR16: 13.5 | AS16: 13.16129032
B17: 67 | C17: 25.16129032 | D17: 17.70967742 | E17: 24.58064516 | F17: 17.46774194 | G17: 24 | H17: 17.22580645 | I17: 23.37096774 | J17: 16.93548387 | K17: 22.74193548 | L17: 16.64516129 | M17: 22.01612903 | N17: 16.30645161 | O17: 21.29032258 | P17: 15.96774194 | R17: 1.048387097 | S17: 1.024193548 | T17: 1 | U17: 0.9737903226 | V17: 0.9475806452 | W17: 0.9173387097 | X17: 0.8870967742 | Y17: 0.7038461538 | Z17: 0.7106299213 | AA17: 0.7177419355 | AB17: 0.7246376812 | AC17: 0.7319148936 | AD17: 0.7406593407 | AE17: 0.75 | AF17: 1 | AG17: 1 | AH17: 1 | AI17: 1 | AJ17: 1 | AK17: 1 | AL17: 1 | AM17: 17.70967742 | AN17: 17.46774194 | AO17: 17.22580645 | AP17: 16.93548387 | AQ17: 16.64516129 | AR17: 16.30645161 | AS17: 15.96774194
B18: 63 | C18: 23.61290323 | D18: 20.03225806 | E18: 23.03225806 | F18: 19.79032258 | G18: =T18*$G$17 -> 22.4516129 | H18: 19.5483871 | I18: 21.82258065 | J18: 19.30645161 | K18: 21.19354839 | L18: 19.06451613 | M18: 20.51612903 | N18: 18.72580645 | O18: 19.83870968 | P18: 18.38709677 | R18: 0.9838709677 | S18: 0.9596774194 | T18: 0.935483871 | U18: 0.9092741935 | V18: 0.8830645161 | W18: 0.8548387097 | X18: 0.8266129032 | Y18: 0.8483606557 | Z18: 0.8592436975 | AA18: 0.8706896552 | AB18: 0.8847006652 | AC18: 0.899543379 | AD18: 0.9127358491 | AE18: 0.9268292683 | AF18: 1 | AG18: 1 | AH18: 1 | AI18: 1 | AJ18: 1 | AK18: 1 | AL18: 1 | AM18: 20.03225806 | AN18: 19.79032258 | AO18: 19.5483871 | AP18: 19.30645161 | AQ18: 19.06451613 | AR18: 18.72580645 | AS18: 18.38709677
B19: 59 | C19: 22.16129032 | D19: 21.58064516 | E19: 21.58064516 | F19: 21.0483871 | G19: =T19*$G$17 -> 21 | H19: 20.51612903 | I19: 20.37096774 | J19: 19.88709677 | K19: 19.74193548 | L19: 19.25806452 | M19: 19.06451613 | N19: 18.58064516 | O19: 18.38709677 | P19: 17.90322581 | R19: 0.9233870968 | S19: 0.8991935484 | T19: 0.875 | U19: 0.8487903226 | V19: 0.8225806452 | W19: 0.7943548387 | X19: 0.7661290323 | Y19: 0.9737991266 | Z19: 0.9753363229 | AA19: 0.9769585253 | AB19: 0.9762470309 | AC19: 0.9754901961 | AD19: 0.9746192893 | AE19: 0.9736842105 | AF19: 1 | AG19: 1 | AH19: 1 | AI19: 1 | AJ19: 1 | AK19: 1 | AL19: 1 | AM19: 21.58064516 | AN19: 21.0483871 | AO19: 20.51612903 | AP19: 19.88709677 | AQ19: 19.25806452 | AR19: 18.58064516 | AS19: 17.90322581

Sheet RASL_36 (hidden)
A2: RASL_36
A3: Evaporator Air Flow | C3: Condenser Entering Air Temperature ˚F
A4: 1150 | B4: CFM | C4: 85 | E4: 90 | G4: 95 | I4: 100 | K4: 105 | M4: 110 | O4: 115
A5: Evap. Air °F DB | B5: EWB† ˚F | C5: Capacity Mbtuh | E5: Capacity Mbtuh | G5: Capacity Mbtuh | I5: Capacity Mbtuh | K5: Capacity Mbtuh | M5: Capacity Mbtuh | O5: Capacity Mbtuh
C6: Total | D6: Sens. | E6: Total | F6: Sens. | G6: Total | H6: Sens. | I6: Total | J6: Sens. | K6: Total | L6: Sens. | M6: Total | N6: Sens. | O6: Total | P6: Sens.
R7: Total Factors | Y7: Sens. % | AF7: IDB Adj | AM7: Sens Calc
A8: 72 | B8: 71 | C8: =R8*$G$17 -> 36.10169492 | D8: =IF(AM8>C8,C8,AM8) -> 12.30508475 | E8: =S8*$G$17 -> 35.44067797 | F8: =IF(AN8>E8,E8,AN8) -> 12.20338983 | G8: =T8*$G$17 -> 34.77966102 | H8: =IF(AO8>G8,G8,AO8) -> 12.10169492 | I8: =U8*$G$17 -> 34.06779661 | J8: =IF(AP8>I8,I8,AP8) -> 11.89830508 | K8: =V8*$G$17 -> 33.3559322 | L8: =IF(AQ8>K8,K8,AQ8) -> 11.69491525 | M8: =W8*$G$17 -> 32.79661017 | N8: =IF(AR8>M8,M8,AR8) -> 11.49152542 | O8: =X8*$G$17 -> 32.23728814 | P8: =IF(AS8>O8,O8,AS8) -> 11.28813559 | R8: 1.002824859 | S8: 0.9844632768 | T8: 0.9661016949 | U8: 0.9463276836 | V8: 0.9265536723 | W8: 0.9110169492 | X8: 0.895480226 | Y8: 0.3408450704 | Z8: 0.3443328551 | AA8: 0.3479532164 | AB8: 0.3492537313 | AC8: 0.3506097561 | AD8: 0.3503875969 | AE8: 0.3501577287 | AF8: 1 | AG8: 1 | AH8: 1 | AI8: 1 | AJ8: 1 | AK8: 1 | AL8: 1 | AM8: =Y8*C8*AF8 -> 12.30508475 | AN8: =Z8*E8*AG8 -> 12.20338983 | AO8: =AA8*G8*AH8 -> 12.10169492 | AP8: =AB8*I8*AI8 -> 11.89830508 | AQ8: =AC8*K8*AJ8 -> 11.69491525 | AR8: =AD8*M8*AK8 -> 11.49152542 | AS8: =AE8*O8*AL8 -> 11.28813559
B9: 67 | C9: =R9*$G$17 -> 36.81355932 | D9: 18.10169492 | E9: =S9*$G$17 -> 34.93220339 | F9: =IF(AN9>E9,E9,AN9) -> 17.38983051 | G9: =T9*$G$17 -> 33.05084746 | H9: =IF(AO9>G9,G9,AO9) -> 16.6779661 | I9: =U9*$G$17 -> 32.18644068 | J9: =IF(AP9>I9,I9,AP9) -> 16.42372881 | K9: =V9*$G$17 -> 31.3220339 | L9: =IF(AQ9>K9,K9,AQ9) -> 16.16949153 | M9: =W9*$G$17 -> 30.71186441 | N9: =IF(AR9>M9,M9,AR9) -> 15.96610169 | O9: =X9*$G$17 -> 30.10169492 | P9: =IF(AS9>O9,O9,AS9) -> 15.76271186 | R9: 1.02259887 | S9: 0.9703389831 | T9: 0.918079096 | U9: 0.8940677966 | V9: 0.8700564972 | W9: 0.8531073446 | X9: 0.8361581921 | Y9: 0.4917127072 | Z9: 0.4978165939 | AA9: 0.5046153846 | AB9: 0.5102685624 | AC9: 0.5162337662 | AD9: 0.5198675497 | AE9: 0.5236486486 | AF9: 1 | AG9: 1 | AH9: 1 | AI9: 1 | AJ9: 1 | AK9: 1 | AL9: 1 | AM9: =Y9*C9*AF9 -> 18.10169492 | AN9: =Z9*E9*AG9 -> 17.38983051 | AO9: =AA9*G9*AH9 -> 16.6779661 | AP9: =AB9*I9*AI9 -> 16.42372881 | AQ9: =AC9*K9*AJ9 -> 16.16949153 | AR9: =AD9*M9*AK9 -> 15.96610169 | AS9: =AE9*O9*AL9 -> 15.76271186
B10: 63 | C10: 35.18644068 | D10: 22.88135593 | E10: 34.42372881 | F10: 22.72881356 | G10: 33.66101695 | H10: 22.57627119 | I10: 32.89830508 | J10: 22.37288136 | K10: 32.13559322 | L10: 22.16949153 | M10: 31.42372881 | N10: 21.91525424 | O10: 30.71186441 | P10: 21.66101695 | R10: 0.9774011299 | S10: 0.9562146893 | T10: 0.9350282486 | U10: 0.9138418079 | V10: 0.8926553672 | W10: 0.8728813559 | X10: 0.8531073446 | Y10: 0.6502890173 | Z10: 0.6602658789 | AA10: 0.670694864 | AB10: 0.6800618238 | AC10: 0.6898734177 | AD10: 0.6974110032 | AE10: 0.7052980132 | AF10: 1 | AG10: 1 | AH10: 1 | AI10: 1 | AJ10: 1 | AK10: 1 | AL10: 1 | AM10: 22.88135593 | AN10: 22.72881356 | AO10: 22.57627119 | AP10: 22.37288136 | AQ10: 22.16949153 | AR10: 21.91525424 | AS10: 21.66101695
B11: 59 | C11: 32.74576271 | D11: 28.57627119 | E11: 32.08474576 | F11: 28.01694915 | G11: 31.42372881 | H11: 27.45762712 | I11: 30.71186441 | J11: 26.79661017 | K11: 30 | L11: 26.13559322 | M11: 29.33898305 | N11: 25.57627119 | O11: 28.6779661 | P11: 25.01694915 | R11: 0.9096045198 | S11: 0.8912429379 | T11: 0.8728813559 | U11: 0.8531073446 | V11: 0.8333333333 | W11: 0.8149717514 | X11: 0.7966101695 | Y11: 0.8726708075 | Z11: 0.8732171157 | AA11: 0.8737864078 | AB11: 0.8725165563 | AC11: 0.8711864407 | AD11: 0.8717504333 | AE11: 0.8723404255 | AF11: 1 | AG11: 1 | AH11: 1 | AI11: 1 | AJ11: 1 | AK11: 1 | AL11: 1 | AM11: 28.57627119 | AN11: 28.01694915 | AO11: 27.45762712 | AP11: 26.79661017 | AQ11: 26.13559322 | AR11: 25.57627119 | AS11: 25.01694915
A12: 76 | B12: 71 | C12: 39.81355932 | D12: 16.22033898 | E12: 39.10169492 | F12: 16.01694915 | G12: 38.33898305 | H12: 15.86440678 | I12: 37.62711864 | J12: 15.66101695 | K12: 36.96610169 | L12: 15.40677966 | M12: 36.25423729 | N12: 15.15254237 | O12: 35.59322034 | P12: 14.84745763 | R12: 1.105932203 | S12: 1.086158192 | T12: 1.064971751 | U12: 1.04519774 | V12: 1.026836158 | W12: 1.007062147 | X12: 0.988700565 | Y12: 0.4074074074 | Z12: 0.4096228869 | AA12: 0.4137931034 | AB12: 0.4162162162 | AC12: 0.416781293 | AD12: 0.4179523142 | AE12: 0.4171428571 | AF12: 1 | AG12: 1 | AH12: 1 | AI12: 1 | AJ12: 1 | AK12: 1 | AL12: 1 | AM12: 16.22033898 | AN12: 16.01694915 | AO12: 15.86440678 | AP12: 15.66101695 | AQ12: 15.40677966 | AR12: 15.15254237 | AS12: 14.84745763
B13: 67 | C13: 37.57627119 | D13: 21.20338983 | E13: 36.76271186 | F13: 21 | G13: =T13*$G$17 -> 36 | H13: 20.79661017 | I13: 35.28813559 | J13: 20.54237288 | K13: 34.57627119 | L13: 20.33898305 | M13: 33.91525424 | N13: 20.08474576 | O13: 33.25423729 | P13: 19.77966102 | R13: 1.043785311 | S13: 1.021186441 | T13: 1 | U13: 0.9802259887 | V13: 0.9604519774 | W13: 0.9420903955 | X13: 0.9237288136 | Y13: 0.5642760487 | Z13: 0.571230982 | AA13: 0.5776836158 | AB13: 0.5821325648 | AC13: 0.5882352941 | AD13: 0.5922038981 | AE13: 0.5948012232 | AF13: 1 | AG13: 1 | AH13: 1 | AI13: 1 | AJ13: 1 | AK13: 1 | AL13: 1 | AM13: 21.20338983 | AN13: 21 | AO13: 20.79661017 | AP13: 20.54237288 | AQ13: 20.33898305 | AR13: 20.08474576 | AS13: 19.77966102
B14: 63 | C14: 35.13559322 | D14: 27.71186441 | E14: 34.42372881 | F14: 27.50847458 | G14: 33.66101695 | H14: 27.30508475 | I14: 32.94915254 | J14: 27 | K14: 32.18644068 | L14: 26.69491525 | M14: 31.52542373 | N14: 26.38983051 | O14: 30.86440678 | P14: 26.08474576 | R14: 0.9759887006 | S14: 0.9562146893 | T14: 0.9350282486 | U14: 0.9152542373 | V14: 0.8940677966 | W14: 0.8757062147 | X14: 0.8573446328 | Y14: 0.7887120116 | Z14: 0.7991137371 | AA14: 0.8111782477 | AB14: 0.8194444444 | AC14: 0.8293838863 | AD14: 0.8370967742 | AE14: 0.8451400329 | AF14: 1 | AG14: 1 | AH14: 1 | AI14: 1 | AJ14: 1 | AK14: 1 | AL14: 1 | AM14: 27.71186441 | AN14: 27.50847458 | AO14: 27.30508475 | AP14: 27 | AQ14: 26.69491525 | AR14: 26.38983051 | AS14: 26.08474576
B15: 59 | C15: 32.89830508 | D15: 32.03389831 | E15: 32.13559322 | F15: 31.3220339 | G15: 31.37288136 | H15: 30.55932203 | I15: 30.66101695 | J15: 29.84745763 | K15: 29.89830508 | L15: 29.13559322 | M15: 29.23728814 | N15: 28.47457627 | O15: 28.57627119 | P15: 27.81355932 | R15: 0.9138418079 | S15: 0.8926553672 | T15: 0.8714689266 | U15: 0.8516949153 | V15: 0.8305084746 | W15: 0.8121468927 | X15: 0.7937853107 | Y15: 0.9737248841 | Z15: 0.9746835443 | AA15: 0.9740680713 | AB15: 0.9734660033 | AC15: 0.9744897959 | AD15: 0.9739130435 | AE15: 0.9733096085 | AF15: 1 | AG15: 1 | AH15: 1 | AI15: 1 | AJ15: 1 | AK15: 1 | AL15: 1 | AM15: 32.03389831 | AN15: 31.3220339 | AO15: 30.55932203 | AP15: 29.84745763 | AQ15: 29.13559322 | AR15: 28.47457627 | AS15: 27.81355932
A16: 80 | B16: 71 | C16: 39.86440678 | D16: 21.55932203 | E16: 39.10169492 | F16: 21.25423729 | G16: 38.33898305 | H16: 20.94915254 | I16: 37.62711864 | J16: 20.6440678 | K16: 36.91525424 | L16: 20.33898305 | M16: 36.25423729 | N16: 19.98305085 | O16: 35.59322034 | P16: 19.62711864 | R16: 1.107344633 | S16: 1.086158192 | T16: 1.064971751 | U16: 1.04519774 | V16: 1.025423729 | W16: 1.007062147 | X16: 0.988700565 | Y16: 0.5408163265 | Z16: 0.5435630689 | AA16: 0.5464190981 | AB16: 0.5486486486 | AC16: 0.5509641873 | AD16: 0.5511921459 | AE16: 0.5514285714 | AF16: 1 | AG16: 1 | AH16: 1 | AI16: 1 | AJ16: 1 | AK16: 1 | AL16: 1 | AM16: 21.55932203 | AN16: 21.25423729 | AO16: 20.94915254 | AP16: 20.6440678 | AQ16: 20.33898305 | AR16: 19.98305085 | AS16: 19.62711864
B17: 67 | C17: 37.42372881 | D17: 25.83050847 | E17: 36.71186441 | F17: 25.57627119 | G17: 36 | H17: 25.3220339 | I17: 35.28813559 | J17: 25.01694915 | K17: 34.57627119 | L17: 24.71186441 | M17: 33.91525424 | N17: 24.3559322 | O17: 33.25423729 | P17: 24 | R17: 1.039548023 | S17: 1.019774011 | T17: 1 | U17: 0.9802259887 | V17: 0.9604519774 | W17: 0.9420903955 | X17: 0.9237288136 | Y17: 0.6902173913 | Z17: 0.6966759003 | AA17: 0.7033898305 | AB17: 0.7089337176 | AC17: 0.7147058824 | AD17: 0.7181409295 | AE17: 0.7217125382 | AF17: 1 | AG17: 1 | AH17: 1 | AI17: 1 | AJ17: 1 | AK17: 1 | AL17: 1 | AM17: 25.83050847 | AN17: 25.57627119 | AO17: 25.3220339 | AP17: 25.01694915 | AQ17: 24.71186441 | AR17: 24.3559322 | AS17: 24
B18: 63 | C18: 35.08474576 | D18: 29.79661017 | E18: 34.37288136 | F18: 29.54237288 | G18: =T18*$G$17 -> 33.66101695 | H18: 29.28813559 | I18: 32.94915254 | J18: 28.98305085 | K18: 32.23728814 | L18: 28.6779661 | M18: 31.57627119 | N18: 28.3220339 | O18: 30.91525424 | P18: 27.96610169 | R18: 0.9745762712 | S18: 0.9548022599 | T18: 0.9350282486 | U18: 0.9152542373 | V18: 0.895480226 | W18: 0.8771186441 | X18: 0.8587570621 | Y18: 0.8492753623 | Z18: 0.8594674556 | AA18: 0.8700906344 | AB18: 0.8796296296 | AC18: 0.8895899054 | AD18: 0.8969404187 | AE18: 0.9046052632 | AF18: 1 | AG18: 1 | AH18: 1 | AI18: 1 | AJ18: 1 | AK18: 1 | AL18: 1 | AM18: 29.79661017 | AN18: 29.54237288 | AO18: 29.28813559 | AP18: 28.98305085 | AQ18: 28.6779661 | AR18: 28.3220339 | AS18: 27.96610169
B19: 59 | C19: 32.84745763 | D19: 32.23728814 | E19: 32.08474576 | F19: 31.47457627 | G19: =T19*$G$17 -> 31.3220339 | H19: 30.71186441 | I19: 30.61016949 | J19: 30 | K19: 29.89830508 | L19: 29.28813559 | M19: 29.23728814 | N19: 28.6779661 | O19: 28.57627119 | P19: 28.06779661 | R19: 0.9124293785 | S19: 0.8912429379 | T19: 0.8700564972 | U19: 0.8502824859 | V19: 0.8305084746 | W19: 0.8121468927 | X19: 0.7937853107 | Y19: 0.9814241486 | Z19: 0.9809825674 | AA19: 0.9805194805 | AB19: 0.9800664452 | AC19: 0.9795918367 | AD19: 0.9808695652 | AE19: 0.9822064057 | AF19: 1 | AG19: 1 | AH19: 1 | AI19: 1 | AJ19: 1 | AK19: 1 | AL19: 1 | AM19: 32.23728814 | AN19: 31.47457627 | AO19: 30.71186441 | AP19: 30 | AQ19: 29.28813559 | AR19: 28.6779661 | AS19: 28.06779661

Sheet RASL_37 (hidden)
A2: RASL_37
A3: Evaporator Air Flow | C3: Condenser Entering Air Temperature ˚F
A4: 1125 | B4: CFM | C4: 85 | E4: 90 | G4: 95 | I4: 100 | K4: 105 | M4: 110 | O4: 115
A5: Evap. Air °F DB | B5: EWB† ˚F | C5: Capacity Mbtuh | E5: Capacity Mbtuh | G5: Capacity Mbtuh | I5: Capacity Mbtuh | K5: Capacity Mbtuh | M5: Capacity Mbtuh | O5: Capacity Mbtuh
C6: Total | D6: Sens. | E6: Total | F6: Sens. | G6: Total | H6: Sens. | I6: Total | J6: Sens. | K6: Total | L6: Sens. | M6: Total | N6: Sens. | O6: Total | P6: Sens.
R7: Total Factors | Y7: Sens. % | AF7: IDB Adj | AM7: Sens Calc
A8: 72 | B8: 71 | C8: =R8*$G$17 -> 37.6 | D8: =IF(AM8>C8,C8,AM8) -> 12.9 | E8: =S8*$G$17 -> 36.85 | F8: =IF(AN8>E8,E8,AN8) -> 12.75 | G8: =T8*$G$17 -> 36.1 | H8: =IF(AO8>G8,G8,AO8) -> 12.6 | I8: =U8*$G$17 -> 35.25 | J8: =IF(AP8>I8,I8,AP8) -> 12.35 | K8: =V8*$G$17 -> 34.4 | L8: =IF(AQ8>K8,K8,AQ8) -> 12.1 | M8: =W8*$G$17 -> 33.45 | N8: =IF(AR8>M8,M8,AR8) -> 11.8 | O8: =X8*$G$17 -> 32.5 | P8: =IF(AS8>O8,O8,AS8) -> 11.5 | R8: 1 | S8: 0.9800531915 | T8: 0.960106383 | U8: 0.9375 | V8: 0.914893617 | W8: 0.8896276596 | X8: 0.8643617021 | Y8: 0.3430851064 | Z8: 0.3459972863 | AA8: 0.3490304709 | AB8: 0.3503546099 | AC8: 0.351744186 | AD8: 0.3527653214 | AE8: 0.3538461538 | AF8: 1 | AG8: 1 | AH8: 1 | AI8: 1 | AJ8: 1 | AK8: 1 | AL8: 1 | AM8: =Y8*C8*AF8 -> 12.9 | AN8: =Z8*E8*AG8 -> 12.75 | AO8: =AA8*G8*AH8 -> 12.6 | AP8: =AB8*I8*AI8 -> 12.35 | AQ8: =AC8*K8*AJ8 -> 12.1 | AR8: =AD8*M8*AK8 -> 11.8 | AS8: =AE8*O8*AL8 -> 11.5
B9: 67 | C9: =R9*$G$17 -> 36.3 | D9: 17.7 | E9: =S9*$G$17 -> 35.15 | F9: =IF(AN9>E9,E9,AN9) -> 17.35 | G9: =T9*$G$17 -> 34 | H9: =IF(AO9>G9,G9,AO9) -> 17 | I9: =U9*$G$17 -> 33.2 | J9: =IF(AP9>I9,I9,AP9) -> 16.8 | K9: =V9*$G$17 -> 32.4 | L9: =IF(AQ9>K9,K9,AQ9) -> 16.6 | M9: =W9*$G$17 -> 31.4 | N9: =IF(AR9>M9,M9,AR9) -> 16.25 | O9: =X9*$G$17 -> 30.4 | P9: =IF(AS9>O9,O9,AS9) -> 15.9 | R9: 0.9654255319 | S9: 0.9348404255 | T9: 0.9042553191 | U9: 0.8829787234 | V9: 0.8617021277 | W9: 0.835106383 | X9: 0.8085106383 | Y9: 0.4876033058 | Z9: 0.493598862 | AA9: 0.5 | AB9: 0.5060240964 | AC9: 0.512345679 | AD9: 0.5175159236 | AE9: 0.5230263158 | AF9: 1 | AG9: 1 | AH9: 1 | AI9: 1 | AJ9: 1 | AK9: 1 | AL9: 1 | AM9: =Y9*C9*AF9 -> 17.7 | AN9: =Z9*E9*AG9 -> 17.35 | AO9: =AA9*G9*AH9 -> 17 | AP9: =AB9*I9*AI9 -> 16.8 | AQ9: =AC9*K9*AJ9 -> 16.6 | AR9: =AD9*M9*AK9 -> 16.25 | AS9: =AE9*O9*AL9 -> 15.9
B10: 63 | C10: 36.5 | D10: 23.3 | E10: 35.65 | F10: 23.1 | G10: 34.8 | H10: 22.9 | I10: 33.9 | J10: 22.65 | K10: 33 | L10: 22.4 | M10: 31.7 | N10: 21.9 | O10: 30.4 | P10: 21.4 | R10: 0.9707446809 | S10: 0.9481382979 | T10: 0.9255319149 | U10: 0.9015957447 | V10: 0.8776595745 | W10: 0.8430851064 | X10: 0.8085106383 | Y10: 0.6383561644 | Z10: 0.6479663394 | AA10: 0.658045977 | AB10: 0.6681415929 | AC10: 0.6787878788 | AD10: 0.690851735 | AE10: 0.7039473684 | AF10: 1 | AG10: 1 | AH10: 1 | AI10: 1 | AJ10: 1 | AK10: 1 | AL10: 1 | AM10: 23.3 | AN10: 23.1 | AO10: 22.9 | AP10: 22.65 | AQ10: 22.4 | AR10: 21.9 | AS10: 21.4
B11: 59 | C11: 32.9 | D11: 28.5 | E11: 32.45 | F11: 28.1 | G11: 32 | H11: 27.7 | I11: 31.05 | J11: 26.9 | K11: 30.1 | L11: 26.1 | M11: 29.05 | N11: 25.15 | O11: 28 | P11: 24.2 | R11: 0.875 | S11: 0.8630319149 | T11: 0.8510638298 | U11: 0.8257978723 | V11: 0.8005319149 | W11: 0.772606383 | X11: 0.7446808511 | Y11: 0.8662613982 | Z11: 0.8659476117 | AA11: 0.865625 | AB11: 0.8663446055 | AC11: 0.8671096346 | AD11: 0.8657487091 | AE11: 0.8642857143 | AF11: 1 | AG11: 1 | AH11: 1 | AI11: 1 | AJ11: 1 | AK11: 1 | AL11: 1 | AM11: 28.5 | AN11: 28.1 | AO11: 27.7 | AP11: 26.9 | AQ11: 26.1 | AR11: 25.15 | AS11: 24.2
A12: 76 | B12: 71 | C12: 41.45 | D12: 16.95 | E12: 40.7 | F12: 16.75 | G12: 39.9 | H12: 16.55 | I12: 38.95 | J12: 16.25 | K12: 38 | L12: 15.95 | M12: 36.95 | N12: 15.5 | O12: 35.85 | P12: 15.05 | R12: 1.102393617 | S12: 1.082446809 | T12: 1.061170213 | U12: 1.035904255 | V12: 1.010638298 | W12: 0.982712766 | X12: 0.9534574468 | Y12: 0.4089264174 | Z12: 0.4115479115 | AA12: 0.4147869674 | AB12: 0.4172015404 | AC12: 0.4197368421 | AD12: 0.4194857916 | AE12: 0.419804742 | AF12: 1 | AG12: 1 | AH12: 1 | AI12: 1 | AJ12: 1 | AK12: 1 | AL12: 1 | AM12: 16.95 | AN12: 16.75 | AO12: 16.55 | AP12: 16.25 | AQ12: 15.95 | AR12: 15.5 | AS12: 15.05
B13: 67 | C13: 39.15 | D13: 21.95 | E13: 38.35 | F13: 21.75 | G13: =T13*$G$17 -> 37.6 | H13: 21.55 | I13: 36.7 | J13: 21.25 | K13: 35.75 | L13: 20.95 | M13: 34.65 | N13: 20.45 | O13: 33.5 | P13: 20 | R13: 1.041223404 | S13: 1.019946809 | T13: 1 | U13: 0.9760638298 | V13: 0.9507978723 | W13: 0.9215425532 | X13: 0.8909574468 | Y13: 0.5606641124 | Z13: 0.5671447197 | AA13: 0.5731382979 | AB13: 0.5790190736 | AC13: 0.586013986 | AD13: 0.5901875902 | AE13: 0.5970149254 | AF13: 1 | AG13: 1 | AH13: 1 | AI13: 1 | AJ13: 1 | AK13: 1 | AL13: 1 | AM13: 21.95 | AN13: 21.75 | AO13: 21.55 | AP13: 21.25 | AQ13: 20.95 | AR13: 20.45 | AS13: 20
B14: 63 | C14: 36.45 | D14: 28.3 | E14: 35.6 | F14: 28 | G14: 34.8 | H14: 27.7 | I14: 33.85 | J14: 27.3 | K14: 32.9 | L14: 26.95 | M14: 31.85 | N14: 26.45 | O14: 30.85 | P14: 26 | R14: 0.9694148936 | S14: 0.9468085106 | T14: 0.9255319149 | U14: 0.9002659574 | V14: 0.875 | W14: 0.8470744681 | X14: 0.8204787234 | Y14: 0.7764060357 | Z14: 0.7865168539 | AA14: 0.7959770115 | AB14: 0.8064992614 | AC14: 0.8191489362 | AD14: 0.830455259 | AE14: 0.8427876823 | AF14: 1 | AG14: 1 | AH14: 1 | AI14: 1 | AJ14: 1 | AK14: 1 | AL14: 1 | AM14: 28.3 | AN14: 28 | AO14: 27.7 | AP14: 27.3 | AQ14: 26.95 | AR14: 26.45 | AS14: 26
B15: 59 | C15: 33.45 | D15: 32.45 | E15: 32.7 | F15: 31.7 | G15: 31.95 | H15: 31 | I15: 31.05 | J15: 30.1 | K15: 30.15 | L15: 29.25 | M15: 29.05 | N15: 28.15 | O15: 27.95 | P15: 27.1 | R15: 0.8896276596 | S15: 0.8696808511 | T15: 0.8497340426 | U15: 0.8257978723 | V15: 0.8018617021 | W15: 0.772606383 | X15: 0.7433510638 | Y15: 0.9701046338 | Z15: 0.9694189602 | AA15: 0.9702660407 | AB15: 0.9694041868 | AC15: 0.9701492537 | AD15: 0.9690189329 | AE15: 0.969588551 | AF15: 1 | AG15: 1 | AH15: 1 | AI15: 1 | AJ15: 1 | AK15: 1 | AL15: 1 | AM15: 32.45 | AN15: 31.7 | AO15: 31 | AP15: 30.1 | AQ15: 29.25 | AR15: 28.15 | AS15: 27.1
A16: 80 | B16: 71 | C16: 41.4 | D16: 22.4 | E16: 40.6 | F16: 22.1 | G16: 39.8 | H16: 21.8 | I16: 38.9 | J16: 21.4 | K16: 38 | L16: 21 | M16: 36.9 | N16: 20.4 | O16: 35.8 | P16: 19.8 | R16: 1.10106383 | S16: 1.079787234 | T16: 1.058510638 | U16: 1.034574468 | V16: 1.010638298 | W16: 0.9813829787 | X16: 0.9521276596 | Y16: 0.5410628019 | Z16: 0.5443349754 | AA16: 0.5477386935 | AB16: 0.5501285347 | AC16: 0.5526315789 | AD16: 0.5528455285 | AE16: 0.5530726257 | AF16: 1 | AG16: 1 | AH16: 1 | AI16: 1 | AJ16: 1 | AK16: 1 | AL16: 1 | AM16: 22.4 | AN16: 22.1 | AO16: 21.8 | AP16: 21.4 | AQ16: 21 | AR16: 20.4 | AS16: 19.8
B17: 67 | C17: 39.1 | D17: 26.9 | E17: 38.35 | F17: 26.6 | G17: 37.6 | H17: 26.3 | I17: 36.65 | J17: 25.85 | K17: 35.7 | L17: 25.4 | M17: 34.65 | N17: 24.85 | O17: 33.6 | P17: 24.3 | R17: 1.039893617 | S17: 1.019946809 | T17: 1 | U17: 0.9747340426 | V17: 0.9494680851 | W17: 0.9215425532 | X17: 0.8936170213 | Y17: 0.6879795396 | Z17: 0.6936114733 | AA17: 0.6994680851 | AB17: 0.7053206003 | AC17: 0.7114845938 | AD17: 0.7171717172 | AE17: 0.7232142857 | AF17: 1 | AG17: 1 | AH17: 1 | AI17: 1 | AJ17: 1 | AK17: 1 | AL17: 1 | AM17: 26.9 | AN17: 26.6 | AO17: 26.3 | AP17: 25.85 | AQ17: 25.4 | AR17: 24.85 | AS17: 24.3
B18: 63 | C18: 36.4 | D18: 30.5 | E18: 35.65 | F18: 30.2 | G18: =T18*$G$17 -> 34.9 | H18: 29.9 | I18: 34 | J18: 29.5 | K18: 33.1 | L18: 29.1 | M18: 32 | N18: 28.5 | O18: 30.9 | P18: 27.9 | R18: 0.9680851064 | S18: 0.9481382979 | T18: 0.9281914894 | U18: 0.9042553191 | V18: 0.8803191489 | W18: 0.8510638298 | X18: 0.8218085106 | Y18: 0.8379120879 | Z18: 0.8471248247 | AA18: 0.8567335244 | AB18: 0.8676470588 | AC18: 0.8791540785 | AD18: 0.890625 | AE18: 0.9029126214 | AF18: 1 | AG18: 1 | AH18: 1 | AI18: 1 | AJ18: 1 | AK18: 1 | AL18: 1 | AM18: 30.5 | AN18: 30.2 | AO18: 29.9 | AP18: 29.5 | AQ18: 29.1 | AR18: 28.5 | AS18: 27.9
B19: 59 | C19: 33.5 | D19: 32.6 | E19: 32.7 | F19: 31.85 | G19: =T19*$G$17 -> 31.9 | H19: 31.1 | I19: 31 | J19: 30.2 | K19: 30.1 | L19: 29.3 | M19: 29 | N19: 28.25 | O19: 27.9 | P19: 27.2 | R19: 0.8909574468 | S19: 0.8696808511 | T19: 0.8484042553 | U19: 0.8244680851 | V19: 0.8005319149 | W19: 0.7712765957 | X19: 0.7420212766 | Y19: 0.9731343284 | Z19: 0.9740061162 | AA19: 0.9749216301 | AB19: 0.9741935484 | AC19: 0.9734219269 | AD19: 0.974137931 | AE19: 0.9749103943 | AF19: 1 | AG19: 1 | AH19: 1 | AI19: 1 | AJ19: 1 | AK19: 1 | AL19: 1 | AM19: 32.6 | AN19: 31.85 | AO19: 31.1 | AP19: 30.2 | AQ19: 29.3 | AR19: 28.25 | AS19: 27.2

Sheet RASL_39 (hidden)
A2: RASL_39
A3: Evaporator Air Flow | C3: Condenser Entering Air Temperature ˚F
A4: 1150 | B4: CFM | C4: 85 | E4: 90 | G4: 95 | I4: 100 | K4: 105 | M4: 110 | O4: 115
A5: Evap. Air °F DB | B5: EWB† ˚F | C5: Capacity Mbtuh | E5: Capacity Mbtuh | G5: Capacity Mbtuh | I5: Capacity Mbtuh | K5: Capacity Mbtuh | M5: Capacity Mbtuh | O5: Capacity Mbtuh
C6: Total | D6: Sens. | E6: Total | F6: Sens. | G6: Total | H6: Sens. | I6: Total | J6: Sens. | K6: Total | L6: Sens. | M6: Total | N6: Sens. | O6: Total | P6: Sens.
R7: Total Factors | Y7: Sens. % | AF7: IDB Adj | AM7: Sens Calc
A8: 72 | B8: 71 | C8: =R8*$G$17 -> 42.8 | D8: =IF(AM8>C8,C8,AM8) -> 13.8 | E8: =S8*$G$17 -> 40 | F8: =IF(AN8>E8,E8,AN8) -> 13.15 | G8: =T8*$G$17 -> 37.2 | H8: =IF(AO8>G8,G8,AO8) -> 12.5 | I8: =U8*$G$17 -> 36.2 | J8: =IF(AP8>I8,I8,AP8) -> 12.2 | K8: =V8*$G$17 -> 35.2 | L8: =IF(AQ8>K8,K8,AQ8) -> 11.9 | M8: =W8*$G$17 -> 34.15 | N8: =IF(AR8>M8,M8,AR8) -> 11.4 | O8: =X8*$G$17 -> 33.1 | P8: =IF(AS8>O8,O8,AS8) -> 10.9 | R8: 1.10880829 | S8: 1.03626943 | T8: 0.9637305699 | U8: 0.9378238342 | V8: 0.9119170984 | W8: 0.8847150259 | X8: 0.8575129534 | Y8: 0.3224299065 | Z8: 0.32875 | AA8: 0.3360215054 | AB8: 0.3370165746 | AC8: 0.3380681818 | AD8: 0.3338213763 | AE8: 0.329305136 | AF8: 1 | AG8: 1 | AH8: 1 | AI8: 1 | AJ8: 1 | AK8: 1 | AL8: 1 | AM8: =Y8*C8*AF8 -> 13.8 | AN8: =Z8*E8*AG8 -> 13.15 | AO8: =AA8*G8*AH8 -> 12.5 | AP8: =AB8*I8*AI8 -> 12.2 | AQ8: =AC8*K8*AJ8 -> 11.9 | AR8: =AD8*M8*AK8 -> 11.4 | AS8: =AE8*O8*AL8 -> 10.9
B9: 67 | C9: =R9*$G$17 -> 40.3 | D9: 19.1 | E9: =S9*$G$17 -> 37.6 | F9: =IF(AN9>E9,E9,AN9) -> 18.2 | G9: =T9*$G$17 -> 34.9 | H9: =IF(AO9>G9,G9,AO9) -> 17.3 | I9: =U9*$G$17 -> 33.95 | J9: =IF(AP9>I9,I9,AP9) -> 17.05 | K9: =V9*$G$17 -> 33 | L9: =IF(AQ9>K9,K9,AQ9) -> 16.8 | M9: =W9*$G$17 -> 31.95 | N9: =IF(AR9>M9,M9,AR9) -> 16.25 | O9: =X9*$G$17 -> 30.9 | P9: =IF(AS9>O9,O9,AS9) -> 15.7 | R9: 1.044041451 | S9: 0.9740932642 | T9: 0.9041450777 | U9: 0.8795336788 | V9: 0.8549222798 | W9: 0.8277202073 | X9: 0.8005181347 | Y9: 0.4739454094 | Z9: 0.4840425532 | AA9: 0.4957020057 | AB9: 0.5022091311 | AC9: 0.5090909091 | AD9: 0.5086071987 | AE9: 0.5080906149 | AF9: 1 | AG9: 1 | AH9: 1 | AI9: 1 | AJ9: 1 | AK9: 1 | AL9: 1 | AM9: =Y9*C9*AF9 -> 19.1 | AN9: =Z9*E9*AG9 -> 18.2 | AO9: =AA9*G9*AH9 -> 17.3 | AP9: =AB9*I9*AI9 -> 17.05 | AQ9: =AC9*K9*AJ9 -> 16.8 | AR9: =AD9*M9*AK9 -> 16.25 | AS9: =AE9*O9*AL9 -> 15.7
B10: 63 | C10: 38.4 | D10: 23.7 | E10: 37.45 | F10: 23.65 | G10: 36.5 | H10: 23.6 | I10: 35.35 | J10: 23.25 | K10: 34.2 | L10: 22.9 | M10: 33.05 | N10: 22.35 | O10: 31.9 | P10: 21.8 | R10: 0.9948186528 | S10: 0.9702072539 | T10: 0.9455958549 | U10: 0.9158031088 | V10: 0.8860103627 | W10: 0.8562176166 | X10: 0.8264248705 | Y10: 0.6171875 | Z10: 0.6315086782 | AA10: 0.6465753425 | AB10: 0.657708628 | AC10: 0.6695906433 | AD10: 0.6762481089 | AE10: 0.6833855799 | AF10: 1 | AG10: 1 | AH10: 1 | AI10: 1 | AJ10: 1 | AK10: 1 | AL10: 1 | AM10: 23.7 | AN10: 23.65 | AO10: 23.6 | AP10: 23.25 | AQ10: 22.9 | AR10: 22.35 | AS10: 21.8
B11: 59 | C11: 36.6 | D11: 29.9 | E11: 35.6 | F11: 29.75 | G11: 34.6 | H11: 29.6 | I11: 33.6 | J11: 28.95 | K11: 32.6 | L11: 28.3 | M11: 31.4 | N11: 27.25 | O11: 30.2 | P11: 26.2 | R11: 0.9481865285 | S11: 0.9222797927 | T11: 0.896373057 | U11: 0.8704663212 | V11: 0.8445595855 | W11: 0.8134715026 | X11: 0.7823834197 | Y11: 0.8169398907 | Z11: 0.8356741573 | AA11: 0.8554913295 | AB11: 0.8616071429 | AC11: 0.8680981595 | AD11: 0.8678343949 | AE11: 0.8675496689 | AF11: 1 | AG11: 1 | AH11: 1 | AI11: 1 | AJ11: 1 | AK11: 1 | AL11: 1 | AM11: 29.9 | AN11: 29.75 | AO11: 29.6 | AP11: 28.95 | AQ11: 28.3 | AR11: 27.25 | AS11: 26.2
A12: 76 | B12: 71 | C12: 42.95 | D12: 16.7 | E12: 42.05 | F12: 16.6 | G12: 41.1 | H12: 16.5 | I12: 40 | J12: 16.1 | K12: 38.9 | L12: 15.75 | M12: 37.7 | N12: 15.05 | O12: 36.5 | P12: 14.4 | R12: 1.112694301 | S12: 1.089378238 | T12: 1.064766839 | U12: 1.03626943 | V12: 1.007772021 | W12: 0.9766839378 | X12: 0.9455958549 | Y12: 0.3888242142 | Z12: 0.3947681332 | AA12: 0.401459854 | AB12: 0.4025 | AC12: 0.4048843188 | AD12: 0.399204244 | AE12: 0.3945205479 | AF12: 1 | AG12: 1 | AH12: 1 | AI12: 1 | AJ12: 1 | AK12: 1 | AL12: 1 | AM12: 16.7 | AN12: 16.6 | AO12: 16.5 | AP12: 16.1 | AQ12: 15.75 | AR12: 15.05 | AS12: 14.4
B13: 67 | C13: 40.4 | D13: 22.05 | E13: 39.5 | F13: 22 | G13: =T13*$G$17 -> 38.55 | H13: 21.9 | I13: 37.5 | J13: 21.55 | K13: 36.4 | L13: 21.15 | M13: 35.2 | N13: 20.5 | O13: 34 | P13: 19.8 | R13: 1.046632124 | S13: 1.023316062 | T13: 0.9987046632 | U13: 0.9715025907 | V13: 0.9430051813 | W13: 0.9119170984 | X13: 0.8808290155 | Y13: 0.5457920792 | Z13: 0.5569620253 | AA13: 0.5680933852 | AB13: 0.5746666667 | AC13: 0.581043956 | AD13: 0.5823863636 | AE13: 0.5823529412 | AF13: 1 | AG13: 1 | AH13: 1 | AI13: 1 | AJ13: 1 | AK13: 1 | AL13: 1 | AM13: 22.05 | AN13: 22 | AO13: 21.9 | AP13: 21.55 | AQ13: 21.15 | AR13: 20.5 | AS13: 19.8
B14: 63 | C14: 38.3 | D14: 28.9 | E14: 37.35 | F14: 28.75 | G14: 36.45 | H14: 28.6 | I14: 35.3 | J14: 28.1 | K14: 34.15 | L14: 27.65 | M14: 33 | N14: 26.9 | O14: 31.8 | P14: 26.2 | R14: 0.9922279793 | S14: 0.9676165803 | T14: 0.9443005181 | U14: 0.914507772 | V14: 0.8847150259 | W14: 0.8549222798 | X14: 0.8238341969 | Y14: 0.7545691906 | Z14: 0.7697456493 | AA14: 0.7846364883 | AB14: 0.7960339943 | AC14: 0.8096632504 | AD14: 0.8151515152 | AE14: 0.8238993711 | AF14: 1 | AG14: 1 | AH14: 1 | AI14: 1 | AJ14: 1 | AK14: 1 | AL14: 1 | AM14: 28.9 | AN14: 28.75 | AO14: 28.6 | AP14: 28.1 | AQ14: 27.65 | AR14: 26.9 | AS14: 26.2
B15: 59 | C15: 36.6 | D15: 33.7 | E15: 35.7 | F15: 33.55 | G15: 34.8 | H15: 33.35 | I15: 33.75 | J15: 32.5 | K15: 32.65 | L15: 31.65 | M15: 31.4 | N15: 30.45 | O15: 30.1 | P15: 29.25 | R15: 0.9481865285 | S15: 0.9248704663 | T15: 0.9015544041 | U15: 0.8743523316 | V15: 0.8458549223 | W15: 0.8134715026 | X15: 0.7797927461 | Y15: 0.9207650273 | Z15: 0.9397759104 | AA15: 0.9583333333 | AB15: 0.962962963 | AC15: 0.9693721286 | AD15: 0.9697452229 | AE15: 0.9717607973 | AF15: 1 | AG15: 1 | AH15: 1 | AI15: 1 | AJ15: 1 | AK15: 1 | AL15: 1 | AM15: 33.7 | AN15: 33.55 | AO15: 33.35 | AP15: 32.5 | AQ15: 31.65 | AR15: 30.45 | AS15: 29.25
A16: 80 | B16: 71 | C16: 42.8 | D16: 22.3 | E16: 41.95 | F16: 22.15 | G16: 41.1 | H16: 22 | I16: 40 | J16: 21.45 | K16: 38.9 | L16: 20.9 | M16: 37.7 | N16: 20.1 | O16: 36.5 | P16: 19.3 | R16: 1.10880829 | S16: 1.086787565 | T16: 1.064766839 | U16: 1.03626943 | V16: 1.007772021 | W16: 0.9766839378 | X16: 0.9455958549 | Y16: 0.5210280374 | Z16: 0.5280095352 | AA16: 0.5352798054 | AB16: 0.53625 | AC16: 0.5372750643 | AD16: 0.5331564987 | AE16: 0.5287671233 | AF16: 1 | AG16: 1 | AH16: 1 | AI16: 1 | AJ16: 1 | AK16: 1 | AL16: 1 | AM16: 22.3 | AN16: 22.15 | AO16: 22 | AP16: 21.45 | AQ16: 20.9 | AR16: 20.1 | AS16: 19.3
B17: 67 | C17: 40.3 | D17: 27.1 | E17: 39.45 | F17: 26.95 | G17: 38.6 | H17: 26.8 | I17: 37.45 | J17: 26.25 | K17: 36.3 | L17: 25.7 | M17: 35.15 | N17: 24.9 | O17: 34 | P17: 24.1 | R17: 1.044041451 | S17: 1.022020725 | T17: 1 | U17: 0.9702072539 | V17: 0.9404145078 | W17: 0.9106217617 | X17: 0.8808290155 | Y17: 0.6724565757 | Z17: 0.6831432193 | AA17: 0.6943005181 | AB17: 0.7009345794 | AC17: 0.7079889807 | AD17: 0.7083926031 | AE17: 0.7088235294 | AF17: 1 | AG17: 1 | AH17: 1 | AI17: 1 | AJ17: 1 | AK17: 1 | AL17: 1 | AM17: 27.1 | AN17: 26.95 | AO17: 26.8 | AP17: 26.25 | AQ17: 25.7 | AR17: 24.9 | AS17: 24.1
B18: 63 | C18: 38.2 | D18: 31.2 | E18: 37.3 | F18: 31 | G18: =T18*$G$17 -> 36.4 | H18: 30.8 | I18: 35.35 | J18: 30.3 | K18: 34.3 | L18: 29.8 | M18: 33.05 | N18: 28.95 | O18: 31.8 | P18: 28.1 | R18: 0.9896373057 | S18: 0.9663212435 | T18: 0.9430051813 | U18: 0.9158031088 | V18: 0.8886010363 | W18: 0.8562176166 | X18: 0.8238341969 | Y18: 0.8167539267 | Z18: 0.8310991957 | AA18: 0.8461538462 | AB18: 0.8571428571 | AC18: 0.8688046647 | AD18: 0.8759455371 | AE18: 0.8836477987 | AF18: 1 | AG18: 1 | AH18: 1 | AI18: 1 | AJ18: 1 | AK18: 1 | AL18: 1 | AM18: 31.2 | AN18: 31 | AO18: 30.8 | AP18: 30.3 | AQ18: 29.8 | AR18: 28.95 | AS18: 28.1
B19: 59 | C19: 36.6 | D19: 33.8 | E19: 35.65 | F19: 33.6 | G19: =T19*$G$17 -> 34.7 | H19: 33.4 | I19: 33.65 | J19: 32.6 | K19: 32.6 | L19: 31.8 | M19: 31.4 | N19: 30.6 | O19: 30.2 | P19: 29.4 | R19: 0.9481865285 | S19: 0.9235751295 | T19: 0.8989637306 | U19: 0.871761658 | V19: 0.8445595855 | W19: 0.8134715026 | X19: 0.7823834197 | Y19: 0.9234972678 | Z19: 0.9424964937 | AA19: 0.9625360231 | AB19: 0.9687964339 | AC19: 0.9754601227 | AD19: 0.974522293 | AE19: 0.9735099338 | AF19: 1 | AG19: 1 | AH19: 1 | AI19: 1 | AJ19: 1 | AK19: 1 | AL19: 1 | AM19: 33.8 | AN19: 33.6 | AO19: 33.4 | AP19: 32.6 | AQ19: 31.8 | AR19: 30.6 | AS19: 29.4

Sheet RASL_48 (hidden)
A2: RASL_48
A3: Evaporator Air Flow | C3: Condenser Entering Air Temperature ˚F
A4: 1225 | B4: CFM | C4: 85 | E4: 90 | G4: 95 | I4: 100 | K4: 105 | M4: 110 | O4: 115
A5: Evap. Air °F DB | B5: EWB† ˚F | C5: Capacity Mbtuh | E5: Capacity Mbtuh | G5: Capacity Mbtuh | I5: Capacity Mbtuh | K5: Capacity Mbtuh | M5: Capacity Mbtuh | O5: Capacity Mbtuh
C6: Total | D6: Sens. | E6: Total | F6: Sens. | G6: Total | H6: Sens. | I6: Total | J6: Sens. | K6: Total | L6: Sens. | M6: Total | N6: Sens. | O6: Total | P6: Sens.
R7: Total Factors | Y7: Sens. % | AF7: IDB Adj | AM7: Sens Calc
A8: 72 | B8: 71 | C8: =R8*$G$17 -> 48.6 | D8: =IF(AM8>C8,C8,AM8) -> 13.3 | E8: =S8*$G$17 -> 47.65 | F8: =IF(AN8>E8,E8,AN8) -> 13.2 | G8: =T8*$G$17 -> 46.7 | H8: =IF(AO8>G8,G8,AO8) -> 13.1 | I8: =U8*$G$17 -> 45.5 | J8: =IF(AP8>I8,I8,AP8) -> 12.8 | K8: =V8*$G$17 -> 44.3 | L8: =IF(AQ8>K8,K8,AQ8) -> 12.5 | M8: =W8*$G$17 -> 42.85 | N8: =IF(AR8>M8,M8,AR8) -> 12.05 | O8: =X8*$G$17 -> 41.4 | P8: =IF(AS8>O8,O8,AS8) -> 11.6 | R8: 1.109589041 | S8: 1.087899543 | T8: 1.066210046 | U8: 1.038812785 | V8: 1.011415525 | W8: 0.9783105023 | X8: 0.9452054795 | Y8: 0.2736625514 | Z8: 0.277019937 | AA8: 0.2805139186 | AB8: 0.2813186813 | AC8: 0.2821670429 | AD8: 0.2812135356 | AE8: 0.2801932367 | AF8: 1 | AG8: 1 | AH8: 1 | AI8: 1 | AJ8: 1 | AK8: 1 | AL8: 1 | AM8: =Y8*C8*AF8 -> 13.3 | AN8: =Z8*E8*AG8 -> 13.2 | AO8: =AA8*G8*AH8 -> 13.1 | AP8: =AB8*I8*AI8 -> 12.8 | AQ8: =AC8*K8*AJ8 -> 12.5 | AR8: =AD8*M8*AK8 -> 12.05 | AS8: =AE8*O8*AL8 -> 11.6
B9: 67 | C9: =R9*$G$17 -> 45.8 | D9: 19.4 | E9: =S9*$G$17 -> 44.85 | F9: =IF(AN9>E9,E9,AN9) -> 19.3 | G9: =T9*$G$17 -> 43.9 | H9: =IF(AO9>G9,G9,AO9) -> 19.2 | I9: =U9*$G$17 -> 42.7 | J9: =IF(AP9>I9,I9,AP9) -> 18.9 | K9: =V9*$G$17 -> 41.5 | L9: =IF(AQ9>K9,K9,AQ9) -> 18.6 | M9: =W9*$G$17 -> 40.05 | N9: =IF(AR9>M9,M9,AR9) -> 18.15 | O9: =X9*$G$17 -> 38.6 | P9: =IF(AS9>O9,O9,AS9) -> 17.7 | R9: 1.0456621 | S9: 1.023972603 | T9: 1.002283105 | U9: 0.9748858447 | V9: 0.9474885845 | W9: 0.9143835616 | X9: 0.8812785388 | Y9: 0.423580786 | Z9: 0.4303232999 | AA9: 0.437357631 | AB9: 0.4426229508 | AC9: 0.4481927711 | AD9: 0.4531835206 | AE9: 0.4585492228 | AF9: 1 | AG9: 1 | AH9: 1 | AI9: 1 | AJ9: 1 | AK9: 1 | AL9: 1 | AM9: =Y9*C9*AF9 -> 19.4 | AN9: =Z9*E9*AG9 -> 19.3 | AO9: =AA9*G9*AH9 -> 19.2 | AP9: =AB9*I9*AI9 -> 18.9 | AQ9: =AC9*K9*AJ9 -> 18.6 | AR9: =AD9*M9*AK9 -> 18.15 | AS9: =AE9*O9*AL9 -> 17.7
B10: 63 | C10: 43.3 | D10: 24.8 | E10: 42.35 | F10: 24.7 | G10: 41.4 | H10: 24.6 | I10: 40.2 | J10: 24.3 | K10: 39 | L10: 24 | M10: 37.55 | N10: 23.55 | O10: 36.1 | P10: 23.1 | R10: 0.9885844749 | S10: 0.9668949772 | T10: 0.9452054795 | U10: 0.9178082192 | V10: 0.8904109589 | W10: 0.8573059361 | X10: 0.8242009132 | Y10: 0.5727482679 | Z10: 0.5832349469 | AA10: 0.5942028986 | AB10: 0.6044776119 | AC10: 0.6153846154 | AD10: 0.6271637816 | AE10: 0.6398891967 | AF10: 1 | AG10: 1 | AH10: 1 | AI10: 1 | AJ10: 1 | AK10: 1 | AL10: 1 | AM10: 24.8 | AN10: 24.7 | AO10: 24.6 | AP10: 24.3 | AQ10: 24 | AR10: 23.55 | AS10: 23.1
B11: 59 | C11: 41.3 | D11: 32.8 | E11: 40.2 | F11: 32.5 | G11: 39.1 | H11: 32.2 | I11: 38 | J11: 31.5 | K11: 36.9 | L11: 30.8 | M11: 35.5 | N11: 29.6 | O11: 34.1 | P11: 28.4 | R11: 0.9429223744 | S11: 0.9178082192 | T11: 0.8926940639 | U11: 0.8675799087 | V11: 0.8424657534 | W11: 0.8105022831 | X11: 0.7785388128 | Y11: 0.794188862 | Z11: 0.8084577114 | AA11: 0.8235294118 | AB11: 0.8289473684 | AC11: 0.8346883469 | AD11: 0.8338028169 | AE11: 0.8328445748 | AF11: 1 | AG11: 1 | AH11: 1 | AI11: 1 | AJ11: 1 | AK11: 1 | AL11: 1 | AM11: 32.8 | AN11: 32.5 | AO11: 32.2 | AP11: 31.5 | AQ11: 30.8 | AR11: 29.6 | AS11: 28.4
A12: 76 | B12: 71 | C12: 48.5 | D12: 16.5 | E12: 47.6 | F12: 16.35 | G12: 46.65 | H12: 16.15 | I12: 45.45 | J12: 15.8 | K12: 44.25 | L12: 15.45 | M12: 42.85 | N12: 14.9 | O12: 41.45 | P12: 14.4 | R12: 1.107305936 | S12: 1.086757991 | T12: 1.065068493 | U12: 1.037671233 | V12: 1.010273973 | W12: 0.9783105023 | X12: 0.946347032 | Y12: 0.3402061856 | Z12: 0.343487395 | AA12: 0.3461950697 | AB12: 0.3476347635 | AC12: 0.3491525424 | AD12: 0.3477246208 | AE12: 0.3474065139 | AF12: 1 | AG12: 1 | AH12: 1 | AI12: 1 | AJ12: 1 | AK12: 1 | AL12: 1 | AM12: 16.5 | AN12: 16.35 | AO12: 16.15 | AP12: 15.8 | AQ12: 15.45 | AR12: 14.9 | AS12: 14.4
B13: 67 | C13: 45.8 | D13: 22.75 | E13: 44.8 | F13: 22.55 | G13: =T13*$G$17 -> 43.8 | H13: 22.35 | I13: 42.65 | J13: 22 | K13: 41.5 | L13: 21.65 | M13: 40.1 | N13: 21.15 | O13: 38.7 | P13: 20.6 | R13: 1.0456621 | S13: 1.02283105 | T13: 1 | U13: 0.9737442922 | V13: 0.9474885845 | W13: 0.9155251142 | X13: 0.8835616438 | Y13: 0.4967248908 | Z13: 0.5033482143 | AA13: 0.5102739726 | AB13: 0.5158264947 | AC13: 0.521686747 | AD13: 0.5274314214 | AE13: 0.5322997416 | AF13: 1 | AG13: 1 | AH13: 1 | AI13: 1 | AJ13: 1 | AK13: 1 | AL13: 1 | AM13: 22.75 | AN13: 22.55 | AO13: 22.35 | AP13: 22 | AQ13: 21.65 | AR13: 21.15 | AS13: 20.6
B14: 63 | C14: 43.25 | D14: 30.75 | E14: 42.3 | F14: 30.55 | G14: 41.35 | H14: 30.3 | I14: 40.15 | J14: 29.85 | K14: 38.95 | L14: 29.4 | M14: 37.55 | N14: 28.75 | O14: 36.1 | P14: 28.15 | R14: 0.9874429224 | S14: 0.9657534247 | T14: 0.9440639269 | U14: 0.9166666667 | V14: 0.8892694064 | W14: 0.8573059361 | X14: 0.8242009132 | Y14: 0.710982659 | Z14: 0.7222222222 | AA14: 0.7327690447 | AB14: 0.7434620174 | AC14: 0.7548138639 | AD14: 0.7656458056 | AE14: 0.7797783934 | AF14: 1 | AG14: 1 | AH14: 1 | AI14: 1 | AJ14: 1 | AK14: 1 | AL14: 1 | AM14: 30.75 | AN14: 30.55 | AO14: 30.3 | AP14: 29.85 | AQ14: 29.4 | AR14: 28.75 | AS14: 28.15
B15: 59 | C15: 41.2 | D15: 37.05 | E15: 40.25 | F15: 36.75 | G15: 39.3 | H15: 36.45 | I15: 38.15 | J15: 35.55 | K15: 36.95 | L15: 34.7 | M15: 35.55 | N15: 33.35 | O15: 34.1 | P15: 31.95 | R15: 0.9406392694 | S15: 0.9189497717 | T15: 0.897260274 | U15: 0.8710045662 | V15: 0.8436073059 | W15: 0.8116438356 | X15: 0.7785388128 | Y15: 0.8992718447 | Z15: 0.9130434783 | AA15: 0.927480916 | AB15: 0.9318479685 | AC15: 0.9391069012 | AD15: 0.9381153305 | AE15: 0.9369501466 | AF15: 1 | AG15: 1 | AH15: 1 | AI15: 1 | AJ15: 1 | AK15: 1 | AL15: 1 | AM15: 37.05 | AN15: 36.75 | AO15: 36.45 | AP15: 35.55 | AQ15: 34.7 | AR15: 33.35 | AS15: 31.95
A16: 80 | B16: 71 | C16: 48.5 | D16: 23 | E16: 47.55 | F16: 22.65 | G16: 46.6 | H16: 22.3 | I16: 45.4 | J16: 21.8 | K16: 44.2 | L16: 21.3 | M16: 42.8 | N16: 20.6 | O16: 41.4 | P16: 19.9 | R16: 1.107305936 | S16: 1.085616438 | T16: 1.063926941 | U16: 1.03652968 | V16: 1.00913242 | W16: 0.9771689498 | X16: 0.9452054795 | Y16: 0.4742268041 | Z16: 0.476340694 | AA16: 0.4785407725 | AB16: 0.4801762115 | AC16: 0.4819004525 | AD16: 0.4813084112 | AE16: 0.4806763285 | AF16: 1 | AG16: 1 | AH16: 1 | AI16: 1 | AJ16: 1 | AK16: 1 | AL16: 1 | AM16: 23 | AN16: 22.65 | AO16: 22.3 | AP16: 21.8 | AQ16: 21.3 | AR16: 20.6 | AS16: 19.9
B17: 67 | C17: 45.7 | D17: 28.5 | E17: 44.75 | F17: 28.2 | G17: 43.8 | H17: 27.9 | I17: 42.6 | J17: 27.35 | K17: 41.4 | L17: 26.8 | M17: 40 | N17: 26.1 | O17: 38.6 | P17: 25.4 | R17: 1.043378995 | S17: 1.021689498 | T17: 1 | U17: 0.9726027397 | V17: 0.9452054795 | W17: 0.9132420091 | X17: 0.8812785388 | Y17: 0.6236323851 | Z17: 0.6301675978 | AA17: 0.6369863014 | AB17: 0.6420187793 | AC17: 0.6473429952 | AD17: 0.6525 | AE17: 0.6580310881 | AF17: 1 | AG17: 1 | AH17: 1 | AI17: 1 | AJ17: 1 | AK17: 1 | AL17: 1 | AM17: 28.5 | AN17: 28.2 | AO17: 27.9 | AP17: 27.35 | AQ17: 26.8 | AR17: 26.1 | AS17: 25.4
B18: 63 | C18: 43.2 | D18: 33.4 | E18: 42.25 | F18: 33.05 | G18: =T18*$G$17 -> 41.3 | H18: 32.7 | I18: 40.1 | J18: 32.2 | K18: 38.9 | L18: 31.7 | M18: 37.5 | N18: 31 | O18: 36.1 | P18: 30.3 | R18: 0.9863013699 | S18: 0.9646118721 | T18: 0.9429223744 | U18: 0.9155251142 | V18: 0.8881278539 | W18: 0.8561643836 | X18: 0.8242009132 | Y18: 0.7731481481 | Z18: 0.7822485207 | AA18: 0.7917675545 | AB18: 0.8029925187 | AC18: 0.8149100257 | AD18: 0.8266666667 | AE18: 0.8393351801 | AF18: 1 | AG18: 1 | AH18: 1 | AI18: 1 | AJ18: 1 | AK18: 1 | AL18: 1 | AM18: 33.4 | AN18: 33.05 | AO18: 32.7 | AP18: 32.2 | AQ18: 31.7 | AR18: 31 | AS18: 30.3
B19: 59 | C19: 41.2 | D19: 37.2 | E19: 40.2 | F19: 36.85 | G19: =T19*$G$17 -> 39.2 | H19: 36.5 | I19: 38 | J19: 35.6 | K19: 36.8 | L19: 34.7 | M19: 35.45 | N19: 33.4 | O19: 34.1 | P19: 32.1 | R19: 0.9406392694 | S19: 0.9178082192 | T19: 0.8949771689 | U19: 0.8675799087 | V19: 0.8401826484 | W19: 0.8093607306 | X19: 0.7785388128 | Y19: 0.9029126214 | Z19: 0.9166666667 | AA19: 0.931122449 | AB19: 0.9368421053 | AC19: 0.9429347826 | AD19: 0.9421720733 | AE19: 0.9413489736 | AF19: 1 | AG19: 1 | AH19: 1 | AI19: 1 | AJ19: 1 | AK19: 1 | AL19: 1 | AM19: 37.2 | AN19: 36.85 | AO19: 36.5 | AP19: 35.6 | AQ19: 34.7 | AR19: 33.4 | AS19: 32.1

Sheet RASL_60 (hidden)
A2: RASL_60
A3: Evaporator Air Flow | C3: Condenser Entering Air Temperature ˚F
A4: 1575 | B4: CFM | C4: 85 | E4: 90 | G4: 95 | I4: 100 | K4: 105 | M4: 110 | O4: 115
A5: Evap. Air °F DB | B5: EWB† ˚F | C5: Capacity Mbtuh | E5: Capacity Mbtuh | G5: Capacity Mbtuh | I5: Capacity Mbtuh | K5: Capacity Mbtuh | M5: Capacity Mbtuh | O5: Capacity Mbtuh
C6: Total | D6: Sens. | E6: Total | F6: Sens. | G6: Total | H6: Sens. | I6: Total | J6: Sens. | K6: Total | L6: Sens. | M6: Total | N6: Sens. | O6: Total | P6: Sens.
R7: Total Factors | Y7: Sens. % | AF7: IDB Adj | AM7: Sens Calc
A8: 72 | B8: 71 | C8: =R8*$G$17 -> 62.8 | D8: =IF(AM8>C8,C8,AM8) -> 19.9 | E8: =S8*$G$17 -> 58.7 | F8: =IF(AN8>E8,E8,AN8) -> 18.95 | G8: =T8*$G$17 -> 54.6 | H8: =IF(AO8>G8,G8,AO8) -> 18 | I8: =U8*$G$17 -> 53.45 | J8: =IF(AP8>I8,I8,AP8) -> 17.6 | K8: =V8*$G$17 -> 52.3 | L8: =IF(AQ8>K8,K8,AQ8) -> 17.2 | M8: =W8*$G$17 -> 53.75 | N8: =IF(AR8>M8,M8,AR8) -> 17.3 | O8: =X8*$G$17 -> 55.2 | P8: =IF(AS8>O8,O8,AS8) -> 17.4 | R8: 1.11942959 | S8: 1.046345811 | T8: 0.9732620321 | U8: 0.9527629234 | V8: 0.9322638146 | W8: 0.9581105169 | X8: 0.9839572193 | Y8: 0.3168789809 | Z8: 0.3228279387 | AA8: 0.3296703297 | AB8: 0.3292797007 | AC8: 0.3288718929 | AD8: 0.3218604651 | AE8: 0.3152173913 | AF8: 1 | AG8: 1 | AH8: 1 | AI8: 1 | AJ8: 1 | AK8: 1 | AL8: 1 | AM8: =Y8*C8*AF8 -> 19.9 | AN8: =Z8*E8*AG8 -> 18.95 | AO8: =AA8*G8*AH8 -> 18 | AP8: =AB8*I8*AI8 -> 17.6 | AQ8: =AC8*K8*AJ8 -> 17.2 | AR8: =AD8*M8*AK8 -> 17.3 | AS8: =AE8*O8*AL8 -> 17.4
B9: 67 | C9: =R9*$G$17 -> 58.4 | D9: 27.1 | E9: =S9*$G$17 -> 55.4 | F9: =IF(AN9>E9,E9,AN9) -> 26.25 | G9: =T9*$G$17 -> 52.4 | H9: =IF(AO9>G9,G9,AO9) -> 25.4 | I9: =U9*$G$17 -> 50.65 | J9: =IF(AP9>I9,I9,AP9) -> 24.75 | K9: =V9*$G$17 -> 48.9 | L9: =IF(AQ9>K9,K9,AQ9) -> 24.1 | M9: =W9*$G$17 -> 50 | N9: =IF(AR9>M9,M9,AR9) -> 24.45 | O9: =X9*$G$17 -> 51.1 | P9: =IF(AS9>O9,O9,AS9) -> 24.8 | R9: 1.040998217 | S9: 0.9875222816 | T9: 0.9340463458 | U9: 0.9028520499 | V9: 0.871657754 | W9: 0.8912655971 | X9: 0.9108734403 | Y9: 0.4640410959 | Z9: 0.4738267148 | AA9: 0.4847328244 | AB9: 0.4886475814 | AC9: 0.4928425358 | AD9: 0.489 | AE9: 0.4853228963 | AF9: 1 | AG9: 1 | AH9: 1 | AI9: 1 | AJ9: 1 | AK9: 1 | AL9: 1 | AM9: =Y9*C9*AF9 -> 27.1 | AN9: =Z9*E9*AG9 -> 26.25 | AO9: =AA9*G9*AH9 -> 25.4 | AP9: =AB9*I9*AI9 -> 24.75 | AQ9: =AC9*K9*AJ9 -> 24.1 | AR9: =AD9*M9*AK9 -> 24.45 | AS9: =AE9*O9*AL9 -> 24.8
B10: 63 | C10: 55.7 | D10: 34 | E10: 54.3 | F10: 33.9 | G10: 52.9 | H10: 33.8 | I10: 51.7 | J10: 33.4 | K10: 50.5 | L10: 33 | M10: 49.4 | N10: 32.3 | O10: 48.3 | P10: 31.6 | R10: 0.9928698752 | S10: 0.9679144385 | T10: 0.9429590018 | U10: 0.9215686275 | V10: 0.9001782531 | W10: 0.88057041 | X10: 0.8609625668 | Y10: 0.6104129264 | Z10: 0.6243093923 | AA10: 0.6389413989 | AB10: 0.6460348162 | AC10: 0.6534653465 | AD10: 0.6538461538 | AE10: 0.6542443064 | AF10: 1 | AG10: 1 | AH10: 1 | AI10: 1 | AJ10: 1 | AK10: 1 | AL10: 1 | AM10: 34 | AN10: 33.9 | AO10: 33.8 | AP10: 33.4 | AQ10: 33 | AR10: 32.3 | AS10: 31.6
B11: 59 | C11: 52.3 | D11: 42.8 | E11: 50 | F11: 41.75 | G11: 47.7 | H11: 40.7 | I11: 46.8 | J11: 40.25 | K11: 45.9 | L11: 39.8 | M11: 45.9 | N11: 39.8 | O11: 45.9 | P11: 39.8 | R11: 0.9322638146 | S11: 0.8912655971 | T11: 0.8502673797 | U11: 0.8342245989 | V11: 0.8181818182 | W11: 0.8181818182 | X11: 0.8181818182 | Y11: 0.8183556405 | Z11: 0.835 | AA11: 0.8532494759 | AB11: 0.860042735 | AC11: 0.8671023965 | AD11: 0.8671023965 | AE11: 0.8671023965 | AF11: 1 | AG11: 1 | AH11: 1 | AI11: 1 | AJ11: 1 | AK11: 1 | AL11: 1 | AM11: 42.8 | AN11: 41.75 | AO11: 40.7 | AP11: 40.25 | AQ11: 39.8 | AR11: 39.8 | AS11: 39.8
A12: 76 | B12: 71 | C12: 62.75 | D12: 24 | E12: 61.5 | F12: 23.9 | G12: 60.2 | H12: 23.8 | I12: 59 | J12: 23.35 | K12: 57.8 | L12: 22.85 | M12: 56.6 | N12: 22 | O12: 55.4 | P12: 21.15 | R12: 1.118538324 | S12: 1.096256684 | T12: 1.073083779 | U12: 1.051693405 | V12: 1.03030303 | W12: 1.008912656 | X12: 0.9875222816 | Y12: 0.3824701195 | Z12: 0.3886178862 | AA12: 0.3953488372 | AB12: 0.3957627119 | AC12: 0.3953287197 | AD12: 0.3886925795 | AE12: 0.3817689531 | AF12: 1 | AG12: 1 | AH12: 1 | AI12: 1 | AJ12: 1 | AK12: 1 | AL12: 1 | AM12: 24 | AN12: 23.9 | AO12: 23.8 | AP12: 23.35 | AQ12: 22.85 | AR12: 22 | AS12: 21.15
B13: 67 | C13: 58.65 | D13: 31.55 | E13: 57.4 | F13: 31.4 | G13: =T13*$G$17 -> 56.15 | H13: 31.3 | I13: 54.95 | J13: 30.85 | K13: 53.7 | L13: 30.35 | M13: 52.5 | N13: 29.5 | O13: 51.3 | P13: 28.6 | R13: 1.045454545 | S13: 1.023172906 | T13: 1.000891266 | U13: 0.9795008913 | V13: 0.9572192513 | W13: 0.935828877 | X13: 0.9144385027 | Y13: 0.5379369139 | Z13: 0.5470383275 | AA13: 0.5574354408 | AB13: 0.5614194722 | AC13: 0.5651769088 | AD13: 0.5619047619 | AE13: 0.5575048733 | AF13: 1 | AG13: 1 | AH13: 1 | AI13: 1 | AJ13: 1 | AK13: 1 | AL13: 1 | AM13: 31.55 | AN13: 31.4 | AO13: 31.3 | AP13: 30.85 | AQ13: 30.35 | AR13: 29.5 | AS13: 28.6
B14: 63 | C14: 55.6 | D14: 41.6 | E14: 54.05 | F14: 41.2 | G14: 52.55 | H14: 40.8 | I14: 51.4 | J14: 40.3 | K14: 50.25 | L14: 39.8 | M14: 49.3 | N14: 39.05 | O14: 48.3 | P14: 38.25 | R14: 0.991087344 | S14: 0.9634581105 | T14: 0.9367201426 | U14: 0.9162210339 | V14: 0.8957219251 | W14: 0.8787878788 | X14: 0.8609625668 | Y14: 0.7482014388 | Z14: 0.7622571693 | AA14: 0.7764034253 | AB14: 0.7840466926 | AC14: 0.792039801 | AD14: 0.7920892495 | AE14: 0.7919254658 | AF14: 1 | AG14: 1 | AH14: 1 | AI14: 1 | AJ14: 1 | AK14: 1 | AL14: 1 | AM14: 41.6 | AN14: 41.2 | AO14: 40.8 | AP14: 40.3 | AQ14: 39.8 | AR14: 39.05 | AS14: 38.25
B15: 59 | C15: 53.45 | D15: 49.3 | E15: 51.8 | F15: 48.65 | G15: 50.15 | H15: 48.05 | I15: 49.2 | J15: 47.45 | K15: 48.25 | L15: 46.85 | M15: 47.55 | N15: 46.15 | O15: 46.85 | P15: 45.45 | R15: 0.9527629234 | S15: 0.9233511586 | T15: 0.8939393939 | U15: 0.8770053476 | V15: 0.8600713012 | W15: 0.8475935829 | X15: 0.8351158645 | Y15: 0.9223573433 | Z15: 0.9391891892 | AA15: 0.9581256231 | AB15: 0.9644308943 | AC15: 0.970984456 | AD15: 0.9705573081 | AE15: 0.9701173959 | AF15: 1 | AG15: 1 | AH15: 1 | AI15: 1 | AJ15: 1 | AK15: 1 | AL15: 1 | AM15: 49.3 | AN15: 48.65 | AO15: 48.05 | AP15: 47.45 | AQ15: 46.85 | AR15: 46.15 | AS15: 45.45
A16: 80 | B16: 71 | C16: 62.7 | D16: 32.3 | E16: 61.45 | F16: 32.05 | G16: 60.2 | H16: 31.8 | I16: 58.95 | J16: 31.15 | K16: 57.7 | L16: 30.5 | M16: 56.5 | N16: 29.5 | O16: 55.3 | P16: 28.5 | R16: 1.117647059 | S16: 1.095365419 | T16: 1.073083779 | U16: 1.050802139 | V16: 1.028520499 | W16: 1.007130125 | X16: 0.9857397504 | Y16: 0.5151515152 | Z16: 0.5215622457 | AA16: 0.5282392027 | AB16: 0.5284139101 | AC16: 0.5285961872 | AD16: 0.5221238938 | AE16: 0.5153707052 | AF16: 1 | AG16: 1 | AH16: 1 | AI16: 1 | AJ16: 1 | AK16: 1 | AL16: 1 | AM16: 32.3 | AN16: 32.05 | AO16: 31.8 | AP16: 31.15 | AQ16: 30.5 | AR16: 29.5 | AS16: 28.5
B17: 67 | C17: 58.6 | D17: 38.9 | E17: 57.35 | F17: 38.65 | G17: 56.1 | H17: 38.4 | I17: 54.9 | J17: 37.75 | K17: 53.7 | L17: 37.1 | M17: 52.5 | N17: 36.1 | O17: 51.3 | P17: 35.1 | R17: 1.04456328 | S17: 1.02228164 | T17: 1 | U17: 0.9786096257 | V17: 0.9572192513 | W17: 0.935828877 | X17: 0.9144385027 | Y17: 0.6638225256 | Z17: 0.6739319965 | AA17: 0.6844919786 | AB17: 0.6876138434 | AC17: 0.6908752328 | AD17: 0.6876190476 | AE17: 0.6842105263 | AF17: 1 | AG17: 1 | AH17: 1 | AI17: 1 | AJ17: 1 | AK17: 1 | AL17: 1 | AM17: 38.9 | AN17: 38.65 | AO17: 38.4 | AP17: 37.75 | AQ17: 37.1 | AR17: 36.1 | AS17: 35.1
B18: 63 | C18: 55.6 | D18: 45 | E18: 54.35 | F18: 44.75 | G18: =T18*$G$17 -> 53.1 | H18: 44.5 | I18: 51.9 | J18: 43.85 | K18: 50.7 | L18: 43.2 | M18: 49.5 | N18: 42.2 | O18: 48.3 | P18: 41.2 | R18: 0.991087344 | S18: 0.9688057041 | T18: 0.9465240642 | U18: 0.9251336898 | V18: 0.9037433155 | W18: 0.8823529412 | X18: 0.8609625668 | Y18: 0.809352518 | Z18: 0.8233670653 | AA18: 0.8380414313 | AB18: 0.844894027 | AC18: 0.8520710059 | AD18: 0.8525252525 | AE18: 0.8530020704 | AF18: 1 | AG18: 1 | AH18: 1 | AI18: 1 | AJ18: 1 | AK18: 1 | AL18: 1 | AM18: 45 | AN18: 44.75 | AO18: 44.5 | AP18: 43.85 | AQ18: 43.2 | AR18: 42.2 | AS18: 41.2
B19: 59 | C19: 54.2 | D19: 50.2 | E19: 52.95 | F19: 49.95 | G19: =T19*$G$17 -> 51.7 | H19: 49.7 | I19: 50.5 | J19: 48.9 | K19: 49.3 | L19: 48.1 | M19: 48.15 | N19: 46.95 | O19: 47 | P19: 45.8 | R19: 0.9661319073 | S19: 0.9438502674 | T19: 0.9215686275 | U19: 0.9001782531 | V19: 0.8787878788 | W19: 0.8582887701 | X19: 0.8377896613 | Y19: 0.926199262 | Z19: 0.9433427762 | AA19: 0.9613152805 | AB19: 0.9683168317 | AC19: 0.9756592292 | AD19: 0.9750778816 | AE19: 0.9744680851 | AF19: 1 | AG19: 1 | AH19: 1 | AI19: 1 | AJ19: 1 | AK19: 1 | AL19: 1 | AM19: 50.2 | AN19: 49.95 | AO19: 49.7 | AP19: 48.9 | AQ19: 48.1 | AR19: 46.95 | AS19: 45.8

Sheet 14AJM_18 (hidden)
A2: 14AJM_18
A3: Evaporator Air Flow | C3: Condenser Entering Air Temperature ˚F
A4: 575 | B4: CFM | C4: 85 | E4: 90 | G4: 95 | I4: 100 | K4: 105 | M4: 110 | O4: 115
A5: Evap. Air °F DB | B5: EWB† ˚F | C5: Capacity Mbtuh | E5: Capacity Mbtuh | G5: Capacity Mbtuh | I5: Capacity Mbtuh | K5: Capacity Mbtuh | M5: Capacity Mbtuh | O5: Capacity Mbtuh
C6: Total | D6: Sens. | E6: Total | F6: Sens. | G6: Total | H6: Sens. | I6: Total | J6: Sens. | K6: Total | L6: Sens. | M6: Total | N6: Sens. | O6: Total | P6: Sens.
R7: Total Factors | Y7: Sens. % | AF7: IDB Adj | AM7: Sens Calc
A8: 72 | B8: 71 | C8: =R8*$G$17 -> 19.4 | D8: =IF(AM8>C8,C8,AM8) -> 6.8 | E8: =S8*$G$17 -> 19 | F8: =IF(AN8>E8,E8,AN8) -> 6.7 | G8: =T8*$G$17 -> 18.6 | H8: =IF(AO8>G8,G8,AO8) -> 6.6 | I8: =U8*$G$17 -> 18.1 | J8: =IF(AP8>I8,I8,AP8) -> 6.5 | K8: =V8*$G$17 -> 17.6 | L8: =IF(AQ8>K8,K8,AQ8) -> 6.4 | M8: =W8*$G$17 -> 17.1 | N8: =IF(AR8>M8,M8,AR8) -> 6.25 | O8: =X8*$G$17 -> 16.6 | P8: =IF(AS8>O8,O8,AS8) -> 6.1 | R8: 1.010416667 | S8: 0.9895833333 | T8: 0.96875 | U8: 0.9427083333 | V8: 0.9166666667 | W8: 0.890625 | X8: 0.8645833333 | Y8: 0.3505154639 | Z8: 0.3526315789 | AA8: 0.3548387097 | AB8: 0.3591160221 | AC8: 0.3636363636 | AD8: 0.365497076 | AE8: 0.3674698795 | AF8: 1 | AG8: 1 | AH8: 1 | AI8: 1 | AJ8: 1 | AK8: 1 | AL8: 1 | AM8: =Y8*C8*AF8 -> 6.8 | AN8: =Z8*E8*AG8 -> 6.7 | AO8: =AA8*G8*AH8 -> 6.6 | AP8: =AB8*I8*AI8 -> 6.5 | AQ8: =AC8*K8*AJ8 -> 6.4 | AR8: =AD8*M8*AK8 -> 6.25 | AS8: =AE8*O8*AL8 -> 6.1
B9: 67 | C9: =R9*$G$17 -> 18.3 | D9: 9.1 | E9: =S9*$G$17 -> 17.85 | F9: =IF(AN9>E9,E9,AN9) -> 9 | G9: =T9*$G$17 -> 17.4 | H9: =IF(AO9>G9,G9,AO9) -> 8.9 | I9: =U9*$G$17 -> 16.95 | J9: =IF(AP9>I9,I9,AP9) -> 8.8 | K9: =V9*$G$17 -> 16.5 | L9: =IF(AQ9>K9,K9,AQ9) -> 8.7 | M9: =W9*$G$17 -> 16 | N9: =IF(AR9>M9,M9,AR9) -> 8.55 | O9: =X9*$G$17 -> 15.5 | P9: =IF(AS9>O9,O9,AS9) -> 8.4 | R9: 0.953125 | S9: 0.9296875 | T9: 0.90625 | U9: 0.8828125 | V9: 0.859375 | W9: 0.8333333333 | X9: 0.8072916667 | Y9: 0.4972677596 | Z9: 0.5042016807 | AA9: 0.5114942529 | AB9: 0.5191740413 | AC9: 0.5272727273 | AD9: 0.534375 | AE9: 0.5419354839 | AF9: 1 | AG9: 1 | AH9: 1 | AI9: 1 | AJ9: 1 | AK9: 1 | AL9: 1 | AM9: =Y9*C9*AF9 -> 9.1 | AN9: =Z9*E9*AG9 -> 9 | AO9: =AA9*G9*AH9 -> 8.9 | AP9: =AB9*I9*AI9 -> 8.8 | AQ9: =AC9*K9*AJ9 -> 8.7 | AR9: =AD9*M9*AK9 -> 8.55 | AS9: =AE9*O9*AL9 -> 8.4
B10: 63 | C10: 19 | D10: 12.3 | E10: 18.3 | F10: 12.05 | G10: 17.6 | H10: 11.8 | I10: 16.8 | J10: 11.45 | K10: 16 | L10: 11.1 | M10: 15.25 | N10: 10.8 | O10: 14.5 | P10: 10.5 | R10: 0.9895833333 | S10: 0.953125 | T10: 0.9166666667 | U10: 0.875 | V10: 0.8333333333 | W10: 0.7942708333 | X10: 0.7552083333 | Y10: 0.6473684211 | Z10: 0.6584699454 | AA10: 0.6704545455 | AB10: 0.681547619 | AC10: 0.69375 | AD10: 0.7081967213 | AE10: 0.724137931 | AF10: 1 | AG10: 1 | AH10: 1 | AI10: 1 | AJ10: 1 | AK10: 1 | AL10: 1 | AM10: 12.3 | AN10: 12.05 | AO10: 11.8 | AP10: 11.45 | AQ10: 11.1 | AR10: 10.8 | AS10: 10.5
B11: 59 | C11: 16.6 | D11: 14.5 | E11: 16.6 | F11: 14.5 | G11: 16.6 | H11: 14.5 | I11: 16.25 | J11: 14.2 | K11: 15.9 | L11: 13.9 | M11: 15.35 | N11: 13.4 | O11: 14.8 | P11: 12.9 | R11: 0.8645833333 | S11: 0.8645833333 | T11: 0.8645833333 | U11: 0.8463541667 | V11: 0.828125 | W11: 0.7994791667 | X11: 0.7708333333 | Y11: 0.8734939759 | Z11: 0.8734939759 | AA11: 0.8734939759 | AB11: 0.8738461538 | AC11: 0.8742138365 | AD11: 0.8729641694 | AE11: 0.8716216216 | AF11: 1 | AG11: 1 | AH11: 1 | AI11: 1 | AJ11: 1 | AK11: 1 | AL11: 1 | AM11: 14.5 | AN11: 14.5 | AO11: 14.5 | AP11: 14.2 | AQ11: 13.9 | AR11: 13.4 | AS11: 12.9
A12: 76 | B12: 71 | C12: 21.45 | D12: 8.95 | E12: 20.95 | F12: 8.8 | G12: 20.45 | H12: 8.65 | I12: 19.95 | J12: 8.5 | K12: 19.45 | L12: 8.35 | M12: 18.85 | N12: 8.15 | O12: 18.25 | P12: 7.95 | R12: 1.1171875 | S12: 1.091145833 | T12: 1.065104167 | U12: 1.0390625 | V12: 1.013020833 | W12: 0.9817708333 | X12: 0.9505208333 | Y12: 0.4172494172 | Z12: 0.4200477327 | AA12: 0.4229828851 | AB12: 0.4260651629 | AC12: 0.4293059126 | AD12: 0.4323607427 | AE12: 0.4356164384 | AF12: 1 | AG12: 1 | AH12: 1 | AI12: 1 | AJ12: 1 | AK12: 1 | AL12: 1 | AM12: 8.95 | AN12: 8.8 | AO12: 8.65 | AP12: 8.5 | AQ12: 8.35 | AR12: 8.15 | AS12: 7.95
B13: 67 | C13: 20.2 | D13: 11.5 | E13: 19.75 | F13: 11.35 | G13: =T13*$G$17 -> 19.25 | H13: 11.25 | I13: 18.75 | J13: 11.05 | K13: 18.25 | L13: 10.9 | M13: 17.7 | N13: 10.7 | O13: 17.1 | P13: 10.5 | R13: 1.052083333 | S13: 1.028645833 | T13: 1.002604167 | U13: 0.9765625 | V13: 0.9505208333 | W13: 0.921875 | X13: 0.890625 | Y13: 0.5693069307 | Z13: 0.5746835443 | AA13: 0.5844155844 | AB13: 0.5893333333 | AC13: 0.597260274 | AD13: 0.604519774 | AE13: 0.6140350877 | AF13: 1 | AG13: 1 | AH13: 1 | AI13: 1 | AJ13: 1 | AK13: 1 | AL13: 1 | AM13: 11.5 | AN13: 11.35 | AO13: 11.25 | AP13: 11.05 | AQ13: 10.9 | AR13: 10.7 | AS13: 10.5
B14: 63 | C14: 18.75 | D14: 14.7 | E14: 18.15 | F14: 14.45 | G14: 17.6 | H14: 14.2 | I14: 17.05 | J14: 13.95 | K14: 16.45 | L14: 13.75 | M14: 15.9 | N14: 13.5 | O14: 15.35 | P14: 13.25 | R14: 0.9765625 | S14: 0.9453125 | T14: 0.9166666667 | U14: 0.8880208333 | V14: 0.8567708333 | W14: 0.828125 | X14: 0.7994791667 | Y14: 0.784 | Z14: 0.7961432507 | AA14: 0.8068181818 | AB14: 0.8181818182 | AC14: 0.8358662614 | AD14: 0.8490566038 | AE14: 0.8631921824 | AF14: 1 | AG14: 1 | AH14: 1 | AI14: 1 | AJ14: 1 | AK14: 1 | AL14: 1 | AM14: 14.7 | AN14: 14.45 | AO14: 14.2 | AP14: 13.95 | AQ14: 13.75 | AR14: 13.5 | AS14: 13.25
B15: 59 | C15: 17.45 | D15: 17 | E15: 17.2 | F15: 16.7 | G15: 16.9 | H15: 16.45 | I15: 16.35 | J15: 15.9 | K15: 15.8 | L15: 15.4 | M15: 15.25 | N15: 14.85 | O15: 14.7 | P15: 14.3 | R15: 0.9088541667 | S15: 0.8958333333 | T15: 0.8802083333 | U15: 0.8515625 | V15: 0.8229166667 | W15: 0.7942708333 | X15: 0.765625 | Y15: 0.9742120344 | Z15: 0.9709302326 | AA15: 0.9733727811 | AB15: 0.9724770642 | AC15: 0.9746835443 | AD15: 0.9737704918 | AE15: 0.9727891156 | AF15: 1 | AG15: 1 | AH15: 1 | AI15: 1 | AJ15: 1 | AK15: 1 | AL15: 1 | AM15: 17 | AN15: 16.7 | AO15: 16.45 | AP15: 15.9 | AQ15: 15.4 | AR15: 14.85 | AS15: 14.3
A16: 80 | B16: 71 | C16: 21.3 | D16: 11.7 | E16: 20.85 | F16: 11.5 | G16: 20.4 | H16: 11.3 | I16: 19.9 | J16: 11.1 | K16: 19.4 | L16: 10.9 | M16: 18.85 | N16: 10.65 | O16: 18.3 | P16: 10.4 | R16: 1.109375 | S16: 1.0859375 | T16: 1.0625 | U16: 1.036458333 | V16: 1.010416667 | W16: 0.9817708333 | X16: 0.953125 | Y16: 0.5492957746 | Z16: 0.551558753 | AA16: 0.5539215686 | AB16: 0.5577889447 | AC16: 0.5618556701 | AD16: 0.5649867374 | AE16: 0.5683060109 | AF16: 1 | AG16: 1 | AH16: 1 | AI16: 1 | AJ16: 1 | AK16: 1 | AL16: 1 | AM16: 11.7 | AN16: 11.5 | AO16: 11.3 | AP16: 11.1 | AQ16: 10.9 | AR16: 10.65 | AS16: 10.4
B17: 67 | C17: 20.1 | D17: 14 | E17: 19.65 | F17: 13.8 | G17: 19.2 | H17: 13.6 | I17: 18.7 | J17: 13.4 | K17: 18.2 | L17: 13.2 | M17: 17.65 | N17: 12.95 | O17: 17.1 | P17: 12.7 | R17: 1.046875 | S17: 1.0234375 | T17: 1 | U17: 0.9739583333 | V17: 0.9479166667 | W17: 0.9192708333 | X17: 0.890625 | Y17: 0.6965174129 | Z17: 0.7022900763 | AA17: 0.7083333333 | AB17: 0.7165775401 | AC17: 0.7252747253 | AD17: 0.7337110482 | AE17: 0.7426900585 | AF17: 1 | AG17: 1 | AH17: 1 | AI17: 1 | AJ17: 1 | AK17: 1 | AL17: 1 | AM17: 14 | AN17: 13.8 | AO17: 13.6 | AP17: 13.4 | AQ17: 13.2 | AR17: 12.95 | AS17: 12.7
B18: 63 | C18: 19 | D18: 16.1 | E18: 18.5 | F18: 15.85 | G18: =T18*$G$17 -> 18 | H18: 15.6 | I18: 17.5 | J18: 15.4 | K18: 17 | L18: 15.2 | M18: 16.45 | N18: 14.95 | O18: 15.9 | P18: 14.7 | R18: 0.9895833333 | S18: 0.9635416667 | T18: 0.9375 | U18: 0.9114583333 | V18: 0.8854166667 | W18: 0.8567708333 | X18: 0.828125 | Y18: 0.8473684211 | Z18: 0.8567567568 | AA18: 0.8666666667 | AB18: 0.88 | AC18: 0.8941176471 | AD18: 0.9088145897 | AE18: 0.9245283019 | AF18: 1 | AG18: 1 | AH18: 1 | AI18: 1 | AJ18: 1 | AK18: 1 | AL18: 1 | AM18: 16.1 | AN18: 15.85 | AO18: 15.6 | AP18: 15.4 | AQ18: 15.2 | AR18: 14.95 | AS18: 14.7
B19: 59 | C19: 17.8 | D19: 17.5 | E19: 17.3 | F19: 17 | G19: =T19*$G$17 -> 16.8 | H19: 16.5 | I19: 16.3 | J19: 16 | K19: 15.8 | L19: 15.5 | M19: 15.25 | N19: 14.95 | O19: 14.7 | P19: 14.4 | R19: 0.9270833333 | S19: 0.9010416667 | T19: 0.875 | U19: 0.8489583333 | V19: 0.8229166667 | W19: 0.7942708333 | X19: 0.765625 | Y19: 0.9831460674 | Z19: 0.9826589595 | AA19: 0.9821428571 | AB19: 0.981595092 | AC19: 0.9810126582 | AD19: 0.9803278689 | AE19: 0.9795918367 | AF19: 1 | AG19: 1 | AH19: 1 | AI19: 1 | AJ19: 1 | AK19: 1 | AL19: 1 | AM19: 17.5 | AN19: 17 | AO19: 16.5 | AP19: 16 | AQ19: 15.5 | AR19: 14.95 | AS19: 14.4

Sheet 14AJM_24 (hidden)
A2: 14AJM_24
A3: Evaporator Air Flow | C3: Condenser Entering Air Temperature ˚F
A4: 650 | B4: CFM | C4: 85 | E4: 90 | G4: 95 | I4: 100 | K4: 105 | M4: 110 | O4: 115
A5: Evap. Air °F DB | B5: EWB† ˚F | C5: Capacity Mbtuh | E5: Capacity Mbtuh | G5: Capacity Mbtuh | I5: Capacity Mbtuh | K5: Capacity Mbtuh | M5: Capacity Mbtuh | O5: Capacity Mbtuh
C6: Total | D6: Sens. | E6: Total | F6: Sens. | G6: Total | H6: Sens. | I6: Total | J6: Sens. | K6: Total | L6: Sens. | M6: Total | N6: Sens. | O6: Total | P6: Sens.
R7: Total Factors | Y7: Sens. % | AF7: IDB Adj | AM7: Sens Calc
A8: 72 | B8: 71 | C8: =R8*$G$17 -> 26.8173913 | D8: =IF(AM8>C8,C8,AM8) -> 8.452173913 | E8: =S8*$G$17 -> 26.13913043 | F8: =IF(AN8>E8,E8,AN8) -> 8.295652174 | G8: =T8*$G$17 -> 25.46086957 | H8: =IF(AO8>G8,G8,AO8) -> 8.139130435 | I8: =U8*$G$17 -> 23.68695652 | J8: =IF(AP8>I8,I8,AP8) -> 7.669565217 | K8: =V8*$G$17 -> 21.91304348 | L8: =IF(AQ8>K8,K8,AQ8) -> 7.2 | M8: =W8*$G$17 -> 21.1826087 | N8: =IF(AR8>M8,M8,AR8) -> 6.991304348 | O8: =X8*$G$17 -> 20.45217391 | P8: =IF(AS8>O8,O8,AS8) -> 6.782608696 | R8: 1.117391304 | S8: 1.089130435 | T8: 1.060869565 | U8: 0.9869565217 | V8: 0.9130434783 | W8: 0.8826086957 | X8: 0.852173913 | Y8: 0.3151750973 | Z8: 0.3173652695 | AA8: 0.3196721311 | AB8: 0.3237885463 | AC8: 0.3285714286 | AD8: 0.3300492611 | AE8: 0.3316326531 | AF8: 1 | AG8: 1 | AH8: 1 | AI8: 1 | AJ8: 1 | AK8: 1 | AL8: 1 | AM8: =Y8*C8*AF8 -> 8.452173913 | AN8: =Z8*E8*AG8 -> 8.295652174 | AO8: =AA8*G8*AH8 -> 8.139130435 | AP8: =AB8*I8*AI8 -> 7.669565217 | AQ8: =AC8*K8*AJ8 -> 7.2 | AR8: =AD8*M8*AK8 -> 6.991304348 | AS8: =AE8*O8*AL8 -> 6.782608696
B9: 67 | C9: =R9*$G$17 -> 25.35652174 | D9: 11.5826087 | E9: =S9*$G$17 -> 24.67826087 | F9: =IF(AN9>E9,E9,AN9) -> 11.42608696 | G9: =T9*$G$17 -> 24 | H9: =IF(AO9>G9,G9,AO9) -> 11.26956522 | I9: =U9*$G$17 -> 23.32173913 | J9: =IF(AP9>I9,I9,AP9) -> 11.11304348 | K9: =V9*$G$17 -> 22.64347826 | L9: =IF(AQ9>K9,K9,AQ9) -> 10.95652174 | M9: =W9*$G$17 -> 21.07826087 | N9: =IF(AR9>M9,M9,AR9) -> 10.3826087 | O9: =X9*$G$17 -> 19.51304348 | P9: =IF(AS9>O9,O9,AS9) -> 9.808695652 | R9: 1.056521739 | S9: 1.02826087 | T9: 1 | U9: 0.9717391304 | V9: 0.9434782609 | W9: 0.8782608696 | X9: 0.8130434783 | Y9: 0.4567901235 | Z9: 0.4630021142 | AA9: 0.4695652174 | AB9: 0.4765100671 | AC9: 0.4838709677 | AD9: 0.4925742574 | AE9: 0.5026737968 | AF9: 1 | AG9: 1 | AH9: 1 | AI9: 1 | AJ9: 1 | AK9: 1 | AL9: 1 | AM9: =Y9*C9*AF9 -> 11.5826087 | AN9: =Z9*E9*AG9 -> 11.42608696 | AO9: =AA9*G9*AH9 -> 11.26956522 | AP9: =AB9*I9*AI9 -> 11.11304348 | AQ9: =AC9*K9*AJ9 -> 10.95652174 | AR9: =AD9*M9*AK9 -> 10.3826087 | AS9: =AE9*O9*AL9 -> 9.808695652
B10: 63 | C10: 24.10434783 | D10: 14.50434783 | E10: 23.47826087 | F10: 14.4 | G10: 22.85217391 | H10: 14.29565217 | I10: 22.17391304 | J10: 14.13913043 | K10: 21.49565217 | L10: 13.9826087 | M10: 20.66086957 | N10: 13.72173913 | O10: 19.82608696 | P10: 13.46086957 | R10: 1.004347826 | S10: 0.9782608696 | T10: 0.952173913 | U10: 0.9239130435 | V10: 0.8956521739 | W10: 0.8608695652 | X10: 0.8260869565 | Y10: 0.6017316017 | Z10: 0.6133333333 | AA10: 0.6255707763 | AB10: 0.6376470588 | AC10: 0.6504854369 | AD10: 0.6641414141 | AE10: 0.6789473684 | AF10: 1 | AG10: 1 | AH10: 1 | AI10: 1 | AJ10: 1 | AK10: 1 | AL10: 1 | AM10: 14.50434783 | AN10: 14.4 | AO10: 14.29565217 | AP10: 14.13913043 | AQ10: 13.9826087 | AR10: 13.72173913 | AS10: 13.46086957
B11: 59 | C11: 22.33043478 | D11: 18.36521739 | E11: 22.0173913 | F11: 18.10434783 | G11: 21.70434783 | H11: 17.84347826 | I11: 21.07826087 | J11: 17.32173913 | K11: 20.45217391 | L11: 16.8 | M11: 19.72173913 | N11: 16.17391304 | O11: 18.99130435 | P11: 15.54782609 | R11: 0.9304347826 | S11: 0.9173913043 | T11: 0.9043478261 | U11: 0.8782608696 | V11: 0.852173913 | W11: 0.8217391304 | X11: 0.7913043478 | Y11: 0.8224299065 | Z11: 0.8222748815 | AA11: 0.8221153846 | AB11: 0.8217821782 | AC11: 0.8214285714 | AD11: 0.8201058201 | AE11: 0.8186813187 | AF11: 1 | AG11: 1 | AH11: 1 | AI11: 1 | AJ11: 1 | AK11: 1 | AL11: 1 | AM11: 18.36521739 | AN11: 18.10434783 | AO11: 17.84347826 | AP11: 17.32173913 | AQ11: 16.8 | AR11: 16.17391304 | AS11: 15.54782609
A12: 76 | B12: 71 | C12: 26.76521739 | D12: 10.22608696 | E12: 26.19130435 | F12: 10.06956522 | G12: 25.56521739 | H12: 9.913043478 | I12: 24.88695652 | J12: 9.704347826 | K12: 24.20869565 | L12: 9.495652174 | M12: 23.42608696 | N12: 9.286956522 | O12: 22.64347826 | P12: 9.026086957 | R12: 1.115217391 | S12: 1.091304348 | T12: 1.065217391 | U12: 1.036956522 | V12: 1.008695652 | W12: 0.9760869565 | X12: 0.9434782609 | Y12: 0.3820662768 | Z12: 0.3844621514 | AA12: 0.387755102 | AB12: 0.3899371069 | AC12: 0.3922413793 | AD12: 0.3964365256 | AE12: 0.3986175115 | AF12: 1 | AG12: 1 | AH12: 1 | AI12: 1 | AJ12: 1 | AK12: 1 | AL12: 1 | AM12: 10.22608696 | AN12: 10.06956522 | AO12: 9.913043478 | AP12: 9.704347826 | AQ12: 9.495652174 | AR12: 9.286956522 | AS12: 9.026086957
B13: 67 | C13: 25.35652174 | D13: 13.40869565 | E13: 24.73043478 | F13: 13.25217391 | G13: =T13*$G$17 -> 24.10434783 | H13: 13.09565217 | I13: 23.42608696 | J13: 12.88695652 | K13: 22.74782609 | L13: 12.67826087 | M13: 21.96521739 | N13: 12.4173913 | O13: 21.1826087 | P13: 12.15652174 | R13: 1.056521739 | S13: 1.030434783 | T13: 1.004347826 | U13: 0.9760869565 | V13: 0.947826087 | W13: 0.9152173913 | X13: 0.8826086957 | Y13: 0.5288065844 | Z13: 0.5358649789 | AA13: 0.5432900433 | AB13: 0.5501113586 | AC13: 0.5573394495 | AD13: 0.5653206651 | AE13: 0.5738916256 | AF13: 1 | AG13: 1 | AH13: 1 | AI13: 1 | AJ13: 1 | AK13: 1 | AL13: 1 | AM13: 13.40869565 | AN13: 13.25217391 | AO13: 13.09565217 | AP13: 12.88695652 | AQ13: 12.67826087 | AR13: 12.4173913 | AS13: 12.15652174
B14: 63 | C14: 24.05217391 | D14: 17.79130435 | E14: 23.42608696 | F14: 17.5826087 | G14: 22.8 | H14: 17.37391304 | I14: 22.06956522 | J14: 17.06086957 | K14: 21.28695652 | L14: 16.8 | M14: 20.55652174 | N14: 16.48695652 | O14: 19.77391304 | P14: 16.22608696 | R14: 1.002173913 | S14: 0.9760869565 | T14: 0.95 | U14: 0.9195652174 | V14: 0.8869565217 | W14: 0.8565217391 | X14: 0.8239130435 | Y14: 0.7396963124 | Z14: 0.7505567929 | AA14: 0.76201373 | AB14: 0.7730496454 | AC14: 0.7892156863 | AD14: 0.8020304569 | AE14: 0.8205804749 | AF14: 1 | AG14: 1 | AH14: 1 | AI14: 1 | AJ14: 1 | AK14: 1 | AL14: 1 | AM14: 17.79130435 | AN14: 17.5826087 | AO14: 17.37391304 | AP14: 17.06086957 | AQ14: 16.8 | AR14: 16.48695652 | AS14: 16.22608696
B15: 59 | C15: 22.8 | D15: 21.13043478 | E15: 22.33043478 | F15: 20.66086957 | G15: 21.80869565 | H15: 20.19130435 | I15: 21.13043478 | J15: 19.56521739 | K15: 20.45217391 | L15: 18.93913043 | M15: 19.72173913 | N15: 18.20869565 | O15: 18.93913043 | P15: 17.47826087 | R15: 0.95 | S15: 0.9304347826 | T15: 0.9086956522 | U15: 0.8804347826 | V15: 0.852173913 | W15: 0.8217391304 | X15: 0.7891304348 | Y15: 0.9267734554 | Z15: 0.9252336449 | AA15: 0.9258373206 | AB15: 0.9259259259 | AC15: 0.9260204082 | AD15: 0.9232804233 | AE15: 0.9228650138 | AF15: 1 | AG15: 1 | AH15: 1 | AI15: 1 | AJ15: 1 | AK15: 1 | AL15: 1 | AM15: 21.13043478 | AN15: 20.66086957 | AO15: 20.19130435 | AP15: 19.56521739 | AQ15: 18.93913043 | AR15: 18.20869565 | AS15: 17.47826087
A16: 80 | B16: 71 | C16: 26.71304348 | D16: 13.77391304 | E16: 26.08695652 | F16: 13.51304348 | G16: 25.46086957 | H16: 13.25217391 | I16: 24.83478261 | J16: 12.99130435 | K16: 24.20869565 | L16: 12.73043478 | M16: 23.37391304 | N16: 12.36521739 | O16: 22.53913043 | P16: 12 | R16: 1.113043478 | S16: 1.086956522 | T16: 1.060869565 | U16: 1.034782609 | V16: 1.008695652 | W16: 0.9739130435 | X16: 0.9391304348 | Y16: 0.515625 | Z16: 0.518 | AA16: 0.5204918033 | AB16: 0.5231092437 | AC16: 0.525862069 | AD16: 0.5290178571 | AE16: 0.5324074074 | AF16: 1 | AG16: 1 | AH16: 1 | AI16: 1 | AJ16: 1 | AK16: 1 | AL16: 1 | AM16: 13.77391304 | AN16: 13.51304348 | AO16: 13.25217391 | AP16: 12.99130435 | AQ16: 12.73043478 | AR16: 12.36521739 | AS16: 12
B17: 67 | C17: 25.25217391 | D17: 16.59130435 | E17: 24.62608696 | F17: 16.33043478 | G17: 24 | H17: 16.06956522 | I17: 23.37391304 | J17: 15.80869565 | K17: 22.74782609 | L17: 15.54782609 | M17: 21.91304348 | N17: 15.1826087 | O17: 21.07826087 | P17: 14.8173913 | R17: 1.052173913 | S17: 1.026086957 | T17: 1 | U17: 0.9739130435 | V17: 0.947826087 | W17: 0.9130434783 | X17: 0.8782608696 | Y17: 0.6570247934 | Z17: 0.6631355932 | AA17: 0.6695652174 | AB17: 0.6763392857 | AC17: 0.6834862385 | AD17: 0.6928571429 | AE17: 0.702970297 | AF17: 1 | AG17: 1 | AH17: 1 | AI17: 1 | AJ17: 1 | AK17: 1 | AL17: 1 | AM17: 16.59130435 | AN17: 16.33043478 | AO17: 16.06956522 | AP17: 15.80869565 | AQ17: 15.54782609 | AR17: 15.1826087 | AS17: 14.8173913
B18: 63 | C18: 24 | D18: 19.2 | E18: 23.42608696 | F18: 18.99130435 | G18: =T18*$G$17 -> 22.85217391 | H18: 18.7826087 | I18: 22.12173913 | J18: 18.46956522 | K18: 21.39130435 | L18: 18.15652174 | M18: 20.66086957 | N18: 17.84347826 | O18: 19.93043478 | P18: 17.53043478 | R18: 1 | S18: 0.9760869565 | T18: 0.952173913 | U18: 0.9217391304 | V18: 0.8913043478 | W18: 0.8608695652 | X18: 0.8304347826 | Y18: 0.8 | Z18: 0.8106904232 | AA18: 0.8219178082 | AB18: 0.8349056604 | AC18: 0.8487804878 | AD18: 0.8636363636 | AE18: 0.8795811518 | AF18: 1 | AG18: 1 | AH18: 1 | AI18: 1 | AJ18: 1 | AK18: 1 | AL18: 1 | AM18: 19.2 | AN18: 18.99130435 | AO18: 18.7826087 | AP18: 18.46956522 | AQ18: 18.15652174 | AR18: 17.84347826 | AS18: 17.53043478
B19: 59 | C19: 23.06086957 | D19: 21.39130435 | E19: 22.43478261 | F19: 20.8173913 | G19: =T19*$G$17 -> 21.80869565 | H19: 20.24347826 | I19: 21.13043478 | J19: 19.6173913 | K19: 20.45217391 | L19: 18.99130435 | M19: 19.66956522 | N19: 18.26086957 | O19: 18.88695652 | P19: 17.53043478 | R19: 0.9608695652 | S19: 0.9347826087 | T19: 0.9086956522 | U19: 0.8804347826 | V19: 0.852173913 | W19: 0.8195652174 | X19: 0.7869565217 | Y19: 0.92760181 | Z19: 0.9279069767 | AA19: 0.9282296651 | AB19: 0.9283950617 | AC19: 0.9285714286 | AD19: 0.9283819629 | AE19: 0.9281767956 | AF19: 1 | AG19: 1 | AH19: 1 | AI19: 1 | AJ19: 1 | AK19: 1 | AL19: 1 | AM19: 21.39130435 | AN19: 20.8173913 | AO19: 20.24347826 | AP19: 19.6173913 | AQ19: 18.99130435 | AR19: 18.26086957 | AS19: 17.53043478

Sheet 14AJM_25 (hidden)
A2: 14AJM_25
A3: Evaporator Air Flow | C3: Condenser Entering Air Temperature ˚F
A4: 650 | B4: CFM | C4: 85 | E4: 90 | G4: 95 | I4: 100 | K4: 105 | M4: 110 | O4: 115
A5: Evap. Air °F DB | B5: EWB† ˚F | C5: Capacity Mbtuh | E5: Capacity Mbtuh | G5: Capacity Mbtuh | I5: Capacity Mbtuh | K5: Capacity Mbtuh | M5: Capacity Mbtuh | O5: Capacity Mbtuh
C6: Total | D6: Sens. | E6: Total | F6: Sens. | G6: Total | H6: Sens. | I6: Total | J6: Sens. | K6: Total | L6: Sens. | M6: Total | N6: Sens. | O6: Total | P6: Sens.
R7: Total Factors | Y7: Sens. % | AF7: IDB Adj | AM7: Sens Calc
A8: 72 | B8: 71 | C8: =R8*$G$17 -> 27.93478261 | D8: =IF(AM8>C8,C8,AM8) -> 8.804347826 | E8: =S8*$G$17 -> 27.22826087 | F8: =IF(AN8>E8,E8,AN8) -> 8.641304348 | G8: =T8*$G$17 -> 26.52173913 | H8: =IF(AO8>G8,G8,AO8) -> 8.47826087 | I8: =U8*$G$17 -> 24.67391304 | J8: =IF(AP8>I8,I8,AP8) -> 7.989130435 | K8: =V8*$G$17 -> 22.82608696 | L8: =IF(AQ8>K8,K8,AQ8) -> 7.5 | M8: =W8*$G$17 -> 22.06521739 | N8: =IF(AR8>M8,M8,AR8) -> 7.282608696 | O8: =X8*$G$17 -> 21.30434783 | P8: =IF(AS8>O8,O8,AS8) -> 7.065217391 | R8: 1.117391304 | S8: 1.089130435 | T8: 1.060869565 | U8: 0.9869565217 | V8: 0.9130434783 | W8: 0.8826086957 | X8: 0.852173913 | Y8: 0.3151750973 | Z8: 0.3173652695 | AA8: 0.3196721311 | AB8: 0.3237885463 | AC8: 0.3285714286 | AD8: 0.3300492611 | AE8: 0.3316326531 | AF8: 1 | AG8: 1 | AH8: 1 | AI8: 1 | AJ8: 1 | AK8: 1 | AL8: 1 | AM8: =Y8*C8*AF8 -> 8.804347826 | AN8: =Z8*E8*AG8 -> 8.641304348 | AO8: =AA8*G8*AH8 -> 8.47826087 | AP8: =AB8*I8*AI8 -> 7.989130435 | AQ8: =AC8*K8*AJ8 -> 7.5 | AR8: =AD8*M8*AK8 -> 7.282608696 | AS8: =AE8*O8*AL8 -> 7.065217391
B9: 67 | C9: =R9*$G$17 -> 26.41304348 | D9: 12.06521739 | E9: =S9*$G$17 -> 25.70652174 | F9: =IF(AN9>E9,E9,AN9) -> 11.90217391 | G9: =T9*$G$17 -> 25 | H9: =IF(AO9>G9,G9,AO9) -> 11.73913043 | I9: =U9*$G$17 -> 24.29347826 | J9: =IF(AP9>I9,I9,AP9) -> 11.57608696 | K9: =V9*$G$17 -> 23.58695652 | L9: =IF(AQ9>K9,K9,AQ9) -> 11.41304348 | M9: =W9*$G$17 -> 21.95652174 | N9: =IF(AR9>M9,M9,AR9) -> 10.81521739 | O9: =X9*$G$17 -> 20.32608696 | P9: =IF(AS9>O9,O9,AS9) -> 10.2173913 | R9: 1.056521739 | S9: 1.02826087 | T9: 1 | U9: 0.9717391304 | V9: 0.9434782609 | W9: 0.8782608696 | X9: 0.8130434783 | Y9: 0.4567901235 | Z9: 0.4630021142 | AA9: 0.4695652174 | AB9: 0.4765100671 | AC9: 0.4838709677 | AD9: 0.4925742574 | AE9: 0.5026737968 | AF9: 1 | AG9: 1 | AH9: 1 | AI9: 1 | AJ9: 1 | AK9: 1 | AL9: 1 | AM9: =Y9*C9*AF9 -> 12.06521739 | AN9: =Z9*E9*AG9 -> 11.90217391 | AO9: =AA9*G9*AH9 -> 11.73913043 | AP9: =AB9*I9*AI9 -> 11.57608696 | AQ9: =AC9*K9*AJ9 -> 11.41304348 | AR9: =AD9*M9*AK9 -> 10.81521739 | AS9: =AE9*O9*AL9 -> 10.2173913
B10: 63 | C10: 25.10869565 | D10: 15.10869565 | E10: 24.45652174 | F10: 15 | G10: 23.80434783 | H10: 14.89130435 | I10: 23.09782609 | J10: 14.72826087 | K10: 22.39130435 | L10: 14.56521739 | M10: 21.52173913 | N10: 14.29347826 | O10: 20.65217391 | P10: 14.02173913 | R10: 1.004347826 | S10: 0.9782608696 | T10: 0.952173913 | U10: 0.9239130435 | V10: 0.8956521739 | W10: 0.8608695652 | X10: 0.8260869565 | Y10: 0.6017316017 | Z10: 0.6133333333 | AA10: 0.6255707763 | AB10: 0.6376470588 | AC10: 0.6504854369 | AD10: 0.6641414141 | AE10: 0.6789473684 | AF10: 1 | AG10: 1 | AH10: 1 | AI10: 1 | AJ10: 1 | AK10: 1 | AL10: 1 | AM10: 15.10869565 | AN10: 15 | AO10: 14.89130435 | AP10: 14.72826087 | AQ10: 14.56521739 | AR10: 14.29347826 | AS10: 14.02173913
B11: 59 | C11: 23.26086957 | D11: 19.13043478 | E11: 22.93478261 | F11: 18.85869565 | G11: 22.60869565 | H11: 18.58695652 | I11: 21.95652174 | J11: 18.04347826 | K11: 21.30434783 | L11: 17.5 | M11: 20.54347826 | N11: 16.84782609 | O11: 19.7826087 | P11: 16.19565217 | R11: 0.9304347826 | S11: 0.9173913043 | T11: 0.9043478261 | U11: 0.8782608696 | V11: 0.852173913 | W11: 0.8217391304 | X11: 0.7913043478 | Y11: 0.8224299065 | Z11: 0.8222748815 | AA11: 0.8221153846 | AB11: 0.8217821782 | AC11: 0.8214285714 | AD11: 0.8201058201 | AE11: 0.8186813187 | AF11: 1 | AG11: 1 | AH11: 1 | AI11: 1 | AJ11: 1 | AK11: 1 | AL11: 1 | AM11: 19.13043478 | AN11: 18.85869565 | AO11: 18.58695652 | AP11: 18.04347826 | AQ11: 17.5 | AR11: 16.84782609 | AS11: 16.19565217
A12: 76 | B12: 71 | C12: 27.88043478 | D12: 10.65217391 | E12: 27.2826087 | F12: 10.48913043 | G12: 26.63043478 | H12: 10.32608696 | I12: 25.92391304 | J12: 10.10869565 | K12: 25.2173913 | L12: 9.891304348 | M12: 24.40217391 | N12: 9.673913043 | O12: 23.58695652 | P12: 9.402173913 | R12: 1.115217391 | S12: 1.091304348 | T12: 1.065217391 | U12: 1.036956522 | V12: 1.008695652 | W12: 0.9760869565 | X12: 0.9434782609 | Y12: 0.3820662768 | Z12: 0.3844621514 | AA12: 0.387755102 | AB12: 0.3899371069 | AC12: 0.3922413793 | AD12: 0.3964365256 | AE12: 0.3986175115 | AF12: 1 | AG12: 1 | AH12: 1 | AI12: 1 | AJ12: 1 | AK12: 1 | AL12: 1 | AM12: 10.65217391 | AN12: 10.48913043 | AO12: 10.32608696 | AP12: 10.10869565 | AQ12: 9.891304348 | AR12: 9.673913043 | AS12: 9.402173913
B13: 67 | C13: 26.41304348 | D13: 13.9673913 | E13: 25.76086957 | F13: 13.80434783 | G13: =T13*$G$17 -> 25.10869565 | H13: 13.64130435 | I13: 24.40217391 | J13: 13.42391304 | K13: 23.69565217 | L13: 13.20652174 | M13: 22.88043478 | N13: 12.93478261 | O13: 22.06521739 | P13: 12.66304348 | R13: 1.056521739 | S13: 1.030434783 | T13: 1.004347826 | U13: 0.9760869565 | V13: 0.947826087 | W13: 0.9152173913 | X13: 0.8826086957 | Y13: 0.5288065844 | Z13: 0.5358649789 | AA13: 0.5432900433 | AB13: 0.5501113586 | AC13: 0.5573394495 | AD13: 0.5653206651 | AE13: 0.5738916256 | AF13: 1 | AG13: 1 | AH13: 1 | AI13: 1 | AJ13: 1 | AK13: 1 | AL13: 1 | AM13: 13.9673913 | AN13: 13.80434783 | AO13: 13.64130435 | AP13: 13.42391304 | AQ13: 13.20652174 | AR13: 12.93478261 | AS13: 12.66304348
B14: 63 | C14: 25.05434783 | D14: 18.5326087 | E14: 24.40217391 | F14: 18.31521739 | G14: 23.75 | H14: 18.09782609 | I14: 22.98913043 | J14: 17.77173913 | K14: 22.17391304 | L14: 17.5 | M14: 21.41304348 | N14: 17.17391304 | O14: 20.59782609 | P14: 16.90217391 | R14: 1.002173913 | S14: 0.9760869565 | T14: 0.95 | U14: 0.9195652174 | V14: 0.8869565217 | W14: 0.8565217391 | X14: 0.8239130435 | Y14: 0.7396963124 | Z14: 0.7505567929 | AA14: 0.76201373 | AB14: 0.7730496454 | AC14: 0.7892156863 | AD14: 0.8020304569 | AE14: 0.8205804749 | AF14: 1 | AG14: 1 | AH14: 1 | AI14: 1 | AJ14: 1 | AK14: 1 | AL14: 1 | AM14: 18.5326087 | AN14: 18.31521739 | AO14: 18.09782609 | AP14: 17.77173913 | AQ14: 17.5 | AR14: 17.17391304 | AS14: 16.90217391
B15: 59 | C15: 23.75 | D15: 22.01086957 | E15: 23.26086957 | F15: 21.52173913 | G15: 22.7173913 | H15: 21.0326087 | I15: 22.01086957 | J15: 20.38043478 | K15: 21.30434783 | L15: 19.72826087 | M15: 20.54347826 | N15: 18.9673913 | O15: 19.72826087 | P15: 18.20652174 | R15: 0.95 | S15: 0.9304347826 | T15: 0.9086956522 | U15: 0.8804347826 | V15: 0.852173913 | W15: 0.8217391304 | X15: 0.7891304348 | Y15: 0.9267734554 | Z15: 0.9252336449 | AA15: 0.9258373206 | AB15: 0.9259259259 | AC15: 0.9260204082 | AD15: 0.9232804233 | AE15: 0.9228650138 | AF15: 1 | AG15: 1 | AH15: 1 | AI15: 1 | AJ15: 1 | AK15: 1 | AL15: 1 | AM15: 22.01086957 | AN15: 21.52173913 | AO15: 21.0326087 | AP15: 20.38043478 | AQ15: 19.72826087 | AR15: 18.9673913 | AS15: 18.20652174
A16: 80 | B16: 71 | C16: 27.82608696 | D16: 14.34782609 | E16: 27.17391304 | F16: 14.07608696 | G16: 26.52173913 | H16: 13.80434783 | I16: 25.86956522 | J16: 13.5326087 | K16: 25.2173913 | L16: 13.26086957 | M16: 24.34782609 | N16: 12.88043478 | O16: 23.47826087 | P16: 12.5 | R16: 1.113043478 | S16: 1.086956522 | T16: 1.060869565 | U16: 1.034782609 | V16: 1.008695652 | W16: 0.9739130435 | X16: 0.9391304348 | Y16: 0.515625 | Z16: 0.518 | AA16: 0.5204918033 | AB16: 0.5231092437 | AC16: 0.525862069 | AD16: 0.5290178571 | AE16: 0.5324074074 | AF16: 1 | AG16: 1 | AH16: 1 | AI16: 1 | AJ16: 1 | AK16: 1 | AL16: 1 | AM16: 14.34782609 | AN16: 14.07608696 | AO16: 13.80434783 | AP16: 13.5326087 | AQ16: 13.26086957 | AR16: 12.88043478 | AS16: 12.5
B17: 67 | C17: 26.30434783 | D17: 17.2826087 | E17: 25.65217391 | F17: 17.01086957 | G17: 25 | H17: 16.73913043 | I17: 24.34782609 | J17: 16.4673913 | K17: 23.69565217 | L17: 16.19565217 | M17: 22.82608696 | N17: 15.81521739 | O17: 21.95652174 | P17: 15.43478261 | R17: 1.052173913 | S17: 1.026086957 | T17: 1 | U17: 0.9739130435 | V17: 0.947826087 | W17: 0.9130434783 | X17: 0.8782608696 | Y17: 0.6570247934 | Z17: 0.6631355932 | AA17: 0.6695652174 | AB17: 0.6763392857 | AC17: 0.6834862385 | AD17: 0.6928571429 | AE17: 0.702970297 | AF17: 1 | AG17: 1 | AH17: 1 | AI17: 1 | AJ17: 1 | AK17: 1 | AL17: 1 | AM17: 17.2826087 | AN17: 17.01086957 | AO17: 16.73913043 | AP17: 16.4673913 | AQ17: 16.19565217 | AR17: 15.81521739 | AS17: 15.43478261
B18: 63 | C18: 25 | D18: 20 | E18: 24.40217391 | F18: 19.7826087 | G18: =T18*$G$17 -> 23.80434783 | H18: 19.56521739 | I18: 23.04347826 | J18: 19.23913043 | K18: 22.2826087 | L18: 18.91304348 | M18: 21.52173913 | N18: 18.58695652 | O18: 20.76086957 | P18: 18.26086957 | R18: 1 | S18: 0.9760869565 | T18: 0.952173913 | U18: 0.9217391304 | V18: 0.8913043478 | W18: 0.8608695652 | X18: 0.8304347826 | Y18: 0.8 | Z18: 0.8106904232 | AA18: 0.8219178082 | AB18: 0.8349056604 | AC18: 0.8487804878 | AD18: 0.8636363636 | AE18: 0.8795811518 | AF18: 1 | AG18: 1 | AH18: 1 | AI18: 1 | AJ18: 1 | AK18: 1 | AL18: 1 | AM18: 20 | AN18: 19.7826087 | AO18: 19.56521739 | AP18: 19.23913043 | AQ18: 18.91304348 | AR18: 18.58695652 | AS18: 18.26086957
B19: 59 | C19: 24.02173913 | D19: 22.2826087 | E19: 23.36956522 | F19: 21.68478261 | G19: =T19*$G$17 -> 22.7173913 | H19: 21.08695652 | I19: 22.01086957 | J19: 20.43478261 | K19: 21.30434783 | L19: 19.7826087 | M19: 20.48913043 | N19: 19.02173913 | O19: 19.67391304 | P19: 18.26086957 | R19: 0.9608695652 | S19: 0.9347826087 | T19: 0.9086956522 | U19: 0.8804347826 | V19: 0.852173913 | W19: 0.8195652174 | X19: 0.7869565217 | Y19: 0.92760181 | Z19: 0.9279069767 | AA19: 0.9282296651 | AB19: 0.9283950617 | AC19: 0.9285714286 | AD19: 0.9283819629 | AE19: 0.9281767956 | AF19: 1 | AG19: 1 | AH19: 1 | AI19: 1 | AJ19: 1 | AK19: 1 | AL19: 1 | AM19: 22.2826087 | AN19: 21.68478261 | AO19: 21.08695652 | AP19: 20.43478261 | AQ19: 19.7826087 | AR19: 19.02173913 | AS19: 18.26086957

Sheet 14AJM_30 (hidden)
A2: 14AJM_30
A3: Evaporator Air Flow | C3: Condenser Entering Air Temperature ˚F
A4: 800 | B4: CFM | C4: 85 | E4: 90 | G4: 95 | I4: 100 | K4: 105 | M4: 110 | O4: 115
A5: Evap. Air °F DB | B5: EWB† ˚F | C5: Capacity Mbtuh | E5: Capacity Mbtuh | G5: Capacity Mbtuh | I5: Capacity Mbtuh | K5: Capacity Mbtuh | M5: Capacity Mbtuh | O5: Capacity Mbtuh
C6: Total | D6: Sens. | E6: Total | F6: Sens. | G6: Total | H6: Sens. | I6: Total | J6: Sens. | K6: Total | L6: Sens. | M6: Total | N6: Sens. | O6: Total | P6: Sens.
R7: Total Factors | Y7: Sens. % | AF7: IDB Adj | AM7: Sens Calc
A8: 72 | B8: 71 | C8: =R8*$G$17 -> 31.1 | D8: =IF(AM8>C8,C8,AM8) -> 9.3 | E8: =S8*$G$17 -> 30.4 | F8: =IF(AN8>E8,E8,AN8) -> 9.15 | G8: =T8*$G$17 -> 29.7 | H8: =IF(AO8>G8,G8,AO8) -> 9 | I8: =U8*$G$17 -> 28.9 | J8: =IF(AP8>I8,I8,AP8) -> 8.8 | K8: =V8*$G$17 -> 28.1 | L8: =IF(AQ8>K8,K8,AQ8) -> 8.6 | M8: =W8*$G$17 -> 27.2 | N8: =IF(AR8>M8,M8,AR8) -> 8.4 | O8: =X8*$G$17 -> 26.3 | P8: =IF(AS8>O8,O8,AS8) -> 8.2 | R8: 1.122743682 | S8: 1.097472924 | T8: 1.072202166 | U8: 1.0433213 | V8: 1.014440433 | W8: 0.9819494585 | X8: 0.9494584838 | Y8: 0.2990353698 | Z8: 0.3009868421 | AA8: 0.303030303 | AB8: 0.3044982699 | AC8: 0.3060498221 | AD8: 0.3088235294 | AE8: 0.3117870722 | AF8: 1 | AG8: 1 | AH8: 1 | AI8: 1 | AJ8: 1 | AK8: 1 | AL8: 1 | AM8: =Y8*C8*AF8 -> 9.3 | AN8: =Z8*E8*AG8 -> 9.15 | AO8: =AA8*G8*AH8 -> 9 | AP8: =AB8*I8*AI8 -> 8.8 | AQ8: =AC8*K8*AJ8 -> 8.6 | AR8: =AD8*M8*AK8 -> 8.4 | AS8: =AE8*O8*AL8 -> 8.2
B9: 67 | C9: =R9*$G$17 -> 29.2 | D9: 12.9 | E9: =S9*$G$17 -> 28.45 | F9: =IF(AN9>E9,E9,AN9) -> 12.75 | G9: =T9*$G$17 -> 27.7 | H9: =IF(AO9>G9,G9,AO9) -> 12.6 | I9: =U9*$G$17 -> 26.9 | J9: =IF(AP9>I9,I9,AP9) -> 12.4 | K9: =V9*$G$17 -> 26.1 | L9: =IF(AQ9>K9,K9,AQ9) -> 12.2 | M9: =W9*$G$17 -> 25.15 | N9: =IF(AR9>M9,M9,AR9) -> 11.95 | O9: =X9*$G$17 -> 24.2 | P9: =IF(AS9>O9,O9,AS9) -> 11.7 | R9: 1.054151625 | S9: 1.027075812 | T9: 1 | U9: 0.9711191336 | V9: 0.9422382671 | W9: 0.9079422383 | X9: 0.8736462094 | Y9: 0.4417808219 | Z9: 0.4481546573 | AA9: 0.4548736462 | AB9: 0.4609665428 | AC9: 0.4674329502 | AD9: 0.4751491054 | AE9: 0.4834710744 | AF9: 1 | AG9: 1 | AH9: 1 | AI9: 1 | AJ9: 1 | AK9: 1 | AL9: 1 | AM9: =Y9*C9*AF9 -> 12.9 | AN9: =Z9*E9*AG9 -> 12.75 | AO9: =AA9*G9*AH9 -> 12.6 | AP9: =AB9*I9*AI9 -> 12.4 | AQ9: =AC9*K9*AJ9 -> 12.2 | AR9: =AD9*M9*AK9 -> 11.95 | AS9: =AE9*O9*AL9 -> 11.7
B10: 63 | C10: 27.5 | D10: 16.2 | E10: 26.75 | F10: 16.05 | G10: 26 | H10: 15.9 | I10: 25.2 | J10: 15.7 | K10: 24.4 | L10: 15.5 | M10: 23.55 | N10: 15.3 | O10: 22.7 | P10: 15.1 | R10: 0.9927797834 | S10: 0.9657039711 | T10: 0.9386281588 | U10: 0.9097472924 | V10: 0.880866426 | W10: 0.8501805054 | X10: 0.8194945848 | Y10: 0.5890909091 | Z10: 0.6 | AA10: 0.6115384615 | AB10: 0.623015873 | AC10: 0.6352459016 | AD10: 0.6496815287 | AE10: 0.6651982379 | AF10: 1 | AG10: 1 | AH10: 1 | AI10: 1 | AJ10: 1 | AK10: 1 | AL10: 1 | AM10: 16.2 | AN10: 16.05 | AO10: 15.9 | AP10: 15.7 | AQ10: 15.5 | AR10: 15.3 | AS10: 15.1
B11: 59 | C11: 26.2 | D11: 21.3 | E11: 25.55 | F11: 20.75 | G11: 24.9 | H11: 20.2 | I11: 24.1 | J11: 19.55 | K11: 23.3 | L11: 18.9 | M11: 22.45 | N11: 18.2 | O11: 21.6 | P11: 17.5 | R11: 0.9458483755 | S11: 0.9223826715 | T11: 0.8989169675 | U11: 0.8700361011 | V11: 0.8411552347 | W11: 0.8104693141 | X11: 0.7797833935 | Y11: 0.8129770992 | Z11: 0.8121330724 | AA11: 0.8112449799 | AB11: 0.8112033195 | AC11: 0.8111587983 | AD11: 0.8106904232 | AE11: 0.8101851852 | AF11: 1 | AG11: 1 | AH11: 1 | AI11: 1 | AJ11: 1 | AK11: 1 | AL11: 1 | AM11: 21.3 | AN11: 20.75 | AO11: 20.2 | AP11: 19.55 | AQ11: 18.9 | AR11: 18.2 | AS11: 17.5
A12: 76 | B12: 71 | C12: 31.1 | D12: 11.35 | E12: 30.4 | F12: 11.15 | G12: 29.65 | H12: 10.95 | I12: 28.9 | J12: 10.7 | K12: 28.1 | L12: 10.45 | M12: 27.25 | N12: 10.2 | O12: 26.35 | P12: 9.95 | R12: 1.122743682 | S12: 1.097472924 | T12: 1.070397112 | U12: 1.0433213 | V12: 1.014440433 | W12: 0.9837545126 | X12: 0.9512635379 | Y12: 0.3649517685 | Z12: 0.3667763158 | AA12: 0.3693086003 | AB12: 0.3702422145 | AC12: 0.371886121 | AD12: 0.3743119266 | AE12: 0.3776091082 | AF12: 1 | AG12: 1 | AH12: 1 | AI12: 1 | AJ12: 1 | AK12: 1 | AL12: 1 | AM12: 11.35 | AN12: 11.15 | AO12: 10.95 | AP12: 10.7 | AQ12: 10.45 | AR12: 10.2 | AS12: 9.95
B13: 67 | C13: 29.1 | D13: 14.95 | E13: 28.35 | F13: 14.75 | G13: =T13*$G$17 -> 27.65 | H13: 14.55 | I13: 26.85 | J13: 14.35 | K13: 26.1 | L13: 14.1 | M13: 25.25 | N13: 13.85 | O13: 24.4 | P13: 13.55 | R13: 1.050541516 | S13: 1.023465704 | T13: 0.9981949458 | U13: 0.9693140794 | V13: 0.9422382671 | W13: 0.9115523466 | X13: 0.880866426 | Y13: 0.5137457045 | Z13: 0.5202821869 | AA13: 0.5262206148 | AB13: 0.5344506518 | AC13: 0.5402298851 | AD13: 0.5485148515 | AE13: 0.5553278689 | AF13: 1 | AG13: 1 | AH13: 1 | AI13: 1 | AJ13: 1 | AK13: 1 | AL13: 1 | AM13: 14.95 | AN13: 14.75 | AO13: 14.55 | AP13: 14.35 | AQ13: 14.1 | AR13: 13.85 | AS13: 13.55
B14: 63 | C14: 27.4 | D14: 19.95 | E14: 26.7 | F14: 19.7 | G14: 25.95 | H14: 19.45 | I14: 25.2 | J14: 19.2 | K14: 24.45 | L14: 18.95 | M14: 23.55 | N14: 18.55 | O14: 22.65 | P14: 18.2 | R14: 0.9891696751 | S14: 0.963898917 | T14: 0.9368231047 | U14: 0.9097472924 | V14: 0.8826714801 | W14: 0.8501805054 | X14: 0.8176895307 | Y14: 0.7281021898 | Z14: 0.7378277154 | AA14: 0.7495183044 | AB14: 0.7619047619 | AC14: 0.7750511247 | AD14: 0.7876857749 | AE14: 0.8035320088 | AF14: 1 | AG14: 1 | AH14: 1 | AI14: 1 | AJ14: 1 | AK14: 1 | AL14: 1 | AM14: 19.95 | AN14: 19.7 | AO14: 19.45 | AP14: 19.2 | AQ14: 18.95 | AR14: 18.55 | AS14: 18.2
B15: 59 | C15: 26.3 | D15: 24.15 | E15: 25.6 | F15: 23.45 | G15: 24.85 | H15: 22.8 | I15: 24.05 | J15: 22.05 | K15: 23.25 | L15: 21.3 | M15: 22.35 | N15: 20.5 | O15: 21.5 | P15: 19.75 | R15: 0.9494584838 | S15: 0.9241877256 | T15: 0.8971119134 | U15: 0.8682310469 | V15: 0.8393501805 | W15: 0.8068592058 | X15: 0.7761732852 | Y15: 0.9182509506 | Z15: 0.916015625 | AA15: 0.9175050302 | AB15: 0.9168399168 | AC15: 0.9161290323 | AD15: 0.9172259508 | AE15: 0.9186046512 | AF15: 1 | AG15: 1 | AH15: 1 | AI15: 1 | AJ15: 1 | AK15: 1 | AL15: 1 | AM15: 24.15 | AN15: 23.45 | AO15: 22.8 | AP15: 22.05 | AQ15: 21.3 | AR15: 20.5 | AS15: 19.75
A16: 80 | B16: 71 | C16: 31.1 | D16: 15.5 | E16: 30.35 | F16: 15.2 | G16: 29.6 | H16: 14.9 | I16: 28.8 | J16: 14.55 | K16: 28 | L16: 14.2 | M16: 27.2 | N16: 13.85 | O16: 26.4 | P16: 13.5 | R16: 1.122743682 | S16: 1.09566787 | T16: 1.068592058 | U16: 1.039711191 | V16: 1.010830325 | W16: 0.9819494585 | X16: 0.9530685921 | Y16: 0.498392283 | Z16: 0.5008237232 | AA16: 0.5033783784 | AB16: 0.5052083333 | AC16: 0.5071428571 | AD16: 0.5091911765 | AE16: 0.5113636364 | AF16: 1 | AG16: 1 | AH16: 1 | AI16: 1 | AJ16: 1 | AK16: 1 | AL16: 1 | AM16: 15.5 | AN16: 15.2 | AO16: 14.9 | AP16: 14.55 | AQ16: 14.2 | AR16: 13.85 | AS16: 13.5
B17: 67 | C17: 29 | D17: 18.6 | E17: 28.35 | F17: 18.35 | G17: 27.7 | H17: 18.1 | I17: 26.9 | J17: 17.75 | K17: 26.1 | L17: 17.4 | M17: 25.2 | N17: 17 | O17: 24.3 | P17: 16.6 | R17: 1.046931408 | S17: 1.023465704 | T17: 1 | U17: 0.9711191336 | V17: 0.9422382671 | W17: 0.9097472924 | X17: 0.8772563177 | Y17: 0.6413793103 | Z17: 0.6472663139 | AA17: 0.6534296029 | AB17: 0.6598513011 | AC17: 0.6666666667 | AD17: 0.6746031746 | AE17: 0.683127572 | AF17: 1 | AG17: 1 | AH17: 1 | AI17: 1 | AJ17: 1 | AK17: 1 | AL17: 1 | AM17: 18.6 | AN17: 18.35 | AO17: 18.1 | AP17: 17.75 | AQ17: 17.4 | AR17: 17 | AS17: 16.6
B18: 63 | C18: 27.4 | D18: 21.6 | E18: 26.65 | F18: 21.3 | G18: =T18*$G$17 -> 25.9 | H18: 21 | I18: 25.15 | J18: 20.7 | K18: 24.4 | L18: 20.4 | M18: 23.55 | N18: 20 | O18: 22.7 | P18: 19.6 | R18: 0.9891696751 | S18: 0.9620938628 | T18: 0.9350180505 | U18: 0.9079422383 | V18: 0.880866426 | W18: 0.8501805054 | X18: 0.8194945848 | Y18: 0.7883211679 | Z18: 0.799249531 | AA18: 0.8108108108 | AB18: 0.8230616302 | AC18: 0.8360655738 | AD18: 0.8492569002 | AE18: 0.8634361233 | AF18: 1 | AG18: 1 | AH18: 1 | AI18: 1 | AJ18: 1 | AK18: 1 | AL18: 1 | AM18: 21.6 | AN18: 21.3 | AO18: 21 | AP18: 20.7 | AQ18: 20.4 | AR18: 20 | AS18: 19.6
B19: 59 | C19: 26.3 | D19: 24.2 | E19: 25.55 | F19: 23.5 | G19: =T19*$G$17 -> 24.8 | H19: 22.8 | I19: 24.05 | J19: 22.1 | K19: 23.3 | L19: 21.4 | M19: 22.4 | N19: 20.6 | O19: 21.5 | P19: 19.8 | R19: 0.9494584838 | S19: 0.9223826715 | T19: 0.8953068592 | U19: 0.8682310469 | V19: 0.8411552347 | W19: 0.8086642599 | X19: 0.7761732852 | Y19: 0.9201520913 | Z19: 0.9197651663 | AA19: 0.9193548387 | AB19: 0.9189189189 | AC19: 0.9184549356 | AD19: 0.9196428571 | AE19: 0.9209302326 | AF19: 1 | AG19: 1 | AH19: 1 | AI19: 1 | AJ19: 1 | AK19: 1 | AL19: 1 | AM19: 24.2 | AN19: 23.5 | AO19: 22.8 | AP19: 22.1 | AQ19: 21.4 | AR19: 20.6 | AS19: 19.8

Sheet 14AJM_36 (hidden)
A2: 14AJM_36
A3: Evaporator Air Flow | C3: Condenser Entering Air Temperature ˚F
A4: 1000 | B4: CFM | C4: 85 | E4: 90 | G4: 95 | I4: 100 | K4: 105 | M4: 110 | O4: 115
A5: Evap. Air °F DB | B5: EWB† ˚F | C5: Capacity Mbtuh | E5: Capacity Mbtuh | G5: Capacity Mbtuh | I5: Capacity Mbtuh | K5: Capacity Mbtuh | M5: Capacity Mbtuh | O5: Capacity Mbtuh
C6: Total | D6: Sens. | E6: Total | F6: Sens. | G6: Total | H6: Sens. | I6: Total | J6: Sens. | K6: Total | L6: Sens. | M6: Total | N6: Sens. | O6: Total | P6: Sens.
R7: Total Factors | Y7: Sens. % | AF7: IDB Adj | AM7: Sens Calc
A8: 72 | B8: 71 | C8: =R8*$G$17 -> 35.5 | D8: =IF(AM8>C8,C8,AM8) -> 13.9 | E8: =S8*$G$17 -> 34.65 | F8: =IF(AN8>E8,E8,AN8) -> 13.5 | G8: =T8*$G$17 -> 33.8 | H8: =IF(AO8>G8,G8,AO8) -> 13.1 | I8: =U8*$G$17 -> 32.95 | J8: =IF(AP8>I8,I8,AP8) -> 12.5 | K8: =V8*$G$17 -> 32.1 | L8: =IF(AQ8>K8,K8,AQ8) -> 11.9 | M8: =W8*$G$17 -> 31.2 | N8: =IF(AR8>M8,M8,AR8) -> 11.15 | O8: =X8*$G$17 -> 30.3 | P8: =IF(AS8>O8,O8,AS8) -> 10.4 | R8: 1.059701493 | S8: 1.034328358 | T8: 1.008955224 | U8: 0.9835820896 | V8: 0.9582089552 | W8: 0.9313432836 | X8: 0.9044776119 | Y8: 0.3915492958 | Z8: 0.3896103896 | AA8: 0.3875739645 | AB8: 0.3793626707 | AC8: 0.3707165109 | AD8: 0.3573717949 | AE8: 0.3432343234 | AF8: 1 | AG8: 1 | AH8: 1 | AI8: 1 | AJ8: 1 | AK8: 1 | AL8: 1 | AM8: =Y8*C8*AF8 -> 13.9 | AN8: =Z8*E8*AG8 -> 13.5 | AO8: =AA8*G8*AH8 -> 13.1 | AP8: =AB8*I8*AI8 -> 12.5 | AQ8: =AC8*K8*AJ8 -> 11.9 | AR8: =AD8*M8*AK8 -> 11.15 | AS8: =AE8*O8*AL8 -> 10.4
B9: 67 | C9: =R9*$G$17 -> 33.1 | D9: 17.7 | E9: =S9*$G$17 -> 32.25 | F9: =IF(AN9>E9,E9,AN9) -> 17.3 | G9: =T9*$G$17 -> 31.4 | H9: =IF(AO9>G9,G9,AO9) -> 16.9 | I9: =U9*$G$17 -> 30.5 | J9: =IF(AP9>I9,I9,AP9) -> 16.3 | K9: =V9*$G$17 -> 29.6 | L9: =IF(AQ9>K9,K9,AQ9) -> 15.7 | M9: =W9*$G$17 -> 28.75 | N9: =IF(AR9>M9,M9,AR9) -> 14.95 | O9: =X9*$G$17 -> 27.9 | P9: =IF(AS9>O9,O9,AS9) -> 14.2 | R9: 0.9880597015 | S9: 0.9626865672 | T9: 0.9373134328 | U9: 0.9104477612 | V9: 0.8835820896 | W9: 0.8582089552 | X9: 0.8328358209 | Y9: 0.5347432024 | Z9: 0.5364341085 | AA9: 0.5382165605 | AB9: 0.5344262295 | AC9: 0.5304054054 | AD9: 0.52 | AE9: 0.5089605735 | AF9: 1 | AG9: 1 | AH9: 1 | AI9: 1 | AJ9: 1 | AK9: 1 | AL9: 1 | AM9: =Y9*C9*AF9 -> 17.7 | AN9: =Z9*E9*AG9 -> 17.3 | AO9: =AA9*G9*AH9 -> 16.9 | AP9: =AB9*I9*AI9 -> 16.3 | AQ9: =AC9*K9*AJ9 -> 15.7 | AR9: =AD9*M9*AK9 -> 14.95 | AS9: =AE9*O9*AL9 -> 14.2
B10: 63 | C10: 30.9 | D10: 20.6 | E10: 30.3 | F10: 20.35 | G10: 29.7 | H10: 20.1 | I10: 29.7 | J10: 20.1 | K10: 29.7 | L10: 20.1 | M10: 29 | N10: 19.45 | O10: 28.3 | P10: 18.8 | R10: 0.9223880597 | S10: 0.9044776119 | T10: 0.8865671642 | U10: 0.8865671642 | V10: 0.8865671642 | W10: 0.8656716418 | X10: 0.8447761194 | Y10: 0.6666666667 | Z10: 0.6716171617 | AA10: 0.6767676768 | AB10: 0.6767676768 | AC10: 0.6767676768 | AD10: 0.6706896552 | AE10: 0.6643109541 | AF10: 1 | AG10: 1 | AH10: 1 | AI10: 1 | AJ10: 1 | AK10: 1 | AL10: 1 | AM10: 20.6 | AN10: 20.35 | AO10: 20.1 | AP10: 20.1 | AQ10: 20.1 | AR10: 19.45 | AS10: 18.8
B11: 59 | C11: 29 | D11: 25.2 | E11: 28.75 | F11: 25.1 | G11: 28.5 | H11: 25 | I11: 28.25 | J11: 24.8 | K11: 28 | L11: 24.6 | M11: 27.1 | N11: 23.8 | O11: 26.2 | P11: 23 | R11: 0.8656716418 | S11: 0.8582089552 | T11: 0.8507462687 | U11: 0.8432835821 | V11: 0.8358208955 | W11: 0.8089552239 | X11: 0.7820895522 | Y11: 0.8689655172 | Z11: 0.8730434783 | AA11: 0.8771929825 | AB11: 0.8778761062 | AC11: 0.8785714286 | AD11: 0.8782287823 | AE11: 0.8778625954 | AF11: 1 | AG11: 1 | AH11: 1 | AI11: 1 | AJ11: 1 | AK11: 1 | AL11: 1 | AM11: 25.2 | AN11: 25.1 | AO11: 25 | AP11: 24.8 | AQ11: 24.6 | AR11: 23.8 | AS11: 23
A12: 76 | B12: 71 | C12: 36.6 | D12: 16.75 | E12: 35.75 | F12: 16.3 | G12: 34.9 | H12: 15.85 | I12: 34 | J12: 15.2 | K12: 33.15 | L12: 14.55 | M12: 33.25 | N12: 14.1 | O12: 33.4 | P12: 13.65 | R12: 1.092537313 | S12: 1.067164179 | T12: 1.041791045 | U12: 1.014925373 | V12: 0.9895522388 | W12: 0.9925373134 | X12: 0.9970149254 | Y12: 0.4576502732 | Z12: 0.4559440559 | AA12: 0.4541547278 | AB12: 0.4470588235 | AC12: 0.4389140271 | AD12: 0.4240601504 | AE12: 0.4086826347 | AF12: 1 | AG12: 1 | AH12: 1 | AI12: 1 | AJ12: 1 | AK12: 1 | AL12: 1 | AM12: 16.75 | AN12: 16.3 | AO12: 15.85 | AP12: 15.2 | AQ12: 14.55 | AR12: 14.1 | AS12: 13.65
B13: 67 | C13: 34.05 | D13: 20.75 | E13: 33.5 | F13: 20.45 | G13: =T13*$G$17 -> 33 | H13: 20.2 | I13: 32.8 | J13: 19.95 | K13: 32.65 | L13: 19.7 | M13: 31.7 | N13: 18.8 | O13: 30.75 | P13: 17.9 | R13: 1.01641791 | S13: 1 | T13: 0.9850746269 | U13: 0.9791044776 | V13: 0.9746268657 | W13: 0.9462686567 | X13: 0.9179104478 | Y13: 0.6093979442 | Z13: 0.6104477612 | AA13: 0.6121212121 | AB13: 0.6082317073 | AC13: 0.6033690658 | AD13: 0.5930599369 | AE13: 0.5821138211 | AF13: 1 | AG13: 1 | AH13: 1 | AI13: 1 | AJ13: 1 | AK13: 1 | AL13: 1 | AM13: 20.75 | AN13: 20.45 | AO13: 20.2 | AP13: 19.95 | AQ13: 19.7 | AR13: 18.8 | AS13: 17.9
B14: 63 | C14: 30.9 | D14: 24.85 | E14: 30.45 | F14: 24.65 | G14: 30.05 | H14: 24.45 | I14: 29.95 | J14: 24.45 | K14: 29.9 | L14: 24.4 | M14: 29.05 | N14: 23.55 | O14: 28.2 | P14: 22.65 | R14: 0.9223880597 | S14: 0.9089552239 | T14: 0.8970149254 | U14: 0.8940298507 | V14: 0.8925373134 | W14: 0.8671641791 | X14: 0.8417910448 | Y14: 0.8042071197 | Z14: 0.8095238095 | AA14: 0.8136439268 | AB14: 0.816360601 | AC14: 0.8160535117 | AD14: 0.8106712565 | AE14: 0.8031914894 | AF14: 1 | AG14: 1 | AH14: 1 | AI14: 1 | AJ14: 1 | AK14: 1 | AL14: 1 | AM14: 24.85 | AN14: 24.65 | AO14: 24.45 | AP14: 24.45 | AQ14: 24.4 | AR14: 23.55 | AS14: 22.65
B15: 59 | C15: 30.75 | D15: 29.9 | E15: 30.3 | F15: 29.55 | G15: 29.85 | H15: 29.2 | I15: 29 | J15: 28.35 | K15: 28.1 | L15: 27.5 | M15: 27.15 | N15: 26.55 | O15: 26.15 | P15: 25.55 | R15: 0.9179104478 | S15: 0.9044776119 | T15: 0.8910447761 | U15: 0.8656716418 | V15: 0.8388059701 | W15: 0.8104477612 | X15: 0.7805970149 | Y15: 0.9723577236 | Z15: 0.9752475248 | AA15: 0.9782244556 | AB15: 0.9775862069 | AC15: 0.9786476868 | AD15: 0.9779005525 | AE15: 0.9770554493 | AF15: 1 | AG15: 1 | AH15: 1 | AI15: 1 | AJ15: 1 | AK15: 1 | AL15: 1 | AM15: 29.9 | AN15: 29.55 | AO15: 29.2 | AP15: 28.35 | AQ15: 27.5 | AR15: 26.55 | AS15: 25.55
A16: 80 | B16: 71 | C16: 35.4 | D16: 20.9 | E16: 34.6 | F16: 20.35 | G16: 33.8 | H16: 19.8 | I16: 34 | J16: 19.65 | K16: 34.2 | L16: 19.5 | M16: 33.8 | N16: 18.8 | O16: 33.4 | P16: 18.1 | R16: 1.056716418 | S16: 1.032835821 | T16: 1.008955224 | U16: 1.014925373 | V16: 1.020895522 | W16: 1.008955224 | X16: 0.9970149254 | Y16: 0.5903954802 | Z16: 0.588150289 | AA16: 0.5857988166 | AB16: 0.5779411765 | AC16: 0.5701754386 | AD16: 0.5562130178 | AE16: 0.5419161677 | AF16: 1 | AG16: 1 | AH16: 1 | AI16: 1 | AJ16: 1 | AK16: 1 | AL16: 1 | AM16: 20.9 | AN16: 20.35 | AO16: 19.8 | AP16: 19.65 | AQ16: 19.5 | AR16: 18.8 | AS16: 18.1
B17: 67 | C17: 33.8 | D17: 24.8 | E17: 33.65 | F17: 24.75 | G17: 33.5 | H17: 24.7 | I17: 33.05 | J17: 24.25 | K17: 32.6 | L17: 23.8 | M17: 31.65 | N17: 22.8 | O17: 30.7 | P17: 21.8 | R17: 1.008955224 | S17: 1.004477612 | T17: 1 | U17: 0.9865671642 | V17: 0.9731343284 | W17: 0.9447761194 | X17: 0.9164179104 | Y17: 0.7337278107 | Z17: 0.73551263 | AA17: 0.7373134328 | AB17: 0.7337367625 | AC17: 0.7300613497 | AD17: 0.7203791469 | AE17: 0.7100977199 | AF17: 1 | AG17: 1 | AH17: 1 | AI17: 1 | AJ17: 1 | AK17: 1 | AL17: 1 | AM17: 24.8 | AN17: 24.75 | AO17: 24.7 | AP17: 24.25 | AQ17: 23.8 | AR17: 22.8 | AS17: 21.8
B18: 63 | C18: 33.9 | D18: 29.3 | E18: 33 | F18: 28.7 | G18: =T18*$G$17 -> 32.1 | H18: 28.1 | I18: 31.15 | J18: 27.3 | K18: 30.2 | L18: 26.5 | M18: 29.2 | N18: 25.45 | O18: 28.2 | P18: 24.4 | R18: 1.011940299 | S18: 0.9850746269 | T18: 0.9582089552 | U18: 0.9298507463 | V18: 0.9014925373 | W18: 0.871641791 | X18: 0.8417910448 | Y18: 0.8643067847 | Z18: 0.8696969697 | AA18: 0.8753894081 | AB18: 0.8764044944 | AC18: 0.8774834437 | AD18: 0.8715753425 | AE18: 0.865248227 | AF18: 1 | AG18: 1 | AH18: 1 | AI18: 1 | AJ18: 1 | AK18: 1 | AL18: 1 | AM18: 29.3 | AN18: 28.7 | AO18: 28.1 | AP18: 27.3 | AQ18: 26.5 | AR18: 25.45 | AS18: 24.4
B19: 59 | C19: 31.8 | D19: 31.1 | E19: 30.9 | F19: 30.35 | G19: =T19*$G$17 -> 30 | H19: 29.6 | I19: 29.05 | J19: 28.65 | K19: 28.1 | L19: 27.7 | M19: 27.1 | N19: 26.7 | O19: 26.1 | P19: 25.7 | R19: 0.9492537313 | S19: 0.9223880597 | T19: 0.8955223881 | U19: 0.8671641791 | V19: 0.8388059701 | W19: 0.8089552239 | X19: 0.7791044776 | Y19: 0.9779874214 | Z19: 0.9822006472 | AA19: 0.9866666667 | AB19: 0.9862306368 | AC19: 0.9857651246 | AD19: 0.9852398524 | AE19: 0.9846743295 | AF19: 1 | AG19: 1 | AH19: 1 | AI19: 1 | AJ19: 1 | AK19: 1 | AL19: 1 | AM19: 31.1 | AN19: 30.35 | AO19: 29.6 | AP19: 28.65 | AQ19: 27.7 | AR19: 26.7 | AS19: 25.7

Sheet 14AJM_42 (hidden)
A2: 14AJM_42
A3: Evaporator Air Flow | C3: Condenser Entering Air Temperature ˚F
A4: 1125 | B4: CFM | C4: 85 | E4: 90 | G4: 95 | I4: 100 | K4: 105 | M4: 110 | O4: 115
A5: Evap. Air °F DB | B5: EWB† ˚F | C5: Capacity Mbtuh | E5: Capacity Mbtuh | G5: Capacity Mbtuh | I5: Capacity Mbtuh | K5: Capacity Mbtuh | M5: Capacity Mbtuh | O5: Capacity Mbtuh
C6: Total | D6: Sens. | E6: Total | F6: Sens. | G6: Total | H6: Sens. | I6: Total | J6: Sens. | K6: Total | L6: Sens. | M6: Total | N6: Sens. | O6: Total | P6: Sens.
R7: Total Factors | Y7: Sens. % | AF7: IDB Adj | AM7: Sens Calc
A8: 72 | B8: 71 | C8: =R8*$G$17 -> 0 | D8: =IF(AM8>C8,C8,AM8) -> 0 | E8: =S8*$G$17 -> 0 | F8: =IF(AN8>E8,E8,AN8) -> 0 | G8: =T8*$G$17 -> 0 | H8: =IF(AO8>G8,G8,AO8) -> 0 | I8: =U8*$G$17 -> 0 | J8: =IF(AP8>I8,I8,AP8) -> 0 | K8: =V8*$G$17 -> 0 | L8: =IF(AQ8>K8,K8,AQ8) -> 0 | M8: =W8*$G$17 -> 0 | N8: =IF(AR8>M8,M8,AR8) -> 0 | O8: =X8*$G$17 -> 0 | P8: =IF(AS8>O8,O8,AS8) -> 0 | R8: 1.020671835 | S8: 0.9974160207 | T8: 0.9741602067 | U8: 0.9483204134 | V8: 0.9224806202 | W8: 0.8940568475 | X8: 0.8656330749 | Y8: 0.3746835443 | Z8: 0.3769430052 | AA8: 0.3793103448 | AB8: 0.3828337875 | AC8: 0.3865546218 | AD8: 0.3901734104 | AE8: 0.3940298507 | AF8: 1 | AG8: 1 | AH8: 1 | AI8: 1 | AJ8: 1 | AK8: 1 | AL8: 1 | AM8: =Y8*C8*AF8 -> 0 | AN8: =Z8*E8*AG8 -> 0 | AO8: =AA8*G8*AH8 -> 0 | AP8: =AB8*I8*AI8 -> 0 | AQ8: =AC8*K8*AJ8 -> 0 | AR8: =AD8*M8*AK8 -> 0 | AS8: =AE8*O8*AL8 -> 0
B9: 67 | C9: =R9*$G$17 -> 0 | D9: 0 | E9: =S9*$G$17 -> 0 | F9: =IF(AN9>E9,E9,AN9) -> 0 | G9: =T9*$G$17 -> 0 | H9: =IF(AO9>G9,G9,AO9) -> 0 | I9: =U9*$G$17 -> 0 | J9: =IF(AP9>I9,I9,AP9) -> 0 | K9: =V9*$G$17 -> 0 | L9: =IF(AQ9>K9,K9,AQ9) -> 0 | M9: =W9*$G$17 -> 0 | N9: =IF(AR9>M9,M9,AR9) -> 0 | O9: =X9*$G$17 -> 0 | P9: =IF(AS9>O9,O9,AS9) -> 0 | R9: 0.9638242894 | S9: 0.9405684755 | T9: 0.9173126615 | U9: 0.8914728682 | V9: 0.8656330749 | W9: 0.838501292 | X9: 0.811369509 | Y9: 0.5147453083 | Z9: 0.5206043956 | AA9: 0.5267605634 | AB9: 0.5347826087 | AC9: 0.5432835821 | AD9: 0.5531587057 | AE9: 0.5636942675 | AF9: 1 | AG9: 1 | AH9: 1 | AI9: 1 | AJ9: 1 | AK9: 1 | AL9: 1 | AM9: =Y9*C9*AF9 -> 0 | AN9: =Z9*E9*AG9 -> 0 | AO9: =AA9*G9*AH9 -> 0 | AP9: =AB9*I9*AI9 -> 0 | AQ9: =AC9*K9*AJ9 -> 0 | AR9: =AD9*M9*AK9 -> 0 | AS9: =AE9*O9*AL9 -> 0
B10: 63 | C10: 0 | D10: 0 | E10: 0 | F10: 0 | G10: 0 | H10: 0 | I10: 0 | J10: 0 | K10: 0 | L10: 0 | M10: 0 | N10: 0 | O10: 0 | P10: 0 | R10: 0.9509043928 | S10: 0.9108527132 | T10: 0.8708010336 | U10: 0.84625323 | V10: 0.8217054264 | W10: 0.7932816537 | X10: 0.7648578811 | Y10: 0.6548913043 | Z10: 0.665248227 | AA10: 0.6765578635 | AB10: 0.6885496183 | AC10: 0.7012578616 | AD10: 0.7166123779 | AE10: 0.7331081081 | AF10: 1 | AG10: 1 | AH10: 1 | AI10: 1 | AJ10: 1 | AK10: 1 | AL10: 1 | AM10: 0 | AN10: 0 | AO10: 0 | AP10: 0 | AQ10: 0 | AR10: 0 | AS10: 0
B11: 59 | C11: 0 | D11: 0 | E11: 0 | F11: 0 | G11: 0 | H11: 0 | I11: 0 | J11: 0 | K11: 0 | L11: 0 | M11: 0 | N11: 0 | O11: 0 | P11: 0 | R11: 0.8863049096 | S11: 0.8695090439 | T11: 0.8527131783 | U11: 0.8514211886 | V11: 0.850129199 | W11: 0.8294573643 | X11: 0.8087855297 | Y11: 0.8658892128 | Z11: 0.8662704309 | AA11: 0.8666666667 | AB11: 0.8664643399 | AC11: 0.8662613982 | AD11: 0.8660436137 | AE11: 0.8658146965 | AF11: 1 | AG11: 1 | AH11: 1 | AI11: 1 | AJ11: 1 | AK11: 1 | AL11: 1 | AM11: 0 | AN11: 0 | AO11: 0 | AP11: 0 | AQ11: 0 | AR11: 0 | AS11: 0
A12: 76 | B12: 71 | C12: 0 | D12: 0 | E12: 0 | F12: 0 | G12: 0 | H12: 0 | I12: 0 | J12: 0 | K12: 0 | L12: 0 | M12: 0 | N12: 0 | O12: 0 | P12: 0 | R12: 1.055555556 | S12: 1.031007752 | T12: 1.006459948 | U12: 0.9793281654 | V12: 0.9521963824 | W12: 0.9237726098 | X12: 0.8953488372 | Y12: 0.4406364749 | Z12: 0.4436090226 | AA12: 0.4454428755 | AB12: 0.4498680739 | AC12: 0.4531886024 | AD12: 0.4573426573 | AE12: 0.4632034632 | AF12: 1 | AG12: 1 | AH12: 1 | AI12: 1 | AJ12: 1 | AK12: 1 | AL12: 1 | AM12: 0 | AN12: 0 | AO12: 0 | AP12: 0 | AQ12: 0 | AR12: 0 | AS12: 0
B13: 67 | C13: 0 | D13: 0 | E13: 0 | F13: 0 | G13: =T13*$G$17 -> 0 | H13: 0 | I13: 0 | J13: 0 | K13: 0 | L13: 0 | M13: 0 | N13: 0 | O13: 0 | P13: 0 | R13: 1.060723514 | S13: 1.028423773 | T13: 0.9948320413 | U13: 0.9612403101 | V13: 0.9289405685 | W13: 0.8927648579 | X13: 0.857881137 | Y13: 0.587088916 | Z13: 0.5929648241 | AA13: 0.6 | AB13: 0.6088709677 | AC13: 0.6161335188 | AD13: 0.6266280753 | AE13: 0.6370481928 | AF13: 1 | AG13: 1 | AH13: 1 | AI13: 1 | AJ13: 1 | AK13: 1 | AL13: 1 | AM13: 0 | AN13: 0 | AO13: 0 | AP13: 0 | AQ13: 0 | AR13: 0 | AS13: 0
B14: 63 | C14: 0 | D14: 0 | E14: 0 | F14: 0 | G14: 0 | H14: 0 | I14: 0 | J14: 0 | K14: 0 | L14: 0 | M14: 0 | N14: 0 | O14: 0 | P14: 0 | R14: 0.9276485788 | S14: 0.9005167959 | T14: 0.8720930233 | U14: 0.8488372093 | V14: 0.8242894057 | W14: 0.7971576227 | X14: 0.7700258398 | Y14: 0.7924791086 | Z14: 0.8020086083 | AA14: 0.8148148148 | AB14: 0.8264840183 | AC14: 0.8401253918 | AD14: 0.8557536467 | AE14: 0.8724832215 | AF14: 1 | AG14: 1 | AH14: 1 | AI14: 1 | AJ14: 1 | AK14: 1 | AL14: 1 | AM14: 0 | AN14: 0 | AO14: 0 | AP14: 0 | AQ14: 0 | AR14: 0 | AS14: 0
B15: 59 | C15: 0 | D15: 0 | E15: 0 | F15: 0 | G15: 0 | H15: 0 | I15: 0 | J15: 0 | K15: 0 | L15: 0 | M15: 0 | N15: 0 | O15: 0 | P15: 0 | R15: 0.9147286822 | S15: 0.9056847545 | T15: 0.8979328165 | U15: 0.8824289406 | V15: 0.8669250646 | W15: 0.8372093023 | X15: 0.8074935401 | Y15: 0.9703389831 | Z15: 0.9714693295 | AA15: 0.9712230216 | AB15: 0.9707174231 | AC15: 0.9701937407 | AD15: 0.9706790123 | AE15: 0.9712 | AF15: 1 | AG15: 1 | AH15: 1 | AI15: 1 | AJ15: 1 | AK15: 1 | AL15: 1 | AM15: 0 | AN15: 0 | AO15: 0 | AP15: 0 | AQ15: 0 | AR15: 0 | AS15: 0
A16: 80 | B16: 71 | C16: 0 | D16: 0 | E16: 0 | F16: 0 | G16: 0 | H16: 0 | I16: 0 | J16: 0 | K16: 0 | L16: 0 | M16: 0 | N16: 0 | O16: 0 | P16: 0 | R16: 1.020671835 | S16: 0.996124031 | T16: 0.9715762274 | U16: 0.9534883721 | V16: 0.9354005168 | W16: 0.9173126615 | X16: 0.8992248062 | Y16: 0.5721518987 | Z16: 0.5745784695 | AA16: 0.5771276596 | AB16: 0.581300813 | AC16: 0.5856353591 | AD16: 0.5901408451 | AE16: 0.5948275862 | AF16: 1 | AG16: 1 | AH16: 1 | AI16: 1 | AJ16: 1 | AK16: 1 | AL16: 1 | AM16: 0 | AN16: 0 | AO16: 0 | AP16: 0 | AQ16: 0 | AR16: 0 | AS16: 0
B17: 67 | C17: 0 | D17: 0 | E17: 0 | F17: 0 | H17: 0 | I17: 0 | J17: 0 | K17: 0 | L17: 0 | M17: 0 | N17: 0 | O17: 0 | P17: 0 | R17: 1.049095607 | S17: 1.024547804 | T17: 1 | U17: 0.9754521964 | V17: 0.9509043928 | W17: 0.9198966408 | X17: 0.8888888889 | Y17: 0.7118226601 | Z17: 0.7187894073 | AA17: 0.7260981912 | AB17: 0.7337748344 | AC17: 0.7418478261 | AD17: 0.7514044944 | AE17: 0.761627907 | AF17: 1 | AG17: 1 | AH17: 1 | AI17: 1 | AJ17: 1 | AK17: 1 | AL17: 1 | AM17: 0 | AN17: 0 | AO17: 0 | AP17: 0 | AQ17: 0 | AR17: 0 | AS17: 0
B18: 63 | C18: 0 | D18: 0 | E18: 0 | F18: 0 | G18: =T18*$G$17 -> 0 | H18: 0 | I18: 0 | J18: 0 | K18: 0 | L18: 0 | M18: 0 | N18: 0 | O18: 0 | P18: 0 | R18: 1.015503876 | S18: 0.988372093 | T18: 0.9612403101 | U18: 0.9328165375 | V18: 0.9043927649 | W18: 0.8746770026 | X18: 0.8449612403 | Y18: 0.8524173028 | Z18: 0.862745098 | AA18: 0.873655914 | AB18: 0.8864265928 | AC18: 0.9 | AD18: 0.9158050222 | AE18: 0.9327217125 | AF18: 1 | AG18: 1 | AH18: 1 | AI18: 1 | AJ18: 1 | AK18: 1 | AL18: 1 | AM18: 0 | AN18: 0 | AO18: 0 | AP18: 0 | AQ18: 0 | AR18: 0 | AS18: 0
B19: 59 | C19: 0 | D19: 0 | E19: 0 | F19: 0 | G19: =T19*$G$17 -> 0 | H19: 0 | I19: 0 | J19: 0 | K19: 0 | L19: 0 | M19: 0 | N19: 0 | O19: 0 | P19: 0 | R19: 0.976744186 | S19: 0.9509043928 | T19: 0.9250645995 | U19: 0.8966408269 | V19: 0.8682170543 | W19: 0.8372093023 | X19: 0.8062015504 | Y19: 0.9735449735 | Z19: 0.9741847826 | AA19: 0.9748603352 | AB19: 0.9740634006 | AC19: 0.9732142857 | AD19: 0.9737654321 | AE19: 0.9743589744 | AF19: 1 | AG19: 1 | AH19: 1 | AI19: 1 | AJ19: 1 | AK19: 1 | AL19: 1 | AM19: 0 | AN19: 0 | AO19: 0 | AP19: 0 | AQ19: 0 | AR19: 0 | AS19: 0

Sheet 14AJM_48 (hidden)
A2: 14AJM_48
A3: Evaporator Air Flow | C3: Condenser Entering Air Temperature ˚F
A4: 1325 | B4: CFM | C4: 85 | E4: 90 | G4: 95 | I4: 100 | K4: 105 | M4: 110 | O4: 115
A5: Evap. Air °F DB | B5: EWB† ˚F | C5: Capacity Mbtuh | E5: Capacity Mbtuh | G5: Capacity Mbtuh | I5: Capacity Mbtuh | K5: Capacity Mbtuh | M5: Capacity Mbtuh | O5: Capacity Mbtuh
C6: Total | D6: Sens. | E6: Total | F6: Sens. | G6: Total | H6: Sens. | I6: Total | J6: Sens. | K6: Total | L6: Sens. | M6: Total | N6: Sens. | O6: Total | P6: Sens.
R7: Total Factors | Y7: Sens. % | AF7: IDB Adj | AM7: Sens Calc
A8: 72 | B8: 71 | C8: =R8*$G$17 -> 0 | D8: =IF(AM8>C8,C8,AM8) -> 0 | E8: =S8*$G$17 -> 0 | F8: =IF(AN8>E8,E8,AN8) -> 0 | G8: =T8*$G$17 -> 0 | H8: =IF(AO8>G8,G8,AO8) -> 0 | I8: =U8*$G$17 -> 0 | J8: =IF(AP8>I8,I8,AP8) -> 0 | K8: =V8*$G$17 -> 0 | L8: =IF(AQ8>K8,K8,AQ8) -> 0 | M8: =W8*$G$17 -> 0 | N8: =IF(AR8>M8,M8,AR8) -> 0 | O8: =X8*$G$17 -> 0 | P8: =IF(AS8>O8,O8,AS8) -> 0 | R8: 1.033195021 | S8: 1.005186722 | T8: 0.9771784232 | U8: 0.9408713693 | V8: 0.9045643154 | W8: 0.8578838174 | X8: 0.8112033195 | Y8: 0.3714859438 | Z8: 0.3725490196 | AA8: 0.3736730361 | AB8: 0.3737596472 | AC8: 0.373853211 | AD8: 0.3712212817 | AE8: 0.368286445 | AF8: 1 | AG8: 1 | AH8: 1 | AI8: 1 | AJ8: 1 | AK8: 1 | AL8: 1 | AM8: =Y8*C8*AF8 -> 0 | AN8: =Z8*E8*AG8 -> 0 | AO8: =AA8*G8*AH8 -> 0 | AP8: =AB8*I8*AI8 -> 0 | AQ8: =AC8*K8*AJ8 -> 0 | AR8: =AD8*M8*AK8 -> 0 | AS8: =AE8*O8*AL8 -> 0
B9: 67 | C9: =R9*$G$17 -> 0 | D9: 0 | E9: =S9*$G$17 -> 0 | F9: =IF(AN9>E9,E9,AN9) -> 0 | G9: =T9*$G$17 -> 0 | H9: =IF(AO9>G9,G9,AO9) -> 0 | I9: =U9*$G$17 -> 0 | J9: =IF(AP9>I9,I9,AP9) -> 0 | K9: =V9*$G$17 -> 0 | L9: =IF(AQ9>K9,K9,AQ9) -> 0 | M9: =W9*$G$17 -> 0 | N9: =IF(AR9>M9,M9,AR9) -> 0 | O9: =X9*$G$17 -> 0 | P9: =IF(AS9>O9,O9,AS9) -> 0 | R9: 0.9626556017 | S9: 0.9356846473 | T9: 0.9087136929 | U9: 0.8713692946 | V9: 0.8340248963 | W9: 0.7883817427 | X9: 0.7427385892 | Y9: 0.4892241379 | Z9: 0.4944567627 | AA9: 0.5 | AB9: 0.5047619048 | AC9: 0.5099502488 | AD9: 0.5157894737 | AE9: 0.5223463687 | AF9: 1 | AG9: 1 | AH9: 1 | AI9: 1 | AJ9: 1 | AK9: 1 | AL9: 1 | AM9: =Y9*C9*AF9 -> 0 | AN9: =Z9*E9*AG9 -> 0 | AO9: =AA9*G9*AH9 -> 0 | AP9: =AB9*I9*AI9 -> 0 | AQ9: =AC9*K9*AJ9 -> 0 | AR9: =AD9*M9*AK9 -> 0 | AS9: =AE9*O9*AL9 -> 0
B10: 63 | C10: 0 | D10: 0 | E10: 0 | F10: 0 | G10: 0 | H10: 0 | I10: 0 | J10: 0 | K10: 0 | L10: 0 | M10: 0 | N10: 0 | O10: 0 | P10: 0 | R10: 0.8423236515 | S10: 0.8122406639 | T10: 0.7821576763 | U10: 0.7417012448 | V10: 0.7012448133 | W10: 0.6504149378 | X10: 0.5995850622 | Y10: 0.5960591133 | Z10: 0.6066411239 | AA10: 0.6180371353 | AB10: 0.6307692308 | AC10: 0.6449704142 | AD10: 0.663476874 | AE10: 0.6851211073 | AF10: 1 | AG10: 1 | AH10: 1 | AI10: 1 | AJ10: 1 | AK10: 1 | AL10: 1 | AM10: 0 | AN10: 0 | AO10: 0 | AP10: 0 | AQ10: 0 | AR10: 0 | AS10: 0
B11: 59 | C11: 0 | D11: 0 | E11: 0 | F11: 0 | G11: 0 | H11: 0 | I11: 0 | J11: 0 | K11: 0 | L11: 0 | M11: 0 | N11: 0 | O11: 0 | P11: 0 | R11: 0.4211618257 | S11: 0.3910788382 | T11: 0.3609958506 | U11: 0.3205394191 | V11: 0.2800829876 | W11: 0.2282157676 | X11: 0.1763485477 | Y11: 0.8472906404 | Z11: 0.8461538462 | AA11: 0.8448275862 | AB11: 0.8446601942 | AC11: 0.8444444444 | AD11: 0.8409090909 | AE11: 0.8352941176 | AF11: 1 | AG11: 1 | AH11: 1 | AI11: 1 | AJ11: 1 | AK11: 1 | AL11: 1 | AM11: 0 | AN11: 0 | AO11: 0 | AP11: 0 | AQ11: 0 | AR11: 0 | AS11: 0
A12: 76 | B12: 71 | C12: 0 | D12: 0 | E12: 0 | F12: 0 | G12: 0 | H12: 0 | I12: 0 | J12: 0 | K12: 0 | L12: 0 | M12: 0 | N12: 0 | O12: 0 | P12: 0 | R12: 1.067427386 | S12: 1.038381743 | T12: 1.0093361 | U12: 0.9719917012 | V12: 0.9346473029 | W12: 0.9139004149 | X12: 0.893153527 | Y12: 0.4382896016 | Z12: 0.4395604396 | AA12: 0.4409044193 | AB12: 0.4407684098 | AC12: 0.4406215316 | AD12: 0.438138479 | AE12: 0.4355400697 | AF12: 1 | AG12: 1 | AH12: 1 | AI12: 1 | AJ12: 1 | AK12: 1 | AL12: 1 | AM12: 0 | AN12: 0 | AO12: 0 | AP12: 0 | AQ12: 0 | AR12: 0 | AS12: 0
B13: 67 | C13: 0 | D13: 0 | E13: 0 | F13: 0 | G13: =T13*$G$17 -> 0 | H13: 0 | I13: 0 | J13: 0 | K13: 0 | L13: 0 | M13: 0 | N13: 0 | O13: 0 | P13: 0 | R13: 1.062240664 | S13: 1.032157676 | T13: 1.001037344 | U13: 0.9616182573 | V13: 0.9211618257 | W13: 0.8703319502 | X13: 0.8195020747 | Y13: 0.5625 | Z13: 0.567839196 | AA13: 0.5740932642 | AB13: 0.5782092772 | AC13: 0.5844594595 | AD13: 0.589988081 | AE13: 0.5962025316 | AF13: 1 | AG13: 1 | AH13: 1 | AI13: 1 | AJ13: 1 | AK13: 1 | AL13: 1 | AM13: 0 | AN13: 0 | AO13: 0 | AP13: 0 | AQ13: 0 | AR13: 0 | AS13: 0
B14: 63 | C14: 0 | D14: 0 | E14: 0 | F14: 0 | G14: 0 | H14: 0 | I14: 0 | J14: 0 | K14: 0 | L14: 0 | M14: 0 | N14: 0 | O14: 0 | P14: 0 | R14: 0.8412863071 | S14: 0.8112033195 | T14: 0.7800829876 | U14: 0.7406639004 | V14: 0.7002074689 | W14: 0.6493775934 | X14: 0.5975103734 | Y14: 0.7361282367 | Z14: 0.7468030691 | AA14: 0.7579787234 | AB14: 0.7703081232 | AC14: 0.7866666667 | AD14: 0.803514377 | AE14: 0.8263888889 | AF14: 1 | AG14: 1 | AH14: 1 | AI14: 1 | AJ14: 1 | AK14: 1 | AL14: 1 | AM14: 0 | AN14: 0 | AO14: 0 | AP14: 0 | AQ14: 0 | AR14: 0 | AS14: 0
B15: 59 | C15: 0 | D15: 0 | E15: 0 | F15: 0 | G15: 0 | H15: 0 | I15: 0 | J15: 0 | K15: 0 | L15: 0 | M15: 0 | N15: 0 | O15: 0 | P15: 0 | R15: 0.4211618257 | S15: 0.3900414938 | T15: 0.3589211618 | U15: 0.3184647303 | V15: 0.2780082988 | W15: 0.2271784232 | X15: 0.1773858921 | Y15: 0.9581280788 | Z15: 0.9574468085 | AA15: 0.9595375723 | AB15: 0.9576547231 | AC15: 0.9589552239 | AD15: 0.9589041096 | AE15: 0.9532163743 | AF15: 1 | AG15: 1 | AH15: 1 | AI15: 1 | AJ15: 1 | AK15: 1 | AL15: 1 | AM15: 0 | AN15: 0 | AO15: 0 | AP15: 0 | AQ15: 0 | AR15: 0 | AS15: 0
A16: 80 | B16: 71 | C16: 0 | D16: 0 | E16: 0 | F16: 0 | G16: 0 | H16: 0 | I16: 0 | J16: 0 | K16: 0 | L16: 0 | M16: 0 | N16: 0 | O16: 0 | P16: 0 | R16: 1.031120332 | S16: 1.003112033 | T16: 0.9751037344 | U16: 0.9522821577 | V16: 0.9294605809 | W16: 0.9118257261 | X16: 0.8941908714 | Y16: 0.569416499 | Z16: 0.5708376422 | AA16: 0.5723404255 | AB16: 0.5729847495 | AC16: 0.5736607143 | AD16: 0.5711035267 | AE16: 0.5684454756 | AF16: 1 | AG16: 1 | AH16: 1 | AI16: 1 | AJ16: 1 | AK16: 1 | AL16: 1 | AM16: 0 | AN16: 0 | AO16: 0 | AP16: 0 | AQ16: 0 | AR16: 0 | AS16: 0
B17: 67 | C17: 0 | D17: 0 | E17: 0 | F17: 0 | H17: 0 | I17: 0 | J17: 0 | K17: 0 | L17: 0 | M17: 0 | N17: 0 | O17: 0 | P17: 0 | R17: 1.056016598 | S17: 1.028008299 | T17: 1 | U17: 0.9605809129 | V17: 0.9211618257 | W17: 0.8692946058 | X17: 0.8174273859 | Y17: 0.6876227898 | Z17: 0.6932391524 | AA17: 0.6991701245 | AB17: 0.7041036717 | AC17: 0.7094594595 | AD17: 0.7159904535 | AE17: 0.7233502538 | AF17: 1 | AG17: 1 | AH17: 1 | AI17: 1 | AJ17: 1 | AK17: 1 | AL17: 1 | AM17: 0 | AN17: 0 | AO17: 0 | AP17: 0 | AQ17: 0 | AR17: 0 | AS17: 0
B18: 63 | C18: 0 | D18: 0 | E18: 0 | F18: 0 | G18: =T18*$G$17 -> 0 | H18: 0 | I18: 0 | J18: 0 | K18: 0 | L18: 0 | M18: 0 | N18: 0 | O18: 0 | P18: 0 | R18: 0.8423236515 | S18: 0.8112033195 | T18: 0.7800829876 | U18: 0.7406639004 | V18: 0.7012448133 | W18: 0.6493775934 | X18: 0.5975103734 | Y18: 0.7955665025 | Z18: 0.8069053708 | AA18: 0.8191489362 | AB18: 0.8319327731 | AC18: 0.8461538462 | AD18: 0.8642172524 | AE18: 0.8854166667 | AF18: 1 | AG18: 1 | AH18: 1 | AI18: 1 | AJ18: 1 | AK18: 1 | AL18: 1 | AM18: 0 | AN18: 0 | AO18: 0 | AP18: 0 | AQ18: 0 | AR18: 0 | AS18: 0
B19: 59 | C19: 0 | D19: 0 | E19: 0 | F19: 0 | G19: =T19*$G$17 -> 0 | H19: 0 | I19: 0 | J19: 0 | K19: 0 | L19: 0 | M19: 0 | N19: 0 | O19: 0 | P19: 0 | R19: 0.4190871369 | S19: 0.3890041494 | T19: 0.3589211618 | U19: 0.3184647303 | V19: 0.2780082988 | W19: 0.2271784232 | X19: 0.1763485477 | Y19: 0.9603960396 | Z19: 0.96 | AA19: 0.9595375723 | AB19: 0.9609120521 | AC19: 0.9626865672 | AD19: 0.9589041096 | AE19: 0.9529411765 | AF19: 1 | AG19: 1 | AH19: 1 | AI19: 1 | AJ19: 1 | AK19: 1 | AL19: 1 | AM19: 0 | AN19: 0 | AO19: 0 | AP19: 0 | AQ19: 0 | AR19: 0 | AS19: 0

Sheet 14AJM_49 (hidden)
A2: 14AJM_49
A3: Evaporator Air Flow | C3: Condenser Entering Air Temperature ˚F
A4: 1300 | B4: CFM | C4: 85 | E4: 90 | G4: 95 | I4: 100 | K4: 105 | M4: 110 | O4: 115
A5: Evap. Air °F DB | B5: EWB† ˚F | C5: Capacity Mbtuh | E5: Capacity Mbtuh | G5: Capacity Mbtuh | I5: Capacity Mbtuh | K5: Capacity Mbtuh | M5: Capacity Mbtuh | O5: Capacity Mbtuh
C6: Total | D6: Sens. | E6: Total | F6: Sens. | G6: Total | H6: Sens. | I6: Total | J6: Sens. | K6: Total | L6: Sens. | M6: Total | N6: Sens. | O6: Total | P6: Sens.
R7: Total Factors | Y7: Sens. % | AF7: IDB Adj | AM7: Sens Calc
A8: 72 | B8: 71 | C8: =R8*$G$17 -> 44.4 | D8: =IF(AM8>C8,C8,AM8) -> 16.7 | E8: =S8*$G$17 -> 44.4 | F8: =IF(AN8>E8,E8,AN8) -> 16.7 | G8: =T8*$G$17 -> 44.4 | H8: =IF(AO8>G8,G8,AO8) -> 16.7 | I8: =U8*$G$17 -> 44.4 | J8: =IF(AP8>I8,I8,AP8) -> 16.7 | K8: =V8*$G$17 -> 44.4 | L8: =IF(AQ8>K8,K8,AQ8) -> 16.7 | M8: =W8*$G$17 -> 44.4 | N8: =IF(AR8>M8,M8,AR8) -> 16.7 | O8: =X8*$G$17 -> 44.4 | P8: =IF(AS8>O8,O8,AS8) -> 16.7 | R8: 0.9548387097 | S8: 0.9548387097 | T8: 0.9548387097 | U8: 0.9548387097 | V8: 0.9548387097 | W8: 0.9548387097 | X8: 0.9548387097 | Y8: 0.3761261261 | Z8: 0.3761261261 | AA8: 0.3761261261 | AB8: 0.3761261261 | AC8: 0.3761261261 | AD8: 0.3761261261 | AE8: 0.3761261261 | AF8: 1 | AG8: 1 | AH8: 1 | AI8: 1 | AJ8: 1 | AK8: 1 | AL8: 1 | AM8: =Y8*C8*AF8 -> 16.7 | AN8: =Z8*E8*AG8 -> 16.7 | AO8: =AA8*G8*AH8 -> 16.7 | AP8: =AB8*I8*AI8 -> 16.7 | AQ8: =AC8*K8*AJ8 -> 16.7 | AR8: =AD8*M8*AK8 -> 16.7 | AS8: =AE8*O8*AL8 -> 16.7
B9: 67 | C9: =R9*$G$17 -> 41.3 | D9: 21.7 | E9: =S9*$G$17 -> 41.3 | F9: =IF(AN9>E9,E9,AN9) -> 21.7 | G9: =T9*$G$17 -> 41.3 | H9: =IF(AO9>G9,G9,AO9) -> 21.7 | I9: =U9*$G$17 -> 41.3 | J9: =IF(AP9>I9,I9,AP9) -> 21.7 | K9: =V9*$G$17 -> 41.3 | L9: =IF(AQ9>K9,K9,AQ9) -> 21.7 | M9: =W9*$G$17 -> 41.3 | N9: =IF(AR9>M9,M9,AR9) -> 21.7 | O9: =X9*$G$17 -> 41.3 | P9: =IF(AS9>O9,O9,AS9) -> 21.7 | R9: 0.888172043 | S9: 0.888172043 | T9: 0.888172043 | U9: 0.888172043 | V9: 0.888172043 | W9: 0.888172043 | X9: 0.888172043 | Y9: 0.5254237288 | Z9: 0.5254237288 | AA9: 0.5254237288 | AB9: 0.5254237288 | AC9: 0.5254237288 | AD9: 0.5254237288 | AE9: 0.5254237288 | AF9: 1 | AG9: 1 | AH9: 1 | AI9: 1 | AJ9: 1 | AK9: 1 | AL9: 1 | AM9: =Y9*C9*AF9 -> 21.7 | AN9: =Z9*E9*AG9 -> 21.7 | AO9: =AA9*G9*AH9 -> 21.7 | AP9: =AB9*I9*AI9 -> 21.7 | AQ9: =AC9*K9*AJ9 -> 21.7 | AR9: =AD9*M9*AK9 -> 21.7 | AS9: =AE9*O9*AL9 -> 21.7
B10: 63 | C10: 38.6 | D10: 26.5 | E10: 38.6 | F10: 26.5 | G10: 38.6 | H10: 26.5 | I10: 38.6 | J10: 26.5 | K10: 38.6 | L10: 26.5 | M10: 38.6 | N10: 26.5 | O10: 38.6 | P10: 26.5 | R10: 0.8301075269 | S10: 0.8301075269 | T10: 0.8301075269 | U10: 0.8301075269 | V10: 0.8301075269 | W10: 0.8301075269 | X10: 0.8301075269 | Y10: 0.6865284974 | Z10: 0.6865284974 | AA10: 0.6865284974 | AB10: 0.6865284974 | AC10: 0.6865284974 | AD10: 0.6865284974 | AE10: 0.6865284974 | AF10: 1 | AG10: 1 | AH10: 1 | AI10: 1 | AJ10: 1 | AK10: 1 | AL10: 1 | AM10: 26.5 | AN10: 26.5 | AO10: 26.5 | AP10: 26.5 | AQ10: 26.5 | AR10: 26.5 | AS10: 26.5
B11: 59 | C11: 36.5 | D11: 32.3 | E11: 36.5 | F11: 32.3 | G11: 36.5 | H11: 32.3 | I11: 36.5 | J11: 32.3 | K11: 36.5 | L11: 32.3 | M11: 36.5 | N11: 32.3 | O11: 36.5 | P11: 32.3 | R11: 0.7849462366 | S11: 0.7849462366 | T11: 0.7849462366 | U11: 0.7849462366 | V11: 0.7849462366 | W11: 0.7849462366 | X11: 0.7849462366 | Y11: 0.8849315068 | Z11: 0.8849315068 | AA11: 0.8849315068 | AB11: 0.8849315068 | AC11: 0.8849315068 | AD11: 0.8849315068 | AE11: 0.8849315068 | AF11: 1 | AG11: 1 | AH11: 1 | AI11: 1 | AJ11: 1 | AK11: 1 | AL11: 1 | AM11: 32.3 | AN11: 32.3 | AO11: 32.3 | AP11: 32.3 | AQ11: 32.3 | AR11: 32.3 | AS11: 32.3
A12: 76 | B12: 71 | C12: 45.85 | D12: 20.25 | E12: 45.85 | F12: 20.25 | G12: 45.85 | H12: 20.25 | I12: 45.85 | J12: 20.25 | K12: 45.85 | L12: 20.25 | M12: 45.85 | N12: 20.25 | O12: 45.85 | P12: 20.25 | R12: 0.9860215054 | S12: 0.9860215054 | T12: 0.9860215054 | U12: 0.9860215054 | V12: 0.9860215054 | W12: 0.9860215054 | X12: 0.9860215054 | Y12: 0.4416575791 | Z12: 0.4416575791 | AA12: 0.4416575791 | AB12: 0.4416575791 | AC12: 0.4416575791 | AD12: 0.4416575791 | AE12: 0.4416575791 | AF12: 1 | AG12: 1 | AH12: 1 | AI12: 1 | AJ12: 1 | AK12: 1 | AL12: 1 | AM12: 20.25 | AN12: 20.25 | AO12: 20.25 | AP12: 20.25 | AQ12: 20.25 | AR12: 20.25 | AS12: 20.25
B13: 67 | C13: 45.05 | D13: 26.95 | E13: 45.05 | F13: 26.95 | G13: =T13*$G$17 -> 45.05 | H13: 26.95 | I13: 45.05 | J13: 26.95 | K13: 45.05 | L13: 26.95 | M13: 45.05 | N13: 26.95 | O13: 45.05 | P13: 26.95 | R13: 0.9688172043 | S13: 0.9688172043 | T13: 0.9688172043 | U13: 0.9688172043 | V13: 0.9688172043 | W13: 0.9688172043 | X13: 0.9688172043 | Y13: 0.5982241953 | Z13: 0.5982241953 | AA13: 0.5982241953 | AB13: 0.5982241953 | AC13: 0.5982241953 | AD13: 0.5982241953 | AE13: 0.5982241953 | AF13: 1 | AG13: 1 | AH13: 1 | AI13: 1 | AJ13: 1 | AK13: 1 | AL13: 1 | AM13: 26.95 | AN13: 26.95 | AO13: 26.95 | AP13: 26.95 | AQ13: 26.95 | AR13: 26.95 | AS13: 26.95
B14: 63 | C14: 38.45 | D14: 31.7 | E14: 38.45 | F14: 31.7 | G14: 38.45 | H14: 31.7 | I14: 38.45 | J14: 31.7 | K14: 38.45 | L14: 31.7 | M14: 38.45 | N14: 31.7 | O14: 38.45 | P14: 31.7 | R14: 0.8268817204 | S14: 0.8268817204 | T14: 0.8268817204 | U14: 0.8268817204 | V14: 0.8268817204 | W14: 0.8268817204 | X14: 0.8268817204 | Y14: 0.8244473342 | Z14: 0.8244473342 | AA14: 0.8244473342 | AB14: 0.8244473342 | AC14: 0.8244473342 | AD14: 0.8244473342 | AE14: 0.8244473342 | AF14: 1 | AG14: 1 | AH14: 1 | AI14: 1 | AJ14: 1 | AK14: 1 | AL14: 1 | AM14: 31.7 | AN14: 31.7 | AO14: 31.7 | AP14: 31.7 | AQ14: 31.7 | AR14: 31.7 | AS14: 31.7
B15: 59 | C15: 38.6 | D15: 37.95 | E15: 38.6 | F15: 37.95 | G15: 38.6 | H15: 37.95 | I15: 38.6 | J15: 37.95 | K15: 38.6 | L15: 37.95 | M15: 38.6 | N15: 37.95 | O15: 38.6 | P15: 37.95 | R15: 0.8301075269 | S15: 0.8301075269 | T15: 0.8301075269 | U15: 0.8301075269 | V15: 0.8301075269 | W15: 0.8301075269 | X15: 0.8301075269 | Y15: 0.9831606218 | Z15: 0.9831606218 | AA15: 0.9831606218 | AB15: 0.9831606218 | AC15: 0.9831606218 | AD15: 0.9831606218 | AE15: 0.9831606218 | AF15: 1 | AG15: 1 | AH15: 1 | AI15: 1 | AJ15: 1 | AK15: 1 | AL15: 1 | AM15: 37.95 | AN15: 37.95 | AO15: 37.95 | AP15: 37.95 | AQ15: 37.95 | AR15: 37.95 | AS15: 37.95
A16: 80 | B16: 71 | C16: 44.2 | D16: 25.4 | E16: 44.2 | F16: 25.4 | G16: 44.2 | H16: 25.4 | I16: 44.2 | J16: 25.4 | K16: 44.2 | L16: 25.4 | M16: 44.2 | N16: 25.4 | O16: 44.2 | P16: 25.4 | R16: 0.9505376344 | S16: 0.9505376344 | T16: 0.9505376344 | U16: 0.9505376344 | V16: 0.9505376344 | W16: 0.9505376344 | X16: 0.9505376344 | Y16: 0.5746606335 | Z16: 0.5746606335 | AA16: 0.5746606335 | AB16: 0.5746606335 | AC16: 0.5746606335 | AD16: 0.5746606335 | AE16: 0.5746606335 | AF16: 1 | AG16: 1 | AH16: 1 | AI16: 1 | AJ16: 1 | AK16: 1 | AL16: 1 | AM16: 25.4 | AN16: 25.4 | AO16: 25.4 | AP16: 25.4 | AQ16: 25.4 | AR16: 25.4 | AS16: 25.4
B17: 67 | C17: 45.1 | D17: 32.6 | E17: 45.8 | F17: 32.9 | G17: 46.5 | H17: 33.2 | I17: 45.8 | J17: 32.9 | K17: 45.1 | L17: 32.6 | M17: 45.1 | N17: 32.6 | O17: 45.1 | P17: 32.6 | R17: 0.9698924731 | S17: 0.9849462366 | T17: 1 | U17: 0.9849462366 | V17: 0.9698924731 | W17: 0.9698924731 | X17: 0.9698924731 | Y17: 0.7228381375 | Z17: 0.7183406114 | AA17: 0.7139784946 | AB17: 0.7183406114 | AC17: 0.7228381375 | AD17: 0.7228381375 | AE17: 0.7228381375 | AF17: 1 | AG17: 1 | AH17: 1 | AI17: 1 | AJ17: 1 | AK17: 1 | AL17: 1 | AM17: 32.6 | AN17: 32.9 | AO17: 33.2 | AP17: 32.9 | AQ17: 32.6 | AR17: 32.6 | AS17: 32.6
B18: 63 | C18: 42.5 | D18: 37.6 | E18: 42.5 | F18: 37.6 | G18: =T18*$G$17 -> 42.5 | H18: 37.6 | I18: 42.5 | J18: 37.6 | K18: 42.5 | L18: 37.6 | M18: 42.5 | N18: 37.6 | O18: 42.5 | P18: 37.6 | R18: 0.9139784946 | S18: 0.9139784946 | T18: 0.9139784946 | U18: 0.9139784946 | V18: 0.9139784946 | W18: 0.9139784946 | X18: 0.9139784946 | Y18: 0.8847058824 | Z18: 0.8847058824 | AA18: 0.8847058824 | AB18: 0.8847058824 | AC18: 0.8847058824 | AD18: 0.8847058824 | AE18: 0.8847058824 | AF18: 1 | AG18: 1 | AH18: 1 | AI18: 1 | AJ18: 1 | AK18: 1 | AL18: 1 | AM18: 37.6 | AN18: 37.6 | AO18: 37.6 | AP18: 37.6 | AQ18: 37.6 | AR18: 37.6 | AS18: 37.6
B19: 59 | C19: 39.6 | D19: 39.3 | E19: 39.6 | F19: 39.3 | G19: =T19*$G$17 -> 39.6 | H19: 39.3 | I19: 39.6 | J19: 39.3 | K19: 39.6 | L19: 39.3 | M19: 39.6 | N19: 39.3 | O19: 39.6 | P19: 39.3 | R19: 0.8516129032 | S19: 0.8516129032 | T19: 0.8516129032 | U19: 0.8516129032 | V19: 0.8516129032 | W19: 0.8516129032 | X19: 0.8516129032 | Y19: 0.9924242424 | Z19: 0.9924242424 | AA19: 0.9924242424 | AB19: 0.9924242424 | AC19: 0.9924242424 | AD19: 0.9924242424 | AE19: 0.9924242424 | AF19: 1 | AG19: 1 | AH19: 1 | AI19: 1 | AJ19: 1 | AK19: 1 | AL19: 1 | AM19: 39.3 | AN19: 39.3 | AO19: 39.3 | AP19: 39.3 | AQ19: 39.3 | AR19: 39.3 | AS19: 39.3

Sheet 14AJM_56 (hidden)
A2: 14AJM_56
A3: Evaporator Air Flow | C3: Condenser Entering Air Temperature ˚F
A4: 1500 | B4: CFM | C4: 85 | E4: 90 | G4: 95 | I4: 100 | K4: 105 | M4: 110 | O4: 115
A5: Evap. Air °F DB | B5: EWB† ˚F | C5: Capacity Mbtuh | E5: Capacity Mbtuh | G5: Capacity Mbtuh | I5: Capacity Mbtuh | K5: Capacity Mbtuh | M5: Capacity Mbtuh | O5: Capacity Mbtuh
C6: Total | D6: Sens. | E6: Total | F6: Sens. | G6: Total | H6: Sens. | I6: Total | J6: Sens. | K6: Total | L6: Sens. | M6: Total | N6: Sens. | O6: Total | P6: Sens.
R7: Total Factors | Y7: Sens. % | AF7: IDB Adj | AM7: Sens Calc
A8: 72 | B8: 71 | C8: =R8*$G$17 -> 50.6 | D8: =IF(AM8>C8,C8,AM8) -> 17.8 | E8: =S8*$G$17 -> 50.6 | F8: =IF(AN8>E8,E8,AN8) -> 17.8 | G8: =T8*$G$17 -> 50.6 | H8: =IF(AO8>G8,G8,AO8) -> 17.8 | I8: =U8*$G$17 -> 50.6 | J8: =IF(AP8>I8,I8,AP8) -> 17.8 | K8: =V8*$G$17 -> 50.6 | L8: =IF(AQ8>K8,K8,AQ8) -> 17.8 | M8: =W8*$G$17 -> 50.6 | N8: =IF(AR8>M8,M8,AR8) -> 17.8 | O8: =X8*$G$17 -> 50.6 | P8: =IF(AS8>O8,O8,AS8) -> 17.8 | R8: 0.9638095238 | S8: 0.9638095238 | T8: 0.9638095238 | U8: 0.9638095238 | V8: 0.9638095238 | W8: 0.9638095238 | X8: 0.9638095238 | Y8: 0.3517786561 | Z8: 0.3517786561 | AA8: 0.3517786561 | AB8: 0.3517786561 | AC8: 0.3517786561 | AD8: 0.3517786561 | AE8: 0.3517786561 | AF8: 1 | AG8: 1 | AH8: 1 | AI8: 1 | AJ8: 1 | AK8: 1 | AL8: 1 | AM8: =Y8*C8*AF8 -> 17.8 | AN8: =Z8*E8*AG8 -> 17.8 | AO8: =AA8*G8*AH8 -> 17.8 | AP8: =AB8*I8*AI8 -> 17.8 | AQ8: =AC8*K8*AJ8 -> 17.8 | AR8: =AD8*M8*AK8 -> 17.8 | AS8: =AE8*O8*AL8 -> 17.8
B9: 67 | C9: =R9*$G$17 -> 47.1 | D9: 24 | E9: =S9*$G$17 -> 47.1 | F9: =IF(AN9>E9,E9,AN9) -> 24 | G9: =T9*$G$17 -> 47.1 | H9: =IF(AO9>G9,G9,AO9) -> 24 | I9: =U9*$G$17 -> 47.1 | J9: =IF(AP9>I9,I9,AP9) -> 24 | K9: =V9*$G$17 -> 47.1 | L9: =IF(AQ9>K9,K9,AQ9) -> 24 | M9: =W9*$G$17 -> 47.1 | N9: =IF(AR9>M9,M9,AR9) -> 24 | O9: =X9*$G$17 -> 47.1 | P9: =IF(AS9>O9,O9,AS9) -> 24 | R9: 0.8971428571 | S9: 0.8971428571 | T9: 0.8971428571 | U9: 0.8971428571 | V9: 0.8971428571 | W9: 0.8971428571 | X9: 0.8971428571 | Y9: 0.5095541401 | Z9: 0.5095541401 | AA9: 0.5095541401 | AB9: 0.5095541401 | AC9: 0.5095541401 | AD9: 0.5095541401 | AE9: 0.5095541401 | AF9: 1 | AG9: 1 | AH9: 1 | AI9: 1 | AJ9: 1 | AK9: 1 | AL9: 1 | AM9: =Y9*C9*AF9 -> 24 | AN9: =Z9*E9*AG9 -> 24 | AO9: =AA9*G9*AH9 -> 24 | AP9: =AB9*I9*AI9 -> 24 | AQ9: =AC9*K9*AJ9 -> 24 | AR9: =AD9*M9*AK9 -> 24 | AS9: =AE9*O9*AL9 -> 24
B10: 63 | C10: 43.9 | D10: 29.9 | E10: 43.9 | F10: 29.9 | G10: 43.9 | H10: 29.9 | I10: 43.9 | J10: 29.9 | K10: 43.9 | L10: 29.9 | M10: 43.9 | N10: 29.9 | O10: 43.9 | P10: 29.9 | R10: 0.8361904762 | S10: 0.8361904762 | T10: 0.8361904762 | U10: 0.8361904762 | V10: 0.8361904762 | W10: 0.8361904762 | X10: 0.8361904762 | Y10: 0.6810933941 | Z10: 0.6810933941 | AA10: 0.6810933941 | AB10: 0.6810933941 | AC10: 0.6810933941 | AD10: 0.6810933941 | AE10: 0.6810933941 | AF10: 1 | AG10: 1 | AH10: 1 | AI10: 1 | AJ10: 1 | AK10: 1 | AL10: 1 | AM10: 29.9 | AN10: 29.9 | AO10: 29.9 | AP10: 29.9 | AQ10: 29.9 | AR10: 29.9 | AS10: 29.9
B11: 59 | C11: 41.9 | D11: 37.1 | E11: 41.9 | F11: 37.1 | G11: 41.9 | H11: 37.1 | I11: 41.9 | J11: 37.1 | K11: 41.9 | L11: 37.1 | M11: 41.9 | N11: 37.1 | O11: 41.9 | P11: 37.1 | R11: 0.7980952381 | S11: 0.7980952381 | T11: 0.7980952381 | U11: 0.7980952381 | V11: 0.7980952381 | W11: 0.7980952381 | X11: 0.7980952381 | Y11: 0.8854415274 | Z11: 0.8854415274 | AA11: 0.8854415274 | AB11: 0.8854415274 | AC11: 0.8854415274 | AD11: 0.8854415274 | AE11: 0.8854415274 | AF11: 1 | AG11: 1 | AH11: 1 | AI11: 1 | AJ11: 1 | AK11: 1 | AL11: 1 | AM11: 37.1 | AN11: 37.1 | AO11: 37.1 | AP11: 37.1 | AQ11: 37.1 | AR11: 37.1 | AS11: 37.1
A12: 76 | B12: 71 | C12: 55.7 | D12: 23.25 | E12: 55.7 | F12: 23.25 | G12: 55.7 | H12: 23.25 | I12: 55.7 | J12: 23.25 | K12: 55.7 | L12: 23.25 | M12: 55.7 | N12: 23.25 | O12: 55.7 | P12: 23.25 | R12: 1.060952381 | S12: 1.060952381 | T12: 1.060952381 | U12: 1.060952381 | V12: 1.060952381 | W12: 1.060952381 | X12: 1.060952381 | Y12: 0.4174147217 | Z12: 0.4174147217 | AA12: 0.4174147217 | AB12: 0.4174147217 | AC12: 0.4174147217 | AD12: 0.4174147217 | AE12: 0.4174147217 | AF12: 1 | AG12: 1 | AH12: 1 | AI12: 1 | AJ12: 1 | AK12: 1 | AL12: 1 | AM12: 23.25 | AN12: 23.25 | AO12: 23.25 | AP12: 23.25 | AQ12: 23.25 | AR12: 23.25 | AS12: 23.25
B13: 67 | C13: 52.05 | D13: 30.3 | E13: 52.05 | F13: 30.3 | G13: =T13*$G$17 -> 52.05 | H13: 30.3 | I13: 52.05 | J13: 30.3 | K13: 52.05 | L13: 30.3 | M13: 52.05 | N13: 30.3 | O13: 52.05 | P13: 30.3 | R13: 0.9914285714 | S13: 0.9914285714 | T13: 0.9914285714 | U13: 0.9914285714 | V13: 0.9914285714 | W13: 0.9914285714 | X13: 0.9914285714 | Y13: 0.5821325648 | Z13: 0.5821325648 | AA13: 0.5821325648 | AB13: 0.5821325648 | AC13: 0.5821325648 | AD13: 0.5821325648 | AE13: 0.5821325648 | AF13: 1 | AG13: 1 | AH13: 1 | AI13: 1 | AJ13: 1 | AK13: 1 | AL13: 1 | AM13: 30.3 | AN13: 30.3 | AO13: 30.3 | AP13: 30.3 | AQ13: 30.3 | AR13: 30.3 | AS13: 30.3
B14: 63 | C14: 44.45 | D14: 36.45 | E14: 44.45 | F14: 36.45 | G14: 44.45 | H14: 36.45 | I14: 44.45 | J14: 36.45 | K14: 44.45 | L14: 36.45 | M14: 44.45 | N14: 36.45 | O14: 44.45 | P14: 36.45 | R14: 0.8466666667 | S14: 0.8466666667 | T14: 0.8466666667 | U14: 0.8466666667 | V14: 0.8466666667 | W14: 0.8466666667 | X14: 0.8466666667 | Y14: 0.8200224972 | Z14: 0.8200224972 | AA14: 0.8200224972 | AB14: 0.8200224972 | AC14: 0.8200224972 | AD14: 0.8200224972 | AE14: 0.8200224972 | AF14: 1 | AG14: 1 | AH14: 1 | AI14: 1 | AJ14: 1 | AK14: 1 | AL14: 1 | AM14: 36.45 | AN14: 36.45 | AO14: 36.45 | AP14: 36.45 | AQ14: 36.45 | AR14: 36.45 | AS14: 36.45
B15: 59 | C15: 44.25 | D15: 43.5 | E15: 44.25 | F15: 43.5 | G15: 44.25 | H15: 43.5 | I15: 44.25 | J15: 43.5 | K15: 44.25 | L15: 43.5 | M15: 44.25 | N15: 43.5 | O15: 44.25 | P15: 43.5 | R15: 0.8428571429 | S15: 0.8428571429 | T15: 0.8428571429 | U15: 0.8428571429 | V15: 0.8428571429 | W15: 0.8428571429 | X15: 0.8428571429 | Y15: 0.9830508475 | Z15: 0.9830508475 | AA15: 0.9830508475 | AB15: 0.9830508475 | AC15: 0.9830508475 | AD15: 0.9830508475 | AE15: 0.9830508475 | AF15: 1 | AG15: 1 | AH15: 1 | AI15: 1 | AJ15: 1 | AK15: 1 | AL15: 1 | AM15: 43.5 | AN15: 43.5 | AO15: 43.5 | AP15: 43.5 | AQ15: 43.5 | AR15: 43.5 | AS15: 43.5
A16: 80 | B16: 71 | C16: 55.5 | D16: 30.6 | E16: 55.5 | F16: 30.6 | G16: 55.5 | H16: 30.6 | I16: 55.5 | J16: 30.6 | K16: 55.5 | L16: 30.6 | M16: 55.5 | N16: 30.6 | O16: 55.5 | P16: 30.6 | R16: 1.057142857 | S16: 1.057142857 | T16: 1.057142857 | U16: 1.057142857 | V16: 1.057142857 | W16: 1.057142857 | X16: 1.057142857 | Y16: 0.5513513514 | Z16: 0.5513513514 | AA16: 0.5513513514 | AB16: 0.5513513514 | AC16: 0.5513513514 | AD16: 0.5513513514 | AE16: 0.5513513514 | AF16: 1 | AG16: 1 | AH16: 1 | AI16: 1 | AJ16: 1 | AK16: 1 | AL16: 1 | AM16: 30.6 | AN16: 30.6 | AO16: 30.6 | AP16: 30.6 | AQ16: 30.6 | AR16: 30.6 | AS16: 30.6
B17: 67 | C17: 52 | D17: 36.8 | E17: 52.25 | F17: 37.125 | G17: 52.5 | H17: 37.45 | I17: 52.25 | J17: 37.125 | K17: 52 | L17: 36.8 | M17: 52 | N17: 36.8 | O17: 52 | P17: 36.8 | R17: 0.9904761905 | S17: 0.9952380952 | T17: 1 | U17: 0.9952380952 | V17: 0.9904761905 | W17: 0.9904761905 | X17: 0.9904761905 | Y17: 0.7076923077 | Z17: 0.7105263158 | AA17: 0.7133333333 | AB17: 0.7105263158 | AC17: 0.7076923077 | AD17: 0.7076923077 | AE17: 0.7076923077 | AF17: 1 | AG17: 1 | AH17: 1 | AI17: 1 | AJ17: 1 | AK17: 1 | AL17: 1 | AM17: 36.8 | AN17: 37.125 | AO17: 37.45 | AP17: 37.125 | AQ17: 36.8 | AR17: 36.8 | AS17: 36.8
B18: 63 | C18: 48.4 | D18: 42.6 | E18: 48.4 | F18: 42.6 | G18: =T18*$G$17 -> 48.4 | H18: 42.6 | I18: 48.4 | J18: 42.6 | K18: 48.4 | L18: 42.6 | M18: 48.4 | N18: 42.6 | O18: 48.4 | P18: 42.6 | R18: 0.9219047619 | S18: 0.9219047619 | T18: 0.9219047619 | U18: 0.9219047619 | V18: 0.9219047619 | W18: 0.9219047619 | X18: 0.9219047619 | Y18: 0.8801652893 | Z18: 0.8801652893 | AA18: 0.8801652893 | AB18: 0.8801652893 | AC18: 0.8801652893 | AD18: 0.8801652893 | AE18: 0.8801652893 | AF18: 1 | AG18: 1 | AH18: 1 | AI18: 1 | AJ18: 1 | AK18: 1 | AL18: 1 | AM18: 42.6 | AN18: 42.6 | AO18: 42.6 | AP18: 42.6 | AQ18: 42.6 | AR18: 42.6 | AS18: 42.6
B19: 59 | C19: 45.1 | D19: 44.8 | E19: 45.1 | F19: 44.8 | G19: =T19*$G$17 -> 45.1 | H19: 44.8 | I19: 45.1 | J19: 44.8 | K19: 45.1 | L19: 44.8 | M19: 45.1 | N19: 44.8 | O19: 45.1 | P19: 44.8 | R19: 0.859047619 | S19: 0.859047619 | T19: 0.859047619 | U19: 0.859047619 | V19: 0.859047619 | W19: 0.859047619 | X19: 0.859047619 | Y19: 0.9933481153 | Z19: 0.9933481153 | AA19: 0.9933481153 | AB19: 0.9933481153 | AC19: 0.9933481153 | AD19: 0.9933481153 | AE19: 0.9933481153 | AF19: 1 | AG19: 1 | AH19: 1 | AI19: 1 | AJ19: 1 | AK19: 1 | AL19: 1 | AM19: 44.8 | AN19: 44.8 | AO19: 44.8 | AP19: 44.8 | AQ19: 44.8 | AR19: 44.8 | AS19: 44.8

Sheet 14AJM_60 (hidden)
A2: 14AJM_60
A3: Evaporator Air Flow | C3: Condenser Entering Air Temperature ˚F
A4: 1600 | B4: CFM | C4: 85 | E4: 90 | G4: 95 | I4: 100 | K4: 105 | M4: 110 | O4: 115
A5: Evap. Air °F DB | B5: EWB† ˚F | C5: Capacity Mbtuh | E5: Capacity Mbtuh | G5: Capacity Mbtuh | I5: Capacity Mbtuh | K5: Capacity Mbtuh | M5: Capacity Mbtuh | O5: Capacity Mbtuh
C6: Total | D6: Sens. | E6: Total | F6: Sens. | G6: Total | H6: Sens. | I6: Total | J6: Sens. | K6: Total | L6: Sens. | M6: Total | N6: Sens. | O6: Total | P6: Sens.
R7: Total Factors | Y7: Sens. % | AF7: IDB Adj | AM7: Sens Calc
A8: 72 | B8: 71 | C8: =R8*$G$17 -> 63.9 | D8: =IF(AM8>C8,C8,AM8) -> 20.7 | E8: =S8*$G$17 -> 60.05 | F8: =IF(AN8>E8,E8,AN8) -> 19.6 | G8: =T8*$G$17 -> 56.2 | H8: =IF(AO8>G8,G8,AO8) -> 18.5 | I8: =U8*$G$17 -> 54.85 | J8: =IF(AP8>I8,I8,AP8) -> 18.1 | K8: =V8*$G$17 -> 53.5 | L8: =IF(AQ8>K8,K8,AQ8) -> 17.7 | M8: =W8*$G$17 -> 51.75 | N8: =IF(AR8>M8,M8,AR8) -> 17.1 | O8: =X8*$G$17 -> 50 | P8: =IF(AS8>O8,O8,AS8) -> 16.5 | R8: 1.088586031 | S8: 1.022998296 | T8: 0.9574105622 | U8: 0.9344122658 | V8: 0.9114139693 | W8: 0.8816013629 | X8: 0.8517887564 | Y8: 0.323943662 | Z8: 0.3263946711 | AA8: 0.3291814947 | AB8: 0.3299908842 | AC8: 0.3308411215 | AD8: 0.3304347826 | AE8: 0.33 | AF8: 1 | AG8: 1 | AH8: 1 | AI8: 1 | AJ8: 1 | AK8: 1 | AL8: 1 | AM8: =Y8*C8*AF8 -> 20.7 | AN8: =Z8*E8*AG8 -> 19.6 | AO8: =AA8*G8*AH8 -> 18.5 | AP8: =AB8*I8*AI8 -> 18.1 | AQ8: =AC8*K8*AJ8 -> 17.7 | AR8: =AD8*M8*AK8 -> 17.1 | AS8: =AE8*O8*AL8 -> 16.5
B9: 67 | C9: =R9*$G$17 -> 60.9 | D9: 27.9 | E9: =S9*$G$17 -> 59.75 | F9: =IF(AN9>E9,E9,AN9) -> 27.7 | G9: =T9*$G$17 -> 58.6 | H9: =IF(AO9>G9,G9,AO9) -> 27.5 | I9: =U9*$G$17 -> 57.1 | J9: =IF(AP9>I9,I9,AP9) -> 27.05 | K9: =V9*$G$17 -> 55.6 | L9: =IF(AQ9>K9,K9,AQ9) -> 26.6 | M9: =W9*$G$17 -> 53.7 | N9: =IF(AR9>M9,M9,AR9) -> 25.9 | O9: =X9*$G$17 -> 51.8 | P9: =IF(AS9>O9,O9,AS9) -> 25.2 | R9: 1.037478705 | S9: 1.017887564 | T9: 0.9982964225 | U9: 0.9727427598 | V9: 0.9471890971 | W9: 0.9148211244 | X9: 0.8824531516 | Y9: 0.4581280788 | Z9: 0.4635983264 | AA9: 0.4692832765 | AB9: 0.4737302977 | AC9: 0.4784172662 | AD9: 0.4823091248 | AE9: 0.4864864865 | AF9: 1 | AG9: 1 | AH9: 1 | AI9: 1 | AJ9: 1 | AK9: 1 | AL9: 1 | AM9: =Y9*C9*AF9 -> 27.9 | AN9: =Z9*E9*AG9 -> 27.7 | AO9: =AA9*G9*AH9 -> 27.5 | AP9: =AB9*I9*AI9 -> 27.05 | AQ9: =AC9*K9*AJ9 -> 26.6 | AR9: =AD9*M9*AK9 -> 25.9 | AS9: =AE9*O9*AL9 -> 25.2
B10: 63 | C10: 57.9 | D10: 34.2 | E10: 56.85 | F10: 34.05 | G10: 55.8 | H10: 33.9 | I10: 54.3 | J10: 33.45 | K10: 52.8 | L10: 33 | M10: 50.85 | N10: 32.3 | O10: 48.9 | P10: 31.6 | R10: 0.9863713799 | S10: 0.968483816 | T10: 0.9505962521 | U10: 0.9250425894 | V10: 0.8994889267 | W10: 0.8662691652 | X10: 0.8330494037 | Y10: 0.5906735751 | Z10: 0.598944591 | AA10: 0.6075268817 | AB10: 0.6160220994 | AC10: 0.625 | AD10: 0.6352015733 | AE10: 0.6462167689 | AF10: 1 | AG10: 1 | AH10: 1 | AI10: 1 | AJ10: 1 | AK10: 1 | AL10: 1 | AM10: 34.2 | AN10: 34.05 | AO10: 33.9 | AP10: 33.45 | AQ10: 33 | AR10: 32.3 | AS10: 31.6
B11: 59 | C11: 54.8 | D11: 43.8 | E11: 53.75 | F11: 43.55 | G11: 52.7 | H11: 43.3 | I11: 50.85 | J11: 42.4 | K11: 49 | L11: 41.5 | M11: 47.45 | N11: 40.65 | O11: 45.9 | P11: 39.8 | R11: 0.933560477 | S11: 0.9156729131 | T11: 0.8977853492 | U11: 0.8662691652 | V11: 0.8347529813 | W11: 0.8083475298 | X11: 0.7819420784 | Y11: 0.799270073 | Z11: 0.8102325581 | AA11: 0.8216318786 | AB11: 0.8338249754 | AC11: 0.8469387755 | AD11: 0.856691254 | AE11: 0.8671023965 | AF11: 1 | AG11: 1 | AH11: 1 | AI11: 1 | AJ11: 1 | AK11: 1 | AL11: 1 | AM11: 43.8 | AN11: 43.55 | AO11: 43.3 | AP11: 42.4 | AQ11: 41.5 | AR11: 40.65 | AS11: 39.8
A12: 76 | B12: 71 | C12: 64.1 | D12: 24.95 | E12: 63.05 | F12: 24.75 | G12: 61.95 | H12: 24.5 | I12: 60.5 | J12: 24 | K12: 59.05 | L12: 23.45 | M12: 57.15 | N12: 22.65 | O12: 55.2 | P12: 21.85 | R12: 1.091993186 | S12: 1.074105622 | T12: 1.055366269 | U12: 1.030664395 | V12: 1.005962521 | W12: 0.9735945486 | X12: 0.9403747871 | Y12: 0.3892355694 | Z12: 0.3925455987 | AA12: 0.395480226 | AB12: 0.3966942149 | AC12: 0.3971210838 | AD12: 0.3963254593 | AE12: 0.3958333333 | AF12: 1 | AG12: 1 | AH12: 1 | AI12: 1 | AJ12: 1 | AK12: 1 | AL12: 1 | AM12: 24.95 | AN12: 24.75 | AO12: 24.5 | AP12: 24 | AQ12: 23.45 | AR12: 22.65 | AS12: 21.85
B13: 67 | C13: 60.9 | D13: 32.35 | E13: 59.9 | F13: 32.1 | G13: =T13*$G$17 -> 58.85 | H13: 31.85 | I13: 57.35 | J13: 31.35 | K13: 55.85 | L13: 30.8 | M13: 53.9 | N13: 29.95 | O13: 51.95 | P13: 29.1 | R13: 1.037478705 | S13: 1.02044293 | T13: 1.002555366 | U13: 0.9770017036 | V13: 0.9514480409 | W13: 0.9182282794 | X13: 0.8850085179 | Y13: 0.5311986864 | Z13: 0.5358931553 | AA13: 0.5412064571 | AB13: 0.5466434176 | AC13: 0.551477171 | AD13: 0.5556586271 | AE13: 0.5601539942 | AF13: 1 | AG13: 1 | AH13: 1 | AI13: 1 | AJ13: 1 | AK13: 1 | AL13: 1 | AM13: 32.35 | AN13: 32.1 | AO13: 31.85 | AP13: 31.35 | AQ13: 30.8 | AR13: 29.95 | AS13: 29.1
B14: 63 | C14: 57.75 | D14: 42.15 | E14: 56.75 | F14: 41.8 | G14: 55.7 | H14: 41.5 | I14: 54.2 | J14: 40.85 | K14: 52.7 | L14: 40.2 | M14: 50.8 | N14: 39.3 | O14: 48.9 | P14: 38.35 | R14: 0.9838160136 | S14: 0.9667802385 | T14: 0.9488926746 | U14: 0.9233390119 | V14: 0.8977853492 | W14: 0.8654173765 | X14: 0.8330494037 | Y14: 0.7298701299 | Z14: 0.7365638767 | AA14: 0.7450628366 | AB14: 0.7536900369 | AC14: 0.7628083491 | AD14: 0.7736220472 | AE14: 0.7842535787 | AF14: 1 | AG14: 1 | AH14: 1 | AI14: 1 | AJ14: 1 | AK14: 1 | AL14: 1 | AM14: 42.15 | AN14: 41.8 | AO14: 41.5 | AP14: 40.85 | AQ14: 40.2 | AR14: 39.3 | AS14: 38.35
B15: 59 | C15: 55 | D15: 49.7 | E15: 53.9 | F15: 49.25 | G15: 52.75 | H15: 48.85 | I15: 51.25 | J15: 48.1 | K15: 49.75 | L15: 47.35 | M15: 47.95 | N15: 46.05 | O15: 46.1 | P15: 44.75 | R15: 0.936967632 | S15: 0.9182282794 | T15: 0.898637138 | U15: 0.8730834753 | V15: 0.8475298126 | W15: 0.8168654174 | X15: 0.7853492334 | Y15: 0.9036363636 | Z15: 0.913729128 | AA15: 0.9260663507 | AB15: 0.9385365854 | AC15: 0.951758794 | AD15: 0.960375391 | AE15: 0.9707158351 | AF15: 1 | AG15: 1 | AH15: 1 | AI15: 1 | AJ15: 1 | AK15: 1 | AL15: 1 | AM15: 49.7 | AN15: 49.25 | AO15: 48.85 | AP15: 48.1 | AQ15: 47.35 | AR15: 46.05 | AS15: 44.75
A16: 80 | B16: 71 | C16: 64.1 | D16: 33.5 | E16: 63 | F16: 33.1 | G16: 61.9 | H16: 32.7 | I16: 60.45 | J16: 32 | K16: 59 | L16: 31.3 | M16: 57.1 | N16: 30.25 | O16: 55.2 | P16: 29.2 | R16: 1.091993186 | S16: 1.073253833 | T16: 1.05451448 | U16: 1.029812606 | V16: 1.005110733 | W16: 0.9727427598 | X16: 0.9403747871 | Y16: 0.5226209048 | Z16: 0.5253968254 | AA16: 0.5282714055 | AB16: 0.52936311 | AC16: 0.5305084746 | AD16: 0.5297723292 | AE16: 0.5289855072 | AF16: 1 | AG16: 1 | AH16: 1 | AI16: 1 | AJ16: 1 | AK16: 1 | AL16: 1 | AM16: 33.5 | AN16: 33.1 | AO16: 32.7 | AP16: 32 | AQ16: 31.3 | AR16: 30.25 | AS16: 29.2
B17: 67 | C17: 60.8 | D17: 39.9 | E17: 59.75 | F17: 39.55 | G17: 58.7 | H17: 39.2 | I17: 57.25 | J17: 38.5 | K17: 55.8 | L17: 37.8 | M17: 53.85 | N17: 36.7 | O17: 51.9 | P17: 35.6 | R17: 1.035775128 | S17: 1.017887564 | T17: 1 | U17: 0.9752981261 | V17: 0.9505962521 | W17: 0.9173764906 | X17: 0.8841567291 | Y17: 0.65625 | Z17: 0.6619246862 | AA17: 0.667802385 | AB17: 0.672489083 | AC17: 0.6774193548 | AD17: 0.6815227484 | AE17: 0.6859344894 | AF17: 1 | AG17: 1 | AH17: 1 | AI17: 1 | AJ17: 1 | AK17: 1 | AL17: 1 | AM17: 39.9 | AN17: 39.55 | AO17: 39.2 | AP17: 38.5 | AQ17: 37.8 | AR17: 36.7 | AS17: 35.6
B18: 63 | C18: 57.8 | D18: 45.6 | E18: 56.7 | F18: 45.2 | G18: =T18*$G$17 -> 55.6 | H18: 44.8 | I18: 54.15 | J18: 44.1 | K18: 52.7 | L18: 43.4 | M18: 50.8 | N18: 42.35 | O18: 48.9 | P18: 41.3 | R18: 0.9846678024 | S18: 0.9659284497 | T18: 0.9471890971 | U18: 0.9224872232 | V18: 0.8977853492 | W18: 0.8654173765 | X18: 0.8330494037 | Y18: 0.7889273356 | Z18: 0.7971781305 | AA18: 0.8057553957 | AB18: 0.8144044321 | AC18: 0.8235294118 | AD18: 0.8336614173 | AE18: 0.8445807771 | AF18: 1 | AG18: 1 | AH18: 1 | AI18: 1 | AJ18: 1 | AK18: 1 | AL18: 1 | AM18: 45.6 | AN18: 45.2 | AO18: 44.8 | AP18: 44.1 | AQ18: 43.4 | AR18: 42.35 | AS18: 41.3
B19: 59 | C19: 54.9 | D19: 49.8 | E19: 53.9 | F19: 49.45 | G19: =T19*$G$17 -> 52.9 | H19: 49.1 | I19: 51.4 | J19: 48.35 | K19: 49.9 | L19: 47.6 | M19: 47.95 | N19: 46.25 | O19: 46 | P19: 44.9 | R19: 0.9352640545 | S19: 0.9182282794 | T19: 0.9011925043 | U19: 0.8756388416 | V19: 0.8500851789 | W19: 0.8168654174 | X19: 0.7836456559 | Y19: 0.9071038251 | Z19: 0.9174397032 | AA19: 0.9281663516 | AB19: 0.9406614786 | AC19: 0.9539078156 | AD19: 0.9645464025 | AE19: 0.9760869565 | AF19: 1 | AG19: 1 | AH19: 1 | AI19: 1 | AJ19: 1 | AK19: 1 | AL19: 1 | AM19: 49.8 | AN19: 49.45 | AO19: 49.1 | AP19: 48.35 | AQ19: 47.6 | AR19: 46.25 | AS19: 44.9

Sheet 16AJL_24 (hidden)
A2: 16AJL_24
A3: Evaporator Air Flow | C3: Condenser Entering Air Temperature ˚F
A4: 700 | B4: CFM | C4: 85 | E4: 90 | G4: 95 | I4: 100 | K4: 105 | M4: 110 | O4: 115
A5: Evap. Air °F DB | B5: EWB† ˚F | C5: Capacity Mbtuh | E5: Capacity Mbtuh | G5: Capacity Mbtuh | I5: Capacity Mbtuh | K5: Capacity Mbtuh | M5: Capacity Mbtuh | O5: Capacity Mbtuh
C6: Total | D6: Sens. | E6: Total | F6: Sens. | G6: Total | H6: Sens. | I6: Total | J6: Sens. | K6: Total | L6: Sens. | M6: Total | N6: Sens. | O6: Total | P6: Sens.
R7: Total Factors | Y7: Sens. % | AF7: IDB Adj | AM7: Sens Calc
A8: 72 | B8: 71 | C8: =R8*$G$17 -> 27.9 | D8: =IF(AM8>C8,C8,AM8) -> 8.5 | E8: =S8*$G$17 -> 27.25 | F8: =IF(AN8>E8,E8,AN8) -> 8.35 | G8: =T8*$G$17 -> 26.6 | H8: =IF(AO8>G8,G8,AO8) -> 8.2 | I8: =U8*$G$17 -> 25.85 | J8: =IF(AP8>I8,I8,AP8) -> 8 | K8: =V8*$G$17 -> 25.1 | L8: =IF(AQ8>K8,K8,AQ8) -> 7.8 | M8: =W8*$G$17 -> 24.25 | N8: =IF(AR8>M8,M8,AR8) -> 7.55 | O8: =X8*$G$17 -> 23.4 | P8: =IF(AS8>O8,O8,AS8) -> 7.3 | R8: 1.116 | S8: 1.09 | T8: 1.064 | U8: 1.034 | V8: 1.004 | W8: 0.97 | X8: 0.936 | Y8: 0.3046594982 | Z8: 0.3064220183 | AA8: 0.3082706767 | AB8: 0.3094777563 | AC8: 0.3107569721 | AD8: 0.3113402062 | AE8: 0.311965812 | AF8: 1 | AG8: 1 | AH8: 1 | AI8: 1 | AJ8: 1 | AK8: 1 | AL8: 1 | AM8: =Y8*C8*AF8 -> 8.5 | AN8: =Z8*E8*AG8 -> 8.35 | AO8: =AA8*G8*AH8 -> 8.2 | AP8: =AB8*I8*AI8 -> 8 | AQ8: =AC8*K8*AJ8 -> 7.8 | AR8: =AD8*M8*AK8 -> 7.55 | AS8: =AE8*O8*AL8 -> 7.3
B9: 67 | C9: =R9*$G$17 -> 26.2 | D9: 11.7 | E9: =S9*$G$17 -> 25.6 | F9: =IF(AN9>E9,E9,AN9) -> 11.55 | G9: =T9*$G$17 -> 25 | H9: =IF(AO9>G9,G9,AO9) -> 11.4 | I9: =U9*$G$17 -> 24.3 | J9: =IF(AP9>I9,I9,AP9) -> 11.25 | K9: =V9*$G$17 -> 23.6 | L9: =IF(AQ9>K9,K9,AQ9) -> 11.1 | M9: =W9*$G$17 -> 22.75 | N9: =IF(AR9>M9,M9,AR9) -> 10.85 | O9: =X9*$G$17 -> 21.9 | P9: =IF(AS9>O9,O9,AS9) -> 10.6 | R9: 1.048 | S9: 1.024 | T9: 1 | U9: 0.972 | V9: 0.944 | W9: 0.91 | X9: 0.876 | Y9: 0.4465648855 | Z9: 0.451171875 | AA9: 0.456 | AB9: 0.462962963 | AC9: 0.4703389831 | AD9: 0.4769230769 | AE9: 0.4840182648 | AF9: 1 | AG9: 1 | AH9: 1 | AI9: 1 | AJ9: 1 | AK9: 1 | AL9: 1 | AM9: =Y9*C9*AF9 -> 11.7 | AN9: =Z9*E9*AG9 -> 11.55 | AO9: =AA9*G9*AH9 -> 11.4 | AP9: =AB9*I9*AI9 -> 11.25 | AQ9: =AC9*K9*AJ9 -> 11.1 | AR9: =AD9*M9*AK9 -> 10.85 | AS9: =AE9*O9*AL9 -> 10.6
B10: 63 | C10: 24.8 | D10: 14.9 | E10: 24.15 | F10: 14.75 | G10: 23.5 | H10: 14.6 | I10: 22.8 | J10: 14.45 | K10: 22.1 | L10: 14.3 | M10: 21.3 | N10: 14.05 | O10: 20.5 | P10: 13.8 | R10: 0.992 | S10: 0.966 | T10: 0.94 | U10: 0.912 | V10: 0.884 | W10: 0.852 | X10: 0.82 | Y10: 0.6008064516 | Z10: 0.6107660455 | AA10: 0.6212765957 | AB10: 0.6337719298 | AC10: 0.6470588235 | AD10: 0.6596244131 | AE10: 0.6731707317 | AF10: 1 | AG10: 1 | AH10: 1 | AI10: 1 | AJ10: 1 | AK10: 1 | AL10: 1 | AM10: 14.9 | AN10: 14.75 | AO10: 14.6 | AP10: 14.45 | AQ10: 14.3 | AR10: 14.05 | AS10: 13.8
B11: 59 | C11: 21.4 | D11: 18.2 | E11: 21.45 | F11: 18.2 | G11: 21.5 | H11: 18.2 | I11: 21.15 | J11: 17.9 | K11: 20.8 | L11: 17.6 | M11: 20 | N11: 16.95 | O11: 19.2 | P11: 16.3 | R11: 0.856 | S11: 0.858 | T11: 0.86 | U11: 0.846 | V11: 0.832 | W11: 0.8 | X11: 0.768 | Y11: 0.8504672897 | Z11: 0.8484848485 | AA11: 0.8465116279 | AB11: 0.8463356974 | AC11: 0.8461538462 | AD11: 0.8475 | AE11: 0.8489583333 | AF11: 1 | AG11: 1 | AH11: 1 | AI11: 1 | AJ11: 1 | AK11: 1 | AL11: 1 | AM11: 18.2 | AN11: 18.2 | AO11: 18.2 | AP11: 17.9 | AQ11: 17.6 | AR11: 16.95 | AS11: 16.3
A12: 76 | B12: 71 | C12: 27.85 | D12: 10.35 | E12: 27.2 | F12: 10.15 | G12: 26.5 | H12: 9.95 | I12: 25.85 | J12: 9.7 | K12: 25.15 | L12: 9.5 | M12: 24.35 | N12: 9.2 | O12: 23.5 | P12: 8.9 | R12: 1.114 | S12: 1.088 | T12: 1.06 | U12: 1.034 | V12: 1.006 | W12: 0.974 | X12: 0.94 | Y12: 0.3716337522 | Z12: 0.3731617647 | AA12: 0.3754716981 | AB12: 0.3752417795 | AC12: 0.3777335984 | AD12: 0.3778234086 | AE12: 0.3787234043 | AF12: 1 | AG12: 1 | AH12: 1 | AI12: 1 | AJ12: 1 | AK12: 1 | AL12: 1 | AM12: 10.35 | AN12: 10.15 | AO12: 9.95 | AP12: 9.7 | AQ12: 9.5 | AR12: 9.2 | AS12: 8.9
B13: 67 | C13: 26.25 | D13: 13.65 | E13: 25.6 | F13: 13.45 | G13: =T13*$G$17 -> 24.95 | H13: 13.25 | I13: 24.25 | J13: 13 | K13: 23.55 | L13: 12.75 | M13: 22.75 | N13: 12.5 | O13: 22 | P13: 12.25 | R13: 1.05 | S13: 1.024 | T13: 0.998 | U13: 0.97 | V13: 0.942 | W13: 0.91 | X13: 0.88 | Y13: 0.52 | Z13: 0.525390625 | AA13: 0.5310621242 | AB13: 0.5360824742 | AC13: 0.5414012739 | AD13: 0.5494505495 | AE13: 0.5568181818 | AF13: 1 | AG13: 1 | AH13: 1 | AI13: 1 | AJ13: 1 | AK13: 1 | AL13: 1 | AM13: 13.65 | AN13: 13.45 | AO13: 13.25 | AP13: 13 | AQ13: 12.75 | AR13: 12.5 | AS13: 12.25
B14: 63 | C14: 24.75 | D14: 18.3 | E14: 24.1 | F14: 18.1 | G14: 23.45 | H14: 17.85 | I14: 22.8 | J14: 17.6 | K14: 22.1 | L14: 17.35 | M14: 21.35 | N14: 17 | O14: 20.55 | P14: 16.7 | R14: 0.99 | S14: 0.964 | T14: 0.938 | U14: 0.912 | V14: 0.884 | W14: 0.854 | X14: 0.822 | Y14: 0.7393939394 | Z14: 0.7510373444 | AA14: 0.7611940299 | AB14: 0.7719298246 | AC14: 0.7850678733 | AD14: 0.7962529274 | AE14: 0.8126520681 | AF14: 1 | AG14: 1 | AH14: 1 | AI14: 1 | AJ14: 1 | AK14: 1 | AL14: 1 | AM14: 18.3 | AN14: 18.1 | AO14: 17.85 | AP14: 17.6 | AQ14: 17.35 | AR14: 17 | AS14: 16.7
B15: 59 | C15: 22.55 | D15: 21.55 | E15: 22.35 | F15: 21.3 | G15: 22.15 | H15: 21.1 | I15: 21.45 | J15: 20.45 | K15: 20.8 | L15: 19.85 | M15: 20 | N15: 19.05 | O15: 19.2 | P15: 18.3 | R15: 0.902 | S15: 0.894 | T15: 0.886 | U15: 0.858 | V15: 0.832 | W15: 0.8 | X15: 0.768 | Y15: 0.955654102 | Z15: 0.9530201342 | AA15: 0.9525959368 | AB15: 0.9533799534 | AC15: 0.9543269231 | AD15: 0.9525 | AE15: 0.953125 | AF15: 1 | AG15: 1 | AH15: 1 | AI15: 1 | AJ15: 1 | AK15: 1 | AL15: 1 | AM15: 21.55 | AN15: 21.3 | AO15: 21.1 | AP15: 20.45 | AQ15: 19.85 | AR15: 19.05 | AS15: 18.3
A16: 80 | B16: 71 | C16: 27.8 | D16: 14 | E16: 27.15 | F16: 13.7 | G16: 26.5 | H16: 13.4 | I16: 25.8 | J16: 13.1 | K16: 25.1 | L16: 12.8 | M16: 24.35 | N16: 12.45 | O16: 23.6 | P16: 12.1 | R16: 1.112 | S16: 1.086 | T16: 1.06 | U16: 1.032 | V16: 1.004 | W16: 0.974 | X16: 0.944 | Y16: 0.5035971223 | Z16: 0.5046040516 | AA16: 0.5056603774 | AB16: 0.507751938 | AC16: 0.5099601594 | AD16: 0.5112936345 | AE16: 0.5127118644 | AF16: 1 | AG16: 1 | AH16: 1 | AI16: 1 | AJ16: 1 | AK16: 1 | AL16: 1 | AM16: 14 | AN16: 13.7 | AO16: 13.4 | AP16: 13.1 | AQ16: 12.8 | AR16: 12.45 | AS16: 12.1
B17: 67 | C17: 26.2 | D17: 16.9 | E17: 25.6 | F17: 16.65 | G17: 25 | H17: 16.4 | I17: 24.25 | J17: 16.05 | K17: 23.5 | L17: 15.7 | M17: 22.75 | N17: 15.35 | O17: 22 | P17: 15 | R17: 1.048 | S17: 1.024 | T17: 1 | U17: 0.97 | V17: 0.94 | W17: 0.91 | X17: 0.88 | Y17: 0.6450381679 | Z17: 0.650390625 | AA17: 0.656 | AB17: 0.6618556701 | AC17: 0.6680851064 | AD17: 0.6747252747 | AE17: 0.6818181818 | AF17: 1 | AG17: 1 | AH17: 1 | AI17: 1 | AJ17: 1 | AK17: 1 | AL17: 1 | AM17: 16.9 | AN17: 16.65 | AO17: 16.4 | AP17: 16.05 | AQ17: 15.7 | AR17: 15.35 | AS17: 15
B18: 63 | C18: 24.7 | D18: 19.8 | E18: 24.1 | F18: 19.55 | G18: =T18*$G$17 -> 23.5 | H18: 19.3 | I18: 22.75 | J18: 18.95 | K18: 22 | L18: 18.6 | M18: 21.25 | N18: 18.25 | O18: 20.5 | P18: 17.9 | R18: 0.988 | S18: 0.964 | T18: 0.94 | U18: 0.91 | V18: 0.88 | W18: 0.85 | X18: 0.82 | Y18: 0.8016194332 | Z18: 0.8112033195 | AA18: 0.8212765957 | AB18: 0.832967033 | AC18: 0.8454545455 | AD18: 0.8588235294 | AE18: 0.8731707317 | AF18: 1 | AG18: 1 | AH18: 1 | AI18: 1 | AJ18: 1 | AK18: 1 | AL18: 1 | AM18: 19.8 | AN18: 19.55 | AO18: 19.3 | AP18: 18.95 | AQ18: 18.6 | AR18: 18.25 | AS18: 17.9
B19: 59 | C19: 23.5 | D19: 22.5 | E19: 22.85 | F19: 21.85 | G19: =T19*$G$17 -> 22.2 | H19: 21.2 | I19: 21.5 | J19: 20.55 | K19: 20.8 | L19: 19.9 | M19: 20.05 | N19: 19.15 | O19: 19.3 | P19: 18.4 | R19: 0.94 | S19: 0.914 | T19: 0.888 | U19: 0.86 | V19: 0.832 | W19: 0.802 | X19: 0.772 | Y19: 0.9574468085 | Z19: 0.9562363239 | AA19: 0.954954955 | AB19: 0.9558139535 | AC19: 0.9567307692 | AD19: 0.9551122195 | AE19: 0.9533678756 | AF19: 1 | AG19: 1 | AH19: 1 | AI19: 1 | AJ19: 1 | AK19: 1 | AL19: 1 | AM19: 22.5 | AN19: 21.85 | AO19: 21.2 | AP19: 20.55 | AQ19: 19.9 | AR19: 19.15 | AS19: 18.4

Sheet 16AJL_36 (hidden)
A2: 16AJL_36
A3: Evaporator Air Flow | C3: Condenser Entering Air Temperature ˚F
A4: 975 | B4: CFM | C4: 85 | E4: 90 | G4: 95 | I4: 100 | K4: 105 | M4: 110 | O4: 115
A5: Evap. Air °F DB | B5: EWB† ˚F | C5: Capacity Mbtuh | E5: Capacity Mbtuh | G5: Capacity Mbtuh | I5: Capacity Mbtuh | K5: Capacity Mbtuh | M5: Capacity Mbtuh | O5: Capacity Mbtuh
C6: Total | D6: Sens. | E6: Total | F6: Sens. | G6: Total | H6: Sens. | I6: Total | J6: Sens. | K6: Total | L6: Sens. | M6: Total | N6: Sens. | O6: Total | P6: Sens.
R7: Total Factors | Y7: Sens. % | AF7: IDB Adj | AM7: Sens Calc
A8: 72 | B8: 71 | C8: =R8*$G$17 -> 39.1 | D8: =IF(AM8>C8,C8,AM8) -> 11 | E8: =S8*$G$17 -> 38.25 | F8: =IF(AN8>E8,E8,AN8) -> 10.85 | G8: =T8*$G$17 -> 37.4 | H8: =IF(AO8>G8,G8,AO8) -> 10.7 | I8: =U8*$G$17 -> 36.55 | J8: =IF(AP8>I8,I8,AP8) -> 10.55 | K8: =V8*$G$17 -> 35.7 | L8: =IF(AQ8>K8,K8,AQ8) -> 10.4 | M8: =W8*$G$17 -> 34.85 | N8: =IF(AR8>M8,M8,AR8) -> 10.2 | O8: =X8*$G$17 -> 34 | P8: =IF(AS8>O8,O8,AS8) -> 10 | R8: 1.133333333 | S8: 1.108695652 | T8: 1.084057971 | U8: 1.05942029 | V8: 1.034782609 | W8: 1.010144928 | X8: 0.9855072464 | Y8: 0.2813299233 | Z8: 0.2836601307 | AA8: 0.2860962567 | AB8: 0.2886456908 | AC8: 0.2913165266 | AD8: 0.2926829268 | AE8: 0.2941176471 | AF8: 1 | AG8: 1 | AH8: 1 | AI8: 1 | AJ8: 1 | AK8: 1 | AL8: 1 | AM8: =Y8*C8*AF8 -> 11 | AN8: =Z8*E8*AG8 -> 10.85 | AO8: =AA8*G8*AH8 -> 10.7 | AP8: =AB8*I8*AI8 -> 10.55 | AQ8: =AC8*K8*AJ8 -> 10.4 | AR8: =AD8*M8*AK8 -> 10.2 | AS8: =AE8*O8*AL8 -> 10
B9: 67 | C9: =R9*$G$17 -> 36.2 | D9: 15.3 | E9: =S9*$G$17 -> 35.4 | F9: =IF(AN9>E9,E9,AN9) -> 15.2 | G9: =T9*$G$17 -> 34.6 | H9: =IF(AO9>G9,G9,AO9) -> 15.1 | I9: =U9*$G$17 -> 33.7 | J9: =IF(AP9>I9,I9,AP9) -> 14.9 | K9: =V9*$G$17 -> 32.8 | L9: =IF(AQ9>K9,K9,AQ9) -> 14.7 | M9: =W9*$G$17 -> 32 | N9: =IF(AR9>M9,M9,AR9) -> 14.55 | O9: =X9*$G$17 -> 31.2 | P9: =IF(AS9>O9,O9,AS9) -> 14.4 | R9: 1.049275362 | S9: 1.026086957 | T9: 1.002898551 | U9: 0.9768115942 | V9: 0.9507246377 | W9: 0.9275362319 | X9: 0.9043478261 | Y9: 0.4226519337 | Z9: 0.4293785311 | AA9: 0.436416185 | AB9: 0.4421364985 | AC9: 0.4481707317 | AD9: 0.4546875 | AE9: 0.4615384615 | AF9: 1 | AG9: 1 | AH9: 1 | AI9: 1 | AJ9: 1 | AK9: 1 | AL9: 1 | AM9: =Y9*C9*AF9 -> 15.3 | AN9: =Z9*E9*AG9 -> 15.2 | AO9: =AA9*G9*AH9 -> 15.1 | AP9: =AB9*I9*AI9 -> 14.9 | AQ9: =AC9*K9*AJ9 -> 14.7 | AR9: =AD9*M9*AK9 -> 14.55 | AS9: =AE9*O9*AL9 -> 14.4
B10: 63 | C10: 34 | D10: 19.7 | E10: 33.1 | F10: 19.55 | G10: 32.2 | H10: 19.4 | I10: 31.4 | J10: 19.25 | K10: 30.6 | L10: 19.1 | M10: 29.75 | N10: 18.9 | O10: 28.9 | P10: 18.7 | R10: 0.9855072464 | S10: 0.9594202899 | T10: 0.9333333333 | U10: 0.9101449275 | V10: 0.8869565217 | W10: 0.8623188406 | X10: 0.8376811594 | Y10: 0.5794117647 | Z10: 0.5906344411 | AA10: 0.602484472 | AB10: 0.6130573248 | AC10: 0.6241830065 | AD10: 0.6352941176 | AE10: 0.6470588235 | AF10: 1 | AG10: 1 | AH10: 1 | AI10: 1 | AJ10: 1 | AK10: 1 | AL10: 1 | AM10: 19.7 | AN10: 19.55 | AO10: 19.4 | AP10: 19.25 | AQ10: 19.1 | AR10: 18.9 | AS10: 18.7
B11: 59 | C11: 31.5 | D11: 26.1 | E11: 30.95 | F11: 25.65 | G11: 30.4 | H11: 25.2 | I11: 29.55 | J11: 24.5 | K11: 28.7 | L11: 23.8 | M11: 27.9 | N11: 23.1 | O11: 27.1 | P11: 22.4 | R11: 0.9130434783 | S11: 0.8971014493 | T11: 0.8811594203 | U11: 0.8565217391 | V11: 0.831884058 | W11: 0.8086956522 | X11: 0.7855072464 | Y11: 0.8285714286 | Z11: 0.8287560582 | AA11: 0.8289473684 | AB11: 0.8291032149 | AC11: 0.8292682927 | AD11: 0.8279569892 | AE11: 0.8265682657 | AF11: 1 | AG11: 1 | AH11: 1 | AI11: 1 | AJ11: 1 | AK11: 1 | AL11: 1 | AM11: 26.1 | AN11: 25.65 | AO11: 25.2 | AP11: 24.5 | AQ11: 23.8 | AR11: 23.1 | AS11: 22.4
A12: 76 | B12: 71 | C12: 39 | D12: 13.55 | E12: 38.2 | F12: 13.35 | G12: 37.35 | H12: 13.2 | I12: 36.5 | J12: 13 | K12: 35.65 | L12: 12.75 | M12: 34.85 | N12: 12.5 | O12: 34 | P12: 12.25 | R12: 1.130434783 | S12: 1.107246377 | T12: 1.082608696 | U12: 1.057971014 | V12: 1.033333333 | W12: 1.010144928 | X12: 0.9855072464 | Y12: 0.3474358974 | Z12: 0.3494764398 | AA12: 0.3534136546 | AB12: 0.3561643836 | AC12: 0.3576437588 | AD12: 0.3586800574 | AE12: 0.3602941176 | AF12: 1 | AG12: 1 | AH12: 1 | AI12: 1 | AJ12: 1 | AK12: 1 | AL12: 1 | AM12: 13.55 | AN12: 13.35 | AO12: 13.2 | AP12: 13 | AQ12: 12.75 | AR12: 12.5 | AS12: 12.25
B13: 67 | C13: 36.2 | D13: 17.95 | E13: 35.4 | F13: 17.75 | G13: =T13*$G$17 -> 34.55 | H13: 17.6 | I13: 33.75 | J13: 17.4 | K13: 32.9 | L13: 17.15 | M13: 32.05 | N13: 16.9 | O13: 31.2 | P13: 16.65 | R13: 1.049275362 | S13: 1.026086957 | T13: 1.001449275 | U13: 0.9782608696 | V13: 0.9536231884 | W13: 0.9289855072 | X13: 0.9043478261 | Y13: 0.4958563536 | Z13: 0.5014124294 | AA13: 0.509406657 | AB13: 0.5155555556 | AC13: 0.5212765957 | AD13: 0.527301092 | AE13: 0.5336538462 | AF13: 1 | AG13: 1 | AH13: 1 | AI13: 1 | AJ13: 1 | AK13: 1 | AL13: 1 | AM13: 17.95 | AN13: 17.75 | AO13: 17.6 | AP13: 17.4 | AQ13: 17.15 | AR13: 16.9 | AS13: 16.65
B14: 63 | C14: 33.9 | D14: 24.35 | E14: 33.05 | F14: 24.05 | G14: 32.2 | H14: 23.8 | I14: 31.4 | J14: 23.55 | K14: 30.55 | L14: 23.35 | M14: 29.7 | N14: 23 | O14: 28.85 | P14: 22.7 | R14: 0.9826086957 | S14: 0.9579710145 | T14: 0.9333333333 | U14: 0.9101449275 | V14: 0.8855072464 | W14: 0.8608695652 | X14: 0.8362318841 | Y14: 0.7182890855 | Z14: 0.7276853253 | AA14: 0.7391304348 | AB14: 0.75 | AC14: 0.7643207856 | AD14: 0.7744107744 | AE14: 0.7868284229 | AF14: 1 | AG14: 1 | AH14: 1 | AI14: 1 | AJ14: 1 | AK14: 1 | AL14: 1 | AM14: 24.35 | AN14: 24.05 | AO14: 23.8 | AP14: 23.55 | AQ14: 23.35 | AR14: 23 | AS14: 22.7
B15: 59 | C15: 31.95 | D15: 29.85 | E15: 31.2 | F15: 29.15 | G15: 30.4 | H15: 28.4 | I15: 29.55 | J15: 27.6 | K15: 28.7 | L15: 26.75 | M15: 27.9 | N15: 26 | O15: 27.05 | P15: 25.25 | R15: 0.9260869565 | S15: 0.9043478261 | T15: 0.8811594203 | U15: 0.8565217391 | V15: 0.831884058 | W15: 0.8086956522 | X15: 0.784057971 | Y15: 0.9342723005 | Z15: 0.9342948718 | AA15: 0.9342105263 | AB15: 0.9340101523 | AC15: 0.9320557491 | AD15: 0.9318996416 | AE15: 0.9334565619 | AF15: 1 | AG15: 1 | AH15: 1 | AI15: 1 | AJ15: 1 | AK15: 1 | AL15: 1 | AM15: 29.85 | AN15: 29.15 | AO15: 28.4 | AP15: 27.6 | AQ15: 26.75 | AR15: 26 | AS15: 25.25
A16: 80 | B16: 71 | C16: 39 | D16: 18.7 | E16: 38.15 | F16: 18.4 | G16: 37.3 | H16: 18.1 | I16: 36.45 | J16: 17.8 | K16: 35.6 | L16: 17.5 | M16: 34.75 | N16: 17.15 | O16: 33.9 | P16: 16.8 | R16: 1.130434783 | S16: 1.105797101 | T16: 1.08115942 | U16: 1.056521739 | V16: 1.031884058 | W16: 1.007246377 | X16: 0.9826086957 | Y16: 0.4794871795 | Z16: 0.4823066841 | AA16: 0.4852546917 | AB16: 0.488340192 | AC16: 0.4915730337 | AD16: 0.4935251799 | AE16: 0.4955752212 | AF16: 1 | AG16: 1 | AH16: 1 | AI16: 1 | AJ16: 1 | AK16: 1 | AL16: 1 | AM16: 18.7 | AN16: 18.4 | AO16: 18.1 | AP16: 17.8 | AQ16: 17.5 | AR16: 17.15 | AS16: 16.8
B17: 67 | C17: 36.2 | D17: 22.5 | E17: 35.35 | F17: 22.2 | G17: 34.5 | H17: 21.9 | I17: 33.65 | J17: 21.55 | K17: 32.8 | L17: 21.2 | M17: 31.95 | N17: 20.85 | O17: 31.1 | P17: 20.5 | R17: 1.049275362 | S17: 1.024637681 | T17: 1 | U17: 0.9753623188 | V17: 0.9507246377 | W17: 0.9260869565 | X17: 0.9014492754 | Y17: 0.6215469613 | Z17: 0.6280056577 | AA17: 0.6347826087 | AB17: 0.6404160475 | AC17: 0.6463414634 | AD17: 0.6525821596 | AE17: 0.6591639871 | AF17: 1 | AG17: 1 | AH17: 1 | AI17: 1 | AJ17: 1 | AK17: 1 | AL17: 1 | AM17: 22.5 | AN17: 22.2 | AO17: 21.9 | AP17: 21.55 | AQ17: 21.2 | AR17: 20.85 | AS17: 20.5
B18: 63 | C18: 33.9 | D18: 26.4 | E18: 33.05 | F18: 26.1 | G18: =T18*$G$17 -> 32.2 | H18: 25.8 | I18: 31.35 | J18: 25.45 | K18: 30.5 | L18: 25.1 | M18: 29.65 | N18: 24.75 | O18: 28.8 | P18: 24.4 | R18: 0.9826086957 | S18: 0.9579710145 | T18: 0.9333333333 | U18: 0.9086956522 | V18: 0.884057971 | W18: 0.8594202899 | X18: 0.8347826087 | Y18: 0.7787610619 | Z18: 0.7897125567 | AA18: 0.801242236 | AB18: 0.8118022329 | AC18: 0.8229508197 | AD18: 0.8347386172 | AE18: 0.8472222222 | AF18: 1 | AG18: 1 | AH18: 1 | AI18: 1 | AJ18: 1 | AK18: 1 | AL18: 1 | AM18: 26.4 | AN18: 26.1 | AO18: 25.8 | AP18: 25.45 | AQ18: 25.1 | AR18: 24.75 | AS18: 24.4
B19: 59 | C19: 32 | D19: 30 | E19: 31.15 | F19: 29.2 | G19: =T19*$G$17 -> 30.3 | H19: 28.4 | I19: 29.5 | J19: 27.65 | K19: 28.7 | L19: 26.9 | M19: 27.85 | N19: 26.1 | O19: 27 | P19: 25.3 | R19: 0.9275362319 | S19: 0.9028985507 | T19: 0.8782608696 | U19: 0.8550724638 | V19: 0.831884058 | W19: 0.8072463768 | X19: 0.7826086957 | Y19: 0.9375 | Z19: 0.937399679 | AA19: 0.9372937294 | AB19: 0.9372881356 | AC19: 0.93728223 | AD19: 0.9371633752 | AE19: 0.937037037 | AF19: 1 | AG19: 1 | AH19: 1 | AI19: 1 | AJ19: 1 | AK19: 1 | AL19: 1 | AM19: 30 | AN19: 29.2 | AO19: 28.4 | AP19: 27.65 | AQ19: 26.9 | AR19: 26.1 | AS19: 25.3

Sheet 16AJL_48 (hidden)
A2: 16AJL_48
A3: Evaporator Air Flow | C3: Condenser Entering Air Temperature ˚F
A4: 1325 | B4: CFM | C4: 85 | E4: 90 | G4: 95 | I4: 100 | K4: 105 | M4: 110 | O4: 115
A5: Evap. Air °F DB | B5: EWB† ˚F | C5: Capacity Mbtuh | E5: Capacity Mbtuh | G5: Capacity Mbtuh | I5: Capacity Mbtuh | K5: Capacity Mbtuh | M5: Capacity Mbtuh | O5: Capacity Mbtuh
C6: Total | D6: Sens. | E6: Total | F6: Sens. | G6: Total | H6: Sens. | I6: Total | J6: Sens. | K6: Total | L6: Sens. | M6: Total | N6: Sens. | O6: Total | P6: Sens.
R7: Total Factors | Y7: Sens. % | AF7: IDB Adj | AM7: Sens Calc
A8: 72 | B8: 71 | C8: =R8*$G$17 -> 49.7 | D8: =IF(AM8>C8,C8,AM8) -> 14.2 | E8: =S8*$G$17 -> 49.05 | F8: =IF(AN8>E8,E8,AN8) -> 14.3 | G8: =T8*$G$17 -> 48.4 | H8: =IF(AO8>G8,G8,AO8) -> 14.4 | I8: =U8*$G$17 -> 47.35 | J8: =IF(AP8>I8,I8,AP8) -> 14.4 | K8: =V8*$G$17 -> 46.3 | L8: =IF(AQ8>K8,K8,AQ8) -> 14.4 | M8: =W8*$G$17 -> 42.7 | N8: =IF(AR8>M8,M8,AR8) -> 13.6 | O8: =X8*$G$17 -> 39.1 | P8: =IF(AS8>O8,O8,AS8) -> 12.8 | R8: 1.111856823 | S8: 1.097315436 | T8: 1.082774049 | U8: 1.059284116 | V8: 1.035794183 | W8: 0.9552572707 | X8: 0.8747203579 | Y8: 0.2857142857 | Z8: 0.2915392457 | AA8: 0.2975206612 | AB8: 0.3041182682 | AC8: 0.3110151188 | AD8: 0.318501171 | AE8: 0.3273657289 | AF8: 1 | AG8: 1 | AH8: 1 | AI8: 1 | AJ8: 1 | AK8: 1 | AL8: 1 | AM8: =Y8*C8*AF8 -> 14.2 | AN8: =Z8*E8*AG8 -> 14.3 | AO8: =AA8*G8*AH8 -> 14.4 | AP8: =AB8*I8*AI8 -> 14.4 | AQ8: =AC8*K8*AJ8 -> 14.4 | AR8: =AD8*M8*AK8 -> 13.6 | AS8: =AE8*O8*AL8 -> 12.8
B9: 67 | C9: =R9*$G$17 -> 46.1 | D9: 20.1 | E9: =S9*$G$17 -> 45.5 | F9: =IF(AN9>E9,E9,AN9) -> 20.25 | G9: =T9*$G$17 -> 44.9 | H9: =IF(AO9>G9,G9,AO9) -> 20.4 | I9: =U9*$G$17 -> 43.7 | J9: =IF(AP9>I9,I9,AP9) -> 20.35 | K9: =V9*$G$17 -> 42.5 | L9: =IF(AQ9>K9,K9,AQ9) -> 20.3 | M9: =W9*$G$17 -> 39.6 | N9: =IF(AR9>M9,M9,AR9) -> 19.45 | O9: =X9*$G$17 -> 36.7 | P9: =IF(AS9>O9,O9,AS9) -> 18.6 | R9: 1.031319911 | S9: 1.017897092 | T9: 1.004474273 | U9: 0.9776286353 | V9: 0.9507829978 | W9: 0.8859060403 | X9: 0.8210290828 | Y9: 0.4360086768 | Z9: 0.4450549451 | AA9: 0.4543429844 | AB9: 0.4656750572 | AC9: 0.4776470588 | AD9: 0.4911616162 | AE9: 0.5068119891 | AF9: 1 | AG9: 1 | AH9: 1 | AI9: 1 | AJ9: 1 | AK9: 1 | AL9: 1 | AM9: =Y9*C9*AF9 -> 20.1 | AN9: =Z9*E9*AG9 -> 20.25 | AO9: =AA9*G9*AH9 -> 20.4 | AP9: =AB9*I9*AI9 -> 20.35 | AQ9: =AC9*K9*AJ9 -> 20.3 | AR9: =AD9*M9*AK9 -> 19.45 | AS9: =AE9*O9*AL9 -> 18.6
B10: 63 | C10: 43.2 | D10: 25.8 | E10: 42.6 | F10: 25.95 | G10: 42 | H10: 26.1 | I10: 40.95 | J10: 26.1 | K10: 39.9 | L10: 26.1 | M10: 38 | N10: 25.7 | O10: 36.1 | P10: 25.3 | R10: 0.966442953 | S10: 0.9530201342 | T10: 0.9395973154 | U10: 0.9161073826 | V10: 0.8926174497 | W10: 0.8501118568 | X10: 0.807606264 | Y10: 0.5972222222 | Z10: 0.6091549296 | AA10: 0.6214285714 | AB10: 0.6373626374 | AC10: 0.6541353383 | AD10: 0.6763157895 | AE10: 0.7008310249 | AF10: 1 | AG10: 1 | AH10: 1 | AI10: 1 | AJ10: 1 | AK10: 1 | AL10: 1 | AM10: 25.8 | AN10: 25.95 | AO10: 26.1 | AP10: 26.1 | AQ10: 26.1 | AR10: 25.7 | AS10: 25.3
B11: 59 | C11: 40 | D11: 34.1 | E11: 39.25 | F11: 33.8 | G11: 38.5 | H11: 33.5 | I11: 37.95 | J11: 33 | K11: 37.4 | L11: 32.5 | M11: 35.95 | N11: 31.25 | O11: 34.5 | P11: 30 | R11: 0.8948545861 | S11: 0.8780760626 | T11: 0.8612975391 | U11: 0.8489932886 | V11: 0.836689038 | W11: 0.8042505593 | X11: 0.7718120805 | Y11: 0.8525 | Z11: 0.8611464968 | AA11: 0.8701298701 | AB11: 0.8695652174 | AC11: 0.8689839572 | AD11: 0.8692628651 | AE11: 0.8695652174 | AF11: 1 | AG11: 1 | AH11: 1 | AI11: 1 | AJ11: 1 | AK11: 1 | AL11: 1 | AM11: 34.1 | AN11: 33.8 | AO11: 33.5 | AP11: 33 | AQ11: 32.5 | AR11: 31.25 | AS11: 30
A12: 76 | B12: 71 | C12: 49.6 | D12: 17.45 | E12: 49 | F12: 17.5 | G12: 48.35 | H12: 17.6 | I12: 47.3 | J12: 17.55 | K12: 46.2 | L12: 17.45 | M12: 44.7 | N12: 17.25 | O12: 43.15 | P12: 17 | R12: 1.109619687 | S12: 1.096196868 | T12: 1.081655481 | U12: 1.058165548 | V12: 1.033557047 | W12: 1 | X12: 0.9653243848 | Y12: 0.3518145161 | Z12: 0.3571428571 | AA12: 0.3640124095 | AB12: 0.3710359408 | AC12: 0.3777056277 | AD12: 0.3859060403 | AE12: 0.3939745075 | AF12: 1 | AG12: 1 | AH12: 1 | AI12: 1 | AJ12: 1 | AK12: 1 | AL12: 1 | AM12: 17.45 | AN12: 17.5 | AO12: 17.6 | AP12: 17.55 | AQ12: 17.45 | AR12: 17.25 | AS12: 17
B13: 67 | C13: 46.05 | D13: 23.45 | E13: 45.45 | F13: 23.55 | G13: =T13*$G$17 -> 44.8 | H13: 23.65 | I13: 43.75 | J13: 23.55 | K13: 42.65 | L13: 23.45 | M13: 41.15 | N13: 23.2 | O13: 39.6 | P13: 22.95 | R13: 1.030201342 | S13: 1.016778523 | T13: 1.002237136 | U13: 0.9787472036 | V13: 0.9541387025 | W13: 0.9205816555 | X13: 0.8859060403 | Y13: 0.5092290988 | Z13: 0.5181518152 | AA13: 0.5279017857 | AB13: 0.5382857143 | AC13: 0.5498241501 | AD13: 0.5637910085 | AE13: 0.5795454545 | AF13: 1 | AG13: 1 | AH13: 1 | AI13: 1 | AJ13: 1 | AK13: 1 | AL13: 1 | AM13: 23.45 | AN13: 23.55 | AO13: 23.65 | AP13: 23.55 | AQ13: 23.45 | AR13: 23.2 | AS13: 22.95
B14: 63 | C14: 43.15 | D14: 31.75 | E14: 42.55 | F14: 31.8 | G14: 41.9 | H14: 31.85 | I14: 40.85 | J14: 31.7 | K14: 39.75 | L14: 31.55 | M14: 38.2 | N14: 31.15 | O14: 36.65 | P14: 30.8 | R14: 0.9653243848 | S14: 0.951901566 | T14: 0.937360179 | U14: 0.9138702461 | V14: 0.889261745 | W14: 0.8545861298 | X14: 0.8199105145 | Y14: 0.7358053302 | Z14: 0.7473560517 | AA14: 0.7601431981 | AB14: 0.7760097919 | AC14: 0.7937106918 | AD14: 0.8154450262 | AE14: 0.8403819918 | AF14: 1 | AG14: 1 | AH14: 1 | AI14: 1 | AJ14: 1 | AK14: 1 | AL14: 1 | AM14: 31.75 | AN14: 31.8 | AO14: 31.85 | AP14: 31.7 | AQ14: 31.55 | AR14: 31.15 | AS14: 30.8
B15: 59 | C15: 40.85 | D15: 39.1 | E15: 40.25 | F15: 38.8 | G15: 39.65 | H15: 38.5 | I15: 38.6 | J15: 37.5 | K15: 37.6 | L15: 36.55 | M15: 36.1 | N15: 35.05 | O15: 34.55 | P15: 33.55 | R15: 0.9138702461 | S15: 0.9004474273 | T15: 0.8870246085 | U15: 0.8635346756 | V15: 0.841163311 | W15: 0.807606264 | X15: 0.7729306488 | Y15: 0.9571603427 | Z15: 0.9639751553 | AA15: 0.9709962169 | AB15: 0.9715025907 | AC15: 0.9720744681 | AD15: 0.9709141274 | AE15: 0.9710564399 | AF15: 1 | AG15: 1 | AH15: 1 | AI15: 1 | AJ15: 1 | AK15: 1 | AL15: 1 | AM15: 39.1 | AN15: 38.8 | AO15: 38.5 | AP15: 37.5 | AQ15: 36.55 | AR15: 35.05 | AS15: 33.55
A16: 80 | B16: 71 | C16: 49.5 | D16: 24 | E16: 48.9 | F16: 24 | G16: 48.3 | H16: 24 | I16: 47.25 | J16: 23.8 | K16: 46.2 | L16: 23.6 | M16: 44.7 | N16: 23.2 | O16: 43.2 | P16: 22.8 | R16: 1.10738255 | S16: 1.093959732 | T16: 1.080536913 | U16: 1.05704698 | V16: 1.033557047 | W16: 1 | X16: 0.966442953 | Y16: 0.4848484848 | Z16: 0.490797546 | AA16: 0.4968944099 | AB16: 0.5037037037 | AC16: 0.5108225108 | AD16: 0.51901566 | AE16: 0.5277777778 | AF16: 1 | AG16: 1 | AH16: 1 | AI16: 1 | AJ16: 1 | AK16: 1 | AL16: 1 | AM16: 24 | AN16: 24 | AO16: 24 | AP16: 23.8 | AQ16: 23.6 | AR16: 23.2 | AS16: 22.8
B17: 67 | C17: 45.9 | D17: 29.2 | E17: 45.3 | F17: 29.2 | G17: 44.7 | H17: 29.2 | I17: 43.65 | J17: 29 | K17: 42.6 | L17: 28.8 | M17: 41.1 | N17: 28.4 | O17: 39.6 | P17: 28 | R17: 1.026845638 | S17: 1.013422819 | T17: 1 | U17: 0.9765100671 | V17: 0.9530201342 | W17: 0.9194630872 | X17: 0.8859060403 | Y17: 0.6361655773 | Z17: 0.6445916115 | AA17: 0.6532438479 | AB17: 0.6643757159 | AC17: 0.676056338 | AD17: 0.6909975669 | AE17: 0.7070707071 | AF17: 1 | AG17: 1 | AH17: 1 | AI17: 1 | AJ17: 1 | AK17: 1 | AL17: 1 | AM17: 29.2 | AN17: 29.2 | AO17: 29.2 | AP17: 29 | AQ17: 28.8 | AR17: 28.4 | AS17: 28
B18: 63 | C18: 43.1 | D18: 34.3 | E18: 42.45 | F18: 34.3 | G18: =T18*$G$17 -> 41.8 | H18: 34.3 | I18: 40.75 | J18: 34.1 | K18: 39.7 | L18: 33.9 | M18: 38.2 | N18: 33.5 | O18: 36.7 | P18: 33.1 | R18: 0.9642058166 | S18: 0.9496644295 | T18: 0.9351230425 | U18: 0.9116331096 | V18: 0.8881431767 | W18: 0.8545861298 | X18: 0.8210290828 | Y18: 0.7958236659 | Z18: 0.8080094229 | AA18: 0.8205741627 | AB18: 0.836809816 | AC18: 0.8539042821 | AD18: 0.8769633508 | AE18: 0.9019073569 | AF18: 1 | AG18: 1 | AH18: 1 | AI18: 1 | AJ18: 1 | AK18: 1 | AL18: 1 | AM18: 34.3 | AN18: 34.3 | AO18: 34.3 | AP18: 34.1 | AQ18: 33.9 | AR18: 33.5 | AS18: 33.1
B19: 59 | C19: 40.9 | D19: 39.3 | E19: 40.3 | F19: 39.05 | G19: =T19*$G$17 -> 39.7 | H19: 38.8 | I19: 38.65 | J19: 37.75 | K19: 37.6 | L19: 36.7 | M19: 36.05 | N19: 35.2 | O19: 34.5 | P19: 33.7 | R19: 0.9149888143 | S19: 0.9015659955 | T19: 0.8881431767 | U19: 0.8646532438 | V19: 0.841163311 | W19: 0.8064876957 | X19: 0.7718120805 | Y19: 0.9608801956 | Z19: 0.9689826303 | AA19: 0.9773299748 | AB19: 0.9767141009 | AC19: 0.9760638298 | AD19: 0.9764216366 | AE19: 0.9768115942 | AF19: 1 | AG19: 1 | AH19: 1 | AI19: 1 | AJ19: 1 | AK19: 1 | AL19: 1 | AM19: 39.3 | AN19: 39.05 | AO19: 38.8 | AP19: 37.75 | AQ19: 36.7 | AR19: 35.2 | AS19: 33.7

Sheet 16AJL_60 (hidden)
A2: 16AJL_60
A3: Evaporator Air Flow | C3: Condenser Entering Air Temperature ˚F
A4: 1575 | B4: CFM | C4: 85 | E4: 90 | G4: 95 | I4: 100 | K4: 105 | M4: 110 | O4: 115
A5: Evap. Air °F DB | B5: EWB† ˚F | C5: Capacity Mbtuh | E5: Capacity Mbtuh | G5: Capacity Mbtuh | I5: Capacity Mbtuh | K5: Capacity Mbtuh | M5: Capacity Mbtuh | O5: Capacity Mbtuh
C6: Total | D6: Sens. | E6: Total | F6: Sens. | G6: Total | H6: Sens. | I6: Total | J6: Sens. | K6: Total | L6: Sens. | M6: Total | N6: Sens. | O6: Total | P6: Sens.
R7: Total Factors | Y7: Sens. % | AF7: IDB Adj | AM7: Sens Calc
A8: 72 | B8: 71 | C8: =R8*$G$17 -> 57.1 | D8: =IF(AM8>C8,C8,AM8) -> 19.8 | E8: =S8*$G$17 -> 56.2 | F8: =IF(AN8>E8,E8,AN8) -> 19.7 | G8: =T8*$G$17 -> 55.3 | H8: =IF(AO8>G8,G8,AO8) -> 19.6 | I8: =U8*$G$17 -> 53.95 | J8: =IF(AP8>I8,I8,AP8) -> 19.25 | K8: =V8*$G$17 -> 52.6 | L8: =IF(AQ8>K8,K8,AQ8) -> 18.9 | M8: =W8*$G$17 -> 50.75 | N8: =IF(AR8>M8,M8,AR8) -> 18.3 | O8: =X8*$G$17 -> 48.9 | P8: =IF(AS8>O8,O8,AS8) -> 17.7 | R8: 0.9982517483 | S8: 0.9825174825 | T8: 0.9667832168 | U8: 0.9431818182 | V8: 0.9195804196 | W8: 0.8872377622 | X8: 0.8548951049 | Y8: 0.3467600701 | Z8: 0.3505338078 | AA8: 0.3544303797 | AB8: 0.3568118628 | AC8: 0.3593155894 | AD8: 0.360591133 | AE8: 0.3619631902 | AF8: 1 | AG8: 1 | AH8: 1 | AI8: 1 | AJ8: 1 | AK8: 1 | AL8: 1 | AM8: =Y8*C8*AF8 -> 19.8 | AN8: =Z8*E8*AG8 -> 19.7 | AO8: =AA8*G8*AH8 -> 19.6 | AP8: =AB8*I8*AI8 -> 19.25 | AQ8: =AC8*K8*AJ8 -> 18.9 | AR8: =AD8*M8*AK8 -> 18.3 | AS8: =AE8*O8*AL8 -> 17.7
B9: 67 | C9: =R9*$G$17 -> 53.7 | D9: 26.1 | E9: =S9*$G$17 -> 52.8 | F9: =IF(AN9>E9,E9,AN9) -> 26 | G9: =T9*$G$17 -> 51.9 | H9: =IF(AO9>G9,G9,AO9) -> 25.9 | I9: =U9*$G$17 -> 50.55 | J9: =IF(AP9>I9,I9,AP9) -> 25.55 | K9: =V9*$G$17 -> 49.2 | L9: =IF(AQ9>K9,K9,AQ9) -> 25.2 | M9: =W9*$G$17 -> 47.35 | N9: =IF(AR9>M9,M9,AR9) -> 24.6 | O9: =X9*$G$17 -> 45.5 | P9: =IF(AS9>O9,O9,AS9) -> 24 | R9: 0.9388111888 | S9: 0.9230769231 | T9: 0.9073426573 | U9: 0.8837412587 | V9: 0.8601398601 | W9: 0.8277972028 | X9: 0.7954545455 | Y9: 0.4860335196 | Z9: 0.4924242424 | AA9: 0.4990366089 | AB9: 0.5054401583 | AC9: 0.512195122 | AD9: 0.5195353749 | AE9: 0.5274725275 | AF9: 1 | AG9: 1 | AH9: 1 | AI9: 1 | AJ9: 1 | AK9: 1 | AL9: 1 | AM9: =Y9*C9*AF9 -> 26.1 | AN9: =Z9*E9*AG9 -> 26 | AO9: =AA9*G9*AH9 -> 25.9 | AP9: =AB9*I9*AI9 -> 25.55 | AQ9: =AC9*K9*AJ9 -> 25.2 | AR9: =AD9*M9*AK9 -> 24.6 | AS9: =AE9*O9*AL9 -> 24
B10: 63 | C10: 54.1 | D10: 34.3 | E10: 52.85 | F10: 34.05 | G10: 51.6 | H10: 33.8 | I10: 49 | J10: 32.65 | K10: 46.4 | L10: 31.5 | M10: 44 | N10: 30.5 | O10: 41.6 | P10: 29.5 | R10: 0.9458041958 | S10: 0.923951049 | T10: 0.9020979021 | U10: 0.8566433566 | V10: 0.8111888112 | W10: 0.7692307692 | X10: 0.7272727273 | Y10: 0.6340110906 | Z10: 0.6442762535 | AA10: 0.6550387597 | AB10: 0.6663265306 | AC10: 0.6788793103 | AD10: 0.6931818182 | AE10: 0.7091346154 | AF10: 1 | AG10: 1 | AH10: 1 | AI10: 1 | AJ10: 1 | AK10: 1 | AL10: 1 | AM10: 34.3 | AN10: 34.05 | AO10: 33.8 | AP10: 32.65 | AQ10: 31.5 | AR10: 30.5 | AS10: 29.5
B11: 59 | C11: 44.6 | D11: 39.3 | E11: 44.55 | F11: 39.25 | G11: 44.5 | H11: 39.2 | I11: 43.55 | J11: 38.35 | K11: 42.6 | L11: 37.5 | M11: 40.6 | N11: 35.75 | O11: 38.6 | P11: 34 | R11: 0.7797202797 | S11: 0.7788461538 | T11: 0.777972028 | U11: 0.7613636364 | V11: 0.7447552448 | W11: 0.7097902098 | X11: 0.6748251748 | Y11: 0.8811659193 | Z11: 0.8810325477 | AA11: 0.8808988764 | AB11: 0.8805970149 | AC11: 0.8802816901 | AD11: 0.8805418719 | AE11: 0.8808290155 | AF11: 1 | AG11: 1 | AH11: 1 | AI11: 1 | AJ11: 1 | AK11: 1 | AL11: 1 | AM11: 39.3 | AN11: 39.25 | AO11: 39.2 | AP11: 38.35 | AQ11: 37.5 | AR11: 35.75 | AS11: 34
A12: 76 | B12: 71 | C12: 63.05 | D12: 26.05 | E12: 61.95 | F12: 25.85 | G12: 60.85 | H12: 25.65 | I12: 59.35 | J12: 25.1 | K12: 57.8 | L12: 24.6 | M12: 55.85 | N12: 23.8 | O12: 53.85 | P12: 23.05 | R12: 1.102272727 | S12: 1.083041958 | T12: 1.063811189 | U12: 1.037587413 | V12: 1.01048951 | W12: 0.9763986014 | X12: 0.9414335664 | Y12: 0.4131641554 | Z12: 0.4172719935 | AA12: 0.4215283484 | AB12: 0.4229149115 | AC12: 0.4256055363 | AD12: 0.4261414503 | AE12: 0.4280408542 | AF12: 1 | AG12: 1 | AH12: 1 | AI12: 1 | AJ12: 1 | AK12: 1 | AL12: 1 | AM12: 26.05 | AN12: 25.85 | AO12: 25.65 | AP12: 25.1 | AQ12: 24.6 | AR12: 23.8 | AS12: 23.05
B13: 67 | C13: 59.3 | D13: 33.1 | E13: 58.3 | F13: 32.9 | G13: =T13*$G$17 -> 57.25 | H13: 32.75 | I13: 55.8 | J13: 32.25 | K13: 54.3 | L13: 31.75 | M13: 52.3 | N13: 30.95 | O13: 50.25 | P13: 30.15 | R13: 1.036713287 | S13: 1.019230769 | T13: 1.000874126 | U13: 0.9755244755 | V13: 0.9493006993 | W13: 0.9143356643 | X13: 0.8784965035 | Y13: 0.5581787521 | Z13: 0.56432247 | AA13: 0.5720524017 | AB13: 0.5779569892 | AC13: 0.5847145488 | AD13: 0.5917782027 | AE13: 0.6 | AF13: 1 | AG13: 1 | AH13: 1 | AI13: 1 | AJ13: 1 | AK13: 1 | AL13: 1 | AM13: 33.1 | AN13: 32.9 | AO13: 32.75 | AP13: 32.25 | AQ13: 31.75 | AR13: 30.95 | AS13: 30.15
B14: 63 | C14: 53.3 | D14: 41.15 | E14: 51.65 | F14: 40.4 | G14: 50.05 | H14: 39.65 | I14: 48.5 | J14: 39 | K14: 46.95 | L14: 38.35 | M14: 45.3 | N14: 37.7 | O14: 43.65 | P14: 37 | R14: 0.9318181818 | S14: 0.902972028 | T14: 0.875 | U14: 0.8479020979 | V14: 0.8208041958 | W14: 0.791958042 | X14: 0.7631118881 | Y14: 0.7720450281 | Z14: 0.7821878025 | AA14: 0.7922077922 | AB14: 0.8041237113 | AC14: 0.8168264111 | AD14: 0.8322295806 | AE14: 0.8476517755 | AF14: 1 | AG14: 1 | AH14: 1 | AI14: 1 | AJ14: 1 | AK14: 1 | AL14: 1 | AM14: 41.15 | AN14: 40.4 | AO14: 39.65 | AP14: 39 | AQ14: 38.35 | AR14: 37.7 | AS14: 37
B15: 59 | C15: 46.95 | D15: 46 | E15: 46.25 | F15: 45.35 | G15: 45.6 | H15: 44.65 | I15: 44.1 | J15: 43.2 | K15: 42.6 | L15: 41.75 | M15: 40.6 | N15: 39.75 | O15: 38.55 | P15: 37.75 | R15: 0.8208041958 | S15: 0.8085664336 | T15: 0.7972027972 | U15: 0.770979021 | V15: 0.7447552448 | W15: 0.7097902098 | X15: 0.673951049 | Y15: 0.9797657082 | Z15: 0.9805405405 | AA15: 0.9791666667 | AB15: 0.9795918367 | AC15: 0.9800469484 | AD15: 0.9790640394 | AE15: 0.9792477302 | AF15: 1 | AG15: 1 | AH15: 1 | AI15: 1 | AJ15: 1 | AK15: 1 | AL15: 1 | AM15: 46 | AN15: 45.35 | AO15: 44.65 | AP15: 43.2 | AQ15: 41.75 | AR15: 39.75 | AS15: 37.75
A16: 80 | B16: 71 | C16: 61.1 | D16: 33.3 | E16: 59.85 | F16: 32.85 | G16: 58.6 | H16: 32.4 | I16: 57.85 | J16: 32.15 | K16: 57.1 | L16: 31.9 | M16: 55.4 | N16: 31 | O16: 53.7 | P16: 30.1 | R16: 1.068181818 | S16: 1.046328671 | T16: 1.024475524 | U16: 1.011363636 | V16: 0.9982517483 | W16: 0.9685314685 | X16: 0.9388111888 | Y16: 0.5450081833 | Z16: 0.5488721805 | AA16: 0.5529010239 | AB16: 0.5557476232 | AC16: 0.5586690018 | AD16: 0.559566787 | AE16: 0.5605214153 | AF16: 1 | AG16: 1 | AH16: 1 | AI16: 1 | AJ16: 1 | AK16: 1 | AL16: 1 | AM16: 33.3 | AN16: 32.85 | AO16: 32.4 | AP16: 32.15 | AQ16: 31.9 | AR16: 31 | AS16: 30.1
B17: 67 | C17: 59.2 | D17: 40.5 | E17: 58.2 | F17: 40.2 | G17: 57.2 | H17: 39.9 | I17: 55.75 | J17: 39.25 | K17: 54.3 | L17: 38.6 | M17: 52.25 | N17: 37.5 | O17: 50.2 | P17: 36.4 | R17: 1.034965035 | S17: 1.017482517 | T17: 1 | U17: 0.9746503497 | V17: 0.9493006993 | W17: 0.9134615385 | X17: 0.8776223776 | Y17: 0.6841216216 | Z17: 0.6907216495 | AA17: 0.6975524476 | AB17: 0.7040358744 | AC17: 0.7108655617 | AD17: 0.7177033493 | AE17: 0.7250996016 | AF17: 1 | AG17: 1 | AH17: 1 | AI17: 1 | AJ17: 1 | AK17: 1 | AL17: 1 | AM17: 40.5 | AN17: 40.2 | AO17: 39.9 | AP17: 39.25 | AQ17: 38.6 | AR17: 37.5 | AS17: 36.4
B18: 63 | C18: 54.3 | D18: 45.2 | E18: 53.25 | F18: 44.85 | G18: =T18*$G$17 -> 52.2 | H18: 44.5 | I18: 50.7 | J18: 43.85 | K18: 49.2 | L18: 43.2 | M18: 47.2 | N18: 42.15 | O18: 45.2 | P18: 41.1 | R18: 0.9493006993 | S18: 0.9309440559 | T18: 0.9125874126 | U18: 0.8863636364 | V18: 0.8601398601 | W18: 0.8251748252 | X18: 0.7902097902 | Y18: 0.832412523 | Z18: 0.8422535211 | AA18: 0.8524904215 | AB18: 0.8648915187 | AC18: 0.8780487805 | AD18: 0.8930084746 | AE18: 0.9092920354 | AF18: 1 | AG18: 1 | AH18: 1 | AI18: 1 | AJ18: 1 | AK18: 1 | AL18: 1 | AM18: 45.2 | AN18: 44.85 | AO18: 44.5 | AP18: 43.85 | AQ18: 43.2 | AR18: 42.15 | AS18: 41.1
B19: 59 | C19: 47.5 | D19: 47 | E19: 46.5 | F19: 46 | G19: =T19*$G$17 -> 45.5 | H19: 45 | I19: 44 | J19: 43.5 | K19: 42.5 | L19: 42 | M19: 40.5 | N19: 40.05 | O19: 38.5 | P19: 38.1 | R19: 0.8304195804 | S19: 0.8129370629 | T19: 0.7954545455 | U19: 0.7692307692 | V19: 0.743006993 | W19: 0.708041958 | X19: 0.6730769231 | Y19: 0.9894736842 | Z19: 0.9892473118 | AA19: 0.989010989 | AB19: 0.9886363636 | AC19: 0.9882352941 | AD19: 0.9888888889 | AE19: 0.9896103896 | AF19: 1 | AG19: 1 | AH19: 1 | AI19: 1 | AJ19: 1 | AK19: 1 | AL19: 1 | AM19: 47 | AN19: 46 | AO19: 45 | AP19: 43.5 | AQ19: 42 | AR19: 40.05 | AS19: 38.1

Sheet RANL_18 (hidden)
A2: RANL_18
A3: Evaporator Air Flow | C3: Condenser Entering Air Temperature ˚F
A4: 550 | B4: CFM | C4: 85 | E4: 90 | G4: 95 | I4: 100 | K4: 105 | M4: 110 | O4: 115
A5: Evap. Air °F DB | B5: EWB† ˚F | C5: Capacity Mbtuh | E5: Capacity Mbtuh | G5: Capacity Mbtuh | I5: Capacity Mbtuh | K5: Capacity Mbtuh | M5: Capacity Mbtuh | O5: Capacity Mbtuh
C6: Total | D6: Sens. | E6: Total | F6: Sens. | G6: Total | H6: Sens. | I6: Total | J6: Sens. | K6: Total | L6: Sens. | M6: Total | N6: Sens. | O6: Total | P6: Sens.
R7: Total Factors | Y7: Sens. % | AF7: IDB Adj | AM7: Sens Calc
A8: 72 | B8: 71 | C8: =R8*$G$17 -> 18.1 | D8: =IF(AM8>C8,C8,AM8) -> 5.9 | E8: =S8*$G$17 -> 17.65 | F8: =IF(AN8>E8,E8,AN8) -> 5.8 | G8: =T8*$G$17 -> 17.2 | H8: =IF(AO8>G8,G8,AO8) -> 5.7 | I8: =U8*$G$17 -> 16.8 | J8: =IF(AP8>I8,I8,AP8) -> 5.6 | K8: =V8*$G$17 -> 16.4 | L8: =IF(AQ8>K8,K8,AQ8) -> 5.5 | M8: =W8*$G$17 -> 15.95 | N8: =IF(AR8>M8,M8,AR8) -> 5.35 | O8: =X8*$G$17 -> 15.5 | P8: =IF(AS8>O8,O8,AS8) -> 5.2 | R8: 1.016853933 | S8: 0.9915730337 | T8: 0.9662921348 | U8: 0.9438202247 | V8: 0.9213483146 | W8: 0.8960674157 | X8: 0.8707865169 | Y8: 0.3259668508 | Z8: 0.328611898 | AA8: 0.3313953488 | AB8: 0.3333333333 | AC8: 0.3353658537 | AD8: 0.3354231975 | AE8: 0.335483871 | AF8: 1 | AG8: 1 | AH8: 1 | AI8: 1 | AJ8: 1 | AK8: 1 | AL8: 1 | AM8: =Y8*C8*AF8 -> 5.9 | AN8: =Z8*E8*AG8 -> 5.8 | AO8: =AA8*G8*AH8 -> 5.7 | AP8: =AB8*I8*AI8 -> 5.6 | AQ8: =AC8*K8*AJ8 -> 5.5 | AR8: =AD8*M8*AK8 -> 5.35 | AS8: =AE8*O8*AL8 -> 5.2
B9: 67 | C9: =R9*$G$17 -> 18.7 | D9: 9 | E9: =S9*$G$17 -> 18 | F9: =IF(AN9>E9,E9,AN9) -> 8.75 | G9: =T9*$G$17 -> 17.3 | H9: =IF(AO9>G9,G9,AO9) -> 8.5 | I9: =U9*$G$17 -> 16.5 | J9: =IF(AP9>I9,I9,AP9) -> 8.2 | K9: =V9*$G$17 -> 15.7 | L9: =IF(AQ9>K9,K9,AQ9) -> 7.9 | M9: =W9*$G$17 -> 15.05 | N9: =IF(AR9>M9,M9,AR9) -> 7.65 | O9: =X9*$G$17 -> 14.4 | P9: =IF(AS9>O9,O9,AS9) -> 7.4 | R9: 1.050561798 | S9: 1.011235955 | T9: 0.9719101124 | U9: 0.9269662921 | V9: 0.8820224719 | W9: 0.845505618 | X9: 0.808988764 | Y9: 0.4812834225 | Z9: 0.4861111111 | AA9: 0.4913294798 | AB9: 0.496969697 | AC9: 0.5031847134 | AD9: 0.5083056478 | AE9: 0.5138888889 | AF9: 1 | AG9: 1 | AH9: 1 | AI9: 1 | AJ9: 1 | AK9: 1 | AL9: 1 | AM9: =Y9*C9*AF9 -> 9 | AN9: =Z9*E9*AG9 -> 8.75 | AO9: =AA9*G9*AH9 -> 8.5 | AP9: =AB9*I9*AI9 -> 8.2 | AQ9: =AC9*K9*AJ9 -> 7.9 | AR9: =AD9*M9*AK9 -> 7.65 | AS9: =AE9*O9*AL9 -> 7.4
B10: 63 | C10: 18.5 | D10: 11.9 | E10: 17.95 | F10: 11.7 | G10: 17.4 | H10: 11.5 | I10: 16.7 | J10: 11.2 | K10: 16 | L10: 10.9 | M10: 15.4 | N10: 10.65 | O10: 14.8 | P10: 10.4 | R10: 1.039325843 | S10: 1.008426966 | T10: 0.9775280899 | U10: 0.9382022472 | V10: 0.8988764045 | W10: 0.8651685393 | X10: 0.8314606742 | Y10: 0.6432432432 | Z10: 0.651810585 | AA10: 0.6609195402 | AB10: 0.6706586826 | AC10: 0.68125 | AD10: 0.6915584416 | AE10: 0.7027027027 | AF10: 1 | AG10: 1 | AH10: 1 | AI10: 1 | AJ10: 1 | AK10: 1 | AL10: 1 | AM10: 11.9 | AN10: 11.7 | AO10: 11.5 | AP10: 11.2 | AQ10: 10.9 | AR10: 10.65 | AS10: 10.4
B11: 59 | C11: 17.9 | D11: 15.4 | E11: 17.5 | F11: 15.05 | G11: 17.1 | H11: 14.7 | I11: 16.7 | J11: 14.35 | K11: 16.3 | L11: 14 | M11: 16.3 | N11: 14 | O11: 16.3 | P11: 14 | R11: 1.005617978 | S11: 0.9831460674 | T11: 0.9606741573 | U11: 0.9382022472 | V11: 0.9157303371 | W11: 0.9157303371 | X11: 0.9157303371 | Y11: 0.8603351955 | Z11: 0.86 | AA11: 0.8596491228 | AB11: 0.8592814371 | AC11: 0.8588957055 | AD11: 0.8588957055 | AE11: 0.8588957055 | AF11: 1 | AG11: 1 | AH11: 1 | AI11: 1 | AJ11: 1 | AK11: 1 | AL11: 1 | AM11: 15.4 | AN11: 15.05 | AO11: 14.7 | AP11: 14.35 | AQ11: 14 | AR11: 14 | AS11: 14
A12: 76 | B12: 71 | C12: 19.95 | D12: 7.9 | E12: 19.5 | F12: 7.75 | G12: 19.05 | H12: 7.6 | I12: 18.55 | J12: 7.4 | K12: 18.05 | L12: 7.2 | M12: 17.6 | N12: 7.05 | O12: 17.1 | P12: 6.85 | R12: 1.120786517 | S12: 1.095505618 | T12: 1.070224719 | U12: 1.042134831 | V12: 1.014044944 | W12: 0.9887640449 | X12: 0.9606741573 | Y12: 0.3959899749 | Z12: 0.3974358974 | AA12: 0.3989501312 | AB12: 0.3989218329 | AC12: 0.3988919668 | AD12: 0.4005681818 | AE12: 0.4005847953 | AF12: 1 | AG12: 1 | AH12: 1 | AI12: 1 | AJ12: 1 | AK12: 1 | AL12: 1 | AM12: 7.9 | AN12: 7.75 | AO12: 7.6 | AP12: 7.4 | AQ12: 7.2 | AR12: 7.05 | AS12: 6.85
B13: 67 | C13: 18.8 | D13: 10.45 | E13: 18.3 | F13: 10.25 | G13: =T13*$G$17 -> 17.8 | H13: 10.05 | I13: 17.35 | J13: 9.85 | K13: 16.9 | L13: 9.7 | M13: 16.4 | N13: 9.55 | O13: 15.9 | P13: 9.35 | R13: 1.056179775 | S13: 1.028089888 | T13: 1 | U13: 0.9747191011 | V13: 0.9494382022 | W13: 0.9213483146 | X13: 0.893258427 | Y13: 0.5558510638 | Z13: 0.5601092896 | AA13: 0.5646067416 | AB13: 0.5677233429 | AC13: 0.573964497 | AD13: 0.5823170732 | AE13: 0.5880503145 | AF13: 1 | AG13: 1 | AH13: 1 | AI13: 1 | AJ13: 1 | AK13: 1 | AL13: 1 | AM13: 10.45 | AN13: 10.25 | AO13: 10.05 | AP13: 9.85 | AQ13: 9.7 | AR13: 9.55 | AS13: 9.35
B14: 63 | C14: 18.25 | D14: 14.25 | E14: 17.7 | F14: 13.95 | G14: 17.1 | H14: 13.65 | I14: 16.65 | J14: 13.5 | K14: 16.15 | L14: 13.3 | M14: 15.75 | N14: 13.1 | O14: 15.35 | P14: 12.95 | R14: 1.025280899 | S14: 0.9943820225 | T14: 0.9606741573 | U14: 0.9353932584 | V14: 0.9073033708 | W14: 0.8848314607 | X14: 0.8623595506 | Y14: 0.7808219178 | Z14: 0.7881355932 | AA14: 0.798245614 | AB14: 0.8108108108 | AC14: 0.8235294118 | AD14: 0.8317460317 | AE14: 0.8436482085 | AF14: 1 | AG14: 1 | AH14: 1 | AI14: 1 | AJ14: 1 | AK14: 1 | AL14: 1 | AM14: 14.25 | AN14: 13.95 | AO14: 13.65 | AP14: 13.5 | AQ14: 13.3 | AR14: 13.1 | AS14: 12.95
B15: 59 | C15: 18.1 | D15: 17.5 | E15: 17.8 | F15: 17.2 | G15: 17.55 | H15: 16.95 | I15: 17.35 | J15: 16.75 | K15: 17.2 | L15: 16.6 | M15: 17 | N15: 16.4 | O15: 16.8 | P15: 16.2 | R15: 1.016853933 | S15: 1 | T15: 0.9859550562 | U15: 0.9747191011 | V15: 0.9662921348 | W15: 0.9550561798 | X15: 0.9438202247 | Y15: 0.9668508287 | Z15: 0.9662921348 | AA15: 0.9658119658 | AB15: 0.9654178674 | AC15: 0.9651162791 | AD15: 0.9647058824 | AE15: 0.9642857143 | AF15: 1 | AG15: 1 | AH15: 1 | AI15: 1 | AJ15: 1 | AK15: 1 | AL15: 1 | AM15: 17.5 | AN15: 17.2 | AO15: 16.95 | AP15: 16.75 | AQ15: 16.6 | AR15: 16.4 | AS15: 16.2
A16: 80 | B16: 71 | C16: 19.9 | D16: 10.5 | E16: 19.45 | F16: 10.3 | G16: 19 | H16: 10.1 | I16: 18.5 | J16: 9.85 | K16: 18 | L16: 9.6 | M16: 17.55 | N16: 9.35 | O16: 17.1 | P16: 9.1 | R16: 1.117977528 | S16: 1.092696629 | T16: 1.06741573 | U16: 1.039325843 | V16: 1.011235955 | W16: 0.9859550562 | X16: 0.9606741573 | Y16: 0.527638191 | Z16: 0.529562982 | AA16: 0.5315789474 | AB16: 0.5324324324 | AC16: 0.5333333333 | AD16: 0.5327635328 | AE16: 0.5321637427 | AF16: 1 | AG16: 1 | AH16: 1 | AI16: 1 | AJ16: 1 | AK16: 1 | AL16: 1 | AM16: 10.5 | AN16: 10.3 | AO16: 10.1 | AP16: 9.85 | AQ16: 9.6 | AR16: 9.35 | AS16: 9.1
B17: 67 | C17: 18.7 | D17: 12.7 | E17: 18.25 | F17: 12.5 | G17: 17.8 | H17: 12.3 | I17: 17.3 | J17: 12.05 | K17: 16.8 | L17: 11.8 | M17: 16.35 | N17: 11.6 | O17: 15.9 | P17: 11.4 | R17: 1.050561798 | S17: 1.025280899 | T17: 1 | U17: 0.9719101124 | V17: 0.9438202247 | W17: 0.9185393258 | X17: 0.893258427 | Y17: 0.679144385 | Z17: 0.6849315068 | AA17: 0.691011236 | AB17: 0.6965317919 | AC17: 0.7023809524 | AD17: 0.7094801223 | AE17: 0.7169811321 | AF17: 1 | AG17: 1 | AH17: 1 | AI17: 1 | AJ17: 1 | AK17: 1 | AL17: 1 | AM17: 12.7 | AN17: 12.5 | AO17: 12.3 | AP17: 12.05 | AQ17: 11.8 | AR17: 11.6 | AS17: 11.4
B18: 63 | C18: 18.6 | D18: 15.6 | E18: 18.1 | F18: 15.35 | G18: =T18*$G$17 -> 17.6 | H18: 15.1 | I18: 17.15 | J18: 14.9 | K18: 16.7 | L18: 14.7 | M18: 16.2 | N18: 14.45 | O18: 15.7 | P18: 14.2 | R18: 1.04494382 | S18: 1.016853933 | T18: 0.9887640449 | U18: 0.9634831461 | V18: 0.9382022472 | W18: 0.9101123596 | X18: 0.8820224719 | Y18: 0.8387096774 | Z18: 0.8480662983 | AA18: 0.8579545455 | AB18: 0.8688046647 | AC18: 0.880239521 | AD18: 0.8919753086 | AE18: 0.9044585987 | AF18: 1 | AG18: 1 | AH18: 1 | AI18: 1 | AJ18: 1 | AK18: 1 | AL18: 1 | AM18: 15.6 | AN18: 15.35 | AO18: 15.1 | AP18: 14.9 | AQ18: 14.7 | AR18: 14.45 | AS18: 14.2
B19: 59 | C19: 19.7 | D19: 19.1 | E19: 19.25 | F19: 18.65 | G19: =T19*$G$17 -> 18.8 | H19: 18.2 | I19: 18.3 | J19: 17.7 | K19: 17.8 | L19: 17.2 | M19: 17.3 | N19: 16.75 | O19: 16.8 | P19: 16.3 | R19: 1.106741573 | S19: 1.081460674 | T19: 1.056179775 | U19: 1.028089888 | V19: 1 | W19: 0.9719101124 | X19: 0.9438202247 | Y19: 0.9695431472 | Z19: 0.9688311688 | AA19: 0.9680851064 | AB19: 0.9672131148 | AC19: 0.9662921348 | AD19: 0.9682080925 | AE19: 0.9702380952 | AF19: 1 | AG19: 1 | AH19: 1 | AI19: 1 | AJ19: 1 | AK19: 1 | AL19: 1 | AM19: 19.1 | AN19: 18.65 | AO19: 18.2 | AP19: 17.7 | AQ19: 17.2 | AR19: 16.75 | AS19: 16.3

Sheet RANL_24 (hidden)
A2: RANL_24
A3: Evaporator Air Flow | C3: Condenser Entering Air Temperature ˚F
A4: 725 | B4: CFM | C4: 85 | E4: 90 | G4: 95 | I4: 100 | K4: 105 | M4: 110 | O4: 115
A5: Evap. Air °F DB | B5: EWB† ˚F | C5: Capacity Mbtuh | E5: Capacity Mbtuh | G5: Capacity Mbtuh | I5: Capacity Mbtuh | K5: Capacity Mbtuh | M5: Capacity Mbtuh | O5: Capacity Mbtuh
C6: Total | D6: Sens. | E6: Total | F6: Sens. | G6: Total | H6: Sens. | I6: Total | J6: Sens. | K6: Total | L6: Sens. | M6: Total | N6: Sens. | O6: Total | P6: Sens.
R7: Total Factors | Y7: Sens. % | AF7: IDB Adj | AM7: Sens Calc
A8: 72 | B8: 71 | C8: =R8*$G$17 -> 23.5 | D8: =IF(AM8>C8,C8,AM8) -> 8.2 | E8: =S8*$G$17 -> 22.85 | F8: =IF(AN8>E8,E8,AN8) -> 7.95 | G8: =T8*$G$17 -> 22.2 | H8: =IF(AO8>G8,G8,AO8) -> 7.7 | I8: =U8*$G$17 -> 21.45 | J8: =IF(AP8>I8,I8,AP8) -> 7.35 | K8: =V8*$G$17 -> 20.7 | L8: =IF(AQ8>K8,K8,AQ8) -> 7 | M8: =W8*$G$17 -> 20.85 | N8: =IF(AR8>M8,M8,AR8) -> 6.8 | O8: =X8*$G$17 -> 21 | P8: =IF(AS8>O8,O8,AS8) -> 6.6 | R8: 1.030701754 | S8: 1.002192982 | T8: 0.9736842105 | U8: 0.9407894737 | V8: 0.9078947368 | W8: 0.9144736842 | X8: 0.9210526316 | Y8: 0.3489361702 | Z8: 0.3479212254 | AA8: 0.3468468468 | AB8: 0.3426573427 | AC8: 0.3381642512 | AD8: 0.3261390887 | AE8: 0.3142857143 | AF8: 1 | AG8: 1 | AH8: 1 | AI8: 1 | AJ8: 1 | AK8: 1 | AL8: 1 | AM8: =Y8*C8*AF8 -> 8.2 | AN8: =Z8*E8*AG8 -> 7.95 | AO8: =AA8*G8*AH8 -> 7.7 | AP8: =AB8*I8*AI8 -> 7.35 | AQ8: =AC8*K8*AJ8 -> 7 | AR8: =AD8*M8*AK8 -> 6.8 | AS8: =AE8*O8*AL8 -> 6.6
B9: 67 | C9: =R9*$G$17 -> 22.1 | D9: 11 | E9: =S9*$G$17 -> 21.4 | F9: =IF(AN9>E9,E9,AN9) -> 10.75 | G9: =T9*$G$17 -> 20.7 | H9: =IF(AO9>G9,G9,AO9) -> 10.5 | I9: =U9*$G$17 -> 20.5 | J9: =IF(AP9>I9,I9,AP9) -> 10.4 | K9: =V9*$G$17 -> 20.3 | L9: =IF(AQ9>K9,K9,AQ9) -> 10.3 | M9: =W9*$G$17 -> 19.85 | N9: =IF(AR9>M9,M9,AR9) -> 9.95 | O9: =X9*$G$17 -> 19.4 | P9: =IF(AS9>O9,O9,AS9) -> 9.6 | R9: 0.9692982456 | S9: 0.9385964912 | T9: 0.9078947368 | U9: 0.899122807 | V9: 0.8903508772 | W9: 0.8706140351 | X9: 0.850877193 | Y9: 0.4977375566 | Z9: 0.5023364486 | AA9: 0.5072463768 | AB9: 0.5073170732 | AC9: 0.5073891626 | AD9: 0.5012594458 | AE9: 0.4948453608 | AF9: 1 | AG9: 1 | AH9: 1 | AI9: 1 | AJ9: 1 | AK9: 1 | AL9: 1 | AM9: =Y9*C9*AF9 -> 11 | AN9: =Z9*E9*AG9 -> 10.75 | AO9: =AA9*G9*AH9 -> 10.5 | AP9: =AB9*I9*AI9 -> 10.4 | AQ9: =AC9*K9*AJ9 -> 10.3 | AR9: =AD9*M9*AK9 -> 9.95 | AS9: =AE9*O9*AL9 -> 9.6
B10: 63 | C10: 22.5 | D10: 14.8 | E10: 21.75 | F10: 14.5 | G10: 21 | H10: 14.2 | I10: 20.25 | J10: 13.8 | K10: 19.5 | L10: 13.4 | M10: 18.6 | N10: 12.85 | O10: 17.7 | P10: 12.3 | R10: 0.9868421053 | S10: 0.9539473684 | T10: 0.9210526316 | U10: 0.8881578947 | V10: 0.8552631579 | W10: 0.8157894737 | X10: 0.7763157895 | Y10: 0.6577777778 | Z10: 0.6666666667 | AA10: 0.6761904762 | AB10: 0.6814814815 | AC10: 0.6871794872 | AD10: 0.6908602151 | AE10: 0.6949152542 | AF10: 1 | AG10: 1 | AH10: 1 | AI10: 1 | AJ10: 1 | AK10: 1 | AL10: 1 | AM10: 14.8 | AN10: 14.5 | AO10: 14.2 | AP10: 13.8 | AQ10: 13.4 | AR10: 12.85 | AS10: 12.3
B11: 59 | C11: 20.7 | D11: 17.7 | E11: 19.95 | F11: 17.05 | G11: 19.2 | H11: 16.4 | I11: 18.35 | J11: 15.7 | K11: 17.5 | L11: 15 | M11: 16.65 | N11: 14.25 | O11: 15.8 | P11: 13.5 | R11: 0.9078947368 | S11: 0.875 | T11: 0.8421052632 | U11: 0.8048245614 | V11: 0.7675438596 | W11: 0.7302631579 | X11: 0.6929824561 | Y11: 0.8550724638 | Z11: 0.8546365915 | AA11: 0.8541666667 | AB11: 0.8555858311 | AC11: 0.8571428571 | AD11: 0.8558558559 | AE11: 0.8544303797 | AF11: 1 | AG11: 1 | AH11: 1 | AI11: 1 | AJ11: 1 | AK11: 1 | AL11: 1 | AM11: 17.7 | AN11: 17.05 | AO11: 16.4 | AP11: 15.7 | AQ11: 15 | AR11: 14.25 | AS11: 13.5
A12: 76 | B12: 71 | C12: 26 | D12: 10.85 | E12: 25.25 | F12: 10.45 | G12: 24.45 | H12: 10.1 | I12: 23.65 | J12: 9.65 | K12: 22.85 | L12: 9.2 | M12: 21.95 | N12: 8.6 | O12: 21.1 | P12: 8.05 | R12: 1.140350877 | S12: 1.10745614 | T12: 1.072368421 | U12: 1.037280702 | V12: 1.002192982 | W12: 0.9627192982 | X12: 0.9254385965 | Y12: 0.4173076923 | Z12: 0.4138613861 | AA12: 0.4130879346 | AB12: 0.4080338266 | AC12: 0.4026258206 | AD12: 0.3917995444 | AE12: 0.3815165877 | AF12: 1 | AG12: 1 | AH12: 1 | AI12: 1 | AJ12: 1 | AK12: 1 | AL12: 1 | AM12: 10.85 | AN12: 10.45 | AO12: 10.1 | AP12: 9.65 | AQ12: 9.2 | AR12: 8.6 | AS12: 8.05
B13: 67 | C13: 24.4 | D13: 13.95 | E13: 23.65 | F13: 13.6 | G13: =T13*$G$17 -> 22.85 | H13: 13.25 | I13: 22.05 | J13: 12.75 | K13: 21.2 | L13: 12.3 | M13: 20.35 | N13: 11.7 | O13: 19.5 | P13: 11.05 | R13: 1.070175439 | S13: 1.037280702 | T13: 1.002192982 | U13: 0.9671052632 | V13: 0.9298245614 | W13: 0.8925438596 | X13: 0.8552631579 | Y13: 0.5717213115 | Z13: 0.5750528541 | AA13: 0.579868709 | AB13: 0.5782312925 | AC13: 0.5801886792 | AD13: 0.5749385749 | AE13: 0.5666666667 | AF13: 1 | AG13: 1 | AH13: 1 | AI13: 1 | AJ13: 1 | AK13: 1 | AL13: 1 | AM13: 13.95 | AN13: 13.6 | AO13: 13.25 | AP13: 12.75 | AQ13: 12.3 | AR13: 11.7 | AS13: 11.05
B14: 63 | C14: 22.5 | D14: 17.85 | E14: 21.8 | F14: 17.5 | G14: 21.1 | H14: 17.15 | I14: 20.25 | J14: 16.6 | K14: 19.4 | L14: 16.05 | M14: 18.55 | N14: 15.45 | O14: 17.7 | P14: 14.8 | R14: 0.9868421053 | S14: 0.9561403509 | T14: 0.9254385965 | U14: 0.8881578947 | V14: 0.850877193 | W14: 0.8135964912 | X14: 0.7763157895 | Y14: 0.7933333333 | Z14: 0.8027522936 | AA14: 0.8127962085 | AB14: 0.8197530864 | AC14: 0.8273195876 | AD14: 0.832884097 | AE14: 0.8361581921 | AF14: 1 | AG14: 1 | AH14: 1 | AI14: 1 | AJ14: 1 | AK14: 1 | AL14: 1 | AM14: 17.85 | AN14: 17.5 | AO14: 17.15 | AP14: 16.6 | AQ14: 16.05 | AR14: 15.45 | AS14: 14.8
B15: 59 | C15: 20.7 | D15: 19.95 | E15: 19.9 | F15: 19.2 | G15: 19.1 | H15: 18.45 | I15: 18.35 | J15: 17.65 | K15: 17.55 | L15: 16.9 | M15: 16.65 | N15: 16.05 | O15: 15.75 | P15: 15.15 | R15: 0.9078947368 | S15: 0.8728070175 | T15: 0.8377192982 | U15: 0.8048245614 | V15: 0.7697368421 | W15: 0.7302631579 | X15: 0.6907894737 | Y15: 0.9637681159 | Z15: 0.9648241206 | AA15: 0.9659685864 | AB15: 0.961852861 | AC15: 0.962962963 | AD15: 0.963963964 | AE15: 0.9619047619 | AF15: 1 | AG15: 1 | AH15: 1 | AI15: 1 | AJ15: 1 | AK15: 1 | AL15: 1 | AM15: 19.95 | AN15: 19.2 | AO15: 18.45 | AP15: 17.65 | AQ15: 16.9 | AR15: 16.05 | AS15: 15.15
A16: 80 | B16: 71 | C16: 26 | D16: 14.3 | E16: 25.25 | F16: 13.85 | G16: 24.5 | H16: 13.4 | I16: 23.65 | J16: 12.8 | K16: 22.8 | L16: 12.2 | M16: 21.9 | N16: 11.5 | O16: 21 | P16: 10.8 | R16: 1.140350877 | S16: 1.10745614 | T16: 1.074561404 | U16: 1.037280702 | V16: 1 | W16: 0.9605263158 | X16: 0.9210526316 | Y16: 0.55 | Z16: 0.5485148515 | AA16: 0.5469387755 | AB16: 0.5412262156 | AC16: 0.5350877193 | AD16: 0.5251141553 | AE16: 0.5142857143 | AF16: 1 | AG16: 1 | AH16: 1 | AI16: 1 | AJ16: 1 | AK16: 1 | AL16: 1 | AM16: 14.3 | AN16: 13.85 | AO16: 13.4 | AP16: 12.8 | AQ16: 12.2 | AR16: 11.5 | AS16: 10.8
B17: 67 | C17: 24.3 | D17: 17 | E17: 23.55 | F17: 16.55 | G17: 22.8 | H17: 16.1 | I17: 22 | J17: 15.55 | K17: 21.2 | L17: 15 | M17: 20.35 | N17: 14.3 | O17: 19.5 | P17: 13.6 | R17: 1.065789474 | S17: 1.032894737 | T17: 1 | U17: 0.9649122807 | V17: 0.9298245614 | W17: 0.8925438596 | X17: 0.8552631579 | Y17: 0.6995884774 | Z17: 0.7027600849 | AA17: 0.7061403509 | AB17: 0.7068181818 | AC17: 0.7075471698 | AD17: 0.7027027027 | AE17: 0.6974358974 | AF17: 1 | AG17: 1 | AH17: 1 | AI17: 1 | AJ17: 1 | AK17: 1 | AL17: 1 | AM17: 17 | AN17: 16.55 | AO17: 16.1 | AP17: 15.55 | AQ17: 15 | AR17: 14.3 | AS17: 13.6
B18: 63 | C18: 22.6 | D18: 19.3 | E18: 21.8 | F18: 18.85 | G18: =T18*$G$17 -> 21 | H18: 18.4 | I18: 20.25 | J18: 17.85 | K18: 19.5 | L18: 17.3 | M18: 18.6 | N18: 16.6 | O18: 17.7 | P18: 15.9 | R18: 0.9912280702 | S18: 0.9561403509 | T18: 0.9210526316 | U18: 0.8881578947 | V18: 0.8552631579 | W18: 0.8157894737 | X18: 0.7763157895 | Y18: 0.8539823009 | Z18: 0.8646788991 | AA18: 0.8761904762 | AB18: 0.8814814815 | AC18: 0.8871794872 | AD18: 0.8924731183 | AE18: 0.8983050847 | AF18: 1 | AG18: 1 | AH18: 1 | AI18: 1 | AJ18: 1 | AK18: 1 | AL18: 1 | AM18: 19.3 | AN18: 18.85 | AO18: 18.4 | AP18: 17.85 | AQ18: 17.3 | AR18: 16.6 | AS18: 15.9
B19: 59 | C19: 20.6 | D19: 19.9 | E19: 19.9 | F19: 19.2 | G19: =T19*$G$17 -> 19.2 | H19: 18.5 | I19: 18.35 | J19: 17.7 | K19: 17.5 | L19: 16.9 | M19: 16.65 | N19: 16.05 | O19: 15.8 | P19: 15.2 | R19: 0.9035087719 | S19: 0.8728070175 | T19: 0.8421052632 | U19: 0.8048245614 | V19: 0.7675438596 | W19: 0.7302631579 | X19: 0.6929824561 | Y19: 0.9660194175 | Z19: 0.9648241206 | AA19: 0.9635416667 | AB19: 0.9645776567 | AC19: 0.9657142857 | AD19: 0.963963964 | AE19: 0.9620253165 | AF19: 1 | AG19: 1 | AH19: 1 | AI19: 1 | AJ19: 1 | AK19: 1 | AL19: 1 | AM19: 19.9 | AN19: 19.2 | AO19: 18.5 | AP19: 17.7 | AQ19: 16.9 | AR19: 16.05 | AS19: 15.2

Sheet RANL_37 (hidden)
A2: RANL_37
A3: Evaporator Air Flow | C3: Condenser Entering Air Temperature ˚F
A4: 1025 | B4: CFM | C4: 85 | E4: 90 | G4: 95 | I4: 100 | K4: 105 | M4: 110 | O4: 115
A5: Evap. Air °F DB | B5: EWB† ˚F | C5: Capacity Mbtuh | E5: Capacity Mbtuh | G5: Capacity Mbtuh | I5: Capacity Mbtuh | K5: Capacity Mbtuh | M5: Capacity Mbtuh | O5: Capacity Mbtuh
C6: Total | D6: Sens. | E6: Total | F6: Sens. | G6: Total | H6: Sens. | I6: Total | J6: Sens. | K6: Total | L6: Sens. | M6: Total | N6: Sens. | O6: Total | P6: Sens.
R7: Total Factors | Y7: Sens. % | AF7: IDB Adj | AM7: Sens Calc
A8: 72 | B8: 71 | C8: =R8*$G$17 -> 41.4 | D8: =IF(AM8>C8,C8,AM8) -> 11.9 | E8: =S8*$G$17 -> 40.8 | F8: =IF(AN8>E8,E8,AN8) -> 11.9 | G8: =T8*$G$17 -> 40.2 | H8: =IF(AO8>G8,G8,AO8) -> 11.9 | I8: =U8*$G$17 -> 39.1 | J8: =IF(AP8>I8,I8,AP8) -> 11.6 | K8: =V8*$G$17 -> 38 | L8: =IF(AQ8>K8,K8,AQ8) -> 11.3 | M8: =W8*$G$17 -> 36.55 | N8: =IF(AR8>M8,M8,AR8) -> 10.8 | O8: =X8*$G$17 -> 35.1 | P8: =IF(AS8>O8,O8,AS8) -> 10.3 | R8: 1.109919571 | S8: 1.09383378 | T8: 1.077747989 | U8: 1.048257373 | V8: 1.018766756 | W8: 0.9798927614 | X8: 0.9410187668 | Y8: 0.2874396135 | Z8: 0.2916666667 | AA8: 0.2960199005 | AB8: 0.2966751918 | AC8: 0.2973684211 | AD8: 0.2954856361 | AE8: 0.2934472934 | AF8: 1 | AG8: 1 | AH8: 1 | AI8: 1 | AJ8: 1 | AK8: 1 | AL8: 1 | AM8: =Y8*C8*AF8 -> 11.9 | AN8: =Z8*E8*AG8 -> 11.9 | AO8: =AA8*G8*AH8 -> 11.9 | AP8: =AB8*I8*AI8 -> 11.6 | AQ8: =AC8*K8*AJ8 -> 11.3 | AR8: =AD8*M8*AK8 -> 10.8 | AS8: =AE8*O8*AL8 -> 10.3
B9: 67 | C9: =R9*$G$17 -> 38.7 | D9: 16.9 | E9: =S9*$G$17 -> 38.05 | F9: =IF(AN9>E9,E9,AN9) -> 16.85 | G9: =T9*$G$17 -> 37.4 | H9: =IF(AO9>G9,G9,AO9) -> 16.8 | I9: =U9*$G$17 -> 36.3 | J9: =IF(AP9>I9,I9,AP9) -> 16.5 | K9: =V9*$G$17 -> 35.2 | L9: =IF(AQ9>K9,K9,AQ9) -> 16.2 | M9: =W9*$G$17 -> 33.75 | N9: =IF(AR9>M9,M9,AR9) -> 15.7 | O9: =X9*$G$17 -> 32.3 | P9: =IF(AS9>O9,O9,AS9) -> 15.2 | R9: 1.037533512 | S9: 1.020107239 | T9: 1.002680965 | U9: 0.9731903485 | V9: 0.9436997319 | W9: 0.9048257373 | X9: 0.8659517426 | Y9: 0.4366925065 | Z9: 0.4428383706 | AA9: 0.449197861 | AB9: 0.4545454545 | AC9: 0.4602272727 | AD9: 0.4651851852 | AE9: 0.4705882353 | AF9: 1 | AG9: 1 | AH9: 1 | AI9: 1 | AJ9: 1 | AK9: 1 | AL9: 1 | AM9: =Y9*C9*AF9 -> 16.9 | AN9: =Z9*E9*AG9 -> 16.85 | AO9: =AA9*G9*AH9 -> 16.8 | AP9: =AB9*I9*AI9 -> 16.5 | AQ9: =AC9*K9*AJ9 -> 16.2 | AR9: =AD9*M9*AK9 -> 15.7 | AS9: =AE9*O9*AL9 -> 15.2
B10: 63 | C10: 35.9 | D10: 21.2 | E10: 35.25 | F10: 21.2 | G10: 34.6 | H10: 21.2 | I10: 33.55 | J10: 20.9 | K10: 32.5 | L10: 20.6 | M10: 31.05 | N10: 20.1 | O10: 29.6 | P10: 19.6 | R10: 0.9624664879 | S10: 0.9450402145 | T10: 0.927613941 | U10: 0.899463807 | V10: 0.8713136729 | W10: 0.8324396783 | X10: 0.7935656836 | Y10: 0.5905292479 | Z10: 0.6014184397 | AA10: 0.612716763 | AB10: 0.6229508197 | AC10: 0.6338461538 | AD10: 0.6473429952 | AE10: 0.6621621622 | AF10: 1 | AG10: 1 | AH10: 1 | AI10: 1 | AJ10: 1 | AK10: 1 | AL10: 1 | AM10: 21.2 | AN10: 21.2 | AO10: 21.2 | AP10: 20.9 | AQ10: 20.6 | AR10: 20.1 | AS10: 19.6
B11: 59 | C11: 31.5 | D11: 26.7 | E11: 31.3 | F11: 26.6 | G11: 31.1 | H11: 26.5 | I11: 30.5 | J11: 26 | K11: 29.9 | L11: 25.5 | M11: 28.4 | N11: 24.2 | O11: 26.9 | P11: 22.9 | R11: 0.8445040214 | S11: 0.8391420912 | T11: 0.8337801609 | U11: 0.81769437 | V11: 0.8016085791 | W11: 0.7613941019 | X11: 0.7211796247 | Y11: 0.8476190476 | Z11: 0.8498402556 | AA11: 0.8520900322 | AB11: 0.8524590164 | AC11: 0.8528428094 | AD11: 0.8521126761 | AE11: 0.8513011152 | AF11: 1 | AG11: 1 | AH11: 1 | AI11: 1 | AJ11: 1 | AK11: 1 | AL11: 1 | AM11: 26.7 | AN11: 26.6 | AO11: 26.5 | AP11: 26 | AQ11: 25.5 | AR11: 24.2 | AS11: 22.9
A12: 76 | B12: 71 | C12: 41.4 | D12: 14.65 | E12: 40.8 | F12: 14.6 | G12: 40.15 | H12: 14.55 | I12: 39.1 | J12: 14.2 | K12: 38 | L12: 13.85 | M12: 36.5 | N12: 13.2 | O12: 35.05 | P12: 12.6 | R12: 1.109919571 | S12: 1.09383378 | T12: 1.076407507 | U12: 1.048257373 | V12: 1.018766756 | W12: 0.9785522788 | X12: 0.9396782842 | Y12: 0.3538647343 | Z12: 0.3578431373 | AA12: 0.3623910336 | AB12: 0.3631713555 | AC12: 0.3644736842 | AD12: 0.3616438356 | AE12: 0.3594864479 | AF12: 1 | AG12: 1 | AH12: 1 | AI12: 1 | AJ12: 1 | AK12: 1 | AL12: 1 | AM12: 14.65 | AN12: 14.6 | AO12: 14.55 | AP12: 14.2 | AQ12: 13.85 | AR12: 13.2 | AS12: 12.6
B13: 67 | C13: 38.65 | D13: 19.7 | E13: 38 | F13: 19.6 | G13: =T13*$G$17 -> 37.3 | H13: 19.45 | I13: 36.25 | J13: 19.15 | K13: 35.15 | L13: 18.8 | M13: 33.75 | N13: 18.2 | O13: 32.3 | P13: 17.55 | R13: 1.036193029 | S13: 1.018766756 | T13: 1 | U13: 0.971849866 | V13: 0.9423592493 | W13: 0.9048257373 | X13: 0.8659517426 | Y13: 0.509702458 | Z13: 0.5157894737 | AA13: 0.5214477212 | AB13: 0.5282758621 | AC13: 0.5348506401 | AD13: 0.5392592593 | AE13: 0.5433436533 | AF13: 1 | AG13: 1 | AH13: 1 | AI13: 1 | AJ13: 1 | AK13: 1 | AL13: 1 | AM13: 19.7 | AN13: 19.6 | AO13: 19.45 | AP13: 19.15 | AQ13: 18.8 | AR13: 18.2 | AS13: 17.55
B14: 63 | C14: 35.8 | D14: 26.15 | E14: 35.15 | F14: 26 | G14: 34.55 | H14: 25.9 | I14: 33.5 | J14: 25.5 | K14: 32.45 | L14: 25.1 | M14: 31 | N14: 24.4 | O14: 29.55 | P14: 23.7 | R14: 0.9597855228 | S14: 0.9423592493 | T14: 0.9262734584 | U14: 0.8981233244 | V14: 0.8699731903 | W14: 0.8310991957 | X14: 0.7922252011 | Y14: 0.7304469274 | Z14: 0.7396870555 | AA14: 0.7496382055 | AB14: 0.7611940299 | AC14: 0.7734976888 | AD14: 0.7870967742 | AE14: 0.8020304569 | AF14: 1 | AG14: 1 | AH14: 1 | AI14: 1 | AJ14: 1 | AK14: 1 | AL14: 1 | AM14: 26.15 | AN14: 26 | AO14: 25.9 | AP14: 25.5 | AQ14: 25.1 | AR14: 24.4 | AS14: 23.7
B15: 59 | C15: 32.65 | D15: 31.1 | E15: 32.25 | F15: 30.8 | G15: 31.85 | H15: 30.45 | I15: 30.85 | J15: 29.5 | K15: 29.85 | L15: 28.55 | M15: 28.4 | N15: 27.15 | O15: 26.9 | P15: 25.75 | R15: 0.8753351206 | S15: 0.8646112601 | T15: 0.8538873995 | U15: 0.827077748 | V15: 0.8002680965 | W15: 0.7613941019 | X15: 0.7211796247 | Y15: 0.9525267994 | Z15: 0.9550387597 | AA15: 0.956043956 | AB15: 0.9562398703 | AC15: 0.9564489112 | AD15: 0.9559859155 | AE15: 0.9572490706 | AF15: 1 | AG15: 1 | AH15: 1 | AI15: 1 | AJ15: 1 | AK15: 1 | AL15: 1 | AM15: 31.1 | AN15: 30.8 | AO15: 30.45 | AP15: 29.5 | AQ15: 28.55 | AR15: 27.15 | AS15: 25.75
A16: 80 | B16: 71 | C16: 41.3 | D16: 20.1 | E16: 40.65 | F16: 19.95 | G16: 40 | H16: 19.8 | I16: 39 | J16: 19.35 | K16: 38 | L16: 18.9 | M16: 36.55 | N16: 18.1 | O16: 35.1 | P16: 17.3 | R16: 1.107238606 | S16: 1.089812332 | T16: 1.072386059 | U16: 1.045576408 | V16: 1.018766756 | W16: 0.9798927614 | X16: 0.9410187668 | Y16: 0.4866828087 | Z16: 0.4907749077 | AA16: 0.495 | AB16: 0.4961538462 | AC16: 0.4973684211 | AD16: 0.4952120383 | AE16: 0.4928774929 | AF16: 1 | AG16: 1 | AH16: 1 | AI16: 1 | AJ16: 1 | AK16: 1 | AL16: 1 | AM16: 20.1 | AN16: 19.95 | AO16: 19.8 | AP16: 19.35 | AQ16: 18.9 | AR16: 18.1 | AS16: 17.3
B17: 67 | C17: 38.6 | D17: 24.5 | E17: 37.95 | F17: 24.35 | G17: 37.3 | H17: 24.2 | I17: 36.2 | J17: 23.7 | K17: 35.1 | L17: 23.2 | M17: 33.65 | N17: 22.4 | O17: 32.2 | P17: 21.6 | R17: 1.034852547 | S17: 1.017426273 | T17: 1 | U17: 0.9705093834 | V17: 0.9410187668 | W17: 0.9021447721 | X17: 0.8632707775 | Y17: 0.6347150259 | Z17: 0.6416337286 | AA17: 0.6487935657 | AB17: 0.6546961326 | AC17: 0.660968661 | AD17: 0.6656760773 | AE17: 0.6708074534 | AF17: 1 | AG17: 1 | AH17: 1 | AI17: 1 | AJ17: 1 | AK17: 1 | AL17: 1 | AM17: 24.5 | AN17: 24.35 | AO17: 24.2 | AP17: 23.7 | AQ17: 23.2 | AR17: 22.4 | AS17: 21.6
B18: 63 | C18: 35.8 | D18: 28.3 | E18: 35.15 | F18: 28.15 | G18: =T18*$G$17 -> 34.5 | H18: 28 | I18: 33.45 | J18: 27.5 | K18: 32.4 | L18: 27 | M18: 30.9 | N18: 26.2 | O18: 29.4 | P18: 25.4 | R18: 0.9597855228 | S18: 0.9423592493 | T18: 0.9249329759 | U18: 0.8967828418 | V18: 0.8686327078 | W18: 0.8284182306 | X18: 0.7882037534 | Y18: 0.7905027933 | Z18: 0.8008534851 | AA18: 0.8115942029 | AB18: 0.822122571 | AC18: 0.8333333333 | AD18: 0.8478964401 | AE18: 0.8639455782 | AF18: 1 | AG18: 1 | AH18: 1 | AI18: 1 | AJ18: 1 | AK18: 1 | AL18: 1 | AM18: 28.3 | AN18: 28.15 | AO18: 28 | AP18: 27.5 | AQ18: 27 | AR18: 26.2 | AS18: 25.4
B19: 59 | C19: 33.2 | D19: 31.7 | E19: 32.6 | F19: 31.2 | G19: =T19*$G$17 -> 32 | H19: 30.7 | I19: 30.9 | J19: 29.65 | K19: 29.8 | L19: 28.6 | M19: 28.35 | N19: 27.2 | O19: 26.9 | P19: 25.8 | R19: 0.890080429 | S19: 0.8739946381 | T19: 0.8579088472 | U19: 0.8284182306 | V19: 0.7989276139 | W19: 0.7600536193 | X19: 0.7211796247 | Y19: 0.9548192771 | Z19: 0.9570552147 | AA19: 0.959375 | AB19: 0.9595469256 | AC19: 0.9597315436 | AD19: 0.9594356261 | AE19: 0.9591078067 | AF19: 1 | AG19: 1 | AH19: 1 | AI19: 1 | AJ19: 1 | AK19: 1 | AL19: 1 | AM19: 31.7 | AN19: 31.2 | AO19: 30.7 | AP19: 29.65 | AQ19: 28.6 | AR19: 27.2 | AS19: 25.8

Sheet RANL_43 (hidden)
A2: RANL_43
A3: Evaporator Air Flow | C3: Condenser Entering Air Temperature ˚F
A4: 1150 | B4: CFM | C4: 85 | E4: 90 | G4: 95 | I4: 100 | K4: 105 | M4: 110 | O4: 115
A5: Evap. Air °F DB | B5: EWB† ˚F | C5: Capacity Mbtuh | E5: Capacity Mbtuh | G5: Capacity Mbtuh | I5: Capacity Mbtuh | K5: Capacity Mbtuh | M5: Capacity Mbtuh | O5: Capacity Mbtuh
C6: Total | D6: Sens. | E6: Total | F6: Sens. | G6: Total | H6: Sens. | I6: Total | J6: Sens. | K6: Total | L6: Sens. | M6: Total | N6: Sens. | O6: Total | P6: Sens.
R7: Total Factors | Y7: Sens. % | AF7: IDB Adj | AM7: Sens Calc
A8: 72 | B8: 71 | C8: =R8*$G$17 -> 40.6 | D8: =IF(AM8>C8,C8,AM8) -> 14.8 | E8: =S8*$G$17 -> 39.65 | F8: =IF(AN8>E8,E8,AN8) -> 14.6 | G8: =T8*$G$17 -> 38.7 | H8: =IF(AO8>G8,G8,AO8) -> 14.4 | I8: =U8*$G$17 -> 37.7 | J8: =IF(AP8>I8,I8,AP8) -> 14.15 | K8: =V8*$G$17 -> 36.7 | L8: =IF(AQ8>K8,K8,AQ8) -> 13.9 | M8: =W8*$G$17 -> 35.75 | N8: =IF(AR8>M8,M8,AR8) -> 13.65 | O8: =X8*$G$17 -> 34.8 | P8: =IF(AS8>O8,O8,AS8) -> 13.4 | R8: 1.015 | S8: 0.99125 | T8: 0.9675 | U8: 0.9425 | V8: 0.9175 | W8: 0.89375 | X8: 0.87 | Y8: 0.3645320197 | Z8: 0.368221942 | AA8: 0.3720930233 | AB8: 0.375331565 | AC8: 0.378746594 | AD8: 0.3818181818 | AE8: 0.3850574713 | AF8: 1 | AG8: 1 | AH8: 1 | AI8: 1 | AJ8: 1 | AK8: 1 | AL8: 1 | AM8: =Y8*C8*AF8 -> 14.8 | AN8: =Z8*E8*AG8 -> 14.6 | AO8: =AA8*G8*AH8 -> 14.4 | AP8: =AB8*I8*AI8 -> 14.15 | AQ8: =AC8*K8*AJ8 -> 13.9 | AR8: =AD8*M8*AK8 -> 13.65 | AS8: =AE8*O8*AL8 -> 13.4
B9: 67 | C9: =R9*$G$17 -> 38.3 | D9: 19.2 | E9: =S9*$G$17 -> 37.35 | F9: =IF(AN9>E9,E9,AN9) -> 19 | G9: =T9*$G$17 -> 36.4 | H9: =IF(AO9>G9,G9,AO9) -> 18.8 | I9: =U9*$G$17 -> 35.4 | J9: =IF(AP9>I9,I9,AP9) -> 18.55 | K9: =V9*$G$17 -> 34.4 | L9: =IF(AQ9>K9,K9,AQ9) -> 18.3 | M9: =W9*$G$17 -> 33.35 | N9: =IF(AR9>M9,M9,AR9) -> 18 | O9: =X9*$G$17 -> 32.3 | P9: =IF(AS9>O9,O9,AS9) -> 17.7 | R9: 0.9575 | S9: 0.93375 | T9: 0.91 | U9: 0.885 | V9: 0.86 | W9: 0.83375 | X9: 0.8075 | Y9: 0.501305483 | Z9: 0.5087014726 | AA9: 0.5164835165 | AB9: 0.5240112994 | AC9: 0.5319767442 | AD9: 0.5397301349 | AE9: 0.5479876161 | AF9: 1 | AG9: 1 | AH9: 1 | AI9: 1 | AJ9: 1 | AK9: 1 | AL9: 1 | AM9: =Y9*C9*AF9 -> 19.2 | AN9: =Z9*E9*AG9 -> 19 | AO9: =AA9*G9*AH9 -> 18.8 | AP9: =AB9*I9*AI9 -> 18.55 | AQ9: =AC9*K9*AJ9 -> 18.3 | AR9: =AD9*M9*AK9 -> 18 | AS9: =AE9*O9*AL9 -> 17.7
B10: 63 | C10: 39.7 | D10: 25.5 | E10: 37.65 | F10: 24.6 | G10: 35.6 | H10: 23.7 | I10: 34 | J10: 23.05 | K10: 32.4 | L10: 22.4 | M10: 31.3 | N10: 22.05 | O10: 30.2 | P10: 21.7 | R10: 0.9925 | S10: 0.94125 | T10: 0.89 | U10: 0.85 | V10: 0.81 | W10: 0.7825 | X10: 0.755 | Y10: 0.6423173804 | Z10: 0.6533864542 | AA10: 0.6657303371 | AB10: 0.6779411765 | AC10: 0.6913580247 | AD10: 0.7044728435 | AE10: 0.7185430464 | AF10: 1 | AG10: 1 | AH10: 1 | AI10: 1 | AJ10: 1 | AK10: 1 | AL10: 1 | AM10: 25.5 | AN10: 24.6 | AO10: 23.7 | AP10: 23.05 | AQ10: 22.4 | AR10: 22.05 | AS10: 21.7
B11: 59 | C11: 34.1 | D11: 29.5 | E11: 33.6 | F11: 29.2 | G11: 33.1 | H11: 28.9 | I11: 33.1 | J11: 28.9 | K11: 33.1 | L11: 28.9 | M11: 32.1 | N11: 28 | O11: 31.1 | P11: 27.1 | R11: 0.8525 | S11: 0.84 | T11: 0.8275 | U11: 0.8275 | V11: 0.8275 | W11: 0.8025 | X11: 0.7775 | Y11: 0.8651026393 | Z11: 0.869047619 | AA11: 0.8731117825 | AB11: 0.8731117825 | AC11: 0.8731117825 | AD11: 0.8722741433 | AE11: 0.8713826367 | AF11: 1 | AG11: 1 | AH11: 1 | AI11: 1 | AJ11: 1 | AK11: 1 | AL11: 1 | AM11: 29.5 | AN11: 29.2 | AO11: 28.9 | AP11: 28.9 | AQ11: 28.9 | AR11: 28 | AS11: 27.1
A12: 76 | B12: 71 | C12: 42.05 | D12: 18.15 | E12: 41.05 | F12: 17.85 | G12: 40.05 | H12: 17.6 | I12: 39.05 | J12: 17.25 | K12: 38 | L12: 16.95 | M12: 36.95 | N12: 16.6 | O12: 35.9 | P12: 16.25 | R12: 1.05125 | S12: 1.02625 | T12: 1.00125 | U12: 0.97625 | V12: 0.95 | W12: 0.92375 | X12: 0.8975 | Y12: 0.4316290131 | Z12: 0.4348355664 | AA12: 0.4394506866 | AB12: 0.4417413572 | AC12: 0.4460526316 | AD12: 0.449255751 | AE12: 0.4526462396 | AF12: 1 | AG12: 1 | AH12: 1 | AI12: 1 | AJ12: 1 | AK12: 1 | AL12: 1 | AM12: 18.15 | AN12: 17.85 | AO12: 17.6 | AP12: 17.25 | AQ12: 16.95 | AR12: 16.6 | AS12: 16.25
B13: 67 | C13: 42.3 | D13: 24.3 | E13: 41.2 | F13: 23.95 | G13: =T13*$G$17 -> 40.05 | H13: 23.6 | I13: 38.95 | J13: 23.25 | K13: 37.85 | L13: 22.95 | M13: 36.7 | N13: 22.5 | O13: 35.55 | P13: 22.05 | R13: 1.0575 | S13: 1.03 | T13: 1.00125 | U13: 0.97375 | V13: 0.94625 | W13: 0.9175 | X13: 0.88875 | Y13: 0.5744680851 | Z13: 0.5813106796 | AA13: 0.5892634207 | AB13: 0.5969191271 | AC13: 0.606340819 | AD13: 0.6130790191 | AE13: 0.6202531646 | AF13: 1 | AG13: 1 | AH13: 1 | AI13: 1 | AJ13: 1 | AK13: 1 | AL13: 1 | AM13: 24.3 | AN13: 23.95 | AO13: 23.6 | AP13: 23.25 | AQ13: 22.95 | AR13: 22.5 | AS13: 22.05
B14: 63 | C14: 38.05 | D14: 29.65 | E14: 36.7 | F14: 29.1 | G14: 35.4 | H14: 28.5 | I14: 34.3 | J14: 28.05 | K14: 33.15 | L14: 27.55 | M14: 32.15 | N14: 27.15 | O14: 31.15 | P14: 26.75 | R14: 0.95125 | S14: 0.9175 | T14: 0.885 | U14: 0.8575 | V14: 0.82875 | W14: 0.80375 | X14: 0.77875 | Y14: 0.7792378449 | Z14: 0.7929155313 | AA14: 0.8050847458 | AB14: 0.8177842566 | AC14: 0.8310708899 | AD14: 0.8444790047 | AE14: 0.8587479936 | AF14: 1 | AG14: 1 | AH14: 1 | AI14: 1 | AJ14: 1 | AK14: 1 | AL14: 1 | AM14: 29.65 | AN14: 29.1 | AO14: 28.5 | AP14: 28.05 | AQ14: 27.55 | AR14: 27.15 | AS14: 26.75
B15: 59 | C15: 35.85 | D15: 34.8 | E15: 35.3 | F15: 34.35 | G15: 34.75 | H15: 33.85 | I15: 34 | J15: 33.15 | K15: 33.25 | L15: 32.4 | M15: 32.15 | N15: 31.3 | O15: 31 | P15: 30.2 | R15: 0.89625 | S15: 0.8825 | T15: 0.86875 | U15: 0.85 | V15: 0.83125 | W15: 0.80375 | X15: 0.775 | Y15: 0.9707112971 | Z15: 0.9730878187 | AA15: 0.9741007194 | AB15: 0.975 | AC15: 0.9744360902 | AD15: 0.9735614308 | AE15: 0.9741935484 | AF15: 1 | AG15: 1 | AH15: 1 | AI15: 1 | AJ15: 1 | AK15: 1 | AL15: 1 | AM15: 34.8 | AN15: 34.35 | AO15: 33.85 | AP15: 33.15 | AQ15: 32.4 | AR15: 31.3 | AS15: 30.2
A16: 80 | B16: 71 | C16: 40.6 | D16: 22.9 | E16: 39.9 | F16: 22.65 | G16: 39.2 | H16: 22.4 | I16: 38.6 | J16: 22.2 | K16: 38 | L16: 22 | M16: 37.55 | N16: 21.85 | O16: 37.1 | P16: 21.7 | R16: 1.015 | S16: 0.9975 | T16: 0.98 | U16: 0.965 | V16: 0.95 | W16: 0.93875 | X16: 0.9275 | Y16: 0.5640394089 | Z16: 0.5676691729 | AA16: 0.5714285714 | AB16: 0.5751295337 | AC16: 0.5789473684 | AD16: 0.5818908123 | AE16: 0.5849056604 | AF16: 1 | AG16: 1 | AH16: 1 | AI16: 1 | AJ16: 1 | AK16: 1 | AL16: 1 | AM16: 22.9 | AN16: 22.65 | AO16: 22.4 | AP16: 22.2 | AQ16: 22 | AR16: 21.85 | AS16: 21.7
B17: 67 | C17: 42 | D17: 29.4 | E17: 41 | F17: 29 | G17: 40 | H17: 28.6 | I17: 39 | J17: 28.2 | K17: 38 | L17: 27.8 | M17: 36.85 | N17: 27.25 | O17: 35.7 | P17: 26.7 | R17: 1.05 | S17: 1.025 | T17: 1 | U17: 0.975 | V17: 0.95 | W17: 0.92125 | X17: 0.8925 | Y17: 0.7 | Z17: 0.7073170732 | AA17: 0.715 | AB17: 0.7230769231 | AC17: 0.7315789474 | AD17: 0.7394843962 | AE17: 0.7478991597 | AF17: 1 | AG17: 1 | AH17: 1 | AI17: 1 | AJ17: 1 | AK17: 1 | AL17: 1 | AM17: 29.4 | AN17: 29 | AO17: 28.6 | AP17: 28.2 | AQ17: 27.8 | AR17: 27.25 | AS17: 26.7
B18: 63 | C18: 39.9 | D18: 33.5 | E18: 38.8 | F18: 33.05 | G18: =T18*$G$17 -> 37.7 | H18: 32.6 | I18: 36.6 | J18: 32.1 | K18: 35.5 | L18: 31.6 | M18: 34.4 | N18: 31.1 | O18: 33.3 | P18: 30.6 | R18: 0.9975 | S18: 0.97 | T18: 0.9425 | U18: 0.915 | V18: 0.8875 | W18: 0.86 | X18: 0.8325 | Y18: 0.8395989975 | Z18: 0.8518041237 | AA18: 0.8647214854 | AB18: 0.8770491803 | AC18: 0.8901408451 | AD18: 0.9040697674 | AE18: 0.9189189189 | AF18: 1 | AG18: 1 | AH18: 1 | AI18: 1 | AJ18: 1 | AK18: 1 | AL18: 1 | AM18: 33.5 | AN18: 33.05 | AO18: 32.6 | AP18: 32.1 | AQ18: 31.6 | AR18: 31.1 | AS18: 30.6
B19: 59 | C19: 37.5 | D19: 36.5 | E19: 36.45 | F19: 35.6 | G19: =T19*$G$17 -> 35.4 | H19: 34.7 | I19: 34.3 | J19: 33.65 | K19: 33.2 | L19: 32.6 | M19: 32.1 | N19: 31.5 | O19: 31 | P19: 30.4 | R19: 0.9375 | S19: 0.91125 | T19: 0.885 | U19: 0.8575 | V19: 0.83 | W19: 0.8025 | X19: 0.775 | Y19: 0.9733333333 | Z19: 0.9766803841 | AA19: 0.9802259887 | AB19: 0.9810495627 | AC19: 0.9819277108 | AD19: 0.9813084112 | AE19: 0.9806451613 | AF19: 1 | AG19: 1 | AH19: 1 | AI19: 1 | AJ19: 1 | AK19: 1 | AL19: 1 | AM19: 36.5 | AN19: 35.6 | AO19: 34.7 | AP19: 33.65 | AQ19: 32.6 | AR19: 31.5 | AS19: 30.4

Sheet RANL_49 (hidden)
A2: RANL_49
A3: Evaporator Air Flow | C3: Condenser Entering Air Temperature ˚F
A4: 1300 | B4: CFM | C4: 85 | E4: 90 | G4: 95 | I4: 100 | K4: 105 | M4: 110 | O4: 115
A5: Evap. Air °F DB | B5: EWB† ˚F | C5: Capacity Mbtuh | E5: Capacity Mbtuh | G5: Capacity Mbtuh | I5: Capacity Mbtuh | K5: Capacity Mbtuh | M5: Capacity Mbtuh | O5: Capacity Mbtuh
C6: Total | D6: Sens. | E6: Total | F6: Sens. | G6: Total | H6: Sens. | I6: Total | J6: Sens. | K6: Total | L6: Sens. | M6: Total | N6: Sens. | O6: Total | P6: Sens.
R7: Total Factors | Y7: Sens. % | AF7: IDB Adj | AM7: Sens Calc
A8: 72 | B8: 71 | C8: =R8*$G$17 -> 46.4 | D8: =IF(AM8>C8,C8,AM8) -> 17.2 | E8: =S8*$G$17 -> 45.2 | F8: =IF(AN8>E8,E8,AN8) -> 16.8 | G8: =T8*$G$17 -> 44 | H8: =IF(AO8>G8,G8,AO8) -> 16.4 | I8: =U8*$G$17 -> 42.85 | J8: =IF(AP8>I8,I8,AP8) -> 16.05 | K8: =V8*$G$17 -> 41.7 | L8: =IF(AQ8>K8,K8,AQ8) -> 15.7 | M8: =W8*$G$17 -> 40.45 | N8: =IF(AR8>M8,M8,AR8) -> 15.3 | O8: =X8*$G$17 -> 39.2 | P8: =IF(AS8>O8,O8,AS8) -> 14.9 | R8: 0.9978494624 | S8: 0.9720430108 | T8: 0.9462365591 | U8: 0.9215053763 | V8: 0.8967741935 | W8: 0.8698924731 | X8: 0.8430107527 | Y8: 0.3706896552 | Z8: 0.3716814159 | AA8: 0.3727272727 | AB8: 0.3745624271 | AC8: 0.376498801 | AD8: 0.3782447466 | AE8: 0.3801020408 | AF8: 1 | AG8: 1 | AH8: 1 | AI8: 1 | AJ8: 1 | AK8: 1 | AL8: 1 | AM8: =Y8*C8*AF8 -> 17.2 | AN8: =Z8*E8*AG8 -> 16.8 | AO8: =AA8*G8*AH8 -> 16.4 | AP8: =AB8*I8*AI8 -> 16.05 | AQ8: =AC8*K8*AJ8 -> 15.7 | AR8: =AD8*M8*AK8 -> 15.3 | AS8: =AE8*O8*AL8 -> 14.9
B9: 67 | C9: =R9*$G$17 -> 43.2 | D9: 22.2 | E9: =S9*$G$17 -> 42 | F9: =IF(AN9>E9,E9,AN9) -> 21.8 | G9: =T9*$G$17 -> 40.8 | H9: =IF(AO9>G9,G9,AO9) -> 21.4 | I9: =U9*$G$17 -> 39.65 | J9: =IF(AP9>I9,I9,AP9) -> 21.05 | K9: =V9*$G$17 -> 38.5 | L9: =IF(AQ9>K9,K9,AQ9) -> 20.7 | M9: =W9*$G$17 -> 37.2 | N9: =IF(AR9>M9,M9,AR9) -> 20.3 | O9: =X9*$G$17 -> 35.9 | P9: =IF(AS9>O9,O9,AS9) -> 19.9 | R9: 0.9290322581 | S9: 0.9032258065 | T9: 0.8774193548 | U9: 0.852688172 | V9: 0.8279569892 | W9: 0.8 | X9: 0.7720430108 | Y9: 0.5138888889 | Z9: 0.519047619 | AA9: 0.5245098039 | AB9: 0.5308953342 | AC9: 0.5376623377 | AD9: 0.5456989247 | AE9: 0.5543175487 | AF9: 1 | AG9: 1 | AH9: 1 | AI9: 1 | AJ9: 1 | AK9: 1 | AL9: 1 | AM9: =Y9*C9*AF9 -> 22.2 | AN9: =Z9*E9*AG9 -> 21.8 | AO9: =AA9*G9*AH9 -> 21.4 | AP9: =AB9*I9*AI9 -> 21.05 | AQ9: =AC9*K9*AJ9 -> 20.7 | AR9: =AD9*M9*AK9 -> 20.3 | AS9: =AE9*O9*AL9 -> 19.9
B10: 63 | C10: 42.1 | D10: 27.7 | E10: 40.2 | F10: 26.85 | G10: 38.3 | H10: 26 | I10: 36.9 | J10: 25.5 | K10: 35.5 | L10: 25 | M10: 34.25 | N10: 24.6 | O10: 33 | P10: 24.2 | R10: 0.9053763441 | S10: 0.864516129 | T10: 0.823655914 | U10: 0.7935483871 | V10: 0.7634408602 | W10: 0.7365591398 | X10: 0.7096774194 | Y10: 0.6579572447 | Z10: 0.6679104478 | AA10: 0.6788511749 | AB10: 0.6910569106 | AC10: 0.7042253521 | AD10: 0.7182481752 | AE10: 0.7333333333 | AF10: 1 | AG10: 1 | AH10: 1 | AI10: 1 | AJ10: 1 | AK10: 1 | AL10: 1 | AM10: 27.7 | AN10: 26.85 | AO10: 26 | AP10: 25.5 | AQ10: 25 | AR10: 24.6 | AS10: 24.2
B11: 59 | C11: 37.5 | D11: 33.2 | E11: 37 | F11: 32.75 | G11: 36.5 | H11: 32.3 | I11: 36.25 | J11: 32.1 | K11: 36 | L11: 31.9 | M11: 34.75 | N11: 30.75 | O11: 33.5 | P11: 29.6 | R11: 0.8064516129 | S11: 0.7956989247 | T11: 0.7849462366 | U11: 0.7795698925 | V11: 0.7741935484 | W11: 0.747311828 | X11: 0.7204301075 | Y11: 0.8853333333 | Z11: 0.8851351351 | AA11: 0.8849315068 | AB11: 0.8855172414 | AC11: 0.8861111111 | AD11: 0.8848920863 | AE11: 0.8835820896 | AF11: 1 | AG11: 1 | AH11: 1 | AI11: 1 | AJ11: 1 | AK11: 1 | AL11: 1 | AM11: 33.2 | AN11: 32.75 | AO11: 32.3 | AP11: 32.1 | AQ11: 31.9 | AR11: 30.75 | AS11: 29.6
A12: 76 | B12: 71 | C12: 47.95 | D12: 20.95 | E12: 46.75 | F12: 20.5 | G12: 45.55 | H12: 20.05 | I12: 44.3 | J12: 19.55 | K12: 43.05 | L12: 19.1 | M12: 41.75 | N12: 18.6 | O12: 40.45 | P12: 18.1 | R12: 1.031182796 | S12: 1.005376344 | T12: 0.9795698925 | U12: 0.952688172 | V12: 0.9258064516 | W12: 0.8978494624 | X12: 0.8698924731 | Y12: 0.4369134515 | Z12: 0.4385026738 | AA12: 0.4401756312 | AB12: 0.4413092551 | AC12: 0.443670151 | AD12: 0.445508982 | AE12: 0.4474660074 | AF12: 1 | AG12: 1 | AH12: 1 | AI12: 1 | AJ12: 1 | AK12: 1 | AL12: 1 | AM12: 20.95 | AN12: 20.5 | AO12: 20.05 | AP12: 19.55 | AQ12: 19.1 | AR12: 18.6 | AS12: 18.1
B13: 67 | C13: 47.45 | D13: 27.85 | E13: 46.15 | F13: 27.35 | G13: =T13*$G$17 -> 44.85 | H13: 26.85 | I13: 43.45 | J13: 26.25 | K13: 42.05 | L13: 25.7 | M13: 40.6 | N13: 25.15 | O13: 39.15 | P13: 24.55 | R13: 1.020430108 | S13: 0.9924731183 | T13: 0.964516129 | U13: 0.9344086022 | V13: 0.9043010753 | W13: 0.8731182796 | X13: 0.8419354839 | Y13: 0.5869336143 | Z13: 0.5926327194 | AA13: 0.5986622074 | AB13: 0.6041426928 | AC13: 0.61117717 | AD13: 0.6194581281 | AE13: 0.6270753512 | AF13: 1 | AG13: 1 | AH13: 1 | AI13: 1 | AJ13: 1 | AK13: 1 | AL13: 1 | AM13: 27.85 | AN13: 27.35 | AO13: 26.85 | AP13: 26.25 | AQ13: 25.7 | AR13: 25.15 | AS13: 24.55
B14: 63 | C14: 40.9 | D14: 32.55 | E14: 39.8 | F14: 32.1 | G14: 38.75 | H14: 31.65 | I14: 37.6 | J14: 31.15 | K14: 36.45 | L14: 30.65 | M14: 35.3 | N14: 30.25 | O14: 34.15 | P14: 29.8 | R14: 0.8795698925 | S14: 0.8559139785 | T14: 0.8333333333 | U14: 0.8086021505 | V14: 0.7838709677 | W14: 0.7591397849 | X14: 0.7344086022 | Y14: 0.7958435208 | Z14: 0.8065326633 | AA14: 0.8167741935 | AB14: 0.8284574468 | AC14: 0.840877915 | AD14: 0.8569405099 | AE14: 0.8726207906 | AF14: 1 | AG14: 1 | AH14: 1 | AI14: 1 | AJ14: 1 | AK14: 1 | AL14: 1 | AM14: 32.55 | AN14: 32.1 | AO14: 31.65 | AP14: 31.15 | AQ14: 30.65 | AR14: 30.25 | AS14: 29.8
B15: 59 | C15: 39.15 | D15: 38.45 | E15: 38.75 | F15: 38.05 | G15: 38.35 | H15: 37.65 | I15: 37.3 | J15: 36.65 | K15: 36.25 | L15: 35.6 | M15: 34.85 | N15: 34.2 | O15: 33.4 | P15: 32.8 | R15: 0.8419354839 | S15: 0.8333333333 | T15: 0.8247311828 | U15: 0.8021505376 | V15: 0.7795698925 | W15: 0.7494623656 | X15: 0.7182795699 | Y15: 0.9821200511 | Z15: 0.9819354839 | AA15: 0.9817470665 | AB15: 0.9825737265 | AC15: 0.9820689655 | AD15: 0.981348637 | AE15: 0.9820359281 | AF15: 1 | AG15: 1 | AH15: 1 | AI15: 1 | AJ15: 1 | AK15: 1 | AL15: 1 | AM15: 38.45 | AN15: 38.05 | AO15: 37.65 | AP15: 36.65 | AQ15: 35.6 | AR15: 34.2 | AS15: 32.8
A16: 80 | B16: 71 | C16: 46.3 | D16: 26.3 | E16: 45.25 | F16: 25.8 | G16: 44.2 | H16: 25.3 | I16: 43.85 | J16: 25.15 | K16: 43.5 | L16: 25 | M16: 43.1 | N16: 24.9 | O16: 42.7 | P16: 24.8 | R16: 0.9956989247 | S16: 0.9731182796 | T16: 0.9505376344 | U16: 0.9430107527 | V16: 0.935483871 | W16: 0.9268817204 | X16: 0.9182795699 | Y16: 0.5680345572 | Z16: 0.5701657459 | AA16: 0.57239819 | AB16: 0.5735461802 | AC16: 0.5747126437 | AD16: 0.5777262181 | AE16: 0.5807962529 | AF16: 1 | AG16: 1 | AH16: 1 | AI16: 1 | AJ16: 1 | AK16: 1 | AL16: 1 | AM16: 26.3 | AN16: 25.8 | AO16: 25.3 | AP16: 25.15 | AQ16: 25 | AR16: 24.9 | AS16: 24.8
B17: 67 | C17: 46.9 | D17: 33.4 | E17: 46.7 | F17: 33.325 | G17: 46.5 | H17: 33.25 | I17: 44.35 | J17: 32.175 | K17: 42.2 | L17: 31.1 | M17: 40.95 | N17: 30.5 | O17: 39.7 | P17: 29.9 | R17: 1.008602151 | S17: 1.004301075 | T17: 1 | U17: 0.9537634409 | V17: 0.9075268817 | W17: 0.8806451613 | X17: 0.8537634409 | Y17: 0.7121535181 | Z17: 0.7135974304 | AA17: 0.7150537634 | AB17: 0.7254791432 | AC17: 0.7369668246 | AD17: 0.7448107448 | AE17: 0.7531486146 | AF17: 1 | AG17: 1 | AH17: 1 | AI17: 1 | AJ17: 1 | AK17: 1 | AL17: 1 | AM17: 33.4 | AN17: 33.325 | AO17: 33.25 | AP17: 32.175 | AQ17: 31.1 | AR17: 30.5 | AS17: 29.9
B18: 63 | C18: 44.4 | D18: 38 | E18: 43.1 | F18: 37.35 | G18: =T18*$G$17 -> 41.8 | H18: 36.7 | I18: 40.45 | J18: 36 | K18: 39.1 | L18: 35.3 | M18: 37.75 | N18: 34.65 | O18: 36.4 | P18: 34 | R18: 0.9548387097 | S18: 0.9268817204 | T18: 0.8989247312 | U18: 0.8698924731 | V18: 0.8408602151 | W18: 0.811827957 | X18: 0.7827956989 | Y18: 0.8558558559 | Z18: 0.8665893271 | AA18: 0.8779904306 | AB18: 0.8899876391 | AC18: 0.9028132992 | AD18: 0.9178807947 | AE18: 0.9340659341 | AF18: 1 | AG18: 1 | AH18: 1 | AI18: 1 | AJ18: 1 | AK18: 1 | AL18: 1 | AM18: 38 | AN18: 37.35 | AO18: 36.7 | AP18: 36 | AQ18: 35.3 | AR18: 34.65 | AS18: 34
B19: 59 | C19: 41.3 | D19: 41 | E19: 40.05 | F19: 39.75 | G19: =T19*$G$17 -> 38.8 | H19: 38.5 | I19: 37.5 | J19: 37.2 | K19: 36.2 | L19: 35.9 | M19: 34.75 | N19: 34.5 | O19: 33.3 | P19: 33.1 | R19: 0.888172043 | S19: 0.8612903226 | T19: 0.8344086022 | U19: 0.8064516129 | V19: 0.7784946237 | W19: 0.747311828 | X19: 0.7161290323 | Y19: 0.9927360775 | Z19: 0.9925093633 | AA19: 0.9922680412 | AB19: 0.992 | AC19: 0.9917127072 | AD19: 0.9928057554 | AE19: 0.993993994 | AF19: 1 | AG19: 1 | AH19: 1 | AI19: 1 | AJ19: 1 | AK19: 1 | AL19: 1 | AM19: 41 | AN19: 39.75 | AO19: 38.5 | AP19: 37.2 | AQ19: 35.9 | AR19: 34.5 | AS19: 33.1

Sheet RANL_60 (hidden)
A2: RANL_60
A3: Evaporator Air Flow | C3: Condenser Entering Air Temperature ˚F
A4: 1650 | B4: CFM | C4: 85 | E4: 90 | G4: 95 | I4: 100 | K4: 105 | M4: 110 | O4: 115
A5: Evap. Air °F DB | B5: EWB† ˚F | C5: Capacity Mbtuh | E5: Capacity Mbtuh | G5: Capacity Mbtuh | I5: Capacity Mbtuh | K5: Capacity Mbtuh | M5: Capacity Mbtuh | O5: Capacity Mbtuh
C6: Total | D6: Sens. | E6: Total | F6: Sens. | G6: Total | H6: Sens. | I6: Total | J6: Sens. | K6: Total | L6: Sens. | M6: Total | N6: Sens. | O6: Total | P6: Sens.
R7: Total Factors | Y7: Sens. % | AF7: IDB Adj | AM7: Sens Calc
A8: 72 | B8: 71 | C8: =R8*$G$17 -> 58.2 | D8: =IF(AM8>C8,C8,AM8) -> 19.7 | E8: =S8*$G$17 -> 57.25 | F8: =IF(AN8>E8,E8,AN8) -> 19.65 | G8: =T8*$G$17 -> 56.3 | H8: =IF(AO8>G8,G8,AO8) -> 19.6 | I8: =U8*$G$17 -> 54.75 | J8: =IF(AP8>I8,I8,AP8) -> 19.25 | K8: =V8*$G$17 -> 53.2 | L8: =IF(AQ8>K8,K8,AQ8) -> 18.9 | M8: =W8*$G$17 -> 51.25 | N8: =IF(AR8>M8,M8,AR8) -> 18.35 | O8: =X8*$G$17 -> 49.3 | P8: =IF(AS8>O8,O8,AS8) -> 17.8 | R8: 0.981450253 | S8: 0.9654300169 | T8: 0.9494097808 | U8: 0.9232715008 | V8: 0.8971332209 | W8: 0.8642495784 | X8: 0.8313659359 | Y8: 0.3384879725 | Z8: 0.343231441 | AA8: 0.3481349911 | AB8: 0.3515981735 | AC8: 0.3552631579 | AD8: 0.3580487805 | AE8: 0.3610547667 | AF8: 1 | AG8: 1 | AH8: 1 | AI8: 1 | AJ8: 1 | AK8: 1 | AL8: 1 | AM8: =Y8*C8*AF8 -> 19.7 | AN8: =Z8*E8*AG8 -> 19.65 | AO8: =AA8*G8*AH8 -> 19.6 | AP8: =AB8*I8*AI8 -> 19.25 | AQ8: =AC8*K8*AJ8 -> 18.9 | AR8: =AD8*M8*AK8 -> 18.35 | AS8: =AE8*O8*AL8 -> 17.8
B9: 67 | C9: =R9*$G$17 -> 58.7 | D9: 28.1 | E9: =S9*$G$17 -> 56.25 | F9: =IF(AN9>E9,E9,AN9) -> 27.3 | G9: =T9*$G$17 -> 53.8 | H9: =IF(AO9>G9,G9,AO9) -> 26.5 | I9: =U9*$G$17 -> 52.3 | J9: =IF(AP9>I9,I9,AP9) -> 26.2 | K9: =V9*$G$17 -> 50.8 | L9: =IF(AQ9>K9,K9,AQ9) -> 25.9 | M9: =W9*$G$17 -> 48.85 | N9: =IF(AR9>M9,M9,AR9) -> 25.35 | O9: =X9*$G$17 -> 46.9 | P9: =IF(AS9>O9,O9,AS9) -> 24.8 | R9: 0.9898819562 | S9: 0.9485666105 | T9: 0.9072512648 | U9: 0.8819561551 | V9: 0.8566610455 | W9: 0.823777403 | X9: 0.7908937605 | Y9: 0.4787052811 | Z9: 0.4853333333 | AA9: 0.4925650558 | AB9: 0.5009560229 | AC9: 0.5098425197 | AD9: 0.5189355169 | AE9: 0.5287846482 | AF9: 1 | AG9: 1 | AH9: 1 | AI9: 1 | AJ9: 1 | AK9: 1 | AL9: 1 | AM9: =Y9*C9*AF9 -> 28.1 | AN9: =Z9*E9*AG9 -> 27.3 | AO9: =AA9*G9*AH9 -> 26.5 | AP9: =AB9*I9*AI9 -> 26.2 | AQ9: =AC9*K9*AJ9 -> 25.9 | AR9: =AD9*M9*AK9 -> 25.35 | AS9: =AE9*O9*AL9 -> 24.8
B10: 63 | C10: 58.2 | D10: 36.7 | E10: 56.4 | F10: 36.15 | G10: 54.6 | H10: 35.6 | I10: 51.6 | J10: 34.3 | K10: 48.6 | L10: 33 | M10: 46.25 | N10: 32.2 | O10: 43.9 | P10: 31.4 | R10: 0.981450253 | S10: 0.9510961214 | T10: 0.9207419899 | U10: 0.8701517707 | V10: 0.8195615514 | W10: 0.7799325464 | X10: 0.7403035413 | Y10: 0.6305841924 | Z10: 0.6409574468 | AA10: 0.652014652 | AB10: 0.6647286822 | AC10: 0.6790123457 | AD10: 0.6962162162 | AE10: 0.715261959 | AF10: 1 | AG10: 1 | AH10: 1 | AI10: 1 | AJ10: 1 | AK10: 1 | AL10: 1 | AM10: 36.7 | AN10: 36.15 | AO10: 35.6 | AP10: 34.3 | AQ10: 33 | AR10: 32.2 | AS10: 31.4
B11: 59 | C11: 49.2 | D11: 43.2 | E11: 48.2 | F11: 42.3 | G11: 47.2 | H11: 41.4 | I11: 47.2 | J11: 41.4 | K11: 47.2 | L11: 41.4 | M11: 45.9 | N11: 40.25 | O11: 44.6 | P11: 39.1 | R11: 0.8296795953 | S11: 0.8128161889 | T11: 0.7959527825 | U11: 0.7959527825 | V11: 0.7959527825 | W11: 0.7740303541 | X11: 0.7521079258 | Y11: 0.8780487805 | Z11: 0.877593361 | AA11: 0.8771186441 | AB11: 0.8771186441 | AC11: 0.8771186441 | AD11: 0.8769063181 | AE11: 0.8766816143 | AF11: 1 | AG11: 1 | AH11: 1 | AI11: 1 | AJ11: 1 | AK11: 1 | AL11: 1 | AM11: 43.2 | AN11: 42.3 | AO11: 41.4 | AP11: 41.4 | AQ11: 41.4 | AR11: 40.25 | AS11: 39.1
A12: 76 | B12: 71 | C12: 64.25 | D12: 26.05 | E12: 63.15 | F12: 25.85 | G12: 62.05 | H12: 25.7 | I12: 60.35 | J12: 25.2 | K12: 58.6 | L12: 24.7 | M12: 56.45 | N12: 23.95 | O12: 54.3 | P12: 23.25 | R12: 1.083473862 | S12: 1.064924115 | T12: 1.046374368 | U12: 1.017706577 | V12: 0.9881956155 | W12: 0.9519392917 | X12: 0.915682968 | Y12: 0.4054474708 | Z12: 0.4093428345 | AA12: 0.4141821112 | AB12: 0.4175642088 | AC12: 0.4215017065 | AD12: 0.4242692648 | AE12: 0.4281767956 | AF12: 1 | AG12: 1 | AH12: 1 | AI12: 1 | AJ12: 1 | AK12: 1 | AL12: 1 | AM12: 26.05 | AN12: 25.85 | AO12: 25.7 | AP12: 25.2 | AQ12: 24.7 | AR12: 23.95 | AS12: 23.25
B13: 67 | C13: 61.55 | D13: 33.95 | E13: 60.5 | F13: 33.75 | G13: =T13*$G$17 -> 59.4 | H13: 33.6 | I13: 57.75 | J13: 33.1 | K13: 56.1 | L13: 32.65 | M13: 53.95 | N13: 31.85 | O13: 51.75 | P13: 31.1 | R13: 1.037942664 | S13: 1.020236088 | T13: 1.001686341 | U13: 0.9738617201 | V13: 0.9460370995 | W13: 0.9097807757 | X13: 0.8726812816 | Y13: 0.551584078 | Z13: 0.5578512397 | AA13: 0.5656565657 | AB13: 0.5731601732 | AC13: 0.5819964349 | AD13: 0.5903614458 | AE13: 0.6009661836 | AF13: 1 | AG13: 1 | AH13: 1 | AI13: 1 | AJ13: 1 | AK13: 1 | AL13: 1 | AM13: 33.95 | AN13: 33.75 | AO13: 33.6 | AP13: 33.1 | AQ13: 32.65 | AR13: 31.85 | AS13: 31.1
B14: 63 | C14: 56.65 | D14: 43.45 | E14: 54.9 | F14: 42.75 | G14: 53.2 | H14: 42.05 | I14: 51.2 | J14: 41.1 | K14: 49.15 | L14: 40.2 | M14: 47.15 | N14: 39.4 | O14: 45.15 | P14: 38.55 | R14: 0.955311973 | S14: 0.9258010118 | T14: 0.8971332209 | U14: 0.8634064081 | V14: 0.828836425 | W14: 0.7951096121 | X14: 0.7613827993 | Y14: 0.7669902913 | Z14: 0.7786885246 | AA14: 0.7904135338 | AB14: 0.802734375 | AC14: 0.8179043744 | AD14: 0.835630965 | AE14: 0.853820598 | AF14: 1 | AG14: 1 | AH14: 1 | AI14: 1 | AJ14: 1 | AK14: 1 | AL14: 1 | AM14: 43.45 | AN14: 42.75 | AO14: 42.05 | AP14: 41.1 | AQ14: 40.2 | AR14: 39.4 | AS14: 38.55
B15: 59 | C15: 50.9 | D15: 49.75 | E15: 50.5 | F15: 49.35 | G15: 50.1 | H15: 48.95 | I15: 49.4 | J15: 48.25 | K15: 48.65 | L15: 47.55 | M15: 46.6 | N15: 45.5 | O15: 44.55 | P15: 43.5 | R15: 0.8583473862 | S15: 0.8516020236 | T15: 0.844856661 | U15: 0.8330522766 | V15: 0.8204047218 | W15: 0.7858347386 | X15: 0.7512647555 | Y15: 0.9774066798 | Z15: 0.9772277228 | AA15: 0.9770459082 | AB15: 0.9767206478 | AC15: 0.977389517 | AD15: 0.9763948498 | AE15: 0.9764309764 | AF15: 1 | AG15: 1 | AH15: 1 | AI15: 1 | AJ15: 1 | AK15: 1 | AL15: 1 | AM15: 49.75 | AN15: 49.35 | AO15: 48.95 | AP15: 48.25 | AQ15: 47.55 | AR15: 45.5 | AS15: 43.5
A16: 80 | B16: 71 | C16: 63.9 | D16: 34.4 | E16: 62.8 | F16: 34.05 | G16: 61.7 | H16: 33.7 | I16: 60.05 | J16: 33.05 | K16: 58.4 | L16: 32.4 | M16: 56.4 | N16: 31.45 | O16: 54.4 | P16: 30.5 | R16: 1.077571669 | S16: 1.059021922 | T16: 1.040472175 | U16: 1.012647555 | V16: 0.9848229342 | W16: 0.9510961214 | X16: 0.9173693086 | Y16: 0.5383411581 | Z16: 0.5421974522 | AA16: 0.546191248 | AB16: 0.5503746878 | AC16: 0.5547945205 | AD16: 0.5576241135 | AE16: 0.5606617647 | AF16: 1 | AG16: 1 | AH16: 1 | AI16: 1 | AJ16: 1 | AK16: 1 | AL16: 1 | AM16: 34.4 | AN16: 34.05 | AO16: 33.7 | AP16: 33.05 | AQ16: 32.4 | AR16: 31.45 | AS16: 30.5
B17: 67 | C17: 61.6 | D17: 41.7 | E17: 60.45 | F17: 41.35 | G17: 59.3 | H17: 41 | I17: 57.65 | J17: 40.35 | K17: 56 | L17: 39.7 | M17: 53.85 | N17: 38.65 | O17: 51.7 | P17: 37.6 | R17: 1.038785835 | S17: 1.019392917 | T17: 1 | U17: 0.9721753794 | V17: 0.9443507589 | W17: 0.9080944351 | X17: 0.8718381113 | Y17: 0.6769480519 | Z17: 0.6840363937 | AA17: 0.6913996627 | AB17: 0.6999132697 | AC17: 0.7089285714 | AD17: 0.7177344475 | AE17: 0.7272727273 | AF17: 1 | AG17: 1 | AH17: 1 | AI17: 1 | AJ17: 1 | AK17: 1 | AL17: 1 | AM17: 41.7 | AN17: 41.35 | AO17: 41 | AP17: 40.35 | AQ17: 39.7 | AR17: 38.65 | AS17: 37.6
B18: 63 | C18: 58.3 | D18: 48.3 | E18: 57.2 | F18: 48 | G18: =T18*$G$17 -> 56.1 | H18: 47.7 | I18: 54.4 | J18: 47 | K18: 52.7 | L18: 46.3 | M18: 50.6 | N18: 45.3 | O18: 48.5 | P18: 44.3 | R18: 0.9831365936 | S18: 0.9645868465 | T18: 0.9460370995 | U18: 0.9173693086 | V18: 0.8887015177 | W18: 0.8532883642 | X18: 0.8178752108 | Y18: 0.8284734134 | Z18: 0.8391608392 | AA18: 0.8502673797 | AB18: 0.8639705882 | AC18: 0.8785578748 | AD18: 0.895256917 | AE18: 0.9134020619 | AF18: 1 | AG18: 1 | AH18: 1 | AI18: 1 | AJ18: 1 | AK18: 1 | AL18: 1 | AM18: 48.3 | AN18: 48 | AO18: 47.7 | AP18: 47 | AQ18: 46.3 | AR18: 45.3 | AS18: 44.3
B19: 59 | C19: 54.3 | D19: 53.5 | E19: 53.2 | F19: 52.4 | G19: =T19*$G$17 -> 52.1 | H19: 51.3 | I19: 50.45 | J19: 49.65 | K19: 48.8 | L19: 48 | M19: 46.65 | N19: 45.9 | O19: 44.5 | P19: 43.8 | R19: 0.915682968 | S19: 0.8971332209 | T19: 0.8785834739 | U19: 0.8507588533 | V19: 0.8229342327 | W19: 0.7866779089 | X19: 0.7504215852 | Y19: 0.985267035 | Z19: 0.984962406 | AA19: 0.9846449136 | AB19: 0.9841427156 | AC19: 0.9836065574 | AD19: 0.9839228296 | AE19: 0.9842696629 | AF19: 1 | AG19: 1 | AH19: 1 | AI19: 1 | AJ19: 1 | AK19: 1 | AL19: 1 | AM19: 53.5 | AN19: 52.4 | AO19: 51.3 | AP19: 49.65 | AQ19: 48 | AR19: 45.9 | AS19: 43.8

Sheet RAPM_18 (hidden)
A2: RAPM_18
A3: Evaporator Air Flow | C3: Condenser Entering Air Temperature ˚F
A4: 575 | B4: CFM | C4: 85 | E4: 90 | G4: 95 | I4: 100 | K4: 105 | M4: 110 | O4: 115
A5: Evap. Air °F DB | B5: EWB† ˚F | C5: Capacity Mbtuh | E5: Capacity Mbtuh | G5: Capacity Mbtuh | I5: Capacity Mbtuh | K5: Capacity Mbtuh | M5: Capacity Mbtuh | O5: Capacity Mbtuh
C6: Total | D6: Sens. | E6: Total | F6: Sens. | G6: Total | H6: Sens. | I6: Total | J6: Sens. | K6: Total | L6: Sens. | M6: Total | N6: Sens. | O6: Total | P6: Sens.
R7: Total Factors | Y7: Sens. % | AF7: IDB Adj | AM7: Sens Calc
A8: 72 | B8: 71 | C8: =R8*$G$17 -> 18.6 | D8: =IF(AM8>C8,C8,AM8) -> 6.4 | E8: =S8*$G$17 -> 18.15 | F8: =IF(AN8>E8,E8,AN8) -> 6.3 | G8: =T8*$G$17 -> 17.7 | H8: =IF(AO8>G8,G8,AO8) -> 6.2 | I8: =U8*$G$17 -> 17.25 | J8: =IF(AP8>I8,I8,AP8) -> 6.15 | K8: =V8*$G$17 -> 16.8 | L8: =IF(AQ8>K8,K8,AQ8) -> 6.1 | M8: =W8*$G$17 -> 16.35 | N8: =IF(AR8>M8,M8,AR8) -> 6.05 | O8: =X8*$G$17 -> 15.9 | P8: =IF(AS8>O8,O8,AS8) -> 6 | R8: 1.010869565 | S8: 0.9864130435 | T8: 0.9619565217 | U8: 0.9375 | V8: 0.9130434783 | W8: 0.8885869565 | X8: 0.8641304348 | Y8: 0.3440860215 | Z8: 0.347107438 | AA8: 0.3502824859 | AB8: 0.3565217391 | AC8: 0.3630952381 | AD8: 0.370030581 | AE8: 0.3773584906 | AF8: 1 | AG8: 1 | AH8: 1 | AI8: 1 | AJ8: 1 | AK8: 1 | AL8: 1 | AM8: =Y8*C8*AF8 -> 6.4 | AN8: =Z8*E8*AG8 -> 6.3 | AO8: =AA8*G8*AH8 -> 6.2 | AP8: =AB8*I8*AI8 -> 6.15 | AQ8: =AC8*K8*AJ8 -> 6.1 | AR8: =AD8*M8*AK8 -> 6.05 | AS8: =AE8*O8*AL8 -> 6
B9: 67 | C9: =R9*$G$17 -> 18.3 | D9: 9 | E9: =S9*$G$17 -> 17.55 | F9: =IF(AN9>E9,E9,AN9) -> 8.75 | G9: =T9*$G$17 -> 16.8 | H9: =IF(AO9>G9,G9,AO9) -> 8.5 | I9: =U9*$G$17 -> 16.35 | J9: =IF(AP9>I9,I9,AP9) -> 8.45 | K9: =V9*$G$17 -> 15.9 | L9: =IF(AQ9>K9,K9,AQ9) -> 8.4 | M9: =W9*$G$17 -> 15.45 | N9: =IF(AR9>M9,M9,AR9) -> 8.35 | O9: =X9*$G$17 -> 15 | P9: =IF(AS9>O9,O9,AS9) -> 8.3 | R9: 0.9945652174 | S9: 0.9538043478 | T9: 0.9130434783 | U9: 0.8885869565 | V9: 0.8641304348 | W9: 0.839673913 | X9: 0.8152173913 | Y9: 0.4918032787 | Z9: 0.4985754986 | AA9: 0.505952381 | AB9: 0.5168195719 | AC9: 0.5283018868 | AD9: 0.5404530744 | AE9: 0.5533333333 | AF9: 1 | AG9: 1 | AH9: 1 | AI9: 1 | AJ9: 1 | AK9: 1 | AL9: 1 | AM9: =Y9*C9*AF9 -> 9 | AN9: =Z9*E9*AG9 -> 8.75 | AO9: =AA9*G9*AH9 -> 8.5 | AP9: =AB9*I9*AI9 -> 8.45 | AQ9: =AC9*K9*AJ9 -> 8.4 | AR9: =AD9*M9*AK9 -> 8.35 | AS9: =AE9*O9*AL9 -> 8.3
B10: 63 | C10: 18.8 | D10: 12 | E10: 18.3 | F10: 11.9 | G10: 17.8 | H10: 11.8 | I10: 17 | J10: 11.5 | K10: 16.2 | L10: 11.2 | M10: 15.25 | N10: 10.85 | O10: 14.3 | P10: 10.5 | R10: 1.02173913 | S10: 0.9945652174 | T10: 0.9673913043 | U10: 0.9239130435 | V10: 0.8804347826 | W10: 0.8288043478 | X10: 0.777173913 | Y10: 0.6382978723 | Z10: 0.650273224 | AA10: 0.6629213483 | AB10: 0.6764705882 | AC10: 0.6913580247 | AD10: 0.7114754098 | AE10: 0.7342657343 | AF10: 1 | AG10: 1 | AH10: 1 | AI10: 1 | AJ10: 1 | AK10: 1 | AL10: 1 | AM10: 12 | AN10: 11.9 | AO10: 11.8 | AP10: 11.5 | AQ10: 11.2 | AR10: 10.85 | AS10: 10.5
B11: 59 | C11: 17.5 | D11: 14.9 | E11: 17.5 | F11: 14.9 | G11: 17.5 | H11: 14.9 | I11: 17.1 | J11: 14.55 | K11: 16.7 | L11: 14.2 | M11: 16.25 | N11: 13.8 | O11: 15.8 | P11: 13.4 | R11: 0.9510869565 | S11: 0.9510869565 | T11: 0.9510869565 | U11: 0.9293478261 | V11: 0.9076086957 | W11: 0.8831521739 | X11: 0.8586956522 | Y11: 0.8514285714 | Z11: 0.8514285714 | AA11: 0.8514285714 | AB11: 0.850877193 | AC11: 0.8502994012 | AD11: 0.8492307692 | AE11: 0.8481012658 | AF11: 1 | AG11: 1 | AH11: 1 | AI11: 1 | AJ11: 1 | AK11: 1 | AL11: 1 | AM11: 14.9 | AN11: 14.9 | AO11: 14.9 | AP11: 14.55 | AQ11: 14.2 | AR11: 13.8 | AS11: 13.4
A12: 76 | B12: 71 | C12: 20.55 | D12: 8.45 | E12: 20.05 | F12: 8.3 | G12: 19.5 | H12: 8.15 | I12: 19 | J12: 8.05 | K12: 18.45 | L12: 7.95 | M12: 17.85 | N12: 7.8 | O12: 17.25 | P12: 7.65 | R12: 1.116847826 | S12: 1.089673913 | T12: 1.059782609 | U12: 1.032608696 | V12: 1.002717391 | W12: 0.9701086957 | X12: 0.9375 | Y12: 0.4111922141 | Z12: 0.4139650873 | AA12: 0.4179487179 | AB12: 0.4236842105 | AC12: 0.4308943089 | AD12: 0.4369747899 | AE12: 0.4434782609 | AF12: 1 | AG12: 1 | AH12: 1 | AI12: 1 | AJ12: 1 | AK12: 1 | AL12: 1 | AM12: 8.45 | AN12: 8.3 | AO12: 8.15 | AP12: 8.05 | AQ12: 7.95 | AR12: 7.8 | AS12: 7.65
B13: 67 | C13: 19.5 | D13: 10.95 | E13: 19 | F13: 10.85 | G13: =T13*$G$17 -> 18.5 | H13: 10.75 | I13: 18 | J13: 10.6 | K13: 17.5 | L13: 10.5 | M13: 16.95 | N13: 10.4 | O13: 16.45 | P13: 10.3 | R13: 1.059782609 | S13: 1.032608696 | T13: 1.005434783 | U13: 0.9782608696 | V13: 0.9510869565 | W13: 0.9211956522 | X13: 0.8940217391 | Y13: 0.5615384615 | Z13: 0.5710526316 | AA13: 0.5810810811 | AB13: 0.5888888889 | AC13: 0.6 | AD13: 0.6135693215 | AE13: 0.6261398176 | AF13: 1 | AG13: 1 | AH13: 1 | AI13: 1 | AJ13: 1 | AK13: 1 | AL13: 1 | AM13: 10.95 | AN13: 10.85 | AO13: 10.75 | AP13: 10.6 | AQ13: 10.5 | AR13: 10.4 | AS13: 10.3
B14: 63 | C14: 18.85 | D14: 14.6 | E14: 18.3 | F14: 14.4 | G14: 17.75 | H14: 14.2 | I14: 17.2 | J14: 14 | K14: 16.65 | L14: 13.8 | M14: 15.9 | N14: 13.5 | O14: 15.15 | P14: 13.15 | R14: 1.024456522 | S14: 0.9945652174 | T14: 0.964673913 | U14: 0.9347826087 | V14: 0.9048913043 | W14: 0.8641304348 | X14: 0.8233695652 | Y14: 0.774535809 | Z14: 0.7868852459 | AA14: 0.8 | AB14: 0.8139534884 | AC14: 0.8288288288 | AD14: 0.8490566038 | AE14: 0.8679867987 | AF14: 1 | AG14: 1 | AH14: 1 | AI14: 1 | AJ14: 1 | AK14: 1 | AL14: 1 | AM14: 14.6 | AN14: 14.4 | AO14: 14.2 | AP14: 14 | AQ14: 13.8 | AR14: 13.5 | AS14: 13.15
B15: 59 | C15: 18.3 | D15: 17.5 | E15: 18 | F15: 17.2 | G15: 17.7 | H15: 16.9 | I15: 17.2 | J15: 16.45 | K15: 16.7 | L15: 15.95 | M15: 16.2 | N15: 15.45 | O15: 15.7 | P15: 14.95 | R15: 0.9945652174 | S15: 0.9782608696 | T15: 0.9619565217 | U15: 0.9347826087 | V15: 0.9076086957 | W15: 0.8804347826 | X15: 0.8532608696 | Y15: 0.956284153 | Z15: 0.9555555556 | AA15: 0.9548022599 | AB15: 0.9563953488 | AC15: 0.9550898204 | AD15: 0.9537037037 | AE15: 0.9522292994 | AF15: 1 | AG15: 1 | AH15: 1 | AI15: 1 | AJ15: 1 | AK15: 1 | AL15: 1 | AM15: 17.5 | AN15: 17.2 | AO15: 16.9 | AP15: 16.45 | AQ15: 15.95 | AR15: 15.45 | AS15: 14.95
A16: 80 | B16: 71 | C16: 20.5 | D16: 11.1 | E16: 20.05 | F16: 10.95 | G16: 19.6 | H16: 10.8 | I16: 19.05 | J16: 10.6 | K16: 18.5 | L16: 10.4 | M16: 18 | N16: 10.25 | O16: 17.5 | P16: 10.1 | R16: 1.114130435 | S16: 1.089673913 | T16: 1.065217391 | U16: 1.035326087 | V16: 1.005434783 | W16: 0.9782608696 | X16: 0.9510869565 | Y16: 0.5414634146 | Z16: 0.5461346633 | AA16: 0.5510204082 | AB16: 0.5564304462 | AC16: 0.5621621622 | AD16: 0.5694444444 | AE16: 0.5771428571 | AF16: 1 | AG16: 1 | AH16: 1 | AI16: 1 | AJ16: 1 | AK16: 1 | AL16: 1 | AM16: 11.1 | AN16: 10.95 | AO16: 10.8 | AP16: 10.6 | AQ16: 10.4 | AR16: 10.25 | AS16: 10.1
B17: 67 | C17: 19.5 | D17: 13.4 | E17: 18.95 | F17: 13.2 | G17: 18.4 | H17: 13 | I17: 17.95 | J17: 12.85 | K17: 17.5 | L17: 12.7 | M17: 16.95 | N17: 12.55 | O17: 16.4 | P17: 12.4 | R17: 1.059782609 | S17: 1.029891304 | T17: 1 | U17: 0.9755434783 | V17: 0.9510869565 | W17: 0.9211956522 | X17: 0.8913043478 | Y17: 0.6871794872 | Z17: 0.6965699208 | AA17: 0.7065217391 | AB17: 0.7158774373 | AC17: 0.7257142857 | AD17: 0.7404129794 | AE17: 0.756097561 | AF17: 1 | AG17: 1 | AH17: 1 | AI17: 1 | AJ17: 1 | AK17: 1 | AL17: 1 | AM17: 13.4 | AN17: 13.2 | AO17: 13 | AP17: 12.85 | AQ17: 12.7 | AR17: 12.55 | AS17: 12.4
B18: 63 | C18: 18.8 | D18: 15.7 | E18: 18.3 | F18: 15.5 | G18: =T18*$G$17 -> 17.8 | H18: 15.3 | I18: 17.3 | J18: 15.15 | K18: 16.8 | L18: 15 | M18: 16.3 | N18: 14.85 | O18: 15.8 | P18: 14.7 | R18: 1.02173913 | S18: 0.9945652174 | T18: 0.9673913043 | U18: 0.9402173913 | V18: 0.9130434783 | W18: 0.8858695652 | X18: 0.8586956522 | Y18: 0.835106383 | Z18: 0.8469945355 | AA18: 0.8595505618 | AB18: 0.8757225434 | AC18: 0.8928571429 | AD18: 0.9110429448 | AE18: 0.9303797468 | AF18: 1 | AG18: 1 | AH18: 1 | AI18: 1 | AJ18: 1 | AK18: 1 | AL18: 1 | AM18: 15.7 | AN18: 15.5 | AO18: 15.3 | AP18: 15.15 | AQ18: 15 | AR18: 14.85 | AS18: 14.7
B19: 59 | C19: 18.7 | D19: 17.9 | E19: 18.2 | F19: 17.45 | G19: =T19*$G$17 -> 17.7 | H19: 17 | I19: 17.2 | J19: 16.5 | K19: 16.7 | L19: 16 | M19: 16.2 | N19: 15.5 | O19: 15.7 | P19: 15 | R19: 1.016304348 | S19: 0.9891304348 | T19: 0.9619565217 | U19: 0.9347826087 | V19: 0.9076086957 | W19: 0.8804347826 | X19: 0.8532608696 | Y19: 0.9572192513 | Z19: 0.9587912088 | AA19: 0.9604519774 | AB19: 0.9593023256 | AC19: 0.9580838323 | AD19: 0.9567901235 | AE19: 0.9554140127 | AF19: 1 | AG19: 1 | AH19: 1 | AI19: 1 | AJ19: 1 | AK19: 1 | AL19: 1 | AM19: 17.9 | AN19: 17.45 | AO19: 17 | AP19: 16.5 | AQ19: 16 | AR19: 15.5 | AS19: 15

Sheet RAPM_24 (hidden)
A2: RAPM_24
A3: Evaporator Air Flow | C3: Condenser Entering Air Temperature ˚F
A4: 735 | B4: CFM | C4: 85 | E4: 90 | G4: 95 | I4: 100 | K4: 105 | M4: 110 | O4: 115
A5: Evap. Air °F DB | B5: EWB† ˚F | C5: Capacity Mbtuh | E5: Capacity Mbtuh | G5: Capacity Mbtuh | I5: Capacity Mbtuh | K5: Capacity Mbtuh | M5: Capacity Mbtuh | O5: Capacity Mbtuh
C6: Total | D6: Sens. | E6: Total | F6: Sens. | G6: Total | H6: Sens. | I6: Total | J6: Sens. | K6: Total | L6: Sens. | M6: Total | N6: Sens. | O6: Total | P6: Sens.
R7: Total Factors | Y7: Sens. % | AF7: IDB Adj | AM7: Sens Calc
A8: 72 | B8: 71 | C8: =R8*$G$17 -> 24.4 | D8: =IF(AM8>C8,C8,AM8) -> 8.4 | E8: =S8*$G$17 -> 23.8 | F8: =IF(AN8>E8,E8,AN8) -> 8.3 | G8: =T8*$G$17 -> 23.2 | H8: =IF(AO8>G8,G8,AO8) -> 8.2 | I8: =U8*$G$17 -> 22.55 | J8: =IF(AP8>I8,I8,AP8) -> 8 | K8: =V8*$G$17 -> 21.9 | L8: =IF(AQ8>K8,K8,AQ8) -> 7.8 | M8: =W8*$G$17 -> 21.15 | N8: =IF(AR8>M8,M8,AR8) -> 7.45 | O8: =X8*$G$17 -> 20.4 | P8: =IF(AS8>O8,O8,AS8) -> 7.1 | R8: 1 | S8: 0.9754098361 | T8: 0.9508196721 | U8: 0.9241803279 | V8: 0.8975409836 | W8: 0.8668032787 | X8: 0.8360655738 | Y8: 0.3442622951 | Z8: 0.3487394958 | AA8: 0.3534482759 | AB8: 0.354767184 | AC8: 0.3561643836 | AD8: 0.3522458629 | AE8: 0.3480392157 | AF8: 1 | AG8: 1 | AH8: 1 | AI8: 1 | AJ8: 1 | AK8: 1 | AL8: 1 | AM8: =Y8*C8*AF8 -> 8.4 | AN8: =Z8*E8*AG8 -> 8.3 | AO8: =AA8*G8*AH8 -> 8.2 | AP8: =AB8*I8*AI8 -> 8 | AQ8: =AC8*K8*AJ8 -> 7.8 | AR8: =AD8*M8*AK8 -> 7.45 | AS8: =AE8*O8*AL8 -> 7.1
B9: 67 | C9: =R9*$G$17 -> 23.4 | D9: 11.5 | E9: =S9*$G$17 -> 22.75 | F9: =IF(AN9>E9,E9,AN9) -> 11.35 | G9: =T9*$G$17 -> 22.1 | H9: =IF(AO9>G9,G9,AO9) -> 11.2 | I9: =U9*$G$17 -> 21.45 | J9: =IF(AP9>I9,I9,AP9) -> 11 | K9: =V9*$G$17 -> 20.8 | L9: =IF(AQ9>K9,K9,AQ9) -> 10.8 | M9: =W9*$G$17 -> 20.05 | N9: =IF(AR9>M9,M9,AR9) -> 10.5 | O9: =X9*$G$17 -> 19.3 | P9: =IF(AS9>O9,O9,AS9) -> 10.2 | R9: 0.9590163934 | S9: 0.9323770492 | T9: 0.9057377049 | U9: 0.8790983607 | V9: 0.8524590164 | W9: 0.8217213115 | X9: 0.7909836066 | Y9: 0.4914529915 | Z9: 0.4989010989 | AA9: 0.5067873303 | AB9: 0.5128205128 | AC9: 0.5192307692 | AD9: 0.5236907731 | AE9: 0.5284974093 | AF9: 1 | AG9: 1 | AH9: 1 | AI9: 1 | AJ9: 1 | AK9: 1 | AL9: 1 | AM9: =Y9*C9*AF9 -> 11.5 | AN9: =Z9*E9*AG9 -> 11.35 | AO9: =AA9*G9*AH9 -> 11.2 | AP9: =AB9*I9*AI9 -> 11 | AQ9: =AC9*K9*AJ9 -> 10.8 | AR9: =AD9*M9*AK9 -> 10.5 | AS9: =AE9*O9*AL9 -> 10.2
B10: 63 | C10: 24.4 | D10: 15.1 | E10: 23.75 | F10: 15 | G10: 23.1 | H10: 14.9 | I10: 22.35 | J10: 14.65 | K10: 21.6 | L10: 14.4 | M10: 20.8 | N10: 14.05 | O10: 20 | P10: 13.7 | R10: 1 | S10: 0.9733606557 | T10: 0.9467213115 | U10: 0.9159836066 | V10: 0.8852459016 | W10: 0.8524590164 | X10: 0.8196721311 | Y10: 0.618852459 | Z10: 0.6315789474 | AA10: 0.645021645 | AB10: 0.6554809843 | AC10: 0.6666666667 | AD10: 0.6754807692 | AE10: 0.685 | AF10: 1 | AG10: 1 | AH10: 1 | AI10: 1 | AJ10: 1 | AK10: 1 | AL10: 1 | AM10: 15.1 | AN10: 15 | AO10: 14.9 | AP10: 14.65 | AQ10: 14.4 | AR10: 14.05 | AS10: 13.7
B11: 59 | C11: 23.1 | D11: 18.4 | E11: 22.4 | F11: 18.2 | G11: 21.7 | H11: 18 | I11: 21 | J11: 17.6 | K11: 20.3 | L11: 17.2 | M11: 19.45 | N11: 16.5 | O11: 18.6 | P11: 15.8 | R11: 0.9467213115 | S11: 0.9180327869 | T11: 0.8893442623 | U11: 0.8606557377 | V11: 0.8319672131 | W11: 0.7971311475 | X11: 0.762295082 | Y11: 0.7965367965 | Z11: 0.8125 | AA11: 0.8294930876 | AB11: 0.8380952381 | AC11: 0.8472906404 | AD11: 0.8483290488 | AE11: 0.8494623656 | AF11: 1 | AG11: 1 | AH11: 1 | AI11: 1 | AJ11: 1 | AK11: 1 | AL11: 1 | AM11: 18.4 | AN11: 18.2 | AO11: 18 | AP11: 17.6 | AQ11: 17.2 | AR11: 16.5 | AS11: 15.8
A12: 76 | B12: 71 | C12: 27.05 | D12: 11.15 | E12: 26.4 | F12: 10.95 | G12: 25.7 | H12: 10.8 | I12: 24.95 | J12: 10.5 | K12: 24.2 | L12: 10.2 | M12: 23.35 | N12: 9.8 | O12: 22.5 | P12: 9.35 | R12: 1.108606557 | S12: 1.081967213 | T12: 1.053278689 | U12: 1.022540984 | V12: 0.9918032787 | W12: 0.9569672131 | X12: 0.9221311475 | Y12: 0.4121996303 | Z12: 0.4147727273 | AA12: 0.420233463 | AB12: 0.4208416834 | AC12: 0.4214876033 | AD12: 0.4197002141 | AE12: 0.4155555556 | AF12: 1 | AG12: 1 | AH12: 1 | AI12: 1 | AJ12: 1 | AK12: 1 | AL12: 1 | AM12: 11.15 | AN12: 10.95 | AO12: 10.8 | AP12: 10.5 | AQ12: 10.2 | AR12: 9.8 | AS12: 9.35
B13: 67 | C13: 25.7 | D13: 14.5 | E13: 25.05 | F13: 14.35 | G13: =T13*$G$17 -> 24.4 | H13: 14.15 | I13: 23.7 | J13: 13.9 | K13: 22.95 | L13: 13.65 | M13: 22.15 | N13: 13.2 | O13: 21.3 | P13: 12.8 | R13: 1.053278689 | S13: 1.026639344 | T13: 1 | U13: 0.9713114754 | V13: 0.9405737705 | W13: 0.9077868852 | X13: 0.8729508197 | Y13: 0.5642023346 | Z13: 0.5728542914 | AA13: 0.5799180328 | AB13: 0.5864978903 | AC13: 0.5947712418 | AD13: 0.5959367946 | AE13: 0.6009389671 | AF13: 1 | AG13: 1 | AH13: 1 | AI13: 1 | AJ13: 1 | AK13: 1 | AL13: 1 | AM13: 14.5 | AN13: 14.35 | AO13: 14.15 | AP13: 13.9 | AQ13: 13.65 | AR13: 13.2 | AS13: 12.8
B14: 63 | C14: 24.5 | D14: 18.55 | E14: 23.8 | F14: 18.3 | G14: 23.05 | H14: 18.05 | I14: 22.35 | J14: 17.75 | K14: 21.65 | L14: 17.45 | M14: 20.8 | N14: 16.95 | O14: 19.95 | P14: 16.45 | R14: 1.004098361 | S14: 0.9754098361 | T14: 0.9446721311 | U14: 0.9159836066 | V14: 0.887295082 | W14: 0.8524590164 | X14: 0.8176229508 | Y14: 0.7571428571 | Z14: 0.768907563 | AA14: 0.7830802603 | AB14: 0.7941834452 | AC14: 0.8060046189 | AD14: 0.8149038462 | AE14: 0.8245614035 | AF14: 1 | AG14: 1 | AH14: 1 | AI14: 1 | AJ14: 1 | AK14: 1 | AL14: 1 | AM14: 18.55 | AN14: 18.3 | AO14: 18.05 | AP14: 17.75 | AQ14: 17.45 | AR14: 16.95 | AS14: 16.45
B15: 59 | C15: 23.05 | D15: 20.75 | E15: 22.4 | F15: 20.55 | G15: 21.75 | H15: 20.35 | I15: 21.05 | J15: 19.85 | K15: 20.3 | L15: 19.35 | M15: 19.45 | N15: 18.55 | O15: 18.6 | P15: 17.75 | R15: 0.9446721311 | S15: 0.9180327869 | T15: 0.8913934426 | U15: 0.862704918 | V15: 0.8319672131 | W15: 0.7971311475 | X15: 0.762295082 | Y15: 0.9002169197 | Z15: 0.9174107143 | AA15: 0.9356321839 | AB15: 0.9429928741 | AC15: 0.9532019704 | AD15: 0.9537275064 | AE15: 0.9543010753 | AF15: 1 | AG15: 1 | AH15: 1 | AI15: 1 | AJ15: 1 | AK15: 1 | AL15: 1 | AM15: 20.75 | AN15: 20.55 | AO15: 20.35 | AP15: 19.85 | AQ15: 19.35 | AR15: 18.55 | AS15: 17.75
A16: 80 | B16: 71 | C16: 26.8 | D16: 14.6 | E16: 26.25 | F16: 14.4 | G16: 25.7 | H16: 14.2 | I16: 24.9 | J16: 13.8 | K16: 24.1 | L16: 13.4 | M16: 23.3 | N16: 12.9 | O16: 22.5 | P16: 12.4 | R16: 1.098360656 | S16: 1.075819672 | T16: 1.053278689 | U16: 1.020491803 | V16: 0.987704918 | W16: 0.9549180328 | X16: 0.9221311475 | Y16: 0.5447761194 | Z16: 0.5485714286 | AA16: 0.5525291829 | AB16: 0.5542168675 | AC16: 0.5560165975 | AD16: 0.5536480687 | AE16: 0.5511111111 | AF16: 1 | AG16: 1 | AH16: 1 | AI16: 1 | AJ16: 1 | AK16: 1 | AL16: 1 | AM16: 14.6 | AN16: 14.4 | AO16: 14.2 | AP16: 13.8 | AQ16: 13.4 | AR16: 12.9 | AS16: 12.4
B17: 67 | C17: 25.8 | D17: 17.8 | E17: 25.1 | F17: 17.55 | G17: 24.4 | H17: 17.3 | I17: 23.65 | J17: 16.9 | K17: 22.9 | L17: 16.5 | M17: 22.1 | N17: 16 | O17: 21.3 | P17: 15.5 | R17: 1.057377049 | S17: 1.028688525 | T17: 1 | U17: 0.9692622951 | V17: 0.9385245902 | W17: 0.9057377049 | X17: 0.8729508197 | Y17: 0.6899224806 | Z17: 0.6992031873 | AA17: 0.7090163934 | AB17: 0.7145877378 | AC17: 0.7205240175 | AD17: 0.7239819005 | AE17: 0.7276995305 | AF17: 1 | AG17: 1 | AH17: 1 | AI17: 1 | AJ17: 1 | AK17: 1 | AL17: 1 | AM17: 17.8 | AN17: 17.55 | AO17: 17.3 | AP17: 16.9 | AQ17: 16.5 | AR17: 16 | AS17: 15.5
B18: 63 | C18: 24.5 | D18: 20 | E18: 23.8 | F18: 19.75 | G18: =T18*$G$17 -> 23.1 | H18: 19.5 | I18: 22.35 | J18: 19.1 | K18: 21.6 | L18: 18.7 | M18: 20.8 | N18: 18.2 | O18: 20 | P18: 17.7 | R18: 1.004098361 | S18: 0.9754098361 | T18: 0.9467213115 | U18: 0.9159836066 | V18: 0.8852459016 | W18: 0.8524590164 | X18: 0.8196721311 | Y18: 0.8163265306 | Z18: 0.8298319328 | AA18: 0.8441558442 | AB18: 0.8545861298 | AC18: 0.8657407407 | AD18: 0.875 | AE18: 0.885 | AF18: 1 | AG18: 1 | AH18: 1 | AI18: 1 | AJ18: 1 | AK18: 1 | AL18: 1 | AM18: 20 | AN18: 19.75 | AO18: 19.5 | AP18: 19.1 | AQ18: 18.7 | AR18: 18.2 | AS18: 17.7
B19: 59 | C19: 23 | D19: 20.8 | E19: 22.4 | F19: 20.6 | G19: =T19*$G$17 -> 21.8 | H19: 20.4 | I19: 21.05 | J19: 19.9 | K19: 20.3 | L19: 19.4 | M19: 19.45 | N19: 18.6 | O19: 18.6 | P19: 17.8 | R19: 0.9426229508 | S19: 0.9180327869 | T19: 0.893442623 | U19: 0.862704918 | V19: 0.8319672131 | W19: 0.7971311475 | X19: 0.762295082 | Y19: 0.9043478261 | Z19: 0.9196428571 | AA19: 0.9357798165 | AB19: 0.945368171 | AC19: 0.9556650246 | AD19: 0.9562982005 | AE19: 0.9569892473 | AF19: 1 | AG19: 1 | AH19: 1 | AI19: 1 | AJ19: 1 | AK19: 1 | AL19: 1 | AM19: 20.8 | AN19: 20.6 | AO19: 20.4 | AP19: 19.9 | AQ19: 19.4 | AR19: 18.6 | AS19: 17.8

Sheet RAPM_30 (hidden)
A2: RAPM_30
A3: Evaporator Air Flow | C3: Condenser Entering Air Temperature ˚F
A4: 825 | B4: CFM | C4: 85 | E4: 90 | G4: 95 | I4: 100 | K4: 105 | M4: 110 | O4: 115
A5: Evap. Air °F DB | B5: EWB† ˚F | C5: Capacity Mbtuh | E5: Capacity Mbtuh | G5: Capacity Mbtuh | I5: Capacity Mbtuh | K5: Capacity Mbtuh | M5: Capacity Mbtuh | O5: Capacity Mbtuh
C6: Total | D6: Sens. | E6: Total | F6: Sens. | G6: Total | H6: Sens. | I6: Total | J6: Sens. | K6: Total | L6: Sens. | M6: Total | N6: Sens. | O6: Total | P6: Sens.
R7: Total Factors | Y7: Sens. % | AF7: IDB Adj | AM7: Sens Calc
A8: 72 | B8: 71 | C8: =R8*$G$17 -> 27.1 | D8: =IF(AM8>C8,C8,AM8) -> 13.3 | E8: =S8*$G$17 -> 27.35 | F8: =IF(AN8>E8,E8,AN8) -> 11.5 | G8: =T8*$G$17 -> 27.6 | H8: =IF(AO8>G8,G8,AO8) -> 9.7 | I8: =U8*$G$17 -> 26.65 | J8: =IF(AP8>I8,I8,AP8) -> 9.25 | K8: =V8*$G$17 -> 25.7 | L8: =IF(AQ8>K8,K8,AQ8) -> 8.8 | M8: =W8*$G$17 -> 24.7 | N8: =IF(AR8>M8,M8,AR8) -> 8.25 | O8: =X8*$G$17 -> 23.7 | P8: =IF(AS8>O8,O8,AS8) -> 7.7 | R8: 0.9609929078 | S8: 0.969858156 | T8: 0.9787234043 | U8: 0.945035461 | V8: 0.9113475177 | W8: 0.8758865248 | X8: 0.8404255319 | Y8: 0.4907749077 | Z8: 0.4204753199 | AA8: 0.3514492754 | AB8: 0.3470919325 | AC8: 0.3424124514 | AD8: 0.3340080972 | AE8: 0.3248945148 | AF8: 1 | AG8: 1 | AH8: 1 | AI8: 1 | AJ8: 1 | AK8: 1 | AL8: 1 | AM8: =Y8*C8*AF8 -> 13.3 | AN8: =Z8*E8*AG8 -> 11.5 | AO8: =AA8*G8*AH8 -> 9.7 | AP8: =AB8*I8*AI8 -> 9.25 | AQ8: =AC8*K8*AJ8 -> 8.8 | AR8: =AD8*M8*AK8 -> 8.25 | AS8: =AE8*O8*AL8 -> 7.7
B9: 67 | C9: =R9*$G$17 -> 29.1 | D9: 10.3 | E9: =S9*$G$17 -> 27.35 | F9: =IF(AN9>E9,E9,AN9) -> 11.5 | G9: =T9*$G$17 -> 25.6 | H9: =IF(AO9>G9,G9,AO9) -> 12.7 | I9: =U9*$G$17 -> 25.1 | J9: =IF(AP9>I9,I9,AP9) -> 12.45 | K9: =V9*$G$17 -> 24.6 | L9: =IF(AQ9>K9,K9,AQ9) -> 12.2 | M9: =W9*$G$17 -> 24.3 | N9: =IF(AR9>M9,M9,AR9) -> 12 | O9: =X9*$G$17 -> 24 | P9: =IF(AS9>O9,O9,AS9) -> 11.8 | R9: 1.031914894 | S9: 0.969858156 | T9: 0.9078014184 | U9: 0.890070922 | V9: 0.8723404255 | W9: 0.8617021277 | X9: 0.8510638298 | Y9: 0.35395189 | Z9: 0.4204753199 | AA9: 0.49609375 | AB9: 0.4960159363 | AC9: 0.4959349593 | AD9: 0.4938271605 | AE9: 0.4916666667 | AF9: 1 | AG9: 1 | AH9: 1 | AI9: 1 | AJ9: 1 | AK9: 1 | AL9: 1 | AM9: =Y9*C9*AF9 -> 10.3 | AN9: =Z9*E9*AG9 -> 11.5 | AO9: =AA9*G9*AH9 -> 12.7 | AP9: =AB9*I9*AI9 -> 12.45 | AQ9: =AC9*K9*AJ9 -> 12.2 | AR9: =AD9*M9*AK9 -> 12 | AS9: =AE9*O9*AL9 -> 11.8
B10: 63 | C10: 28.1 | D10: 17.7 | E10: 27.25 | F10: 17.35 | G10: 26.4 | H10: 17 | I10: 25.35 | J10: 16.5 | K10: 24.3 | L10: 16 | M10: 23.2 | N10: 15.4 | O10: 22.1 | P10: 14.8 | R10: 0.9964539007 | S10: 0.9663120567 | T10: 0.9361702128 | U10: 0.8989361702 | V10: 0.8617021277 | W10: 0.8226950355 | X10: 0.7836879433 | Y10: 0.6298932384 | Z10: 0.6366972477 | AA10: 0.6439393939 | AB10: 0.650887574 | AC10: 0.658436214 | AD10: 0.6637931034 | AE10: 0.6696832579 | AF10: 1 | AG10: 1 | AH10: 1 | AI10: 1 | AJ10: 1 | AK10: 1 | AL10: 1 | AM10: 17.7 | AN10: 17.35 | AO10: 17 | AP10: 16.5 | AQ10: 16 | AR10: 15.4 | AS10: 14.8
B11: 59 | C11: 25.4 | D11: 21.5 | E11: 25.05 | F11: 21.2 | G11: 24.7 | H11: 20.9 | I11: 23.75 | J11: 20.1 | K11: 22.8 | L11: 19.3 | M11: 21.7 | N11: 18.35 | O11: 20.6 | P11: 17.4 | R11: 0.9007092199 | S11: 0.8882978723 | T11: 0.8758865248 | U11: 0.8421985816 | V11: 0.8085106383 | W11: 0.7695035461 | X11: 0.7304964539 | Y11: 0.8464566929 | Z11: 0.8463073852 | AA11: 0.8461538462 | AB11: 0.8463157895 | AC11: 0.8464912281 | AD11: 0.8456221198 | AE11: 0.8446601942 | AF11: 1 | AG11: 1 | AH11: 1 | AI11: 1 | AJ11: 1 | AK11: 1 | AL11: 1 | AM11: 21.5 | AN11: 21.2 | AO11: 20.9 | AP11: 20.1 | AQ11: 19.3 | AR11: 18.35 | AS11: 17.4
A12: 76 | B12: 71 | C12: 30 | D12: 16.9 | E12: 30.2 | F12: 14.8 | G12: 30.4 | H12: 12.7 | I12: 29.4 | J12: 12.15 | K12: 28.4 | L12: 11.55 | M12: 27.3 | N12: 10.9 | O12: 26.2 | P12: 10.25 | R12: 1.063829787 | S12: 1.070921986 | T12: 1.078014184 | U12: 1.042553191 | V12: 1.007092199 | W12: 0.9680851064 | X12: 0.9290780142 | Y12: 0.5633333333 | Z12: 0.4900662252 | AA12: 0.4177631579 | AB12: 0.4132653061 | AC12: 0.4066901408 | AD12: 0.3992673993 | AE12: 0.391221374 | AF12: 1 | AG12: 1 | AH12: 1 | AI12: 1 | AJ12: 1 | AK12: 1 | AL12: 1 | AM12: 16.9 | AN12: 14.8 | AO12: 12.7 | AP12: 12.15 | AQ12: 11.55 | AR12: 10.9 | AS12: 10.25
B13: 67 | C13: 32.05 | D13: 13.45 | E13: 30.15 | F13: 14.75 | G13: =T13*$G$17 -> 28.2 | H13: 16.05 | I13: 27.2 | J13: 15.5 | K13: 26.2 | L13: 14.95 | M13: 25.1 | N13: 14.25 | O13: 24 | P13: 13.55 | R13: 1.136524823 | S13: 1.069148936 | T13: 1 | U13: 0.9645390071 | V13: 0.9290780142 | W13: 0.890070922 | X13: 0.8510638298 | Y13: 0.4196567863 | Z13: 0.4892205638 | AA13: 0.5691489362 | AB13: 0.5698529412 | AC13: 0.570610687 | AD13: 0.5677290837 | AE13: 0.5645833333 | AF13: 1 | AG13: 1 | AH13: 1 | AI13: 1 | AJ13: 1 | AK13: 1 | AL13: 1 | AM13: 13.45 | AN13: 14.75 | AO13: 16.05 | AP13: 15.5 | AQ13: 14.95 | AR13: 14.25 | AS13: 13.55
B14: 63 | C14: 27.95 | D14: 21.4 | E14: 27.1 | F14: 21 | G14: 26.25 | H14: 20.55 | I14: 25.3 | J14: 19.95 | K14: 24.3 | L14: 19.35 | M14: 23.2 | N14: 18.6 | O14: 22.05 | P14: 17.85 | R14: 0.9911347518 | S14: 0.9609929078 | T14: 0.9308510638 | U14: 0.8971631206 | V14: 0.8617021277 | W14: 0.8226950355 | X14: 0.7819148936 | Y14: 0.7656529517 | Z14: 0.7749077491 | AA14: 0.7828571429 | AB14: 0.7885375494 | AC14: 0.7962962963 | AD14: 0.8017241379 | AE14: 0.8095238095 | AF14: 1 | AG14: 1 | AH14: 1 | AI14: 1 | AJ14: 1 | AK14: 1 | AL14: 1 | AM14: 21.4 | AN14: 21 | AO14: 20.55 | AP14: 19.95 | AQ14: 19.35 | AR14: 18.6 | AS14: 17.85
B15: 59 | C15: 26.25 | D15: 24.95 | E15: 25.45 | F15: 24.25 | G15: 24.7 | H15: 23.5 | I15: 23.75 | J15: 22.6 | K15: 22.8 | L15: 21.65 | M15: 21.7 | N15: 20.6 | O15: 20.55 | P15: 19.55 | R15: 0.9308510638 | S15: 0.9024822695 | T15: 0.8758865248 | U15: 0.8421985816 | V15: 0.8085106383 | W15: 0.7695035461 | X15: 0.7287234043 | Y15: 0.9504761905 | Z15: 0.952848723 | AA15: 0.951417004 | AB15: 0.9515789474 | AC15: 0.9495614035 | AD15: 0.9493087558 | AE15: 0.9513381995 | AF15: 1 | AG15: 1 | AH15: 1 | AI15: 1 | AJ15: 1 | AK15: 1 | AL15: 1 | AM15: 24.95 | AN15: 24.25 | AO15: 23.5 | AP15: 22.6 | AQ15: 21.65 | AR15: 20.6 | AS15: 19.55
A16: 80 | B16: 71 | C16: 30 | D16: 20.7 | E16: 30.1 | F16: 18.65 | G16: 30.2 | H16: 16.6 | I16: 29.3 | J16: 16 | K16: 28.4 | L16: 15.4 | M16: 27.3 | N16: 14.55 | O16: 26.2 | P16: 13.7 | R16: 1.063829787 | S16: 1.067375887 | T16: 1.070921986 | U16: 1.039007092 | V16: 1.007092199 | W16: 0.9680851064 | X16: 0.9290780142 | Y16: 0.69 | Z16: 0.6196013289 | AA16: 0.5496688742 | AB16: 0.5460750853 | AC16: 0.5422535211 | AD16: 0.532967033 | AE16: 0.5229007634 | AF16: 1 | AG16: 1 | AH16: 1 | AI16: 1 | AJ16: 1 | AK16: 1 | AL16: 1 | AM16: 20.7 | AN16: 18.65 | AO16: 16.6 | AP16: 16 | AQ16: 15.4 | AR16: 14.55 | AS16: 13.7
B17: 67 | C17: 30.7 | D17: 17 | E17: 29.45 | F17: 18.3 | G17: 28.2 | H17: 19.6 | I17: 27.2 | J17: 18.95 | K17: 26.2 | L17: 18.3 | M17: 25.1 | N17: 17.45 | O17: 24 | P17: 16.6 | R17: 1.088652482 | S17: 1.044326241 | T17: 1 | U17: 0.9645390071 | V17: 0.9290780142 | W17: 0.890070922 | X17: 0.8510638298 | Y17: 0.5537459283 | Z17: 0.6213921902 | AA17: 0.695035461 | AB17: 0.6966911765 | AC17: 0.6984732824 | AD17: 0.6952191235 | AE17: 0.6916666667 | AF17: 1 | AG17: 1 | AH17: 1 | AI17: 1 | AJ17: 1 | AK17: 1 | AL17: 1 | AM17: 17 | AN17: 18.3 | AO17: 19.6 | AP17: 18.95 | AQ17: 18.3 | AR17: 17.45 | AS17: 16.6
B18: 63 | C18: 28 | D18: 23.2 | E18: 27.1 | F18: 22.65 | G18: =T18*$G$17 -> 26.2 | H18: 22.1 | I18: 25.25 | J18: 21.45 | K18: 24.3 | L18: 20.8 | M18: 23.2 | N18: 20 | O18: 22.1 | P18: 19.2 | R18: 0.9929078014 | S18: 0.9609929078 | T18: 0.9290780142 | U18: 0.8953900709 | V18: 0.8617021277 | W18: 0.8226950355 | X18: 0.7836879433 | Y18: 0.8285714286 | Z18: 0.8357933579 | AA18: 0.8435114504 | AB18: 0.8495049505 | AC18: 0.8559670782 | AD18: 0.8620689655 | AE18: 0.8687782805 | AF18: 1 | AG18: 1 | AH18: 1 | AI18: 1 | AJ18: 1 | AK18: 1 | AL18: 1 | AM18: 23.2 | AN18: 22.65 | AO18: 22.1 | AP18: 21.45 | AQ18: 20.8 | AR18: 20 | AS18: 19.2
B19: 59 | C19: 26.5 | D19: 25.3 | E19: 25.6 | F19: 24.45 | G19: =T19*$G$17 -> 24.7 | H19: 23.6 | I19: 23.75 | J19: 22.65 | K19: 22.8 | L19: 21.7 | M19: 21.7 | N19: 20.65 | O19: 20.6 | P19: 19.6 | R19: 0.9397163121 | S19: 0.9078014184 | T19: 0.8758865248 | U19: 0.8421985816 | V19: 0.8085106383 | W19: 0.7695035461 | X19: 0.7304964539 | Y19: 0.9547169811 | Z19: 0.955078125 | AA19: 0.955465587 | AB19: 0.9536842105 | AC19: 0.951754386 | AD19: 0.9516129032 | AE19: 0.9514563107 | AF19: 1 | AG19: 1 | AH19: 1 | AI19: 1 | AJ19: 1 | AK19: 1 | AL19: 1 | AM19: 25.3 | AN19: 24.45 | AO19: 23.6 | AP19: 22.65 | AQ19: 21.7 | AR19: 20.65 | AS19: 19.6

Sheet RAPM_36 (hidden)
A2: RAPM_36
A3: Evaporator Air Flow | C3: Condenser Entering Air Temperature ˚F
A4: 1000 | B4: CFM | C4: 85 | E4: 90 | G4: 95 | I4: 100 | K4: 105 | M4: 110 | O4: 115
A5: Evap. Air °F DB | B5: EWB† ˚F | C5: Capacity Mbtuh | E5: Capacity Mbtuh | G5: Capacity Mbtuh | I5: Capacity Mbtuh | K5: Capacity Mbtuh | M5: Capacity Mbtuh | O5: Capacity Mbtuh
C6: Total | D6: Sens. | E6: Total | F6: Sens. | G6: Total | H6: Sens. | I6: Total | J6: Sens. | K6: Total | L6: Sens. | M6: Total | N6: Sens. | O6: Total | P6: Sens.
R7: Total Factors | Y7: Sens. % | AF7: IDB Adj | AM7: Sens Calc
A8: 72 | B8: 71 | C8: =R8*$G$17 -> 40 | D8: =IF(AM8>C8,C8,AM8) -> 11.5 | E8: =S8*$G$17 -> 38.9 | F8: =IF(AN8>E8,E8,AN8) -> 11.1 | G8: =T8*$G$17 -> 37.8 | H8: =IF(AO8>G8,G8,AO8) -> 10.7 | I8: =U8*$G$17 -> 36.5 | J8: =IF(AP8>I8,I8,AP8) -> 10.25 | K8: =V8*$G$17 -> 35.2 | L8: =IF(AQ8>K8,K8,AQ8) -> 9.8 | M8: =W8*$G$17 -> 33.75 | N8: =IF(AR8>M8,M8,AR8) -> 9.3 | O8: =X8*$G$17 -> 32.3 | P8: =IF(AS8>O8,O8,AS8) -> 8.8 | R8: 1.152737752 | S8: 1.121037464 | T8: 1.089337176 | U8: 1.051873199 | V8: 1.014409222 | W8: 0.9726224784 | X8: 0.9308357349 | Y8: 0.2875 | Z8: 0.2853470437 | AA8: 0.2830687831 | AB8: 0.2808219178 | AC8: 0.2784090909 | AD8: 0.2755555556 | AE8: 0.2724458204 | AF8: 1 | AG8: 1 | AH8: 1 | AI8: 1 | AJ8: 1 | AK8: 1 | AL8: 1 | AM8: =Y8*C8*AF8 -> 11.5 | AN8: =Z8*E8*AG8 -> 11.1 | AO8: =AA8*G8*AH8 -> 10.7 | AP8: =AB8*I8*AI8 -> 10.25 | AQ8: =AC8*K8*AJ8 -> 9.8 | AR8: =AD8*M8*AK8 -> 9.3 | AS8: =AE8*O8*AL8 -> 8.8
B9: 67 | C9: =R9*$G$17 -> 37 | D9: 15.5 | E9: =S9*$G$17 -> 35.85 | F9: =IF(AN9>E9,E9,AN9) -> 15.1 | G9: =T9*$G$17 -> 34.7 | H9: =IF(AO9>G9,G9,AO9) -> 14.7 | I9: =U9*$G$17 -> 33.45 | J9: =IF(AP9>I9,I9,AP9) -> 14.25 | K9: =V9*$G$17 -> 32.2 | L9: =IF(AQ9>K9,K9,AQ9) -> 13.8 | M9: =W9*$G$17 -> 30.8 | N9: =IF(AR9>M9,M9,AR9) -> 13.35 | O9: =X9*$G$17 -> 29.4 | P9: =IF(AS9>O9,O9,AS9) -> 12.9 | R9: 1.066282421 | S9: 1.03314121 | T9: 1 | U9: 0.9639769452 | V9: 0.9279538905 | W9: 0.8876080692 | X9: 0.8472622478 | Y9: 0.4189189189 | Z9: 0.4211994421 | AA9: 0.4236311239 | AB9: 0.4260089686 | AC9: 0.4285714286 | AD9: 0.4334415584 | AE9: 0.4387755102 | AF9: 1 | AG9: 1 | AH9: 1 | AI9: 1 | AJ9: 1 | AK9: 1 | AL9: 1 | AM9: =Y9*C9*AF9 -> 15.5 | AN9: =Z9*E9*AG9 -> 15.1 | AO9: =AA9*G9*AH9 -> 14.7 | AP9: =AB9*I9*AI9 -> 14.25 | AQ9: =AC9*K9*AJ9 -> 13.8 | AR9: =AD9*M9*AK9 -> 13.35 | AS9: =AE9*O9*AL9 -> 12.9
B10: 63 | C10: 34.4 | D10: 19.9 | E10: 33.3 | F10: 19.5 | G10: 32.2 | H10: 19.1 | I10: 30.95 | J10: 18.7 | K10: 29.7 | L10: 18.3 | M10: 28.25 | N10: 17.8 | O10: 26.8 | P10: 17.3 | R10: 0.9913544669 | S10: 0.9596541787 | T10: 0.9279538905 | U10: 0.8919308357 | V10: 0.855907781 | W10: 0.8141210375 | X10: 0.7723342939 | Y10: 0.5784883721 | Z10: 0.5855855856 | AA10: 0.5931677019 | AB10: 0.6042003231 | AC10: 0.6161616162 | AD10: 0.6300884956 | AE10: 0.6455223881 | AF10: 1 | AG10: 1 | AH10: 1 | AI10: 1 | AJ10: 1 | AK10: 1 | AL10: 1 | AM10: 19.9 | AN10: 19.5 | AO10: 19.1 | AP10: 18.7 | AQ10: 18.3 | AR10: 17.8 | AS10: 17.3
B11: 59 | C11: 30.7 | D11: 26 | E11: 30.5 | F11: 25.8 | G11: 30.3 | H11: 25.6 | I11: 29.1 | J11: 24.6 | K11: 27.9 | L11: 23.6 | M11: 26.5 | N11: 22.4 | O11: 25.1 | P11: 21.2 | R11: 0.8847262248 | S11: 0.878962536 | T11: 0.8731988473 | U11: 0.8386167147 | V11: 0.8040345821 | W11: 0.7636887608 | X11: 0.7233429395 | Y11: 0.8469055375 | Z11: 0.8459016393 | AA11: 0.8448844884 | AB11: 0.8453608247 | AC11: 0.8458781362 | AD11: 0.8452830189 | AE11: 0.8446215139 | AF11: 1 | AG11: 1 | AH11: 1 | AI11: 1 | AJ11: 1 | AK11: 1 | AL11: 1 | AM11: 26 | AN11: 25.8 | AO11: 25.6 | AP11: 24.6 | AQ11: 23.6 | AR11: 22.4 | AS11: 21.2
A12: 76 | B12: 71 | C12: 39.95 | D12: 14.15 | E12: 38.85 | F12: 13.65 | G12: 37.75 | H12: 13.2 | I12: 36.5 | J12: 12.7 | K12: 35.2 | L12: 12.15 | M12: 33.8 | N12: 11.6 | O12: 32.4 | P12: 11.05 | R12: 1.15129683 | S12: 1.119596542 | T12: 1.087896254 | U12: 1.051873199 | V12: 1.014409222 | W12: 0.9740634006 | X12: 0.9337175793 | Y12: 0.3541927409 | Z12: 0.3513513514 | AA12: 0.3496688742 | AB12: 0.3479452055 | AC12: 0.3451704545 | AD12: 0.3431952663 | AE12: 0.3410493827 | AF12: 1 | AG12: 1 | AH12: 1 | AI12: 1 | AJ12: 1 | AK12: 1 | AL12: 1 | AM12: 14.15 | AN12: 13.65 | AO12: 13.2 | AP12: 12.7 | AQ12: 12.15 | AR12: 11.6 | AS12: 11.05
B13: 67 | C13: 36.9 | D13: 18.15 | E13: 35.8 | F13: 17.7 | G13: =T13*$G$17 -> 34.7 | H13: 17.25 | I13: 33.45 | J13: 16.7 | K13: 32.2 | L13: 16.15 | M13: 30.75 | N13: 15.6 | O13: 29.3 | P13: 15 | R13: 1.063400576 | S13: 1.031700288 | T13: 1 | U13: 0.9639769452 | V13: 0.9279538905 | W13: 0.886167147 | X13: 0.8443804035 | Y13: 0.4918699187 | Z13: 0.4944134078 | AA13: 0.4971181556 | AB13: 0.4992526158 | AC13: 0.501552795 | AD13: 0.5073170732 | AE13: 0.5119453925 | AF13: 1 | AG13: 1 | AH13: 1 | AI13: 1 | AJ13: 1 | AK13: 1 | AL13: 1 | AM13: 18.15 | AN13: 17.7 | AO13: 17.25 | AP13: 16.7 | AQ13: 16.15 | AR13: 15.6 | AS13: 15
B14: 63 | C14: 34.4 | D14: 24.65 | E14: 33.3 | F14: 24.15 | G14: 32.2 | H14: 23.6 | I14: 30.9 | J14: 22.95 | K14: 29.6 | L14: 22.35 | M14: 28.2 | N14: 21.65 | O14: 26.75 | P14: 21 | R14: 0.9913544669 | S14: 0.9596541787 | T14: 0.9279538905 | U14: 0.8904899135 | V14: 0.8530259366 | W14: 0.8126801153 | X14: 0.7708933718 | Y14: 0.7165697674 | Z14: 0.7252252252 | AA14: 0.7329192547 | AB14: 0.7427184466 | AC14: 0.7550675676 | AD14: 0.7677304965 | AE14: 0.785046729 | AF14: 1 | AG14: 1 | AH14: 1 | AI14: 1 | AJ14: 1 | AK14: 1 | AL14: 1 | AM14: 24.65 | AN14: 24.15 | AO14: 23.6 | AP14: 22.95 | AQ14: 22.35 | AR14: 21.65 | AS14: 21
B15: 59 | C15: 32 | D15: 30.45 | E15: 31.2 | F15: 29.65 | G15: 30.4 | H15: 28.9 | I15: 29.15 | J15: 27.7 | K15: 27.85 | L15: 26.55 | M15: 26.45 | N15: 25.15 | O15: 25.05 | P15: 23.8 | R15: 0.9221902017 | S15: 0.8991354467 | T15: 0.8760806916 | U15: 0.8400576369 | V15: 0.8025936599 | W15: 0.7622478386 | X15: 0.7219020173 | Y15: 0.9515625 | Z15: 0.9503205128 | AA15: 0.9506578947 | AB15: 0.9502572899 | AC15: 0.9533213645 | AD15: 0.9508506616 | AE15: 0.9500998004 | AF15: 1 | AG15: 1 | AH15: 1 | AI15: 1 | AJ15: 1 | AK15: 1 | AL15: 1 | AM15: 30.45 | AN15: 29.65 | AO15: 28.9 | AP15: 27.7 | AQ15: 26.55 | AR15: 25.15 | AS15: 23.8
A16: 80 | B16: 71 | C16: 39.9 | D16: 19.4 | E16: 38.8 | F16: 18.8 | G16: 37.7 | H16: 18.2 | I16: 36.4 | J16: 17.5 | K16: 35.1 | L16: 16.8 | M16: 33.7 | N16: 16.05 | O16: 32.3 | P16: 15.3 | R16: 1.149855908 | S16: 1.11815562 | T16: 1.086455331 | U16: 1.048991354 | V16: 1.011527378 | W16: 0.9711815562 | X16: 0.9308357349 | Y16: 0.4862155388 | Z16: 0.4845360825 | AA16: 0.4827586207 | AB16: 0.4807692308 | AC16: 0.4786324786 | AD16: 0.4762611276 | AE16: 0.4736842105 | AF16: 1 | AG16: 1 | AH16: 1 | AI16: 1 | AJ16: 1 | AK16: 1 | AL16: 1 | AM16: 19.4 | AN16: 18.8 | AO16: 18.2 | AP16: 17.5 | AQ16: 16.8 | AR16: 16.05 | AS16: 15.3
B17: 67 | C17: 36.9 | D17: 22.8 | E17: 35.8 | F17: 22.2 | G17: 34.7 | H17: 21.6 | I17: 33.4 | J17: 20.9 | K17: 32.1 | L17: 20.2 | M17: 30.7 | N17: 19.45 | O17: 29.3 | P17: 18.7 | R17: 1.063400576 | S17: 1.031700288 | T17: 1 | U17: 0.9625360231 | V17: 0.9250720461 | W17: 0.8847262248 | X17: 0.8443804035 | Y17: 0.6178861789 | Z17: 0.6201117318 | AA17: 0.6224783862 | AB17: 0.625748503 | AC17: 0.6292834891 | AD17: 0.6335504886 | AE17: 0.638225256 | AF17: 1 | AG17: 1 | AH17: 1 | AI17: 1 | AJ17: 1 | AK17: 1 | AL17: 1 | AM17: 22.8 | AN17: 22.2 | AO17: 21.6 | AP17: 20.9 | AQ17: 20.2 | AR17: 19.45 | AS17: 18.7
B18: 63 | C18: 34.3 | D18: 26.7 | E18: 33.2 | F18: 26.1 | G18: =T18*$G$17 -> 32.1 | H18: 25.5 | I18: 30.85 | J18: 24.8 | K18: 29.6 | L18: 24.1 | M18: 28.2 | N18: 23.35 | O18: 26.8 | P18: 22.6 | R18: 0.9884726225 | S18: 0.9567723343 | T18: 0.9250720461 | U18: 0.8890489914 | V18: 0.8530259366 | W18: 0.8126801153 | X18: 0.7723342939 | Y18: 0.778425656 | Z18: 0.7861445783 | AA18: 0.7943925234 | AB18: 0.8038897893 | AC18: 0.8141891892 | AD18: 0.8280141844 | AE18: 0.8432835821 | AF18: 1 | AG18: 1 | AH18: 1 | AI18: 1 | AJ18: 1 | AK18: 1 | AL18: 1 | AM18: 26.7 | AN18: 26.1 | AO18: 25.5 | AP18: 24.8 | AQ18: 24.1 | AR18: 23.35 | AS18: 22.6
B19: 59 | C19: 32.6 | D19: 31.1 | E19: 31.5 | F19: 30.05 | G19: =T19*$G$17 -> 30.4 | H19: 29 | I19: 29.15 | J19: 27.8 | K19: 27.9 | L19: 26.6 | M19: 26.45 | N19: 25.2 | O19: 25 | P19: 23.8 | R19: 0.939481268 | S19: 0.9077809798 | T19: 0.8760806916 | U19: 0.8400576369 | V19: 0.8040345821 | W19: 0.7622478386 | X19: 0.7204610951 | Y19: 0.9539877301 | Z19: 0.953968254 | AA19: 0.9539473684 | AB19: 0.9536878216 | AC19: 0.9534050179 | AD19: 0.9527410208 | AE19: 0.952 | AF19: 1 | AG19: 1 | AH19: 1 | AI19: 1 | AJ19: 1 | AK19: 1 | AL19: 1 | AM19: 31.1 | AN19: 30.05 | AO19: 29 | AP19: 27.8 | AQ19: 26.6 | AR19: 25.2 | AS19: 23.8

Sheet RAPM_42 (hidden)
A2: RAPM_42
A3: Evaporator Air Flow | C3: Condenser Entering Air Temperature ˚F
A4: 1125 | B4: CFM | C4: 85 | E4: 90 | G4: 95 | I4: 100 | K4: 105 | M4: 110 | O4: 115
A5: Evap. Air °F DB | B5: EWB† ˚F | C5: Capacity Mbtuh | E5: Capacity Mbtuh | G5: Capacity Mbtuh | I5: Capacity Mbtuh | K5: Capacity Mbtuh | M5: Capacity Mbtuh | O5: Capacity Mbtuh
C6: Total | D6: Sens. | E6: Total | F6: Sens. | G6: Total | H6: Sens. | I6: Total | J6: Sens. | K6: Total | L6: Sens. | M6: Total | N6: Sens. | O6: Total | P6: Sens.
R7: Total Factors | Y7: Sens. % | AF7: IDB Adj | AM7: Sens Calc
A8: 72 | B8: 71 | C8: =R8*$G$17 -> 44 | D8: =IF(AM8>C8,C8,AM8) -> 14.2 | E8: =S8*$G$17 -> 41.1 | F8: =IF(AN8>E8,E8,AN8) -> 13.35 | G8: =T8*$G$17 -> 38.2 | H8: =IF(AO8>G8,G8,AO8) -> 12.5 | I8: =U8*$G$17 -> 37.1 | J8: =IF(AP8>I8,I8,AP8) -> 12.25 | K8: =V8*$G$17 -> 36 | L8: =IF(AQ8>K8,K8,AQ8) -> 12 | M8: =W8*$G$17 -> 34.75 | N8: =IF(AR8>M8,M8,AR8) -> 11.65 | O8: =X8*$G$17 -> 33.5 | P8: =IF(AS8>O8,O8,AS8) -> 11.3 | R8: 1.131105398 | S8: 1.05655527 | T8: 0.9820051414 | U8: 0.9537275064 | V8: 0.9254498715 | W8: 0.8933161954 | X8: 0.8611825193 | Y8: 0.3227272727 | Z8: 0.3248175182 | AA8: 0.3272251309 | AB8: 0.3301886792 | AC8: 0.3333333333 | AD8: 0.3352517986 | AE8: 0.3373134328 | AF8: 1 | AG8: 1 | AH8: 1 | AI8: 1 | AJ8: 1 | AK8: 1 | AL8: 1 | AM8: =Y8*C8*AF8 -> 14.2 | AN8: =Z8*E8*AG8 -> 13.35 | AO8: =AA8*G8*AH8 -> 12.5 | AP8: =AB8*I8*AI8 -> 12.25 | AQ8: =AC8*K8*AJ8 -> 12 | AR8: =AD8*M8*AK8 -> 11.65 | AS8: =AE8*O8*AL8 -> 11.3
B9: 67 | C9: =R9*$G$17 -> 40.8 | D9: 19.3 | E9: =S9*$G$17 -> 38.85 | F9: =IF(AN9>E9,E9,AN9) -> 18.6 | G9: =T9*$G$17 -> 36.9 | H9: =IF(AO9>G9,G9,AO9) -> 17.9 | I9: =U9*$G$17 -> 35 | J9: =IF(AP9>I9,I9,AP9) -> 17.25 | K9: =V9*$G$17 -> 33.1 | L9: =IF(AQ9>K9,K9,AQ9) -> 16.6 | M9: =W9*$G$17 -> 31.9 | N9: =IF(AR9>M9,M9,AR9) -> 16.3 | O9: =X9*$G$17 -> 30.7 | P9: =IF(AS9>O9,O9,AS9) -> 16 | R9: 1.048843188 | S9: 0.998714653 | T9: 0.9485861183 | U9: 0.8997429306 | V9: 0.8508997429 | W9: 0.8200514139 | X9: 0.7892030848 | Y9: 0.4730392157 | Z9: 0.4787644788 | AA9: 0.4850948509 | AB9: 0.4928571429 | AC9: 0.501510574 | AD9: 0.5109717868 | AE9: 0.5211726384 | AF9: 1 | AG9: 1 | AH9: 1 | AI9: 1 | AJ9: 1 | AK9: 1 | AL9: 1 | AM9: =Y9*C9*AF9 -> 19.3 | AN9: =Z9*E9*AG9 -> 18.6 | AO9: =AA9*G9*AH9 -> 17.9 | AP9: =AB9*I9*AI9 -> 17.25 | AQ9: =AC9*K9*AJ9 -> 16.6 | AR9: =AD9*M9*AK9 -> 16.3 | AS9: =AE9*O9*AL9 -> 16
B10: 63 | C10: 38 | D10: 23.8 | E10: 36.9 | F10: 23.55 | G10: 35.8 | H10: 23.3 | I10: 34.45 | J10: 22.9 | K10: 33.1 | L10: 22.5 | M10: 31.15 | N10: 21.7 | O10: 29.2 | P10: 20.9 | R10: 0.9768637532 | S10: 0.9485861183 | T10: 0.9203084833 | U10: 0.8856041131 | V10: 0.8508997429 | W10: 0.8007712082 | X10: 0.7506426735 | Y10: 0.6263157895 | Z10: 0.6382113821 | AA10: 0.6508379888 | AB10: 0.6647314949 | AC10: 0.6797583082 | AD10: 0.6966292135 | AE10: 0.7157534247 | AF10: 1 | AG10: 1 | AH10: 1 | AI10: 1 | AJ10: 1 | AK10: 1 | AL10: 1 | AM10: 23.8 | AN10: 23.55 | AO10: 23.3 | AP10: 22.9 | AQ10: 22.5 | AR10: 21.7 | AS10: 20.9
B11: 59 | C11: 32.9 | D11: 28.5 | E11: 32.95 | F11: 28.55 | G11: 33 | H11: 28.6 | I11: 31.85 | J11: 27.6 | K11: 30.7 | L11: 26.6 | M11: 29.35 | N11: 25.4 | O11: 28 | P11: 24.2 | R11: 0.8457583548 | S11: 0.8470437018 | T11: 0.8483290488 | U11: 0.8187660668 | V11: 0.7892030848 | W11: 0.7544987147 | X11: 0.7197943445 | Y11: 0.8662613982 | Z11: 0.8664643399 | AA11: 0.8666666667 | AB11: 0.8665620094 | AC11: 0.8664495114 | AD11: 0.8654173765 | AE11: 0.8642857143 | AF11: 1 | AG11: 1 | AH11: 1 | AI11: 1 | AJ11: 1 | AK11: 1 | AL11: 1 | AM11: 28.5 | AN11: 28.55 | AO11: 28.6 | AP11: 27.6 | AQ11: 26.6 | AR11: 25.4 | AS11: 24.2
A12: 76 | B12: 71 | C12: 44.1 | D12: 17.15 | E12: 43.15 | F12: 16.85 | G12: 42.15 | H12: 16.6 | I12: 41 | J12: 16.25 | K12: 39.8 | L12: 15.85 | M12: 38.4 | N12: 15.4 | O12: 37 | P12: 14.95 | R12: 1.133676093 | S12: 1.109254499 | T12: 1.083547558 | U12: 1.053984576 | V12: 1.023136247 | W12: 0.9871465296 | X12: 0.9511568123 | Y12: 0.3888888889 | Z12: 0.3904982619 | AA12: 0.393831554 | AB12: 0.3963414634 | AC12: 0.398241206 | AD12: 0.4010416667 | AE12: 0.4040540541 | AF12: 1 | AG12: 1 | AH12: 1 | AI12: 1 | AJ12: 1 | AK12: 1 | AL12: 1 | AM12: 17.15 | AN12: 16.85 | AO12: 16.6 | AP12: 16.25 | AQ12: 15.85 | AR12: 15.4 | AS12: 14.95
B13: 67 | C13: 41 | D13: 22.35 | E13: 40 | F13: 22.1 | G13: =T13*$G$17 -> 38.95 | H13: 21.8 | I13: 37.75 | J13: 21.4 | K13: 36.55 | L13: 21.05 | M13: 35.2 | N13: 20.55 | O13: 33.8 | P13: 20.1 | R13: 1.053984576 | S13: 1.028277635 | T13: 1.001285347 | U13: 0.970437018 | V13: 0.9395886889 | W13: 0.9048843188 | X13: 0.8688946015 | Y13: 0.5451219512 | Z13: 0.5525 | AA13: 0.5596919127 | AB13: 0.5668874172 | AC13: 0.5759233926 | AD13: 0.5838068182 | AE13: 0.5946745562 | AF13: 1 | AG13: 1 | AH13: 1 | AI13: 1 | AJ13: 1 | AK13: 1 | AL13: 1 | AM13: 22.35 | AN13: 22.1 | AO13: 21.8 | AP13: 21.4 | AQ13: 21.05 | AR13: 20.55 | AS13: 20.1
B14: 63 | C14: 37.85 | D14: 28.95 | E14: 36.8 | F14: 28.55 | G14: 35.75 | H14: 28.2 | I14: 34.6 | J14: 27.75 | K14: 33.4 | L14: 27.25 | M14: 31.95 | N14: 26.7 | O14: 30.55 | P14: 26.1 | R14: 0.9730077121 | S14: 0.9460154242 | T14: 0.9190231362 | U14: 0.8894601542 | V14: 0.8586118252 | W14: 0.8213367609 | X14: 0.7853470437 | Y14: 0.7648612946 | Z14: 0.7758152174 | AA14: 0.7888111888 | AB14: 0.8020231214 | AC14: 0.8158682635 | AD14: 0.8356807512 | AE14: 0.8543371522 | AF14: 1 | AG14: 1 | AH14: 1 | AI14: 1 | AJ14: 1 | AK14: 1 | AL14: 1 | AM14: 28.95 | AN14: 28.55 | AO14: 28.2 | AP14: 27.75 | AQ14: 27.25 | AR14: 26.7 | AS14: 26.1
B15: 59 | C15: 34.5 | D15: 33.5 | E15: 33.8 | F15: 32.8 | G15: 33.1 | H15: 32.1 | I15: 31.9 | J15: 30.95 | K15: 30.7 | L15: 29.75 | M15: 29.35 | N15: 28.45 | O15: 27.95 | P15: 27.1 | R15: 0.8868894602 | S15: 0.8688946015 | T15: 0.8508997429 | U15: 0.8200514139 | V15: 0.7892030848 | W15: 0.7544987147 | X15: 0.7185089974 | Y15: 0.9710144928 | Z15: 0.9704142012 | AA15: 0.9697885196 | AB15: 0.9702194357 | AC15: 0.9690553746 | AD15: 0.9693356048 | AE15: 0.969588551 | AF15: 1 | AG15: 1 | AH15: 1 | AI15: 1 | AJ15: 1 | AK15: 1 | AL15: 1 | AM15: 33.5 | AN15: 32.8 | AO15: 32.1 | AP15: 30.95 | AQ15: 29.75 | AR15: 28.45 | AS15: 27.1
A16: 80 | B16: 71 | C16: 44.1 | D16: 23 | E16: 43.1 | F16: 22.6 | G16: 42.1 | H16: 22.2 | I16: 40.9 | J16: 21.65 | K16: 39.7 | L16: 21.1 | M16: 38.35 | N16: 20.5 | O16: 37 | P16: 19.9 | R16: 1.133676093 | S16: 1.107969152 | T16: 1.082262211 | U16: 1.051413882 | V16: 1.020565553 | W16: 0.9858611825 | X16: 0.9511568123 | Y16: 0.5215419501 | Z16: 0.524361949 | AA16: 0.5273159145 | AB16: 0.5293398533 | AC16: 0.5314861461 | AD16: 0.5345501956 | AE16: 0.5378378378 | AF16: 1 | AG16: 1 | AH16: 1 | AI16: 1 | AJ16: 1 | AK16: 1 | AL16: 1 | AM16: 23 | AN16: 22.6 | AO16: 22.2 | AP16: 21.65 | AQ16: 21.1 | AR16: 20.5 | AS16: 19.9
B17: 67 | C17: 40.9 | D17: 27.5 | E17: 39.9 | F17: 27.1 | G17: 38.9 | H17: 26.7 | I17: 37.7 | J17: 26.15 | K17: 36.5 | L17: 25.6 | M17: 35.15 | N17: 25 | O17: 33.8 | P17: 24.4 | R17: 1.051413882 | S17: 1.025706941 | T17: 1 | U17: 0.969151671 | V17: 0.9383033419 | W17: 0.9035989717 | X17: 0.8688946015 | Y17: 0.6723716381 | Z17: 0.679197995 | AA17: 0.6863753213 | AB17: 0.6936339523 | AC17: 0.701369863 | AD17: 0.7112375533 | AE17: 0.7218934911 | AF17: 1 | AG17: 1 | AH17: 1 | AI17: 1 | AJ17: 1 | AK17: 1 | AL17: 1 | AM17: 27.5 | AN17: 27.1 | AO17: 26.7 | AP17: 26.15 | AQ17: 25.6 | AR17: 25 | AS17: 24.4
B18: 63 | C18: 37.9 | D18: 31.3 | E18: 36.9 | F18: 30.9 | G18: =T18*$G$17 -> 35.9 | H18: 30.5 | I18: 34.7 | J18: 29.95 | K18: 33.5 | L18: 29.4 | M18: 32.15 | N18: 28.8 | O18: 30.8 | P18: 28.2 | R18: 0.9742930591 | S18: 0.9485861183 | T18: 0.9228791774 | U18: 0.8920308483 | V18: 0.8611825193 | W18: 0.8264781491 | X18: 0.7917737789 | Y18: 0.8258575198 | Z18: 0.837398374 | AA18: 0.8495821727 | AB18: 0.8631123919 | AC18: 0.8776119403 | AD18: 0.8958009331 | AE18: 0.9155844156 | AF18: 1 | AG18: 1 | AH18: 1 | AI18: 1 | AJ18: 1 | AK18: 1 | AL18: 1 | AM18: 31.3 | AN18: 30.9 | AO18: 30.5 | AP18: 29.95 | AQ18: 29.4 | AR18: 28.8 | AS18: 28.2
B19: 59 | C19: 35.1 | D19: 34.2 | E19: 34.05 | F19: 33.2 | G19: =T19*$G$17 -> 33 | H19: 32.2 | I19: 31.85 | J19: 31.05 | K19: 30.7 | L19: 29.9 | M19: 29.3 | N19: 28.55 | O19: 27.9 | P19: 27.2 | R19: 0.9023136247 | S19: 0.8753213368 | T19: 0.8483290488 | U19: 0.8187660668 | V19: 0.7892030848 | W19: 0.7532133676 | X19: 0.7172236504 | Y19: 0.9743589744 | Z19: 0.9750367107 | AA19: 0.9757575758 | AB19: 0.9748822606 | AC19: 0.9739413681 | AD19: 0.9744027304 | AE19: 0.9749103943 | AF19: 1 | AG19: 1 | AH19: 1 | AI19: 1 | AJ19: 1 | AK19: 1 | AL19: 1 | AM19: 34.2 | AN19: 33.2 | AO19: 32.2 | AP19: 31.05 | AQ19: 29.9 | AR19: 28.55 | AS19: 27.2

Sheet RAPM_48 (hidden)
A2: RAPM_48
A3: Evaporator Air Flow | C3: Condenser Entering Air Temperature ˚F
A4: 1325 | B4: CFM | C4: 85 | E4: 90 | G4: 95 | I4: 100 | K4: 105 | M4: 110 | O4: 115
A5: Evap. Air °F DB | B5: EWB† ˚F | C5: Capacity Mbtuh | E5: Capacity Mbtuh | G5: Capacity Mbtuh | I5: Capacity Mbtuh | K5: Capacity Mbtuh | M5: Capacity Mbtuh | O5: Capacity Mbtuh
C6: Total | D6: Sens. | E6: Total | F6: Sens. | G6: Total | H6: Sens. | I6: Total | J6: Sens. | K6: Total | L6: Sens. | M6: Total | N6: Sens. | O6: Total | P6: Sens.
R7: Total Factors | Y7: Sens. % | AF7: IDB Adj | AM7: Sens Calc
A8: 72 | B8: 71 | C8: =R8*$G$17 -> 51.7 | D8: =IF(AM8>C8,C8,AM8) -> 16.6 | E8: =S8*$G$17 -> 48.25 | F8: =IF(AN8>E8,E8,AN8) -> 15.6 | G8: =T8*$G$17 -> 44.8 | H8: =IF(AO8>G8,G8,AO8) -> 14.6 | I8: =U8*$G$17 -> 43.55 | J8: =IF(AP8>I8,I8,AP8) -> 14.3 | K8: =V8*$G$17 -> 42.3 | L8: =IF(AQ8>K8,K8,AQ8) -> 14 | M8: =W8*$G$17 -> 40.9 | N8: =IF(AR8>M8,M8,AR8) -> 13.55 | O8: =X8*$G$17 -> 39.5 | P8: =IF(AS8>O8,O8,AS8) -> 13.1 | R8: 1.11663067 | S8: 1.042116631 | T8: 0.9676025918 | U8: 0.9406047516 | V8: 0.9136069114 | W8: 0.8833693305 | X8: 0.8531317495 | Y8: 0.3210831721 | Z8: 0.3233160622 | AA8: 0.3258928571 | AB8: 0.328358209 | AC8: 0.3309692671 | AD8: 0.3312958435 | AE8: 0.3316455696 | AF8: 1 | AG8: 1 | AH8: 1 | AI8: 1 | AJ8: 1 | AK8: 1 | AL8: 1 | AM8: =Y8*C8*AF8 -> 16.6 | AN8: =Z8*E8*AG8 -> 15.6 | AO8: =AA8*G8*AH8 -> 14.6 | AP8: =AB8*I8*AI8 -> 14.3 | AQ8: =AC8*K8*AJ8 -> 14 | AR8: =AD8*M8*AK8 -> 13.55 | AS8: =AE8*O8*AL8 -> 13.1
